Workbook

Sheet Welcome
B1: EPA's P2 Calculator for Reductions in Hazardous Substances, Pollutants and Contaminants
B3: Purpose The purpose of this calculator is threefold: (1) to help EPA P2 Program grantees make conversions as needed for reporting annual reductions of hazardous materials or pollutants in pound units; (2) to show the scope of what EPA accepts for P2 Program grant reporting purposes through action-category tabs and sub-categories in each tab; and, (3) to track and aggregate entries for reading in the Aggregate Tab. The last purpose is useful even for those who already have units in pounds. The action-category tabs are in color below and their content is consistent with EPA media programs and their approaches, as evidenced in the Reference Tabs at the end. The general public is welcome to use this calculator.
B4: Functionality Basic Conversions. The calculator makes unit conversions for a wide range of materials and pollutant sub-categories. For liquid materials, the Hazardous Materials Used tab can do density-based conversions from gallons to pounds for nearly two hundred materials, searchable by material class. For quick conversions, a user can choose a tab of interest -- hazardous material used, hazardous wastes, air pollution, water pollution, or solvent remanufacturing -- and work row by row to choose from sub-category activity metrics to get conversions to pounds. Conversions are usually by formula but sometimes depend on user-entered units. For a recordkeeping approach, a user can start on the Aggregate tab and replace "Row 1," "Row 2," and so on with descriptions (such as P2 actions) to populate those row descriptions in the other action tabs.
B5: Aggregation. The Aggregate Tab displays total pound reductions per action-category tab and per row (captioned or not).
B6: Using the Calculator in support of EPA Grant Reporting. Grantees are encouraged to use this Calculator to convert the P2 action steps their clients implement into hazardous pound reductions to report in an EPA P2 reporting template or equivalent format. This Calculator plays a supportive role for grant reporting. If you are reporting to EPA and using this Calculator, you would use a three-step process: (1) enter descriptions of P2 activities implemented in EPA's reporting templates or something equivalent; (2) use this calculator for calculating annual hazardous pound reductions as needed per activity implemented; and, (3) record those annual pound reductions in your EPA reporting template or equivalent format. The Calculator does not provide fields for entering the facility data, recommendations, or implemented actions that are required for P2 Program grant reporting. The examples provided on action tabs include a P2 activity description to portray a real scenario, but there is nowhere to enter a P2 activity description in this Calculator.
B8: Throughout this calculator, the following color key is used.
B9: Color Key
B10: Enter value
B11: Use drop-down menu
B12: Do not change - calculation

Sheet Aggregate
B1: Aggregated Reductions per Category and Row
B2: This tab is a parent tab for the calculator. It sums the reductions of hazardous pounds per category and row from each tab.
A4: How to use this tab | B4: Use this tab as a read-only tab for aggregate hazardous pound values and as an entry tab for labeling rows. To label a row, enter a caption of your choice in the first column. This step will populate the caption for that row in all action tabs. Continue labeling rows as desired. To get more rows, click the "Click to add row" button here or on any tab and a row will be added to all tabs.
B5: Hazardous Substances Used | C5: Hazardous Wastes | D5: Air Pollution Emissions | E5: Water Pollution Releases | F5: Solvent Remanufacturing | G5: Total by Row
B6: Pounds (lbs) | C6: Pounds (lbs) | D6: Pounds (lbs) | E6: Pounds (lbs) | F6: Pounds (lbs) | G6: Pounds (lbs)
A7: Aggregate (all rows) | B7: =SUM(B8:B17) -> 0 | C7: 0 | D7: 0 | E7: 0 | F7: 0 | G7: 0
A8: Row 1 | B8: ='Haz Mat Used'!F12 -> 0 | C8: ='Haz Wastes'!D12 -> 0 | D8: ='Air Pollution Emissions'!D12+'Air Pollution Emissions'!G12 -> 0 | E8: ='Water Pollution Releases'!U13 -> 0 | F8: ='Solvent Remanufacturing'!J12 -> 0 | G8: =SUM(B8:F8) -> 0
A9: Row 2 | B9: ='Haz Mat Used'!F13 -> 0 | C9: ='Haz Wastes'!D13 -> 0 | D9: ='Air Pollution Emissions'!D13+'Air Pollution Emissions'!G13 -> 0 | E9: ='Water Pollution Releases'!U14 -> 0 | F9: ='Solvent Remanufacturing'!J13 -> 0 | G9: =SUM(B9:F9) -> 0
A10: Row 3 | B10: ='Haz Mat Used'!F14 -> 0 | C10: ='Haz Wastes'!D14 -> 0 | D10: ='Air Pollution Emissions'!D14+'Air Pollution Emissions'!G14 -> 0 | E10: ='Water Pollution Releases'!U15 -> 0 | F10: ='Solvent Remanufacturing'!J14 -> 0 | G10: 0
A11: Row 4 | B11: ='Haz Mat Used'!F15 -> 0 | C11: ='Haz Wastes'!D15 -> 0 | D11: ='Air Pollution Emissions'!D15+'Air Pollution Emissions'!G15 -> 0 | E11: ='Water Pollution Releases'!U16 -> 0 | F11: ='Solvent Remanufacturing'!J15 -> 0 | G11: 0
A12: Row 5 | B12: ='Haz Mat Used'!F16 -> 0 | C12: ='Haz Wastes'!D16 -> 0 | D12: ='Air Pollution Emissions'!D16+'Air Pollution Emissions'!G16 -> 0 | E12: ='Water Pollution Releases'!U17 -> 0 | F12: ='Solvent Remanufacturing'!J16 -> 0 | G12: 0
A13: Row 6 | B13: ='Haz Mat Used'!F17 -> 0 | C13: ='Haz Wastes'!D17 -> 0 | D13: ='Air Pollution Emissions'!D17+'Air Pollution Emissions'!G17 -> 0 | E13: ='Water Pollution Releases'!U18 -> 0 | F13: ='Solvent Remanufacturing'!J17 -> 0 | G13: 0
A14: Row 7 | B14: ='Haz Mat Used'!F18 -> 0 | C14: ='Haz Wastes'!D18 -> 0 | D14: ='Air Pollution Emissions'!D18+'Air Pollution Emissions'!G18 -> 0 | E14: ='Water Pollution Releases'!U19 -> 0 | F14: ='Solvent Remanufacturing'!J18 -> 0 | G14: 0
A15: Row 8 | B15: ='Haz Mat Used'!F19 -> 0 | C15: ='Haz Wastes'!D19 -> 0 | D15: ='Air Pollution Emissions'!D19+'Air Pollution Emissions'!G19 -> 0 | E15: ='Water Pollution Releases'!U20 -> 0 | F15: ='Solvent Remanufacturing'!J19 -> 0 | G15: 0
A16: Row 9 | B16: ='Haz Mat Used'!F20 -> 0 | C16: ='Haz Wastes'!D20 -> 0 | D16: ='Air Pollution Emissions'!D20+'Air Pollution Emissions'!G20 -> 0 | E16: ='Water Pollution Releases'!U21 -> 0 | F16: ='Solvent Remanufacturing'!J20 -> 0 | G16: 0
A17: ="Row "&(ROW()-7) -> Row 10 | B17: ='Haz Mat Used'!F21 -> 0 | C17: ='Haz Wastes'!D21 -> 0 | D17: ='Air Pollution Emissions'!D21+'Air Pollution Emissions'!G21 -> 0 | E17: ='Water Pollution Releases'!U22 -> 0 | F17: ='Solvent Remanufacturing'!J21 -> 0 | G17: 0

Sheet Haz Mat Used
B1: Calculating Reductions in the Use of Hazardous Substances
B2: This tab organizes materials by type and converts all units into pounds. The EPA P2 Program considers a substance hazardous if it would be a RCRA waste constituent upon discard, a federal or state-regulated pollutant upon release, or a TSCA chemical of concern if used, released or disposed of.
A4: Type of Reduction | B4: Reduction in the Use of Hazardous Substances
A5: How to use this tab | B5: Enter data in the fields below. Currently, this tab calculates one substance per row. Cross-check the Haz Wastes Tab to make sure that a waste reduction there and an input reduction here are not counting the same thing twice. Use the Solvent Remanufacturing tab if your substance is a hazardous secondary solvent listed in the "Remanufacturing Exclusion" of the 2014 Definition of Solid Waste (DSW) rule and it's been remanufactured (reclaimed) to extend its useful life.
A6: Calculation Description | B6: Converts all unit to pounds. (The next tab "Haz Mat Densities" lists the density values used in these conversions.)
B7: Haz. Material Type (select) | C7: Haz. Material (select) | D7: Haz. Material Use Avoided | E7: Units (select) | F7: Haz. Material Use Avoided (pounds)
A8: Example | B8: A bathtub refinisher replaced methylene chloride paint strippers with scraping and sanding to prepare tubs in most cases and with an effective benzyl alcohol-based stripper for a small fraction of cases. On average, the refinisher used 4 gallons less of methylene chloride per tub, refinishing 500 tubs a year.
B9: Solvents | C9: Methylene chloride | D9: 2000 | E9: gallons | F9: 22083.27025
A10: Totals - All Rows | F10: =SUM(F12:F21) -> 0
A12: =Aggregate!A8 -> Row 1 | B12: Solvents | C12: (select) | E12: (select) | F12: =IFERROR(IF(OR(E12="gallons",E12="liters"),D12*VLOOKUP(C12,densities,3,FALSE)*VLOOKUP(E12,volConvert,2,FALSE),D12*VLOOKUP(E12,massConvert,2,FALSE)),0) -> 0
A13: =Aggregate!A9 -> Row 2 | B13: (select) | C13: (select) | E13: liters | F13: 0
A14: =Aggregate!A10 -> Row 3 | B14: (select) | C14: (select) | E14: (select) | F14: 0
A15: =Aggregate!A11 -> Row 4 | B15: (select) | C15: (select) | E15: (select) | F15: 0
A16: =Aggregate!A12 -> Row 5 | B16: (select) | C16: (select) | E16: (select) | F16: 0
A17: =Aggregate!A13 -> Row 6 | B17: (select) | C17: (select) | E17: (select) | F17: 0
A18: =Aggregate!A14 -> Row 7 | B18: (select) | C18: (select) | E18: (select) | F18: 0
A19: =Aggregate!A15 -> Row 8 | B19: (select) | C19: (select) | E19: (select) | F19: 0
A20: =Aggregate!A16 -> Row 9 | B20: (select) | C20: (select) | E20: (select) | F20: 0
A21: =Aggregate!A17 -> Row 10 | B21: (select) | C21: (select) | E21: (select) | F21: 0
A26: Color Key
A27: Enter value
A28: Use drop-down menu
A29: Do not change

Sheet Haz Mat Densities
A1: Conversions for Common Hazardous Substances (Gallons to Pounds)
A2: This tab displays material densities to convert gallons to pounds. These are the same densities used in the background of the "Haz Mat Used" tab to convert gallons to pounds. Materials are organized by class -- solvents, fuels and oils, refrigerants, paints, metalworking fluids, liquids, and miscellaneous. You can enter custom materials and densities under the "Other" category in the "Haz Mat Used" tab.
G3: Color Key
A4: Instructions | B4: If you have a substance measured in gallons, find the substance on the list, enter the number of gallons in the "Gallons - input" column, and the equivalent pounds are shown in the "Pounds" column. | G4: Enter value
G5: Do not change - calculation
A6: Calculation Description | B6: From gallons to pounds: # of gallons x density (lb/gal) = # of pounds. From cubic meters to pounds: # kg/cubic meter x 2.2 lbs/kg/264.2 gallons/cubic meter = # lbs/gal x # of gallons = # of pounds. | G6: Do not change - constant
A8: Material | B8: Gallons - input | C8: Density (kg/m3) | D8: Density (lbs/gallon) | E8: Pounds
B10: Custom Material Densities
A11: Enter custom material names here | C11: Enter custom material densities here
A12: (select)
A13: Other | C13: 1000 | D13: =(C13*2.2)/264.2 -> 8.327024981 | E13: =B13*D13 -> 0 | F13: Assumes 1000 kg/m3 for all other materials
A14: Customize in Densities tab:
A15: (Custom 1) | C15: (enter density) | D15: =IFERROR((C15*2.2)/264.2,0) -> 0 | E15: =IFERROR(B15*D15,0) -> 0
A16: (Custom 2) | C16: (enter density) | D16: =IFERROR((C16*2.2)/264.2,0) -> 0 | E16: =IFERROR(B16*D16,0) -> 0
A17: (Custom 3) | C17: (enter density) | D17: 0 | E17: =IFERROR(B17*D17,0) -> 0
A18: (Custom 4) | C18: (enter density) | D18: 0 | E18: =IFERROR(B18*D18,0) -> 0
A19: (Custom 5) | C19: (enter density) | D19: 0 | E19: =IFERROR(B19*D19,0) -> 0
A20: (select) | B20: Solvents
A21: 1,1,2-Trichlorotrifluoroethane | C21: 1564 | D21: =(C21*2.2)/264.2 -> 13.02346707 | E21: =B21*D21 -> 0
A22: 1,2,4-Trichlorobenzene | C22: 1454 | D22: 12.10749432 | E22: 0
A23: 1,2,4-Trimethylbenzene | C23: 876.1 | D23: 7.295306586 | E23: 0
A24: 1,4-Dioxane | C24: 1033.6 | D24: 8.60681302 | E24: 0
A25: 2-Methoxyethanol | C25: 964.6 | D25: 8.032248297 | E25: 0
A26: Acetic Acid | C26: 1049 | D26: 8.735049205 | E26: 0
A27: Acetone | C27: 791 | D27: 6.58667676 | E27: 0
A28: Acetonitrile | C28: 782 | D28: 6.511733535 | E28: 0
A29: Benzene | C29: 873.8 | D29: 7.276154428 | E29: 0
A30: Chlorobenzene | C30: 1106 | D30: 9.209689629 | E30: 0
A31: Chloroform | C31: 1489 | D31: 12.3989402 | E31: 0
A32: Chloromethane | C32: 911 | D32: 7.585919758 | E32: 0
A33: Cyclohexane | C33: 779 | D33: 6.48675246 | E33: 0
A34: Cyclopentane | C34: 745 | D34: 6.203633611 | E34: 0
A35: Dichloromethane | C35: 1326 | D35: 11.04163512 | E35: 0
A36: Diethyl ether | C36: 714 | D36: 5.945495836 | E36: 0
A37: Dimethyl Acetamide | C37: 942 | D37: 7.844057532 | E37: 0
A38: Dimethyl Sulfoxide | C38: 1100 | D38: 9.159727479 | E38: 0
A39: Ethanol | C39: 789 | D39: 6.57002271 | E39: 0
A40: Ethyl acetate | C40: 901 | D40: 7.502649508 | E40: 0
A41: Ethyl ether | C41: 713 | D41: 5.937168812 | E41: 0
A42: Ethylbenzene | C42: 866.5 | D42: 7.215367146 | E42: 0
A43: Ethylene Dichloride | C43: 1253 | D43: 10.4337623 | E43: 0
A44: Formic acid 10%oncentration | C44: 1025 | D44: 8.535200606 | E44: 0
A45: Formic acid 80%oncentration | C45: 1221 | D45: 10.1672975 | E45: 0
A46: Glyme | C46: 869.1 | D46: 7.237017411 | E46: 0
A47: Heptane | C47: 679.5 | D47: 5.658213475 | E47: 0
A48: Hexanes | C48: 654.8 | D48: 5.452535958 | E48: 0
A49: Isobutyl Alcohol | C49: 802 | D49: 6.678274035 | E49: 0
A50: Iso-Octane | C50: 692 | D50: 5.762301287 | E50: 0
A51: Isopropyl Alcohol | C51: 785 | D51: 6.53671461 | E51: 0
A52: Isopropyl alcohol | C52: 785 | D52: 6.53671461 | E52: 0
A53: Isopropyl Myristate | C53: 853 | D53: =(C53*2.2)/264.2 -> 7.102952309 | E53: =B53*D53 -> 0
A54: Methanol | C54: 791 | D54: 6.58667676 | E54: 0
A55: Methyl Ethyl Ketone | C55: 805 | D55: 6.70325511 | E55: 0
A56: Methyl Isoamyl Ketone | C56: 888 | D56: 7.394398183 | E56: 0
A57: Methyl Isobutyl Ketone | C57: 801 | D57: 6.66994701 | E57: 0
A58: Methyl n-Propyl Ketone | C58: 808 | D58: 6.728236185 | E58: 0
A59: Methyl t-Butyl Ether | C59: 741 | D59: 6.170325511 | E59: 0
A60: Methyl tert-butyl ether | C60: 741 | D60: 6.170325511 | E60: 0
A61: Methylene chloride | C61: 1326 | D61: 11.04163512 | E61: 0 | F61: http://www.chemistrydaily.com/chemistry/Methylene_chloride
A62: N,N-Dimethylformamide | C62: 949 | D62: 7.902346707 | E62: 0
A63: n-Butanol | C63: 810 | D63: 6.744890235 | E63: 0
A64: n-Butyl Acetate | C64: 880 | D64: 7.327781983 | E64: 0
A65: n-Butyl Chloride | C65: 886 | D65: 7.377744133 | E65: 0
A66: N-Methylpyrrolidone | C66: 1030 | D66: 8.576835731 | E66: 0
A67: o-Dichlorobenzene | C67: 1306 | D67: 10.87509463 | E67: 0
A68: Pentane | C68: 626 | D68: 5.212717638 | E68: 0
A69: Petroleum Ether | C69: 640 | D69: 5.329295988 | E69: 0
A70: Propanol | C70: 804 | D70: 6.694928085 | E70: 0
A71: Propylene Carbonate | C71: 1201 | D71: 10.000757 | E71: 0
A72: Pyridine | C72: 983.2 | D72: 8.187130961 | E72: 0
A73: Tetrahydrofuran | C73: 888 | D73: 7.394398183 | E73: 0
A74: Toluene | C74: 867 | D74: 7.219530659 | E74: 0
A75: Triethylamine | C75: 728 | D75: 6.062074186 | E75: 0
A76: Trifluoroacetic Acid | C76: 1489 | D76: 12.3989402 | E76: 0
A77: Xylenes | C77: 880.2 | D77: 7.329447388 | E77: 0
A78: (select) | B78: Fuels and Oils
A79: Anthracite (i) | C79: 785 | D79: =(C79*2.2)/264.2 -> 6.53671461 | E79: =B79*D79 -> 0 | F79: Notes: (i) The source used provided a range of 720-850 kg/m3 for anthracite, therefore, the calculation uses a median value of 785 kg/m3 for the calculation of gallons to pounds. (ii) The source used provided a range of 880-940 kg/m3 for automobile oils, therefore, the calculation uses a median density of 910 kg/m3. (iii) The source used provided a range of 690-800 kg/m3 for bituminous coal, therefore, the calculation uses a median density of 745 kg/m3. (iv) The source used provided a range of 375-500 kg/m3, therefore, the calculation uses a median density of 437.5 kg/m3. (v) The source used provided a range of 820-950 kg/m3 for diesel fuel oil 20 to 60, therefore, the calculation uses the median density of 885 kg/m3. (vi) The source used provided a range of 700-900 kg/m3 for natural gas, therefore, the calculation uses the median denisty of 800 kg/m3. (vii) The source used provided a range of 800-920 kg/m3 for olive oil, therefore, the calculation uses the median density of 860 kg/m3. (viii) The source used provided a range of 924-928 kg/m3 for soya bean oil, therefore, the calculation uses the median density of 926 kg/m3. (ix) The source used provided a range of 360-385 kg/m3 was provided for wood, therefore, the calculation uses the median density of 372.5 kg/m3.
A80: Automobile oils (ii) | C80: 910 | D80: 7.577592733 | E80: 0
A81: Bituminous Coal (iii) | C81: 745 | D81: 6.203633611 | E81: 0
A82: Butane | C82: 599 | D82: 4.987887964 | E82: 0
A83: Castor oil | C83: 956.1 | D83: 7.961468584 | E83: 0
A84: Charcoal, hard wood | C84: 149 | D84: 1.240726722 | E84: 0
A85: Charcoal, soft wood | C85: 216 | D85: 1.798637396 | E85: 0
A86: Coconut oil | C86: 924 | D86: 7.694171083 | E86: 0
A87: Coke (iv) | C87: 437.5 | D87: 3.643073429 | E87: 0
A88: Cotton seed oil | C88: 926 | D88: 7.710825132 | E88: 0
A89: Crude oil, 32.6o API | C89: 862 | D89: 7.177895534 | E89: 0
A90: Crude oil, 35.6o API | C90: 847 | D90: 7.052990159 | E90: 0
A91: Crude oil, 40o API | C91: 825 | D91: 6.869795609 | E91: 0
A92: Crude oil, 48o API | C92: 790 | D92: 6.578349735 | E92: 0
A93: Crude oil, California | C93: 915 | D93: 7.619227858 | E93: 0
A94: Crude oil, Mexican | C94: 973 | D94: 8.102195307 | E94: 0
A95: Crude oil, Texas | C95: 873 | D95: 7.269492808 | E95: 0
A96: Diesel fuel oil 20 to 60 (v) | C96: 885 | D96: 7.369417108 | E96: 0
A97: Fuel oil | C97: 890 | D97: 7.411052233 | E97: 0
A98: Gas oils | C98: 890 | D98: 7.411052233 | E98: 0
A99: Gasoline, natural | C99: 711 | D99: 5.920514762 | E99: 0
A100: Gasoline, Vehicle | C100: 737 | D100: 6.137017411 | E100: 0
A101: Heavy fuel oil | C101: 930 | D101: 7.744133232 | E101: 0
A102: Kerosene | C102: 820.1 | D102: 6.828993187 | E102: 0
A103: Linseed oil | C103: 929.1 | D103: 7.73663891 | E103: 0
A104: Natural gas (vi) | C104: 800 | D104: 6.661619985 | E104: 0
A105: Oil, petroleum | C105: 881 | D105: 7.336109008 | E105: 0
A106: Olive oil (vii) | C106: 860 | D106: 7.161241484 | E106: 0
A107: Petrol, natural | C107: 711 | D107: 5.920514762 | E107: 0
A108: Petrol, Vehicle | C108: 737 | D108: 6.137017411 | E108: 0
A109: Propane | C109: 583.07 | D109: 4.855238456 | E109: 0
A110: Propane, R-290 | C110: 494 | D110: 4.113550341 | E110: 0
A111: Rape seed oil | C111: 920 | D111: 7.660862983 | E111: 0
A112: Rosin oil | C112: 980 | D112: 8.160484481 | E112: 0
A113: Silicone oil | C113: 760 | D113: 6.328538986 | E113: 0
A114: Soya bean oil (viii) | C114: 926 | D114: 7.710825132 | E114: 0
A115: Sunflower oil | C115: 920 | D115: 7.660862983 | E115: 0
A116: Whale oil | C116: 925 | D116: 7.702498107 | E116: 0
A117: Wood (ix) | C117: 372.5 | D117: 3.101816805 | E117: 0
A118: (select) | B118: Refrigerants
A119: Fluorine refrigerant R-12 | C119: 1311 | D119: =(C119*2.2)/264.2 -> 10.91672975 | E119: =B119*D119 -> 0
A120: Fluorine refrigerant R-22 | C120: 1194 | D120: 9.942467827 | E120: 0
A121: Freon (Fluorine) refrigerant R-11 | C121: 1476 | D121: 12.29068887 | E121: 0
A122: Freon - 11 | C122: 1490 | D122: 12.40726722 | E122: 0
A123: Freon - 21 | C123: 1370 | D123: 11.40802422 | E123: 0
A124: HFC-23 (trifluoromethane) | C124: 1160 | D124: 9.659348978 | E124: 0
A125: HFC-32 (difluoromethane) | C125: 972 | D125: 8.093868282 | E125: 0
A126: HFC-125 (pentafluoroethane) | C126: 1350 | D126: 11.24148372 | E126: 0
A127: HFC-134a (1,1,1,2-tetrafluoroethane) | C127: 1240 | D127: 10.32551098 | E127: 0
A128: HFC-143a (gas) | C128: 3.7 | D128: 0.03080999243 | E128: 0
A129: HFC-152a (1,1-difluoroethane) | C129: 953 | D129: 7.935654807 | E129: 0
A130: HFC-236fa (1,1,1,3,3,3-hexafluoropropane) | C130: 1370 | D130: 11.40802422 | E130: 0
A131: Tetrafluoromethane (CF4) | C131: 1300 | D131: 10.82513248 | E131: 0
A132: Hexafluoroethane (C2F6) | C132: 1450 | D132: 12.07418622 | E132: 0
A133: Sulfur hexafluoride (SF6) | C133: 1670 | D133: 13.90613172 | E133: 0
A134: (select) | B134: Paints and Metalworking
A135: Automotive Paints | C135: N/A | D135: 9.2 | E135: =B135*D135 -> 0
A136: Household Paint | C136: N/A | D136: 10 | E136: =B136*D136 -> 0
A137: Metalworking fluids | C137: 1000 | D137: =(C137*2.2)/264.2 -> 8.327024981 | E137: =B137*D137 -> 0
A138: (select) | B138: Liquids
A139: Ammonia (aqua) | C139: 823.5 | D139: =(C139*2.2)/264.2 -> 6.857305072 | E139: =B139*D139 -> 0
A140: Aniline | C140: 1019 | D140: 8.485238456 | E140: 0
A141: Benzil | C141: 1230 | D141: 10.24224073 | E141: 0
A142: Brine | C142: 1230 | D142: 10.24224073 | E142: 0
A143: Bromine | C143: 3120 | D143: 25.98031794 | E143: 0
A144: Butyric Acid | C144: 959 | D144: 7.985616957 | E144: 0
A145: Caproic acid | C145: 921 | D145: 7.669190008 | E145: 0
A146: Carbolic acid | C146: 956 | D146: 7.960635882 | E146: 0
A147: Carbon disulfide | C147: 1261 | D147: 10.5003785 | E147: 0
A148: Carbon tetrachloride | C148: 1584 | D148: 13.19000757 | E148: 0
A149: Carene | C149: 857 | D149: 7.136260409 | E149: 0
A150: Chloride | C150: 1560 | D150: 12.99015897 | E150: 0
A151: Citric acid | C151: 1660 | D151: 13.82286147 | E151: 0
A152: Creosote | C152: 1067 | D152: 8.884935655 | E152: 0
A153: Cresol | C153: 1024 | D153: 8.526873581 | E153: 0
A154: Cumene | C154: 860 | D154: 7.161241484 | E154: 0
A155: Decane | C155: 726.3 | D155: 6.047918244 | E155: 0
A156: Diethylene glycol | C156: 1120 | D156: 9.326267979 | E156: 0
A157: Dodecane | C157: 754.6 | D157: 6.283573051 | E157: 0
A158: Ethane | C158: 570 | D158: 4.746404239 | E158: 0
A159: Ether | C159: 713.5 | D159: 5.941332324 | E159: 0
A160: Ethylamine | C160: 681 | D160: 5.670704012 | E160: 0
A161: Ethylene glycol | C161: 1097 | D161: 9.134746404 | E161: 0
A162: Formaldehyde | C162: 812 | D162: 6.761544285 | E162: 0
A163: Furan | C163: 1416 | D163: 11.79106737 | E163: 0
A164: Furforol | C164: 1155 | D164: 9.617713853 | E164: 0
A165: Glucose (i) | C165: 1395 | D165: 11.61619985 | E165: 0
A166: Glycerine | C166: 1259 | D166: 10.48372445 | E166: 0
A167: Glycerol | C167: 1126 | D167: 9.376230129 | E167: 0
A168: Hexanol | C168: 811 | D168: 6.75321726 | E168: 0
A169: Hexene | C169: 671 | D169: 5.587433762 | E169: 0
A170: Hydrazine | C170: 795 | D170: 6.61998486 | E170: 0
A171: Iodine | C171: 4927 | D171: =(C171*2.2)/264.2 -> 41.02725208 | E171: =B171*D171 -> 0
A172: Ionene | C172: 932 | D172: 7.760787282 | E172: 0
A173: Linolenic Acid | C173: 897 | D173: 7.469341408 | E173: 0
A174: Methane | C174: 465 | D174: 3.872066616 | E174: 0
A175: Mercury | C175: 13593 | D175: 113.1892506 | E175: 0
A176: Naphtha | C176: 665 | D176: 5.537471612 | E176: 0
A177: Naphtha, wood | C177: 960 | D177: 7.993943982 | E177: 0
A178: Napthalene | C178: 820 | D178: 6.828160484 | E178: 0
A179: n-Butyl Chloride | C179: 886.2 | D179: 7.379409538 | E179: 0
A180: Ocimene | C180: 798 | D180: 6.644965935 | E180: 0
A181: Octane | C181: 698.6 | D181: 5.817259652 | E181: 0
A182: Octane | C182: 917.86 | D182: 7.643043149 | E182: 0
A183: Oxygen (liquid) | C183: 1140 | D183: 9.492808478 | E183: 0
A184: Palmitic Acid | C184: 851 | D184: 7.086298259 | E184: 0 | F184: detergents, cosmetics, enamel glaze, buffer solutions, fire retardant, insecticide
A185: Phenol | C185: 1072 | D185: 8.92657078 | E185: 0
A186: Phosgene | C186: 1378 | D186: 11.47464042 | E186: 0
A187: Phytadiene | C187: 823 | D187: 6.853141559 | E187: 0
A188: Pinene | C188: 857 | D188: 7.136260409 | E188: 0 | F188: treatment of metallic surfaces to remove impurities, etc.
A189: Propylene | C189: 514.4 | D189: 4.28342165 | E189: 0 | F189: filler, dentistry, hair relaxer, reagent, sewage treatment, whitewash mortar, plaster
A190: Propylene glycol | C190: 965.3 | D190: 8.038077214 | E190: 0 | F190: oxidizer, rocket propellant, anti-corrosive agent | G190: http://www.engineeringtoolbox.com/propylene-glycol-d_363.html
A191: Pyrrole | C191: 966 | D191: 8.043906132 | E191: 0 | F191: from plant oil (soybeans, peanuts, cottonseed, etc) some forms may be toxic and some are used as fertilizers
A192: Resorcinol | C192: 1269 | D192: 10.5669947 | E192: 0
A193: Sabiname | C193: 812.14 | D193: 6.762710068 | E193: 0 | F193: fertilizer, table salt substitute
A194: Silane | C194: 718 | D194: 5.978803936 | E194: 0 | F194: food additive, anti-caking agent, anti-mold, toothpastes, silver cleaner
A195: Sodium Hydroxide (caustic soda) | C195: 1250 | D195: 10.40878123 | E195: 0 | F195: food additive, anti-caking agent, anti-mold, toothpastes, silver cleaner
A196: Sorbaldehyde | C196: 895 | D196: 7.452687358 | E196: 0
A197: Stearic Acid | C197: 891 | D197: 7.419379258 | E197: 0
A198: Styrene | C198: 903 | D198: 7.519303558 | E198: 0
A199: Sugar solution 68 brix | C199: 1338 | D199: 11.14155942 | E199: 0
A200: Sulphuric Acid 95% conc. | C200: 1839 | D200: 15.31339894 | E200: 0
A201: Terpinene | C201: 847 | D201: 7.052990159 | E201: 0
A202: Turpentine | C202: 868.2 | D202: 7.229523089 | E202: 0
... 16 more rows

Sheet Haz Wastes
B1: Calculating Reductions in Hazardous Waste
B2: Enter quantities of RCRA hazardous waste avoided in this tab which converts all units to pounds. This tab is only for RCRA wastes avoided.
A4: Type of Reduction | B4: Hazardous Waste Reductions
A5: How to use this tab | B5: Enter the quantity of hazardous wastes reduced. Cross-check the Haz Mat Used Tab to make sure that an input reduction there and a waste reduction here are not counting the same thing twice.
A6: Calculation Description | B6: Converts all units to pounds.
B7: Quantity of Haz. Waste Avoided | C7: Units (select) | D7: Quantity of Haz. Waste Avoided (pounds)
A8: Example | B8: With a vendor's help, an auto parts manufacturer changed its onsite treatment chemistries to achieve a 27.8 ton reduction in F006 sludge generation per year -- a total of 46%.
B9: 27.8 | C9: tons | D9: 56000
A10: Totals - All Rows | D10: =SUM(D12:D21) -> 0
A12: =Aggregate!A8 -> Row 1 | C12: (select) | D12: =IFERROR(B12*VLOOKUP(C12,'Drop downs'!$A$14:$B$17,2,FALSE),0) -> 0
A13: =Aggregate!A9 -> Row 2 | C13: (select) | D13: =IFERROR(B13*VLOOKUP(C13,'Drop downs'!$A$14:$B$17,2,FALSE),0) -> 0
A14: =Aggregate!A10 -> Row 3 | C14: (select) | D14: =IFERROR(B14*VLOOKUP(C14,'Drop downs'!$A$14:$B$17,2,FALSE),0) -> 0
A15: =Aggregate!A11 -> Row 4 | C15: (select) | D15: =IFERROR(B15*VLOOKUP(C15,'Drop downs'!$A$14:$B$17,2,FALSE),0) -> 0
A16: =Aggregate!A12 -> Row 5 | C16: (select) | D16: =IFERROR(B16*VLOOKUP(C16,'Drop downs'!$A$14:$B$17,2,FALSE),0) -> 0
A17: =Aggregate!A13 -> Row 6 | C17: (select) | D17: =IFERROR(B17*VLOOKUP(C17,'Drop downs'!$A$14:$B$17,2,FALSE),0) -> 0
A18: =Aggregate!A14 -> Row 7 | C18: (select) | D18: =IFERROR(B18*VLOOKUP(C18,'Drop downs'!$A$14:$B$17,2,FALSE),0) -> 0
A19: =Aggregate!A15 -> Row 8 | C19: (select) | D19: =IFERROR(B19*VLOOKUP(C19,'Drop downs'!$A$14:$B$17,2,FALSE),0) -> 0
A20: =Aggregate!A16 -> Row 9 | C20: (select) | D20: =IFERROR(B20*VLOOKUP(C20,'Drop downs'!$A$14:$B$17,2,FALSE),0) -> 0
A21: =Aggregate!A17 -> Row 10 | C21: (select) | D21: =IFERROR(B21*VLOOKUP(C21,'Drop downs'!$A$14:$B$17,2,FALSE),0) -> 0
A26: Color Key
A27: Enter value
A28: Use drop-down menu
A29: Do not change

Sheet Air Pollution Emissions
B1: Calculating Reductions in Air Emissions
B2: Enter air emissions avoided in this tab which converts all units to pounds.
A4: Type of Reduction | B4: Criteria Air Pollutants Criteria air pollutants are: Nitrogen oxides (NOx), sulfur oxides (SOx), particulate matter of 10 micrometers or less (PM10), ozone, carbon monoxide and lead (Pb). | E4: Hazardous Air Pollutants EPA regulates a list of 187 hazardous air pollutants.
A5: How to use this tab | B5: Enter the quantity of Criteria Air Pollutants reduced. Note: Report SOx and NOx reductions from improved boiler efficiency and fuel substitution, but not from electricity management. Grid emissions are attributable to utilities, which are subject to cap and trade rules. | E5: Enter the quantity of Hazardous Air Pollutants reduced. The list of covered air pollutants is found at the link above.
A6: Calculation Description | B6: Converts all units to pounds. | E6: Converts all units to pounds.
B7: Quantity of Air Emissions Avoided | C7: Units (select) | D7: Quantity of Air Emissions Avoided (pounds) | E7: Quantity of Air Emissions Avoided | F7: Units (select) | G7: Quantity of Air Emissions Avoided (pounds)
A8: Example | B8: A university replaced an oil-burning boiler with a natural gas boiler. Annually, this fuel switching replaced 714,335 gallons of #4 oil with 100 million cubic feet of gas. This reduced SOx emissions from 53.58 tons to 0.03 tons, and PM10 emissions from 1.61 tons to 0.15 tons. | E8: For parts cleaning, a cutlery maker switched from trichloroethylene to aqueous wash boxes and an alcohol vapor degreaser. In three years, TCE air emissions fell from 110,000 pounds to zero; the facility became a true minor source and no longer needed a CAA Title V operating permit.
B9: 55.01 | C9: short tons | D9: 110020 | E9: 110000 | F9: pounds | G9: 110000
A10: Totals - All Rows | D10: =SUM(D12:D21) -> 0 | G10: =SUM(G12:G21) -> 0
A12: =Aggregate!A8 -> Row 1 | C12: (select) | D12: =IFERROR(B12*VLOOKUP(C12,'Drop downs'!$A$14:$B$17,2,FALSE),0) -> 0 | F12: (select) | G12: =IFERROR(E12*VLOOKUP(F12,'Drop downs'!$A$14:$B$17,2,FALSE),0) -> 0
A13: =Aggregate!A9 -> Row 2 | C13: (select) | D13: =IFERROR(B13*VLOOKUP(C13,'Drop downs'!$A$14:$B$17,2,FALSE),0) -> 0 | F13: (select) | G13: =IFERROR(E13*VLOOKUP(F13,'Drop downs'!$A$14:$B$17,2,FALSE),0) -> 0
A14: =Aggregate!A10 -> Row 3 | C14: (select) | D14: =IFERROR(B14*VLOOKUP(C14,'Drop downs'!$A$14:$B$17,2,FALSE),0) -> 0 | F14: (select) | G14: =IFERROR(E14*VLOOKUP(F14,'Drop downs'!$A$14:$B$17,2,FALSE),0) -> 0
A15: =Aggregate!A11 -> Row 4 | C15: (select) | D15: =IFERROR(B15*VLOOKUP(C15,'Drop downs'!$A$14:$B$17,2,FALSE),0) -> 0 | F15: (select) | G15: =IFERROR(E15*VLOOKUP(F15,'Drop downs'!$A$14:$B$17,2,FALSE),0) -> 0
A16: =Aggregate!A12 -> Row 5 | C16: (select) | D16: =IFERROR(B16*VLOOKUP(C16,'Drop downs'!$A$14:$B$17,2,FALSE),0) -> 0 | F16: (select) | G16: =IFERROR(E16*VLOOKUP(F16,'Drop downs'!$A$14:$B$17,2,FALSE),0) -> 0
A17: =Aggregate!A13 -> Row 6 | C17: (select) | D17: =IFERROR(B17*VLOOKUP(C17,'Drop downs'!$A$14:$B$17,2,FALSE),0) -> 0 | F17: (select) | G17: =IFERROR(E17*VLOOKUP(F17,'Drop downs'!$A$14:$B$17,2,FALSE),0) -> 0
A18: =Aggregate!A14 -> Row 7 | C18: (select) | D18: =IFERROR(B18*VLOOKUP(C18,'Drop downs'!$A$14:$B$17,2,FALSE),0) -> 0 | F18: (select) | G18: =IFERROR(E18*VLOOKUP(F18,'Drop downs'!$A$14:$B$17,2,FALSE),0) -> 0
A19: =Aggregate!A15 -> Row 8 | C19: (select) | D19: =IFERROR(B19*VLOOKUP(C19,'Drop downs'!$A$14:$B$17,2,FALSE),0) -> 0 | F19: (select) | G19: =IFERROR(E19*VLOOKUP(F19,'Drop downs'!$A$14:$B$17,2,FALSE),0) -> 0
A20: =Aggregate!A16 -> Row 9 | C20: (select) | D20: =IFERROR(B20*VLOOKUP(C20,'Drop downs'!$A$14:$B$17,2,FALSE),0) -> 0 | F20: (select) | G20: =IFERROR(E20*VLOOKUP(F20,'Drop downs'!$A$14:$B$17,2,FALSE),0) -> 0
A21: =Aggregate!A17 -> Row 10 | C21: (select) | D21: =IFERROR(B21*VLOOKUP(C21,'Drop downs'!$A$14:$B$17,2,FALSE),0) -> 0 | F21: (select) | G21: =IFERROR(E21*VLOOKUP(F21,'Drop downs'!$A$14:$B$17,2,FALSE),0) -> 0
A26: Color Key
A27: Enter value
A28: Use drop-down menu
A29: Do not change

Sheet Water Pollution Releases
B1: Calculating Reductions in Water Discharges
B2: The purpose of this tab is twofold: (1) to separate units of pollutants from gallons of wastewater; and, (2) to convert kilograms and milligrams of pollutants to pounds of pollutants. The tab covers all categories of pollutants that impair water quality: conventional, nonconventional, and toxic. The most reported subcategories have an individual column each. The "General Wastewater" column uses a conservative formula and is recommended for those without access to a governing wastewater permit and its impairment-category methodologies. For those with access to a wastewater permit, please use the permit methodologies for calculating pollutant mass or follow the directions in Row 7 in the appropriate impairment column. For a sample model, see https://eec.ky.gov/Environmental-Protection/Compliance-Assistance/operator-certification-program/Documents/WWConversionTable[1].pdf.
A4: Type of Reduction | B4: General Wastewater | F4: BOD/COD (Biochemical Oxygen Demand) | I4: Total Suspended Solids (TSS) | L4: Fats, Oils, and Grease (FOG) | O4: Nutrients | R4: Other Specific Impairment | U4: Total
A5: How to use this tab | B5: Enter the quantity and unit of wastewater reduced. Find a conservative estimate of the pounds of pollution reduced in column E. | F5: Enter the reduction quantity and unit. Note: This is a measure of oxygen depletion calculated from the organic compounds in water that use oxygen in the water to decompose. | I5: Enter the reduction quantity and unit. Note: This is the dry weight of solids trapped in a filter after treatment in a wastewater treatment plant. Covers silt, decaying matter, industrial waste and sewage. | L5: Enter the reduction quantity and unit. Note: Fats, oils and grease going down a drain contribute significantly to clogged sewers. | O5: Enter the reduction quantity and unit. Note: Nitrogen (N) and phosphorus (P) nutrient pollution is a costly and widespread problem that causes algae growth in water bodies. | R5: Enter the reduction quantity and unit. Use for total dissolved solids, metals, CWA priority pollutants, TRI pollutants, or CERCLA hazardous substances.
A6: Conversion Provided | B6: Converts units to pounds. Divides pound quantity by 10,000 to give a rough conservative estimate of general pollutant concentration across all types of wastewaters. | F6: Converts units to pounds. | I6: Converts units to pounds. | L6: Converts units to pounds. | O6: Converts units to pounds. | R6: Converts units to pounds.
A7: Calculation the User Needs to Make | B7: None | F7: To calculate the mass (e.g., milligrams) of pollutant (BOD, TSS, FOG, or nutrients) reduced, multiply the reduction concentration of the pollutant measured (e.g., mg/L) by the flow rate (e.g., L/day) to get weight (e.g., mg) per day. Then multiply by the number of days during the reporting period that the discharged occurred (e.g., 365 days) to get total weight of the pollutant discharged. | R7: None
B8: Reduced Quantity of Wastewater | C8: Units (select) | D8: Pounds of Waste Water | E8: Hazardous Pounds Reduced | F8: Reduced Quantity of BOD/COD | G8: Units (select) | H8: Pounds Reduced | I8: Reduced Quantity of TSS | J8: Units (select) | K8: Pounds Reduced | L8: Reduced Quantity of FOG | M8: Units (select) | N8: Pounds Reduced | O8: Reduced Quantity of Nutrients | P8: Units (select) | Q8: Pounds Reduced | R8: Reduced Quantity of Pollutant | S8: Units (select) | T8: Pounds Reduced | U8: Pounds Reduced
A9: Examples | F9: A dairy reduced product leaks and water use; drained all product from tanks/ vats before cleaning; swept (not hosed) solids from floors. BOD fell from 5 to 1 lb per 116 gal. of milk processed. Processes 18.75M gal. of milk/year. | I9: A turkey slaughter and processing plant switched to dry clean-up methods before wet clean-up. This greatly reduced BOD and TSS loadings into the effluent water stream. Estimated TSS reductions. | L9: Seattle has 8 times more sewer overflows & backups in high-restaurant areas. A local hospital went from capturing 1,920 lbs to all 35,337 lbs of its FOG/yr with better grease removal devices in kitchen, café, cafeterias. | O9: For a dairy farm example of nutrient management, see: https://s3.wp.wsu.edu/uploads/sites/346/2014/11/WholeFarmNutrientMgtDairyfinal.pdf
F10: 646552 | G10: pounds | H10: 646552 | I10: 200000 | J10: pounds | K10: 200000 | L10: 33417 | M10: pounds | N10: 33417
A11: Totals - All Rows | E11: =SUM(E13:E22) -> 0 | H11: =SUM(H13:H22) -> 0 | K11: =SUM(K13:K22) -> 0 | N11: =SUM(N13:N22) -> 0 | Q11: =SUM(Q13:Q22) -> 0 | T11: =SUM(T13:T22) -> 0 | U11: =SUM(U13:U22) -> 0
A13: =Aggregate!A8 -> Row 1 | C13: (select) | D13: =IFERROR(B13*VLOOKUP(C13,'Drop downs'!$D$3:$E$4,2,FALSE),0) -> 0 | E13: =IFERROR(B13*VLOOKUP(C13,'Drop downs'!$D$3:$E$4,2,FALSE)/10000,0) -> 0 | G13: (select) | H13: =IFERROR(F13*VLOOKUP(G13,'Drop downs'!$A$61:$B$64,2,FALSE),0) -> 0 | J13: (select) | K13: =IFERROR(I13*VLOOKUP(J13,'Drop downs'!$A$61:$B$64,2,FALSE),0) -> 0 | M13: (select) | N13: =IFERROR(L13*VLOOKUP(M13,'Drop downs'!$A$61:$B$64,2,FALSE),0) -> 0 | P13: (select) | Q13: =IFERROR(O13*VLOOKUP(P13,'Drop downs'!$A$61:$B$64,2,FALSE),0) -> 0 | S13: (select) | T13: =IFERROR(R13*VLOOKUP(S13,'Drop downs'!$A$61:$B$64,2,FALSE),0) -> 0 | U13: =SUM(E13,H13,K13,N13,Q13,T13) -> 0
A14: =Aggregate!A9 -> Row 2 | C14: (select) | D14: =IFERROR(B14*VLOOKUP(C14,'Drop downs'!$D$3:$E$4,2,FALSE),0) -> 0 | E14: =IFERROR(B14*VLOOKUP(C14,'Drop downs'!$D$3:$E$4,2,FALSE)/10000,0) -> 0 | G14: (select) | H14: =IFERROR(F14*VLOOKUP(G14,'Drop downs'!$A$61:$B$64,2,FALSE),0) -> 0 | J14: (select) | K14: =IFERROR(I14*VLOOKUP(J14,'Drop downs'!$A$61:$B$64,2,FALSE),0) -> 0 | M14: (select) | N14: =IFERROR(L14*VLOOKUP(M14,'Drop downs'!$A$61:$B$64,2,FALSE),0) -> 0 | P14: (select) | Q14: =IFERROR(O14*VLOOKUP(P14,'Drop downs'!$A$61:$B$64,2,FALSE),0) -> 0 | S14: (select) | T14: =IFERROR(R14*VLOOKUP(S14,'Drop downs'!$A$61:$B$64,2,FALSE),0) -> 0 | U14: 0
A15: =Aggregate!A10 -> Row 3 | C15: (select) | D15: =IFERROR(B15*VLOOKUP(C15,'Drop downs'!$D$3:$E$4,2,FALSE),0) -> 0 | E15: =IFERROR(B15*VLOOKUP(C15,'Drop downs'!$D$3:$E$4,2,FALSE)/10000,0) -> 0 | G15: (select) | H15: =IFERROR(F15*VLOOKUP(G15,'Drop downs'!$A$61:$B$64,2,FALSE),0) -> 0 | J15: (select) | K15: =IFERROR(I15*VLOOKUP(J15,'Drop downs'!$A$61:$B$64,2,FALSE),0) -> 0 | M15: (select) | N15: =IFERROR(L15*VLOOKUP(M15,'Drop downs'!$A$61:$B$64,2,FALSE),0) -> 0 | P15: (select) | Q15: =IFERROR(O15*VLOOKUP(P15,'Drop downs'!$A$61:$B$64,2,FALSE),0) -> 0 | S15: (select) | T15: =IFERROR(R15*VLOOKUP(S15,'Drop downs'!$A$61:$B$64,2,FALSE),0) -> 0 | U15: 0
A16: =Aggregate!A11 -> Row 4 | C16: (select) | D16: =IFERROR(B16*VLOOKUP(C16,'Drop downs'!$D$3:$E$4,2,FALSE),0) -> 0 | E16: =IFERROR(B16*VLOOKUP(C16,'Drop downs'!$D$3:$E$4,2,FALSE)/10000,0) -> 0 | G16: (select) | H16: =IFERROR(F16*VLOOKUP(G16,'Drop downs'!$A$61:$B$64,2,FALSE),0) -> 0 | J16: (select) | K16: =IFERROR(I16*VLOOKUP(J16,'Drop downs'!$A$61:$B$64,2,FALSE),0) -> 0 | M16: (select) | N16: =IFERROR(L16*VLOOKUP(M16,'Drop downs'!$A$61:$B$64,2,FALSE),0) -> 0 | P16: (select) | Q16: =IFERROR(O16*VLOOKUP(P16,'Drop downs'!$A$61:$B$64,2,FALSE),0) -> 0 | S16: (select) | T16: =IFERROR(R16*VLOOKUP(S16,'Drop downs'!$A$61:$B$64,2,FALSE),0) -> 0 | U16: 0
A17: =Aggregate!A12 -> Row 5 | C17: (select) | D17: =IFERROR(B17*VLOOKUP(C17,'Drop downs'!$D$3:$E$4,2,FALSE),0) -> 0 | E17: =IFERROR(B17*VLOOKUP(C17,'Drop downs'!$D$3:$E$4,2,FALSE)/10000,0) -> 0 | G17: (select) | H17: =IFERROR(F17*VLOOKUP(G17,'Drop downs'!$A$61:$B$64,2,FALSE),0) -> 0 | J17: (select) | K17: =IFERROR(I17*VLOOKUP(J17,'Drop downs'!$A$61:$B$64,2,FALSE),0) -> 0 | M17: (select) | N17: =IFERROR(L17*VLOOKUP(M17,'Drop downs'!$A$61:$B$64,2,FALSE),0) -> 0 | P17: (select) | Q17: =IFERROR(O17*VLOOKUP(P17,'Drop downs'!$A$61:$B$64,2,FALSE),0) -> 0 | S17: (select) | T17: =IFERROR(R17*VLOOKUP(S17,'Drop downs'!$A$61:$B$64,2,FALSE),0) -> 0 | U17: 0
A18: =Aggregate!A13 -> Row 6 | C18: (select) | D18: =IFERROR(B18*VLOOKUP(C18,'Drop downs'!$D$3:$E$4,2,FALSE),0) -> 0 | E18: =IFERROR(B18*VLOOKUP(C18,'Drop downs'!$D$3:$E$4,2,FALSE)/10000,0) -> 0 | G18: (select) | H18: =IFERROR(F18*VLOOKUP(G18,'Drop downs'!$A$61:$B$64,2,FALSE),0) -> 0 | J18: (select) | K18: =IFERROR(I18*VLOOKUP(J18,'Drop downs'!$A$61:$B$64,2,FALSE),0) -> 0 | M18: (select) | N18: =IFERROR(L18*VLOOKUP(M18,'Drop downs'!$A$61:$B$64,2,FALSE),0) -> 0 | P18: (select) | Q18: =IFERROR(O18*VLOOKUP(P18,'Drop downs'!$A$61:$B$64,2,FALSE),0) -> 0 | S18: (select) | T18: =IFERROR(R18*VLOOKUP(S18,'Drop downs'!$A$61:$B$64,2,FALSE),0) -> 0 | U18: 0
A19: =Aggregate!A14 -> Row 7 | C19: (select) | D19: =IFERROR(B19*VLOOKUP(C19,'Drop downs'!$D$3:$E$4,2,FALSE),0) -> 0 | E19: =IFERROR(B19*VLOOKUP(C19,'Drop downs'!$D$3:$E$4,2,FALSE)/10000,0) -> 0 | G19: (select) | H19: =IFERROR(F19*VLOOKUP(G19,'Drop downs'!$A$61:$B$64,2,FALSE),0) -> 0 | J19: (select) | K19: =IFERROR(I19*VLOOKUP(J19,'Drop downs'!$A$61:$B$64,2,FALSE),0) -> 0 | M19: (select) | N19: =IFERROR(L19*VLOOKUP(M19,'Drop downs'!$A$61:$B$64,2,FALSE),0) -> 0 | P19: (select) | Q19: =IFERROR(O19*VLOOKUP(P19,'Drop downs'!$A$61:$B$64,2,FALSE),0) -> 0 | S19: (select) | T19: =IFERROR(R19*VLOOKUP(S19,'Drop downs'!$A$61:$B$64,2,FALSE),0) -> 0 | U19: 0
A20: =Aggregate!A15 -> Row 8 | C20: (select) | D20: =IFERROR(B20*VLOOKUP(C20,'Drop downs'!$D$3:$E$4,2,FALSE),0) -> 0 | E20: =IFERROR(B20*VLOOKUP(C20,'Drop downs'!$D$3:$E$4,2,FALSE)/10000,0) -> 0 | G20: (select) | H20: =IFERROR(F20*VLOOKUP(G20,'Drop downs'!$A$61:$B$64,2,FALSE),0) -> 0 | J20: (select) | K20: =IFERROR(I20*VLOOKUP(J20,'Drop downs'!$A$61:$B$64,2,FALSE),0) -> 0 | M20: (select) | N20: =IFERROR(L20*VLOOKUP(M20,'Drop downs'!$A$61:$B$64,2,FALSE),0) -> 0 | P20: (select) | Q20: =IFERROR(O20*VLOOKUP(P20,'Drop downs'!$A$61:$B$64,2,FALSE),0) -> 0 | S20: (select) | T20: =IFERROR(R20*VLOOKUP(S20,'Drop downs'!$A$61:$B$64,2,FALSE),0) -> 0 | U20: 0
A21: =Aggregate!A16 -> Row 9 | C21: (select) | D21: =IFERROR(B21*VLOOKUP(C21,'Drop downs'!$D$3:$E$4,2,FALSE),0) -> 0 | E21: =IFERROR(B21*VLOOKUP(C21,'Drop downs'!$D$3:$E$4,2,FALSE)/10000,0) -> 0 | G21: (select) | H21: =IFERROR(F21*VLOOKUP(G21,'Drop downs'!$A$61:$B$64,2,FALSE),0) -> 0 | J21: (select) | K21: =IFERROR(I21*VLOOKUP(J21,'Drop downs'!$A$61:$B$64,2,FALSE),0) -> 0 | M21: (select) | N21: =IFERROR(L21*VLOOKUP(M21,'Drop downs'!$A$61:$B$64,2,FALSE),0) -> 0 | P21: (select) | Q21: =IFERROR(O21*VLOOKUP(P21,'Drop downs'!$A$61:$B$64,2,FALSE),0) -> 0 | S21: (select) | T21: =IFERROR(R21*VLOOKUP(S21,'Drop downs'!$A$61:$B$64,2,FALSE),0) -> 0 | U21: 0
A22: =Aggregate!A17 -> Row 10 | C22: (select) | D22: =IFERROR(B22*VLOOKUP(C22,'Drop downs'!$D$3:$E$4,2,FALSE),0) -> 0 | E22: =IFERROR(B22*VLOOKUP(C22,'Drop downs'!$D$3:$E$4,2,FALSE)/10000,0) -> 0 | G22: (select) | H22: =IFERROR(F22*VLOOKUP(G22,'Drop downs'!$A$61:$B$64,2,FALSE),0) -> 0 | J22: (select) | K22: =IFERROR(I22*VLOOKUP(J22,'Drop downs'!$A$61:$B$64,2,FALSE),0) -> 0 | M22: (select) | N22: =IFERROR(L22*VLOOKUP(M22,'Drop downs'!$A$61:$B$64,2,FALSE),0) -> 0 | P22: (select) | Q22: =IFERROR(O22*VLOOKUP(P22,'Drop downs'!$A$61:$B$64,2,FALSE),0) -> 0 | S22: (select) | T22: =IFERROR(R22*VLOOKUP(S22,'Drop downs'!$A$61:$B$64,2,FALSE),0) -> 0 | U22: 0
A26: Color Key
A27: Enter value
A28: Use drop-down menu
A29: Do not change

Sheet Solvent Remanufacturing
B1: Calculating Reductions from Solvent Remanufacturing
B2: This tab is for use by facilities in certain chemical manufacturing sectors that remanufacture (reclaim) solvents used in certain processes. Solvent remanufacturing involves distilling used solvents to regenerate commercial-grade solvents. Extending the useful life of solvents prevents pollution by reducing the quantity of virgin solvent used and avoiding the emissions associated with manufacturing virgin solvent. This sheet calculates the quantity of hazardous materials not used and hazardous emissions avoided by remanufacturing (reclaiming) certain spent solvents. This tab is for facilities using the remanufacturing exclusion, same generator exclusion, or transfer-based exclusion under the 2014 Definition of Solid Waste rule (see 40 CFR § 261.4(a) (23), (24), and (27)). The tab converts all units to pounds.
A4: Type of Reduction | B4: Solvent Remanufacturing and Reclamation | J4: Total
A5: How to use this tab | B5: Choose from the drop-down list of solvents and enter the quantity of spent solvent distilled by a remanufacturer, a toll manufacturer, or a certified recycler. Distillation must be for the purpose of returning the solvent to commercial grade. Solvents must have been spent on reacting, extracting, purifying or blending chemical ingredients during operations in the following sectors: pharmaceutical NAICS 325412, basic organic chemical NAICS 325199, plastics and resins NAICS 325211, or paints and coatings NAICS 325510. These conditions keep the solvent valuable enough to reclaim.
A6: Calculation Description | B6: Formulas use a 92% recovery rate for the distillation of spent solvents. Source: US EPA's Green Engineering Materials Management (GEMM) tool. For acetonitrile, dichloromethane and tetrahydrofuran (specialty chemicals): Remanufacturing displaces specialty chemical manufacturing, so the background formula counts the benefits of reduced specialty chemical manufacturing. For other solvents (commodity chemicals): Commodity solvents are a byproduct of oil and gas refining, and remanufacturing doesn't displace refining. Background formulas count only the benefits of extending the solvent's useful life.
A7: PLACE CURSOR OVER CELL FOR MORE INFORMATION → | B7: Spent Solvent (select) | C7: Spent Solvent Sent to Remanufacturer, Toll Manufacturer, or Certified Recycler | D7: Unit (select) | E7: Conversion of Unit to Pounds | F7: Remanufactured (Reclaimed) Solvent in pounds | G7: Hazardous Feedstock Avoided (pounds) | H7: Haz. Air Emissions Avoided (pounds) | I7: Haz. Water Releases Avoided (pounds) | J7: Total of Haz. Inputs and Releases Avoided (pounds) | L7: Color Key
A8: Example | B8: A paint manufacturer sends 1,000 gallons of acetonitrile for remanufacturing every month for a year. | G8: *The emission model for chloromethane is not yet available | L8: Enter value
B9: Acetonitrile | C9: 12000 | D9: gallons | E9: 78140.80242 | F9: 71889.53823 | G9: 47715.89959 | H9: 6607.146974 | I9: 4440.185343 | J9: 130652.7701 | L9: Use drop-down menu
A10: Totals - All Rows | E10: =SUM(E12:E21) -> 0 | F10: 0 | G10: 0 | H10: 0 | I10: 0 | J10: 0 | L10: Do not change - calculation
A12: =Aggregate!A8 -> Row 1 | B12: (select) | D12: (select) | E12: =IFERROR(IF(OR(D12="gallons",D12="liters"),C12*VLOOKUP(B12,densities,3,FALSE)*VLOOKUP(D12,volConvert,2,FALSE),C12*VLOOKUP(D12,massConvert,2,FALSE)),0) -> 0 | F12: =E12*recycleEffDouble -> 0 | G12: =IFERROR(VLOOKUP(B12,emissionsSum,2,FALSE)*E12,0) -> 0 | H12: =IFERROR(VLOOKUP(B12,emissionsSum,3,FALSE)*E12,0) -> 0 | I12: =IFERROR(VLOOKUP(B12,emissionsSum,4,FALSE)*E12,0) -> 0 | J12: =SUM(F12:I12) -> 0
A13: =Aggregate!A9 -> Row 2 | B13: (select) | D13: (select) | E13: 0 | F13: =E13*recycleEffDouble -> 0 | G13: 0 | H13: 0 | I13: 0 | J13: 0
A14: =Aggregate!A10 -> Row 3 | B14: (select) | D14: (select) | E14: 0 | F14: 0 | G14: 0 | H14: 0 | I14: 0 | J14: 0
A15: =Aggregate!A11 -> Row 4 | B15: (select) | D15: (select) | E15: 0 | F15: 0 | G15: 0 | H15: 0 | I15: 0 | J15: 0
A16: =Aggregate!A12 -> Row 5 | B16: (select) | D16: (select) | E16: 0 | F16: 0 | G16: 0 | H16: 0 | I16: 0 | J16: 0
A17: =Aggregate!A13 -> Row 6 | B17: (select) | D17: (select) | E17: 0 | F17: 0 | G17: 0 | H17: 0 | I17: 0 | J17: 0
A18: =Aggregate!A14 -> Row 7 | B18: (select) | D18: (select) | E18: 0 | F18: 0 | G18: 0 | H18: 0 | I18: 0 | J18: 0
A19: =Aggregate!A15 -> Row 8 | B19: (select) | D19: (select) | E19: 0 | F19: 0 | G19: 0 | H19: 0 | I19: 0 | J19: 0
A20: =Aggregate!A16 -> Row 9 | B20: (select) | D20: (select) | E20: 0 | F20: 0 | G20: 0 | H20: 0 | I20: 0 | J20: 0
A21: =Aggregate!A17 -> Row 10 | B21: (select) | D21: (select) | E21: 0 | F21: =E21*recycleEffDouble -> 0 | G21: =IFERROR(VLOOKUP(B21,emissionsSum,2,FALSE)*E21,0) -> 0 | H21: =IFERROR(VLOOKUP(B21,emissionsSum,3,FALSE)*E21,0) -> 0 | I21: =IFERROR(VLOOKUP(B21,emissionsSum,4,FALSE)*E21,0) -> 0 | J21: 0
A57: Sources: | B57: GEMM (2011) for solvent flow percentages.
B58: GEMM (2013) for hazardous feedstocks.
B59: GEMM (2013 and 2011) for air and water emissions.

Sheet References & Justification
A1: Density References & Justification
A2: Source # | B2: Reference | C2: Website | D2: Last Updated | E2: Justification
A3: 1 | B3: EPA CompTox Chemical Dashboard | C3: https://comptox.epa.gov/dashboard | D3: Unknown | E3: EPA's CompTox Chemical Dashboard was used to obtain densities of common chemicals. The Dashboard includes predicted physical properties from multiple models, as well as experimental data where available. Experimental median was used where available; otherwise, predicted median was used.
A4: 2 | B4: PubChem | C4: https://pubchem.ncbi.nlm.nih.gov/ | D4: Unknown | E4: PubChem was used to obtain densities of refrigerant chemicals not available from the CompTox dashboard.
A5: 3 | B5: The Engineering ToolBox, "Liquids-Densities" Copyright 2005. | C5: http://www.engineeringtoolbox.com/liquids-densities-d_743.html | D5: Unknown | E5: A list of common liquids and their densities were obtained from this website and incorporated into our list of chemicals.
A6: 4 | B6: SImetric, Walker and Gibson Publishing Limited. | C6: https://www.simetric.co.uk/ | D6: Unknown | E6: A list of common materials and their densities were obtained from this source and incorporated into the liquids, materials, and solvents lists.
A7: 5 | B7: - Draft Report: 2002 Survey of Automotive Refinish Coatings, California Air Resources Board, March 2005 - OECD Environmental Health and Safety Publications: Emission Scenario Document on Coating Application via Spray Painting in the Automotive Refinishing Industry, Draft Final, October 2008. - DfE Emission Reduction calculator for the Autorefinish project. - A sampling of MSDSs | C7: http://www.arb.ca.gov/coatings/autorefin/scm/draftrpt.pdf Other sources provided by EPA | D7: Unknown | E7: The four values were as follows: - CARB Value: 9.26 lbs/gal - OECD Value: 9.13 lbs/gal - DfE Value: 9.4 lbs/gal - MSDS Value: 9.04 lbs/gal
A8: 6 | B8: OECD Environmental Health and Safety Publications: Emission Scenario Document on the Use of Metalworking Fluids, Revised Draft, July 2008. | C8: Source provided by EPA | D8: Unknown | E8: Assumed to be equivalent to the density of water
A9: 7 | B9: MSDS sheets and Paints and Coatings Resource Center, Ask the Expert | C9: http://www.paintcenter.org/rj/sep06d.cfm | D9: Unknown | E9: An average of seven different types of interior and exterior paint products was taken from MSDS sheets. This average (10.06 lbs/gal) matched the number offered by the Paints and Coatings Resource Center (10 lbs/gal).
A10: GEMM References
A11: Source # | B11: Reference | C11: Website | D11: Date | E11: Use
A12: 1 | B12: Toxics Release Inventory (TRI) Database | C12: http://www2.epa.gov/toxics-release-inventory-tri-program | D12: 2008 | E12: Emissions and transfers used to estimate the distribution of waste management activities.
A13: 2 | B13: Chemical Economics Handbook, SRI Consulting, Menlo Park, CA | C13: http://chemical.ihs.com/IHS/Public/Aboutus.html | D13: THF- October 2010, Ethanol - April 2009 | E13: Production data on THF and ethanol.
A14: 3 | B14: GlaxoSmithKline - Life Cycle Assessment Waste Treatment Module (as modified by EPA) | C14: http://us.gsk.com/ | D14: Unknown | E14: Formula Calculations: rates of distillation recovery; energy use for disposal, re-manufacturing, and manufacturing; distribution of releases to air, land, and water from disposal, re-manufacturing, and manufacturing; emission-reduction benefits from avoided disposal of spent solvents and avoided manufacturing of virgin solvents; and, life-cycle emission reductions from the use of natural gas.
A15: 4 | B15: GlaxoSmithKline - technical experts | C15: http://us.gsk.com/ | D15: Unknown | E15: Consultation on chemical synthesis pathways
A16: 5 | B16: U.S. Department of Energy - Energy Information Administration | C16: http://www.eia.gov/ | D16: Unknown | E16: Consultation on factors affecting avoided manufacturing and energy values for chemical feedstocks
A17: 6 | B17: Jiménez‐González, C., Overcash, M.R. and Curzons, A. (2001), Waste treatment modules – a partial life cycle inventory. J. Chem. Technol. Biotechnol., 76: 707-716. | C17: https://doi.org/10.1002/jctb.426 | D17: 2001 | E17: Distillation energy requirements
A18: 7 | B18: Capello, C., Wernet, G., Sutter, J. et al. A comprehensive environmental assessment of petrochemical solvent production. Int J Life Cycle Assess 14, 467–479 (2009). | C18: https://doi.org/10.1007/s11367-009-0094-4 | D18: 2009 | E18: Manufacturing energy requirements
A19: 8 | B19: International Panel on Climate Change (IPCC) | C19: https://www.ipcc.ch/publications_and_data/ar4/wg1/en/ch2s2-10-2.html | D19: Unknown | E19: Global warming potentials
A20: 9 | B20: Kirk-Othmer Encyclopedia of Chemical Technology | C20: http://onlinelibrary.wiley.com/book/10.1002/0471238961 | D20: 2003 | E20: Synthesis pathways and feedstocks

Sheet Drop downs (hidden)
A1: Mass and Volume | B1: Pounds (mass)
A2: units_mass_vol | B2: Gallons (volume) | D2: (select)
A3: (select) | D3: gallons | E3: 8.35
A4: gallons | B4: 1 | D4: liters | E4: 2.2046
A5: liters | B5: 0.264172
A6: pounds | B6: 1
A7: kilograms | B7: 2.20462
A8: short tons | B8: 2000
A9: metric tons | B9: 2204.62
A11: Mass Only | B11: Pounds
A12: units_mass
A13: (select)
A14: pounds | B14: =B6 -> 1
A15: kilograms | B15: =B7 -> 2.20462
A16: short tons | B16: =B8 -> 2000
A17: metric tons | B17: =B9 -> 2204.62
A18: gallons | B18: 8.35
A19: Haz Material Lists | B19: List Name in Excel
A20: (select) | B20: select
A21: Solvents | B21: Solvents
A22: Fuels and Oils | B22: Fuels_and_Oils
A23: Refrigerants | B23: Refrigerants
A24: Paints and Metalworking | B24: Paints_and_Metalworking
A25: Chemicals/Reagents | B25: Liquids
A26: Materials | B26: Materials
A27: Other | B27: Other
A29: Recycling Efficiency
A30: Double | B30: ='GEMM Parameters'!B3 -> 0.92
A31: Single | B31: ='GEMM Parameters'!B2 -> 0.75
A33: Solvent Remanufacturing Chemicals
A34: gemmChems
A35: (select)
A36: 1,2,4-Trimethylbenzene
A37: Acetonitrile
A38: Chlorobenzene
A39: Chloroform
A40: Chloromethane
A41: Cyclohexane
A42: Dichloromethane
A43: Ethanol
A44: Ethylbenzene
A45: Hexanes
A46: Methanol
A47: Methyl Isobutyl Ketone
A48: Methyl Tert-Butyl Ether
A49: N,N-Dimethylformamide
A50: n-Butanol
A51: Tetrahydrofuran
A52: Toluene
A53: Xylenes
A55: Specialty Chemicals
A56: =A37 -> Acetonitrile
A57: =A42 -> Dichloromethane
A58: =A51 -> Tetrahydrofuran
A60: Wastewater mass | B60: Pounds
A61: (select)
A62: kilograms | B62: 2.20462
A63: milligrams | B63: =B62/1000 -> 0.00220462
A64: pounds | B64: 1

Sheet GEMM Information
A1: Solvent Remanufacturing & GEMM
A2: Guidance and Background Information
A5: This tab is for manufacturers who send spent solvents offsite under the Remanufacturing Exclusion of the 2015 Definition of Solid Waste (DSW) and for parties meeting the Remanufacturing terms for sector, solvent, and solvent function while operating under the DSW Control of the Generator Exclusion or the DSW Transfer-Based Exclusion. More: On March 6, 2018, the D.C. Circuit Court of Appeals reinstated the 2008 Transfer-Based Exclusion, and EPA is publishing a Federal Register Notice to comply. An FAQ file still valid for the Remanufacturing and Control of the Generator Exclusions is available here: https://www.epa.gov/sites/production/files/2015-08/documents/expanded_faq_033115.pdf Remanufacturing is defined (§260.10) as:
B6: processing a higher-value hazardous secondary material in order to manufacture a product that serves a similar functional purpose as the original commercial-grade material. For the purpose of this definition, a hazardous secondary material is considered higher-value if it was generated from the use of a commercial-grade material in a manufacturing process and can be remanufactured into a similar commercial-grade material.
A7: The Remanufacturing Exclusion covers solvents used in these sectors:
B8: Pharmaceutical manufacturing (North American Industry Classification System [NAICS] 325412)
B9: Basic organic chemical manufacturing (NAICS 325199)
B10: Plastics and resins manufacturing (NAICS 325211)
B11: Paints and coatings manufacturing (NAICS 325510)
A13: The Remanufacturing Exclusion covers these solvents:
B14: 1,2,4-Trimethylbenzene | C14: Methanol
B15: Acetonitrile | C15: Methyl isobutyl ketone
B16: Chlorobenzene | C16: Methyl tert-butyl ether
B17: Chloroform | C17: n-Butyl alcohol
B18: Chloromethane* | C18: n-Hexane
B19: Cyclohexane | C19: N,N-dimethylformamide
B20: Dichloromethane | C20: Tetrahydrofuran
B21: Ethanol | C21: Toluene
B22: Ethylbenzene | C22: Xylenes
A24: The Remanufacturing Exclusion covers solvents used for these purposes:
B25: Reacting, extracting, blending, or purifying chemicals.
A27: GEMM Emission Models.
B28: EPA developed the Green Engineering Materials Management tool (GEMM) to model solvent remanufacturing benefits. GEMM was the technical basis for the Remanufacturing Exclusion in the DSW rulemaking docket. The Solvent Remanufacturing tab also uses the GEMM tool, which compares emission models for solvent remanufacturing and avoided solvent manufacturing with emission models for energy recovery and disposal.
A29: Steps involved in calculating the hazardous reduction benefits of remanufacturing solvents:
B30: 1. Use emission factors to calculate the emissions from burning fossil fuels to create the power for solvent manufacturing, solvent distillation, solvent waste incineration, and energy recovery.
B31: 2. Count upstream material feedstocks (part of total hazardous feedstocks used to manufacture each solvent).
B32: 3. Create life cycle emission models for each solvent:
B33: Water Emissions: | C33: TOC - Total Organic Carbon
C34: COD - Chemical Oxygen Demand
C35: TDS - Total Dissolved Solids
B36: Air Emissions: | C36: NMVOC- Non Methane Volatile Organic Compounds
C37: NOx - Nitrogen oxides
C38: SOx - Sulfur oxides
B39: 4. Add the above hazardous quantities to the total hazardous emissions for each solvent.
B40: 5. Multiply the user's quantity of spent solvent sent for remanufacturing times the Step-4 hazardous emission quantities (per pound). Apply a 92% solvent recovery factor (some solvent is lost during distillation).
A42: Solvents:
B43: Commodity Solvents - By-products of petroleum and gas refining. Oil and gas refining always produce these by-products, so remanufacturing commodity solvents produces no avoided-manufacturing benefits.
B44: Specialty Solvents - Manufactured by combining commodity solvents with other ingredients for a specific purpose. Avoided manufacturing benefits are valid for specialty solvents remanufacturing.
A45: For all specialty and commodity solvent emission models used in this calculator, click the left button.

Sheet GEMM Emissions Summary
A1: Emission Model Type | B1: Chemical | C1: Haz. Feedstock Reductions*† | D1: Release Reductions | F1: Specialty/Commodity Chemical
D2: Air* | E2: Water*
A3: GEMM (June 22, 2011) Emission Models | B3: 1,2,4-Trimethylbenzene | D3: =-SUM('GEMM (2011) Models'!AA494:AA496)*lbsPerTonne -> -0.0005482244433 | E3: =-SUM('GEMM (2011) Models'!AA498,'GEMM (2011) Models'!AA500,'GEMM (2011) Models'!AA501)*lbsPerTonne -> 0.0009595658845 | F3: Commodity
B4: Chlorobenzene | D4: =-SUM('GEMM (2011) Models'!AA116:AA118)*lbsPerTonne -> 0.01374670121 | E4: =-SUM('GEMM (2011) Models'!AA120,'GEMM (2011) Models'!AA122,'GEMM (2011) Models'!AA123)*lbsPerTonne -> 0.1106904899 | F4: Commodity
B5: Chloroform | D5: =-SUM('GEMM (2011) Models'!AA143:AA145)*lbsPerTonne -> 0.0002456224688 | E5: =-SUM('GEMM (2011) Models'!AA147,'GEMM (2011) Models'!AA149,'GEMM (2011) Models'!AA150)*lbsPerTonne -> 0.008263222592 | F5: Commodity
B6: Ethanol | D6: =-SUM('GEMM (2011) Models'!AA278:AA280)*lbsPerTonne -> 0.002563342631 | E6: =-SUM('GEMM (2011) Models'!AA282,'GEMM (2011) Models'!AA284,'GEMM (2011) Models'!AA285)*lbsPerTonne -> 0.03345516852 | F6: Commodity
B7: Methyl Isobutyl Ketone | D7: =-SUM('GEMM (2011) Models'!AA413:AA415)*lbsPerTonne -> 0.004130698474 | E7: =-SUM('GEMM (2011) Models'!AA417,'GEMM (2011) Models'!AA419,'GEMM (2011) Models'!AA420)*lbsPerTonne -> 0.03935158614 | F7: Commodity
B8: Methyl Tert-Butyl Ether | D8: =-SUM('GEMM (2011) Models'!AA386:AA388)*lbsPerTonne -> 0.001170516045 | E8: =-SUM('GEMM (2011) Models'!AA390,'GEMM (2011) Models'!AA392,'GEMM (2011) Models'!AA393)*lbsPerTonne -> 0.02215484464 | F8: Commodity
B9: N,N-Dimethylformamide | D9: =-SUM('GEMM (2011) Models'!AA251:AA253)*lbsPerTonne -> -0.00188244661 | E9: =-SUM('GEMM (2011) Models'!AA255,'GEMM (2011) Models'!AA257,'GEMM (2011) Models'!AA258)*lbsPerTonne -> -0.002720857738 | F9: Commodity
B10: n-Butanol | D10: =-SUM('GEMM (2011) Models'!AA89:AA91)*lbsPerTonne -> -0.001741735602 | E10: =-SUM('GEMM (2011) Models'!AA93,'GEMM (2011) Models'!AA95,'GEMM (2011) Models'!AA96)*lbsPerTonne -> -0.00126864494 | F10: Commodity
B11: Xylenes | D11: =-SUM('GEMM (2011) Models'!AA521:AA523)*lbsPerTonne -> -0.0005343350534 | E11: =-SUM('GEMM (2011) Models'!AA525,'GEMM (2011) Models'!AA527,'GEMM (2011) Models'!AA528)*lbsPerTonne -> 0.001058216579 | F11: Commodity
A12: GEMM (Aug. 7, 2013) Emission Models | B12: Cyclohexane | D12: =SUM('GEMM (2013) Models'!I137:I139) -> 0.004501750915 | E12: =SUM('GEMM (2013) Models'!I141,'GEMM (2013) Models'!I143,'GEMM (2013) Models'!I144) -> 0.0395853998 | F12: Commodity
B13: Ethylbenzene | D13: =SUM('GEMM (2013) Models'!I167:I169) -> 0.004875944556 | E13: =SUM('GEMM (2013) Models'!I171,'GEMM (2013) Models'!I173,'GEMM (2013) Models'!I174) -> 0.04188547952 | F13: Commodity
B14: Hexanes | D14: =SUM('GEMM (2013) Models'!I197:I199) -> 0.004375487288 | E14: =SUM('GEMM (2013) Models'!I201,'GEMM (2013) Models'!I203,'GEMM (2013) Models'!I204) -> 0.03865427319 | F14: Commodity
B15: Methanol | D15: =SUM('GEMM (2013) Models'!I77:I79) -> -0.0002476235933 | E15: =SUM('GEMM (2013) Models'!I81,'GEMM (2013) Models'!I83,'GEMM (2013) Models'!I84) -> 0.01654099171 | F15: Commodity
B16: Toluene | D16: =SUM('GEMM (2013) Models'!I107:I109) -> 0.00492251763 | E16: =SUM('GEMM (2013) Models'!I111,'GEMM (2013) Models'!I113,'GEMM (2013) Models'!I114) -> 0.04222893099 | F16: Commodity
B17: Acetonitrile | C17: ='GEMM (2013) Feedstock Data'!C32-1 -> 0.61064 | D17: =SUM('GEMM (2013) Models'!I17:I19) -> 0.08455437836 | E17: =SUM('GEMM (2013) Models'!I21,'GEMM (2013) Models'!I23,'GEMM (2013) Models'!I24) -> 0.05682287877 | F17: Specialty
B18: Dichloromethane | C18: ='GEMM (2013) Feedstock Data'!C33-1 -> 0.47236 | D18: =SUM('GEMM (2013) Models'!I47:I49) -> 0.02524299842 | E18: =SUM('GEMM (2013) Models'!I51,'GEMM (2013) Models'!I53,'GEMM (2013) Models'!I54) -> 0.09996027775 | F18: Specialty
B19: Tetrahydrofuran | C19: ='GEMM (2013) Feedstock Data'!C34-1 -> 0.7265 | D19: =SUM('GEMM (2013) Models'!I227:I229) -> 0.1490718679 | E19: =SUM('GEMM (2013) Models'!I231,'GEMM (2013) Models'!I233,'GEMM (2013) Models'!I234) -> 0.09485840424 | F19: Specialty
A20: Not Yet Available | B20: Chloromethane | F20: Commodity
A21: *Pound of hazardous material per pound of remanufactured solvent
A22: †Applies only to specialty chemicals
A24: Color Key & Notes
A25: Negative emission reductions from distillation are highlighted in red.
A26: GEMM - Green Engineering Materials Management; see the background on this tool described in the 'GEMM Information' tab of this calculator. A 2013 version of GEMM updated 8 chemicals.
A27: Water Emissions Include (GEMM 2013 and 2011):
A28: TOC - Total Organic Carbon
A29: COD - Chemical Oxygen Demand
A30: TDS - Total Dissolved Solids
A31: Hazardous Feedstocks (GEMM 2013):
A32: Hazardous material inputs used during manufacturing
A33: Air Emissions Include (GEMM 2013 and 2011):
A34: NMVOC- Non Methane Volatile Organic Compounds
A35: NOx - Nitrogen oxides
A36: SOx - Sulfur oxides

Sheet GEMM Parameters (hidden)
A1: Input Values | C1: Reference
A2: Solvent Distillation Efficiency | B2: 0.75 | C2: GEMM (2011)
A3: Double Solvent Distillation Efficiency | B3: 0.92 | C3: GEMM (2011)
A4: Energy Distillation Fraction | B4: 0.75 | C4: GEMM (2011)
A5: (hover mouse over cell for description)
A6: Output Values
A7: Incineration Fraction | B7: =1-B4 -> 0.25
A8: Distillation Bottoms | B8: =1-B3 -> 0.08
A9: Distillation Bottoms to ER | B9: =B8*B4 -> 0.06
A10: Distillation Bottoms to Incineration | B10: =B8*B7 -> 0.02
A11: (hover mouse over cell for description)
A12: Commodity Chemicals | B12: Create C | C12: Destruct ER | D12: Destruct I | E12: Steam
A13: Baseline Life-Cycle | B13: 1 | C13: =B4 -> 0.75 | D13: =B7 -> 0.25 | E13: 0
A14: Solvent Remanufacturing Life-Cycle | B14: 1 | C14: =B9 -> 0.06 | D14: =B10 -> 0.02 | E14: =1+(1-B2) -> 1.25
A15: Difference | B15: =B14-B13 -> 0 | C15: =C14-C13 -> -0.69 | D15: =D14-D13 -> -0.23 | E15: =E14-E13 -> 1.25
A16: Reductions | B16: =-B15 -> 0 | C16: =-C15 -> 0.69 | D16: =-D15 -> 0.23 | E16: =-E15 -> -1.25
A17: (hover mouse over cell for description)
A18: Specialty Chemicals | B18: Create C | C18: Destruct ER | D18: Destruct I | E18: Steam
A19: Baseline Life-Cycle | B19: 1 | C19: =B4 -> 0.75 | D19: =B7 -> 0.25 | E19: 0
A20: Solvent Remanufacturing Life-Cycle | B20: =1-B3 -> 0.08 | C20: =B9 -> 0.06 | D20: =B10 -> 0.02 | E20: =1+(1-B2) -> 1.25
A21: Difference | B21: =B20-B19 -> -0.92 | C21: =C20-C19 -> -0.69 | D21: =D20-D19 -> -0.23 | E21: =E20-E19 -> 1.25
A22: Reductions | B22: =-B21 -> 0.92 | C22: =-C21 -> 0.69 | D22: =-D21 -> 0.23 | E22: =-E21 -> -1.25

Sheet HazMat Densities (hidden)
A1: Conversion from Gallons to Pounds of Common Solvents
A2: Calculation Description | B2: To convert the density from kg/cubic meter to lbs/kg the following calculation is used: (900 kg/cubic meter x 2.2 lbs/kg)/264.2 gallons/cubic meter.
A3: Material | B3: Density (kg/m3) | C3: Density (lbs/gallon)
B4: Other Materials
A5: Other | B5: 1000 | C5: =(B5*2.2)/264.2 -> 8.327024981 | D5: Assumes 1000 kg/m3 for all other materials
A6: =' Haz Mat Densities'!A15 -> (Custom 1) | B6: =' Haz Mat Densities'!C15 -> (enter density) | C6: =IFERROR((B6*2.2)/264.2,"") -> 
A7: =' Haz Mat Densities'!A16 -> (Custom 2) | B7: =' Haz Mat Densities'!C16 -> (enter density) | C7: =IFERROR((B7*2.2)/264.2,"") -> 
A8: =' Haz Mat Densities'!A17 -> (Custom 3) | B8: =' Haz Mat Densities'!C17 -> (enter density)
A9: =' Haz Mat Densities'!A18 -> (Custom 4) | B9: =' Haz Mat Densities'!C18 -> (enter density)
A10: =' Haz Mat Densities'!A19 -> (Custom 5) | B10: =' Haz Mat Densities'!C19 -> (enter density)
A11: (select) | B11: Solvents
A12: 1,1,2-Trichlorotrifluoroethane | B12: 1564 | C12: =(B12*2.2)/264.2 -> 13.02346707
A13: 1,2,4-Trichlorobenzene | B13: 1454 | C13: 12.10749432
A14: 1,2,4-Trimethylbenzene | B14: 876.1 | C14: 7.295306586
A15: 1,4-Dioxane | B15: 1033.6 | C15: 8.60681302
A16: 2-Methoxyethanol | B16: 964.6 | C16: 8.032248297
A17: Acetic Acid | B17: 1049 | C17: 8.735049205
A18: Acetone | B18: 791 | C18: 6.58667676
A19: Acetonitrile | B19: 782 | C19: 6.511733535
A20: Benzene | B20: 873.8 | C20: 7.276154428
A21: Chlorobenzene | B21: 1106 | C21: 9.209689629
A22: Chloroform | B22: 1489 | C22: 12.3989402
A23: Chloromethane | B23: 911 | C23: 7.585919758
A24: Cyclohexane | B24: 779 | C24: 6.48675246
A25: Cyclopentane | B25: 745 | C25: 6.203633611
A26: Dichloromethane | B26: 1326 | C26: 11.04163512
A27: Diethyl ether | B27: 714 | C27: 5.945495836
A28: Dimethyl Acetamide | B28: 942 | C28: 7.844057532
A29: Dimethyl Sulfoxide | B29: 1100 | C29: 9.159727479
A30: Ethanol | B30: 789 | C30: 6.57002271
A31: Ethyl acetate | B31: 901 | C31: 7.502649508
A32: Ethyl ether | B32: 713 | C32: 5.937168812
A33: Ethylbenzene | B33: 866.5 | C33: 7.215367146
A34: Ethylene Dichloride | B34: 1253 | C34: 10.4337623
A35: Formic acid 10%oncentration | B35: 1025 | C35: 8.535200606
A36: Formic acid 80%oncentration | B36: 1221 | C36: 10.1672975
A37: Glyme | B37: 869.1 | C37: 7.237017411
A38: Heptane | B38: 679.5 | C38: 5.658213475
A39: Hexanes | B39: 654.8 | C39: 5.452535958
A40: Isobutyl Alcohol | B40: 802 | C40: 6.678274035
A41: Iso-Octane | B41: 692 | C41: 5.762301287
A42: Isopropyl Alcohol | B42: 785 | C42: 6.53671461
A43: Isopropyl alcohol | B43: 785 | C43: 6.53671461
A44: Isopropyl Myristate | B44: 853 | C44: 7.102952309
A45: Methanol | B45: 791 | C45: =(B45*2.2)/264.2 -> 6.58667676
A46: Methyl Ethyl Ketone | B46: 805 | C46: 6.70325511
A47: Methyl Isoamyl Ketone | B47: 888 | C47: 7.394398183
A48: Methyl Isobutyl Ketone | B48: 801 | C48: 6.66994701
A49: Methyl n-Propyl Ketone | B49: 808 | C49: 6.728236185
A50: Methyl t-Butyl Ether | B50: 741 | C50: 6.170325511
A51: Methyl tert-butyl ether | B51: 741 | C51: 6.170325511
A52: Methylene chloride | B52: 1326 | C52: 11.04163512 | D52: http://www.chemistrydaily.com/chemistry/Methylene_chloride
A53: N,N-Dimethylformamide | B53: 949 | C53: 7.902346707
A54: n-Butanol | B54: 810 | C54: 6.744890235
A55: n-Butyl Acetate | B55: 880 | C55: 7.327781983
A56: n-Butyl Chloride | B56: 886 | C56: 7.377744133
A57: N-Methylpyrrolidone | B57: 1030 | C57: 8.576835731
A58: o-Dichlorobenzene | B58: 1306 | C58: 10.87509463
A59: Pentane | B59: 626 | C59: 5.212717638
A60: Petroleum Ether | B60: 640 | C60: 5.329295988
A61: Propanol | B61: 804 | C61: 6.694928085
A62: Propylene Carbonate | B62: 1201 | C62: 10.000757
A63: Pyridine | B63: 983.2 | C63: 8.187130961
A64: Tetrahydrofuran | B64: 888 | C64: 7.394398183
A65: Toluene | B65: 867 | C65: 7.219530659
A66: Triethylamine | B66: 728 | C66: 6.062074186
A67: Trifluoroacetic Acid | B67: 1489 | C67: 12.3989402
A68: Xylenes | B68: 880.2 | C68: 7.329447388
A69: (select) | B69: Fuels and Oils
A70: Anthracite (i) | B70: 785 | C70: =(B70*2.2)/264.2 -> 6.53671461 | D70: Notes: (i) A range of 720-850 was provided for anthracite from the source used, therefore, a median value of 785 was used for the calculation of gallons to pounds. (ii) A range of 880-940 was provided for automobile oils, therefore, a median density of 910 was used for the calculation. (iii) A range of 690-800 was provided for bituminous coal, therefore, a median density of 745 was used for the calculation. (iv) A range of 375-500 was provided, therefore, a median density of 437.5 was used for the calculation. (v) A range of 820-950 was provided for diesel fuel oil 20 to 60, therefore, a median density of 885 was used for the calculation. (vi) A range of 700-900 was provided for natural gas, therefore, a median density of 800 was used for the calculation. (vii) A range of 800-920 was provided for olive oil, therefore, a median density of 860 was used for the calculation. (viii) A range of 924-928 was provided for soya bean oil, therefore, a median density of 926 was used for the calculation. (ix) A range of 360-385 was provided for wood, therefore, a median density of 372.5 was used for the calculation.
A71: Automobile oils (ii) | B71: 910 | C71: 7.577592733
A72: Bituminous Coal (iii) | B72: 745 | C72: 6.203633611
A73: Butane | B73: 599 | C73: 4.987887964
A74: Castor oil | B74: 956.1 | C74: 7.961468584
A75: Charcoal, hard wood | B75: 149 | C75: 1.240726722
A76: Charcoal, soft wood | B76: 216 | C76: 1.798637396
A77: Coconut oil | B77: 924 | C77: 7.694171083
A78: Coke (iv) | B78: 437.5 | C78: 3.643073429
A79: Cotton seed oil | B79: 926 | C79: 7.710825132
A80: Crude oil, 32.6o API | B80: 862 | C80: 7.177895534
A81: Crude oil, 35.6o API | B81: 847 | C81: 7.052990159
A82: Crude oil, 40o API | B82: 825 | C82: 6.869795609
A83: Crude oil, 48o API | B83: 790 | C83: 6.578349735
A84: Crude oil, California | B84: 915 | C84: 7.619227858
A85: Crude oil, Mexican | B85: 973 | C85: 8.102195307
A86: Crude oil, Texas | B86: 873 | C86: 7.269492808
A87: Diesel fuel oil 20 to 60 (v) | B87: 885 | C87: 7.369417108
A88: Fuel oil | B88: 890 | C88: 7.411052233
A89: Gas oils | B89: 890 | C89: 7.411052233
A90: Gasoline, natural | B90: 711 | C90: 5.920514762
A91: Gasoline, Vehicle | B91: 737 | C91: 6.137017411
A92: Heavy fuel oil | B92: 930 | C92: 7.744133232
A93: Kerosene | B93: 820.1 | C93: 6.828993187
A94: Linseed oil | B94: 929.1 | C94: 7.73663891
A95: Natural gas (vi) | B95: 800 | C95: 6.661619985
A96: Oil, petroleum | B96: 881 | C96: 7.336109008
A97: Olive oil (vii) | B97: 860 | C97: 7.161241484
A98: Petrol, natural | B98: 711 | C98: 5.920514762
A99: Petrol, Vehicle | B99: 737 | C99: 6.137017411
A100: Propane | B100: 583.07 | C100: 4.855238456
A101: Propane, R-290 | B101: 494 | C101: 4.113550341
A102: Rape seed oil | B102: 920 | C102: 7.660862983
A103: Rosin oil | B103: 980 | C103: 8.160484481
A104: Silicone oil | B104: 760 | C104: 6.328538986
A105: Soya bean oil (viii) | B105: 926 | C105: 7.710825132
A106: Sunflower oil | B106: 920 | C106: 7.660862983
A107: Whale oil | B107: 925 | C107: 7.702498107
A108: Wood (ix) | B108: 372.5 | C108: 3.101816805
A109: (select) | B109: Refrigerants
A110: Fluorine refrigerant R-12 | B110: 1311 | C110: =(B110*2.2)/264.2 -> 10.91672975
A111: Fluorine refrigerant R-22 | B111: 1194 | C111: 9.942467827
A112: Freon - 11 | B112: 1490 | C112: 12.40726722
A113: Freon - 21 | B113: 1370 | C113: 11.40802422
A114: Freon (Fluorine) refrigerant R-11 | B114: 1476 | C114: 12.29068887
A115: Fluorine refrigerant R-12 | B115: 1310.95 | C115: 10.9163134
A116: Freon - 11 | B116: 1490 | C116: 12.40726722
A117: Freon - 21 | B117: 1370 | C117: 11.40802422
A118: HFC-23 | B118: 1162.8 | C118: 9.682664648
A119: HFC-32 | B119: 960 | C119: 7.993943982
A120: HFC-125 | B120: 571 | C120: 4.754731264
A121: HFC-134a | B121: 512 | C121: 4.26343679
A122: HFC-143a (gas) | B122: 3.7 | C122: 0.03080999243
A123: HFC-152a | B123: 912 | C123: 7.594246783
A124: HFC-236fa | B124: 565.23 | C124: 4.70668433
A125: CF4 | B125: 1603 | C125: 13.34822104
A126: C2F6 | B126: 1608 | C126: 13.38985617
A127: SF6 | B127: 1880 | C127: 15.65480696
A128: (select) | B128: Paints and Metalworking
A129: Automotive Paints | B129: N/A | C129: 9.2
A130: Household Paint | B130: N/A | C130: 10
A131: Metalworking fluids | B131: 1000 | C131: =(B131*2.2)/264.2 -> 8.327024981
A132: (select) | B132: Liquids
A133: Ammonia (aqua) | B133: 823.5 | C133: =(B133*2.2)/264.2 -> 6.857305072
A134: Aniline | B134: 1019 | C134: 8.485238456
A135: Benzil | B135: 1230 | C135: 10.24224073
A136: Brine | B136: 1230 | C136: 10.24224073
A137: Bromine | B137: 3120 | C137: 25.98031794
A138: Butyric Acid | B138: 959 | C138: 7.985616957
A139: Caproic acid | B139: 921 | C139: 7.669190008
A140: Carbolic acid | B140: 956 | C140: 7.960635882
A141: Carbon disulfide | B141: 1261 | C141: 10.5003785
A142: Carbon tetrachloride | B142: 1584 | C142: 13.19000757
A143: Carene | B143: 857 | C143: 7.136260409
A144: Chlorine | B144: 1560 | C144: 12.99015897
A145: Citric acid | B145: 1660 | C145: 13.82286147
A146: Creosote | B146: 1067 | C146: 8.884935655
A147: Cresol | B147: 1024 | C147: 8.526873581
A148: Cumene | B148: 860 | C148: 7.161241484
A149: Decane | B149: 726.3 | C149: 6.047918244
A150: Diethylene glycol | B150: 1120 | C150: 9.326267979
A151: Dodecane | B151: 754.6 | C151: 6.283573051
A152: Ethane | B152: 570 | C152: 4.746404239
A153: Ether | B153: 713.5 | C153: 5.941332324
A154: Ethylamine | B154: 681 | C154: 5.670704012
A155: Ethylene glycol | B155: 1097 | C155: 9.134746404
A156: Formaldehyde | B156: 812 | C156: 6.761544285
A157: Furan | B157: 1416 | C157: 11.79106737
A158: Furforol | B158: 1155 | C158: 9.617713853
A159: Glucose (i) | B159: 1395 | C159: 11.61619985
A160: Glycerine | B160: 1259 | C160: 10.48372445
A161: Glycerol | B161: 1126 | C161: 9.376230129
A162: Hexanol | B162: 811 | C162: 6.75321726
A163: Hexene | B163: 671 | C163: 5.587433762
A164: Hydrazine | B164: 795 | C164: 6.61998486
A165: Iodine | B165: 4927 | C165: =(B165*2.2)/264.2 -> 41.02725208
A166: Ionene | B166: 932 | C166: 7.760787282
A167: Linolenic Acid | B167: 897 | C167: 7.469341408
A168: Methane | B168: 465 | C168: 3.872066616
A169: Mercury | B169: 13593 | C169: 113.1892506
A170: Naphtha | B170: 665 | C170: 5.537471612
A171: Naphtha, wood | B171: 960 | C171: 7.993943982
A172: Napthalene | B172: 820 | C172: 6.828160484
A173: n-Butyl Chloride | B173: 886.2 | C173: 7.379409538
A174: Ocimene | B174: 798 | C174: 6.644965935
A175: Octane | B175: 698.6 | C175: 5.817259652
A176: Octane | B176: 917.86 | C176: 7.643043149
A177: Oxygen (liquid) | B177: 1140 | C177: 9.492808478
A178: Palmitic Acid | B178: 851 | C178: 7.086298259 | D178: detergents, cosmetics, enamel glaze, buffer solutions, fire retardant, insecticide
A179: Phenol | B179: 1072 | C179: 8.92657078
A180: Phosgene | B180: 1378 | C180: 11.47464042
A181: Phytadiene | B181: 823 | C181: 6.853141559
A182: Pinene | B182: 857 | C182: 7.136260409 | D182: treatment of metallic surfaces to remove impurities, etc.
A183: Propylene | B183: 514.4 | C183: 4.28342165 | D183: filler, dentistry, hair relaxer, reagent, sewage treatment, whitewash mortar, plaster
A184: Propylene glycol | B184: 965.3 | C184: 8.038077214 | D184: oxidizer, rocket propellant, anti-corrosive agent | E184: http://www.engineeringtoolbox.com/propylene-glycol-d_363.html
A185: Pyrrole | B185: 966 | C185: 8.043906132 | D185: from plant oil (soybeans, peanuts, cottonseed, etc) some forms may be toxic and some are used as fertilizers
A186: Resorcinol | B186: 1269 | C186: 10.5669947
A187: Sabiname | B187: 812.14 | C187: 6.762710068 | D187: fertilizer, table salt substitute
A188: Silane | B188: 718 | C188: 5.978803936 | D188: food additive, anti-caking agent, anti-mold, toothpastes, silver cleaner
A189: Sodium Hydroxide (caustic soda) | B189: 1250 | C189: 10.40878123 | D189: food additive, anti-caking agent, anti-mold, toothpastes, silver cleaner
A190: Sorbaldehyde | B190: 895 | C190: 7.452687358
A191: Stearic Acid | B191: 891 | C191: 7.419379258
A192: Styrene | B192: 903 | C192: 7.519303558
A193: Sugar solution 68 brix | B193: 1338 | C193: 11.14155942
A194: Sulphuric Acid 95%onc. | B194: 1839 | C194: 15.31339894
A195: Terpinene | B195: 847 | C195: 7.052990159
A196: Turpentine | B196: 868.2 | C196: 7.229523089
A197: Chloroform | B197: 1522 | C197: =(B197*2.2)/264.2 -> 12.67373202
A198: (select) | B198: Materials
A199: Borax, fine | B199: 849 | C199: =(B199*2.2)/264.2 -> 7.069644209
A200: Chromic acid, flake | B200: 1201 | C200: 10.000757
... 12 more rows

Sheet Solvent Mass Before (docket) (hidden)
B1: Distribution of Waste Categories | D1: The basline distribution of waste management methods assumes only off-site energy recovery and incineration. The ratios between the two methods were calculated using the ratio of totals from the DSW rulemaking.
C2: Waste Category (lb)
C3: Off Site | J3: On Site
B4: Chemical | C4: Total Underground Injection | D4: Total Landfill | E4: Total Other Management and Disposal | F4: Total Recycling | G4: Total Energy Recovery | H4: Total Incineration | I4: Total Other Treatment (not POTW or wastewater) | J4: Total Underground Injection | K4: Total Landfill | L4: Energy Recovery | M4: Recycling | N4: Treatment | O4: Total
B5: 1,2,4-TRIMETHYLBENZENE | C5: 0 | D5: 0 | E5: 0 | F5: 0 | G5: =G28/(G28+H28) -> 0.9358092824 | H5: =H28/(G28+H28) -> 0.0641907176 | I5: 0 | J5: 0 | K5: 0 | L5: 0 | M5: 0 | N5: 0 | O5: =SUM(C5:N5) -> 1
B6: ACETONITRILE | C6: 0 | D6: 0 | E6: 0 | F6: 0 | G6: =G29/(G29+H29) -> 0.5667223156 | H6: =H29/(G29+H29) -> 0.4332776844 | I6: 0 | J6: 0 | K6: 0 | L6: 0 | M6: 0 | N6: 0 | O6: =SUM(C6:N6) -> 1
B7: CHLOROBENZENE | C7: 0 | D7: 0 | E7: 0 | F7: 0 | G7: 0.06248776109 | H7: 0.9375122389 | I7: 0 | J7: 0 | K7: 0 | L7: 0 | M7: 0 | N7: 0 | O7: 1
B8: CHLOROFORM | C8: 0 | D8: 0 | E8: 0 | F8: 0 | G8: 0.4638425213 | H8: 0.5361574787 | I8: 0 | J8: 0 | K8: 0 | L8: 0 | M8: 0 | N8: 0 | O8: 1
B9: CHLOROMETHANE | C9: 0 | D9: 0 | E9: 0 | F9: 0 | G9: 0.007588924554 | H9: 0.9924110754 | I9: 0 | J9: 0 | K9: 0 | L9: 0 | M9: 0 | N9: 0 | O9: 1
B10: CYCLOHEXANE | C10: 0 | D10: 0 | E10: 0 | F10: 0 | G10: 0.6998245109 | H10: 0.3001754891 | I10: 0 | J10: 0 | K10: 0 | L10: 0 | M10: 0 | N10: 0 | O10: 1
B11: DICHLOROMETHANE | C11: 0 | D11: 0 | E11: 0 | F11: 0 | G11: 0.2891047487 | H11: 0.7108952513 | I11: 0 | J11: 0 | K11: 0 | L11: 0 | M11: 0 | N11: 0 | O11: 1
B12: ETHANOL | C12: 0 | D12: 0 | E12: 0 | F12: 0 | G12: 0.75 | H12: 0.25 | I12: 0 | J12: 0 | K12: 0 | L12: 0 | M12: 0 | N12: 0 | O12: 1
B13: ETHYLBENZENE | C13: 0 | D13: 0 | E13: 0 | F13: 0 | G13: =G35/(G35+H35) -> 0.8992629743 | H13: =H35/(G35+H35) -> 0.1007370257 | I13: 0 | J13: 0 | K13: 0 | L13: 0 | M13: 0 | N13: 0 | O13: 1
B14: METHANOL | C14: 0 | D14: 0 | E14: 0 | F14: 0 | G14: =G36/(G36+H36) -> 0.8636269577 | H14: =H36/(G36+H36) -> 0.1363730423 | I14: 0 | J14: 0 | K14: 0 | L14: 0 | M14: 0 | N14: 0 | O14: 1
B15: METHYL ISOBUTYL KETONE | C15: 0 | D15: 0 | E15: 0 | F15: 0 | G15: 0.6657812659 | H15: 0.3342187341 | I15: 0 | J15: 0 | K15: 0 | L15: 0 | M15: 0 | N15: 0 | O15: 1
B16: METHYL TERT-BUTYL ETHER | C16: 0 | D16: 0 | E16: 0 | F16: 0 | G16: 0.8136984484 | H16: 0.1863015516 | I16: 0 | J16: 0 | K16: 0 | L16: 0 | M16: 0 | N16: 0 | O16: 1
B17: N,N-DIMETHYLFORMAMIDE | C17: 0 | D17: 0 | E17: 0 | F17: 0 | G17: 0.9778419471 | H17: 0.02215805289 | I17: 0 | J17: 0 | K17: 0 | L17: 0 | M17: 0 | N17: 0 | O17: 1
B18: N-BUTYL ALCOHOL | C18: 0 | D18: 0 | E18: 0 | F18: 0 | G18: 0.9154566783 | H18: 0.08454332169 | I18: 0 | J18: 0 | K18: 0 | L18: 0 | M18: 0 | N18: 0 | O18: 1
B19: N-HEXANE | C19: 0 | D19: 0 | E19: 0 | F19: 0 | G19: 0.8264950419 | H19: 0.1735049581 | I19: 0 | J19: 0 | K19: 0 | L19: 0 | M19: 0 | N19: 0 | O19: 1
B20: TETRAHYDROFURAN | C20: 0 | D20: 0 | E20: 0 | F20: 0 | G20: =G53/(G53+H53) -> 0.2556640207 | H20: =H53/(G53+H53) -> 0.7443359793 | I20: 0 | J20: 0 | K20: 0 | L20: 0 | M20: 0 | N20: 0 | O20: 1
B21: TOLUENE | C21: 0 | D21: 0 | E21: 0 | F21: 0 | G21: =G42/(G42+H42) -> 0.7749284675 | H21: =H42/(G42+H42) -> 0.2250715325 | I21: 0 | J21: 0 | K21: 0 | L21: 0 | M21: 0 | N21: 0 | O21: 1
B22: XYLENE (MIXED ISOMERS) | C22: 0 | D22: 0 | E22: 0 | F22: 0 | G22: =G43/(G43+H43) -> 0.9355508777 | H22: =H43/(G43+H43) -> 0.06444912228 | I22: 0 | J22: 0 | K22: 0 | L22: 0 | M22: 0 | N22: 0 | O22: 1
B24: DSW Rulemanking Numbers
C25: Waste Category (lb)
C26: Off Site | J26: On Site
B27: Chemical | C27: Total Underground Injection | D27: Total Landfill | E27: Total Other Management and Disposal | F27: Total Recycling | G27: Total Energy Recovery | H27: Total Incineration | I27: Total Other Treatment (not POTW or wastewater) | J27: Total Underground Injection | K27: Total Landfill | L27: Energy Recovery | M27: Recycling | N27: Treatment | O27: Total
B28: 1,2,4-TRIMETHYLBENZENE | C28: 3931 | D28: 4320.39 | E28: 4726 | F28: 136244 | G28: 1437608 | H28: 98611 | I28: 20826 | J28: 0 | K28: 37 | L28: 52919 | M28: 2150633 | N28: 251129 | O28: =SUM(C28:N28) -> 4160984.39
B29: ACETONITRILE | C29: 0 | D29: 345 | E29: 12538 | F29: 3396731 | G29: 3247303 | H29: 2482669 | I29: 52912 | J29: 11586952 | K29: 11 | L29: 9164203 | M29: 3241374 | N29: 5922292 | O29: =SUM(C29:N29) -> 39107330
B30: CHLOROBENZENE | C30: 0 | D30: 1778 | E30: 16 | F30: 954563 | G30: 98284 | H30: 1474568 | I30: 42388 | J30: 25 | K30: 12 | L30: 741069 | M30: 9124061 | N30: 1270765 | O30: =SUM(C30:N30) -> 13707529
B31: CHLOROFORM | C31: 0 | D31: 1 | E31: 703 | F31: 75575 | G31: 352627 | H31: 407603 | I31: 0 | J31: 0 | K31: 250 | L31: 636587 | M31: 350000 | N31: 12659737 | O31: 14483083
B32: CHLOROMETHANE | C32: 0 | D32: 4 | E32: 0 | F32: 340000 | G32: 1454 | H32: 190141 | I32: 0 | J32: 0 | K32: 0 | L32: 4997370 | M32: 508485 | N32: 6527367 | O32: 12564821
B33: CYCLOHEXANE | C33: 60579 | D33: 1184 | E33: 83066 | F33: 15077 | G33: 1498635 | H33: 642809 | I33: 2369 | J33: 33550 | K33: 4873 | L33: 5318388 | M33: 25545111 | N33: 13437495 | O33: 46643136
B34: DICHLOROMETHANE | C34: 0 | D34: 343 | E34: 3594 | F34: 5223964 | G34: 2439075 | H34: 5997573 | I34: 911833 | J34: 8500 | K34: 2579 | L34: 66517 | M34: 7918616 | N34: 5373362 | O34: 27945956
B35: ETHYLBENZENE | C35: 7349 | D35: 15016 | E35: 7343 | F35: 885211 | G35: 4621343 | H35: 517691 | I35: 28079 | J35: 0 | K35: 4135 | L35: 3312400 | M35: 9709263 | N35: 2547115 | O35: 21654945
B36: METHANOL | C36: 2962607 | D36: 56236.46 | E36: 141282 | F36: 13367148 | G36: 46238336 | H36: 7301373 | I36: 1504679 | J36: 5232503 | K36: 1384940 | L36: 37924873 | M36: 295437754 | N36: 88711244 | O36: 500262975.5
B37: METHYL ISOBUTYL KETONE | C37: 0 | D37: 400 | E37: 22473 | F37: 3234301 | G37: 2294715 | H37: 1151935 | I37: 16900 | J37: 4900 | K37: 0 | L37: 872736 | M37: 16100205 | N37: 1854604 | O37: 25553169
B38: METHYL TERT-BUTYL ETHER | C38: 8148 | D38: 115 | E38: 20268 | F38: 858906 | G38: 1398318 | H38: 320154 | I38: 33033 | J38: 0 | K38: 0 | L38: 44067 | M38: 101994 | N38: 444531 | O38: 3229534
B39: N,N-DIMETHYLFORMAMIDE | C39: 0 | D39: 714 | E39: 0 | F39: 74830 | G39: 4050722 | H39: 91790 | I39: 317956 | J39: 330000 | K39: 11363 | L39: 3330858 | M39: 2299580 | N39: 1460364 | O39: 11968177
B40: N-BUTYL ALCOHOL | C40: 17200 | D40: 586.47 | E40: 127330 | F40: 635449 | G40: 2909314 | H40: 268678 | I40: 73636 | J40: 490519 | K40: 5029 | L40: 2111294 | M40: 9990516 | N40: 14669124 | O40: 31298675.47
B41: N-HEXANE | C41: 266 | D41: 57 | E41: 57983 | F41: 2464066 | G41: 5845630 | H41: 1227165 | I41: 233397 | J41: 0 | K41: 1604 | L41: 7930078 | M41: 4505697 | N41: 16356834 | O41: 38622777
B42: TOLUENE | C42: 13463 | D42: 81288 | E42: 132032 | F42: 5142989 | G42: 26123013 | H42: 7587212 | I42: 535841 | J42: 0 | K42: 25780 | L42: 8548780 | M42: 132917024 | N42: 15163374 | O42: 196270796
B43: XYLENE (MIXED ISOMERS) | C43: 45221 | D43: 26431 | E43: 213713 | F43: 4615416 | G43: 22433393 | H43: 1545413 | I43: 148771 | J43: 0 | K43: 10033 | L43: 1696869 | M43: 54029554 | N43: 3646054 | O43: 88410868
D46: Waste Category (tonne)
D47: Off Site | K47: On Site
B48: Industry | C48: Solvent Use Volume (tonne) | D48: Total Underground Injection | E48: Total Landfill | F48: Total Other Management and Disposal | G48: Total Recycling | H48: Total Energy Recovery | I48: Total Incineration | J48: Total Other Treatment (not POTW or wastewater) | K48: Total Underground Injection | L48: Total Landfill | M48: Energy Recovery | N48: Recycling | O48: Treatment
B49: Pharmaceutical | C49: 5700 | D49: 0 | E49: 0.1712128331 | F49: 4.741143157 | G49: 524.8675886 | H49: 2006.626766 | I49: 582.7286314 | J49: 164.0900375 | K49: 17.80472755 | L49: 0.0002512662652 | M49: 5.202669033 | N49: 1644.006529 | O49: 749.7604441
B50: Relative to Sum of all Waste Categories (%) | C50: -- | D50: 0 | E50: 0.003003733914 | F50: 0.08317795013 | G50: 9.208203309 | H50: 35.20397835 | I50: 10.22330932 | J50: 2.878772588 | K50: 0.3123636412 | L50: 4.408180091e-06 | M50: 0.09127489532 | N50: 28.8422198 | O50: 13.153692
B51: Plastics and Resin | C51: 4750 | D51: 73.97751147 | E51: 1.16283469 | F51: 3.674699102 | G51: 335.0050338 | H51: 496.7920917 | I51: 114.2924945 | J51: 7.712726467 | K51: 22.78261024 | L51: 35.58372296 | M51: 611.0387582 | N51: 1956.505651 | O51: 1091.471866
B52: Relative to Sum of all Waste Categories (%) | C52: -- | D52: 1.557421294 | E52: 0.02448073032 | F52: 0.07736208635 | G52: 7.052737553 | H52: 10.45878088 | I52: 2.406157779 | J52: 0.1623731888 | K52: 0.4796338997 | L52: 0.7491310097 | M52: 12.86397386 | N52: 41.18959266 | O52: 22.97835507
B53: Total Mass (tonne) | C53: 10450 | D53: 73.97751147 | E53: 1.334047523 | F53: 8.415842259 | G53: 859.8726224 | H53: 2503.418858 | I53: 697.0211259 | J53: 171.802764 | K53: 40.58733779 | L53: 35.58397423 | M53: 616.2414272 | N53: 3600.51218 | O53: 1841.23231

Sheet Solvent Mass After (docket) (hidden)
C2: Waste Category (lb)
C3: Off Site | J3: On Site
B4: Chemical | C4: Total Underground Injection | D4: Total Landfill | E4: Total Other Management and Disposal | F4: Total Recycling | G4: Total Energy Recovery | H4: Total Incineration | I4: Total Other Treatment (not POTW or wastewater) | J4: Total Underground Injection | K4: Total Landfill | L4: Energy Recovery | M4: Recycling | N4: Treatment | O4: New On-site Recycling | P4: Total
B5: 1,2,4-TRIMETHYLBENZENE | C5: ='Solvent Mass Before (docket)'!C5*(1-('Solvent Mass After (docket)'!$C$24)/100) -> 0 | D5: ='Solvent Mass Before (docket)'!D5*(1-('Solvent Mass After (docket)'!$C$24)/100) -> 0 | E5: ='Solvent Mass Before (docket)'!E5*(1-('Solvent Mass After (docket)'!$C$24)/100) -> 0 | F5: ='Solvent Mass Before (docket)'!F5*(1-('Solvent Mass After (docket)'!$C$24)/100) -> 0 | G5: ='Solvent Mass Before (docket)'!G5*(1-('Solvent Mass After (docket)'!$C$24)/100) -> 0 | H5: ='Solvent Mass Before (docket)'!H5*(1-('Solvent Mass After (docket)'!$C$24)/100) -> 0 | I5: ='Solvent Mass Before (docket)'!I5*(1-('Solvent Mass After (docket)'!$C$24)/100) -> 0 | J5: ='Solvent Mass Before (docket)'!J5*(1-('Solvent Mass After (docket)'!$C$24/100)) -> 0 | K5: ='Solvent Mass Before (docket)'!K5*(1-('Solvent Mass After (docket)'!$C$24/100)) -> 0 | L5: ='Solvent Mass Before (docket)'!L5*(1-('Solvent Mass After (docket)'!$C$24/100)) -> 0 | M5: ='Solvent Mass Before (docket)'!M5*(1-('Solvent Mass After (docket)'!$C$24/100)) -> 0 | N5: ='Solvent Mass Before (docket)'!N5*(1-('Solvent Mass After (docket)'!$C$24/100)) -> 0 | O5: =SUM('Solvent Mass Before (docket)'!C5:N5)*$C$24/100 -> 1 | P5: =SUM(C5:O5) -> 1
B6: ACETONITRILE | C6: ='Solvent Mass Before (docket)'!C6*(1-('Solvent Mass After (docket)'!$C$24)/100) -> 0 | D6: ='Solvent Mass Before (docket)'!D6*(1-('Solvent Mass After (docket)'!$C$24)/100) -> 0 | E6: ='Solvent Mass Before (docket)'!E6*(1-('Solvent Mass After (docket)'!$C$24)/100) -> 0 | F6: ='Solvent Mass Before (docket)'!F6*(1-('Solvent Mass After (docket)'!$C$24)/100) -> 0 | G6: ='Solvent Mass Before (docket)'!G6*(1-('Solvent Mass After (docket)'!$C$24)/100) -> 0 | H6: ='Solvent Mass Before (docket)'!H6*(1-('Solvent Mass After (docket)'!$C$24)/100) -> 0 | I6: ='Solvent Mass Before (docket)'!I6*(1-('Solvent Mass After (docket)'!$C$24)/100) -> 0 | J6: ='Solvent Mass Before (docket)'!J6*(1-('Solvent Mass After (docket)'!$C$24/100)) -> 0 | K6: ='Solvent Mass Before (docket)'!K6*(1-('Solvent Mass After (docket)'!$C$24/100)) -> 0 | L6: ='Solvent Mass Before (docket)'!L6*(1-('Solvent Mass After (docket)'!$C$24/100)) -> 0 | M6: ='Solvent Mass Before (docket)'!M6*(1-('Solvent Mass After (docket)'!$C$24/100)) -> 0 | N6: ='Solvent Mass Before (docket)'!N6*(1-('Solvent Mass After (docket)'!$C$24/100)) -> 0 | O6: =SUM('Solvent Mass Before (docket)'!C6:N6)*$C$24/100 -> 1 | P6: =SUM(C6:O6) -> 1
B7: CHLOROBENZENE | C7: ='Solvent Mass Before (docket)'!C7*(1-('Solvent Mass After (docket)'!$C$24)/100) -> 0 | D7: ='Solvent Mass Before (docket)'!D7*(1-('Solvent Mass After (docket)'!$C$24)/100) -> 0 | E7: ='Solvent Mass Before (docket)'!E7*(1-('Solvent Mass After (docket)'!$C$24)/100) -> 0 | F7: ='Solvent Mass Before (docket)'!F7*(1-('Solvent Mass After (docket)'!$C$24)/100) -> 0 | G7: ='Solvent Mass Before (docket)'!G7*(1-('Solvent Mass After (docket)'!$C$24)/100) -> 0 | H7: ='Solvent Mass Before (docket)'!H7*(1-('Solvent Mass After (docket)'!$C$24)/100) -> 0 | I7: ='Solvent Mass Before (docket)'!I7*(1-('Solvent Mass After (docket)'!$C$24)/100) -> 0 | J7: ='Solvent Mass Before (docket)'!J7*(1-('Solvent Mass After (docket)'!$C$24/100)) -> 0 | K7: ='Solvent Mass Before (docket)'!K7*(1-('Solvent Mass After (docket)'!$C$24/100)) -> 0 | L7: ='Solvent Mass Before (docket)'!L7*(1-('Solvent Mass After (docket)'!$C$24/100)) -> 0 | M7: ='Solvent Mass Before (docket)'!M7*(1-('Solvent Mass After (docket)'!$C$24/100)) -> 0 | N7: ='Solvent Mass Before (docket)'!N7*(1-('Solvent Mass After (docket)'!$C$24/100)) -> 0 | O7: =SUM('Solvent Mass Before (docket)'!C7:N7)*$C$24/100 -> 1 | P7: 1
B8: CHLOROFORM | C8: ='Solvent Mass Before (docket)'!C8*(1-('Solvent Mass After (docket)'!$C$24)/100) -> 0 | D8: ='Solvent Mass Before (docket)'!D8*(1-('Solvent Mass After (docket)'!$C$24)/100) -> 0 | E8: ='Solvent Mass Before (docket)'!E8*(1-('Solvent Mass After (docket)'!$C$24)/100) -> 0 | F8: ='Solvent Mass Before (docket)'!F8*(1-('Solvent Mass After (docket)'!$C$24)/100) -> 0 | G8: ='Solvent Mass Before (docket)'!G8*(1-('Solvent Mass After (docket)'!$C$24)/100) -> 0 | H8: ='Solvent Mass Before (docket)'!H8*(1-('Solvent Mass After (docket)'!$C$24)/100) -> 0 | I8: ='Solvent Mass Before (docket)'!I8*(1-('Solvent Mass After (docket)'!$C$24)/100) -> 0 | J8: ='Solvent Mass Before (docket)'!J8*(1-('Solvent Mass After (docket)'!$C$24/100)) -> 0 | K8: ='Solvent Mass Before (docket)'!K8*(1-('Solvent Mass After (docket)'!$C$24/100)) -> 0 | L8: ='Solvent Mass Before (docket)'!L8*(1-('Solvent Mass After (docket)'!$C$24/100)) -> 0 | M8: ='Solvent Mass Before (docket)'!M8*(1-('Solvent Mass After (docket)'!$C$24/100)) -> 0 | N8: ='Solvent Mass Before (docket)'!N8*(1-('Solvent Mass After (docket)'!$C$24/100)) -> 0 | O8: =SUM('Solvent Mass Before (docket)'!C8:N8)*$C$24/100 -> 1 | P8: 1
B9: CHLOROMETHANE | C9: ='Solvent Mass Before (docket)'!C9*(1-('Solvent Mass After (docket)'!$C$24)/100) -> 0 | D9: ='Solvent Mass Before (docket)'!D9*(1-('Solvent Mass After (docket)'!$C$24)/100) -> 0 | E9: ='Solvent Mass Before (docket)'!E9*(1-('Solvent Mass After (docket)'!$C$24)/100) -> 0 | F9: ='Solvent Mass Before (docket)'!F9*(1-('Solvent Mass After (docket)'!$C$24)/100) -> 0 | G9: ='Solvent Mass Before (docket)'!G9*(1-('Solvent Mass After (docket)'!$C$24)/100) -> 0 | H9: ='Solvent Mass Before (docket)'!H9*(1-('Solvent Mass After (docket)'!$C$24)/100) -> 0 | I9: ='Solvent Mass Before (docket)'!I9*(1-('Solvent Mass After (docket)'!$C$24)/100) -> 0 | J9: ='Solvent Mass Before (docket)'!J9*(1-('Solvent Mass After (docket)'!$C$24/100)) -> 0 | K9: ='Solvent Mass Before (docket)'!K9*(1-('Solvent Mass After (docket)'!$C$24/100)) -> 0 | L9: ='Solvent Mass Before (docket)'!L9*(1-('Solvent Mass After (docket)'!$C$24/100)) -> 0 | M9: ='Solvent Mass Before (docket)'!M9*(1-('Solvent Mass After (docket)'!$C$24/100)) -> 0 | N9: ='Solvent Mass Before (docket)'!N9*(1-('Solvent Mass After (docket)'!$C$24/100)) -> 0 | O9: =SUM('Solvent Mass Before (docket)'!C9:N9)*$C$24/100 -> 1 | P9: 1
B10: CYCLOHEXANE | C10: ='Solvent Mass Before (docket)'!C10*(1-('Solvent Mass After (docket)'!$C$24)/100) -> 0 | D10: ='Solvent Mass Before (docket)'!D10*(1-('Solvent Mass After (docket)'!$C$24)/100) -> 0 | E10: ='Solvent Mass Before (docket)'!E10*(1-('Solvent Mass After (docket)'!$C$24)/100) -> 0 | F10: ='Solvent Mass Before (docket)'!F10*(1-('Solvent Mass After (docket)'!$C$24)/100) -> 0 | G10: ='Solvent Mass Before (docket)'!G10*(1-('Solvent Mass After (docket)'!$C$24)/100) -> 0 | H10: ='Solvent Mass Before (docket)'!H10*(1-('Solvent Mass After (docket)'!$C$24)/100) -> 0 | I10: ='Solvent Mass Before (docket)'!I10*(1-('Solvent Mass After (docket)'!$C$24)/100) -> 0 | J10: ='Solvent Mass Before (docket)'!J10*(1-('Solvent Mass After (docket)'!$C$24/100)) -> 0 | K10: ='Solvent Mass Before (docket)'!K10*(1-('Solvent Mass After (docket)'!$C$24/100)) -> 0 | L10: ='Solvent Mass Before (docket)'!L10*(1-('Solvent Mass After (docket)'!$C$24/100)) -> 0 | M10: ='Solvent Mass Before (docket)'!M10*(1-('Solvent Mass After (docket)'!$C$24/100)) -> 0 | N10: ='Solvent Mass Before (docket)'!N10*(1-('Solvent Mass After (docket)'!$C$24/100)) -> 0 | O10: =SUM('Solvent Mass Before (docket)'!C10:N10)*$C$24/100 -> 1 | P10: 1
B11: DICHLOROMETHANE | C11: ='Solvent Mass Before (docket)'!C11*(1-('Solvent Mass After (docket)'!$C$24)/100) -> 0 | D11: ='Solvent Mass Before (docket)'!D11*(1-('Solvent Mass After (docket)'!$C$24)/100) -> 0 | E11: ='Solvent Mass Before (docket)'!E11*(1-('Solvent Mass After (docket)'!$C$24)/100) -> 0 | F11: ='Solvent Mass Before (docket)'!F11*(1-('Solvent Mass After (docket)'!$C$24)/100) -> 0 | G11: ='Solvent Mass Before (docket)'!G11*(1-('Solvent Mass After (docket)'!$C$24)/100) -> 0 | H11: ='Solvent Mass Before (docket)'!H11*(1-('Solvent Mass After (docket)'!$C$24)/100) -> 0 | I11: ='Solvent Mass Before (docket)'!I11*(1-('Solvent Mass After (docket)'!$C$24)/100) -> 0 | J11: ='Solvent Mass Before (docket)'!J11*(1-('Solvent Mass After (docket)'!$C$24/100)) -> 0 | K11: ='Solvent Mass Before (docket)'!K11*(1-('Solvent Mass After (docket)'!$C$24/100)) -> 0 | L11: ='Solvent Mass Before (docket)'!L11*(1-('Solvent Mass After (docket)'!$C$24/100)) -> 0 | M11: ='Solvent Mass Before (docket)'!M11*(1-('Solvent Mass After (docket)'!$C$24/100)) -> 0 | N11: ='Solvent Mass Before (docket)'!N11*(1-('Solvent Mass After (docket)'!$C$24/100)) -> 0 | O11: =SUM('Solvent Mass Before (docket)'!C11:N11)*$C$24/100 -> 1 | P11: 1
B12: ETHANOL | C12: ='Solvent Mass Before (docket)'!C12*(1-('Solvent Mass After (docket)'!$C$24)/100) -> 0 | D12: ='Solvent Mass Before (docket)'!D12*(1-('Solvent Mass After (docket)'!$C$24)/100) -> 0 | E12: ='Solvent Mass Before (docket)'!E12*(1-('Solvent Mass After (docket)'!$C$24)/100) -> 0 | F12: ='Solvent Mass Before (docket)'!F12*(1-('Solvent Mass After (docket)'!$C$24)/100) -> 0 | G12: ='Solvent Mass Before (docket)'!G12*(1-('Solvent Mass After (docket)'!$C$24)/100) -> 0 | H12: ='Solvent Mass Before (docket)'!H12*(1-('Solvent Mass After (docket)'!$C$24)/100) -> 0 | I12: ='Solvent Mass Before (docket)'!I12*(1-('Solvent Mass After (docket)'!$C$24)/100) -> 0 | J12: ='Solvent Mass Before (docket)'!J12*(1-('Solvent Mass After (docket)'!$C$24/100)) -> 0 | K12: ='Solvent Mass Before (docket)'!K12*(1-('Solvent Mass After (docket)'!$C$24/100)) -> 0 | L12: ='Solvent Mass Before (docket)'!L12*(1-('Solvent Mass After (docket)'!$C$24/100)) -> 0 | M12: ='Solvent Mass Before (docket)'!M12*(1-('Solvent Mass After (docket)'!$C$24/100)) -> 0 | N12: ='Solvent Mass Before (docket)'!N12*(1-('Solvent Mass After (docket)'!$C$24/100)) -> 0 | O12: =SUM('Solvent Mass Before (docket)'!C12:N12)*$C$24/100 -> 1 | P12: 1
B13: ETHYLBENZENE | C13: ='Solvent Mass Before (docket)'!C13*(1-('Solvent Mass After (docket)'!$C$24)/100) -> 0 | D13: ='Solvent Mass Before (docket)'!D13*(1-('Solvent Mass After (docket)'!$C$24)/100) -> 0 | E13: ='Solvent Mass Before (docket)'!E13*(1-('Solvent Mass After (docket)'!$C$24)/100) -> 0 | F13: ='Solvent Mass Before (docket)'!F13*(1-('Solvent Mass After (docket)'!$C$24)/100) -> 0 | G13: ='Solvent Mass Before (docket)'!G13*(1-('Solvent Mass After (docket)'!$C$24)/100) -> 0 | H13: ='Solvent Mass Before (docket)'!H13*(1-('Solvent Mass After (docket)'!$C$24)/100) -> 0 | I13: ='Solvent Mass Before (docket)'!I13*(1-('Solvent Mass After (docket)'!$C$24)/100) -> 0 | J13: ='Solvent Mass Before (docket)'!J13*(1-('Solvent Mass After (docket)'!$C$24/100)) -> 0 | K13: ='Solvent Mass Before (docket)'!K13*(1-('Solvent Mass After (docket)'!$C$24/100)) -> 0 | L13: ='Solvent Mass Before (docket)'!L13*(1-('Solvent Mass After (docket)'!$C$24/100)) -> 0 | M13: ='Solvent Mass Before (docket)'!M13*(1-('Solvent Mass After (docket)'!$C$24/100)) -> 0 | N13: ='Solvent Mass Before (docket)'!N13*(1-('Solvent Mass After (docket)'!$C$24/100)) -> 0 | O13: =SUM('Solvent Mass Before (docket)'!C13:N13)*$C$24/100 -> 1 | P13: 1
B14: METHANOL | C14: ='Solvent Mass Before (docket)'!C14*(1-('Solvent Mass After (docket)'!$C$24)/100) -> 0 | D14: ='Solvent Mass Before (docket)'!D14*(1-('Solvent Mass After (docket)'!$C$24)/100) -> 0 | E14: ='Solvent Mass Before (docket)'!E14*(1-('Solvent Mass After (docket)'!$C$24)/100) -> 0 | F14: ='Solvent Mass Before (docket)'!F14*(1-('Solvent Mass After (docket)'!$C$24)/100) -> 0 | G14: ='Solvent Mass Before (docket)'!G14*(1-('Solvent Mass After (docket)'!$C$24)/100) -> 0 | H14: ='Solvent Mass Before (docket)'!H14*(1-('Solvent Mass After (docket)'!$C$24)/100) -> 0 | I14: ='Solvent Mass Before (docket)'!I14*(1-('Solvent Mass After (docket)'!$C$24)/100) -> 0 | J14: ='Solvent Mass Before (docket)'!J14*(1-('Solvent Mass After (docket)'!$C$24/100)) -> 0 | K14: ='Solvent Mass Before (docket)'!K14*(1-('Solvent Mass After (docket)'!$C$24/100)) -> 0 | L14: ='Solvent Mass Before (docket)'!L14*(1-('Solvent Mass After (docket)'!$C$24/100)) -> 0 | M14: ='Solvent Mass Before (docket)'!M14*(1-('Solvent Mass After (docket)'!$C$24/100)) -> 0 | N14: ='Solvent Mass Before (docket)'!N14*(1-('Solvent Mass After (docket)'!$C$24/100)) -> 0 | O14: =SUM('Solvent Mass Before (docket)'!C14:N14)*$C$24/100 -> 1 | P14: 1
B15: METHYL ISOBUTYL KETONE | C15: ='Solvent Mass Before (docket)'!C15*(1-('Solvent Mass After (docket)'!$C$24)/100) -> 0 | D15: ='Solvent Mass Before (docket)'!D15*(1-('Solvent Mass After (docket)'!$C$24)/100) -> 0 | E15: ='Solvent Mass Before (docket)'!E15*(1-('Solvent Mass After (docket)'!$C$24)/100) -> 0 | F15: ='Solvent Mass Before (docket)'!F15*(1-('Solvent Mass After (docket)'!$C$24)/100) -> 0 | G15: ='Solvent Mass Before (docket)'!G15*(1-('Solvent Mass After (docket)'!$C$24)/100) -> 0 | H15: ='Solvent Mass Before (docket)'!H15*(1-('Solvent Mass After (docket)'!$C$24)/100) -> 0 | I15: ='Solvent Mass Before (docket)'!I15*(1-('Solvent Mass After (docket)'!$C$24)/100) -> 0 | J15: ='Solvent Mass Before (docket)'!J15*(1-('Solvent Mass After (docket)'!$C$24/100)) -> 0 | K15: ='Solvent Mass Before (docket)'!K15*(1-('Solvent Mass After (docket)'!$C$24/100)) -> 0 | L15: ='Solvent Mass Before (docket)'!L15*(1-('Solvent Mass After (docket)'!$C$24/100)) -> 0 | M15: ='Solvent Mass Before (docket)'!M15*(1-('Solvent Mass After (docket)'!$C$24/100)) -> 0 | N15: ='Solvent Mass Before (docket)'!N15*(1-('Solvent Mass After (docket)'!$C$24/100)) -> 0 | O15: =SUM('Solvent Mass Before (docket)'!C15:N15)*$C$24/100 -> 1 | P15: 1
B16: METHYL TERT-BUTYL ETHER | C16: ='Solvent Mass Before (docket)'!C16*(1-('Solvent Mass After (docket)'!$C$24)/100) -> 0 | D16: ='Solvent Mass Before (docket)'!D16*(1-('Solvent Mass After (docket)'!$C$24)/100) -> 0 | E16: ='Solvent Mass Before (docket)'!E16*(1-('Solvent Mass After (docket)'!$C$24)/100) -> 0 | F16: ='Solvent Mass Before (docket)'!F16*(1-('Solvent Mass After (docket)'!$C$24)/100) -> 0 | G16: ='Solvent Mass Before (docket)'!G16*(1-('Solvent Mass After (docket)'!$C$24)/100) -> 0 | H16: ='Solvent Mass Before (docket)'!H16*(1-('Solvent Mass After (docket)'!$C$24)/100) -> 0 | I16: ='Solvent Mass Before (docket)'!I16*(1-('Solvent Mass After (docket)'!$C$24)/100) -> 0 | J16: ='Solvent Mass Before (docket)'!J16*(1-('Solvent Mass After (docket)'!$C$24/100)) -> 0 | K16: ='Solvent Mass Before (docket)'!K16*(1-('Solvent Mass After (docket)'!$C$24/100)) -> 0 | L16: ='Solvent Mass Before (docket)'!L16*(1-('Solvent Mass After (docket)'!$C$24/100)) -> 0 | M16: ='Solvent Mass Before (docket)'!M16*(1-('Solvent Mass After (docket)'!$C$24/100)) -> 0 | N16: ='Solvent Mass Before (docket)'!N16*(1-('Solvent Mass After (docket)'!$C$24/100)) -> 0 | O16: =SUM('Solvent Mass Before (docket)'!C16:N16)*$C$24/100 -> 1 | P16: 1
B17: N,N-DIMETHYLFORMAMIDE | C17: ='Solvent Mass Before (docket)'!C17*(1-('Solvent Mass After (docket)'!$C$24)/100) -> 0 | D17: ='Solvent Mass Before (docket)'!D17*(1-('Solvent Mass After (docket)'!$C$24)/100) -> 0 | E17: ='Solvent Mass Before (docket)'!E17*(1-('Solvent Mass After (docket)'!$C$24)/100) -> 0 | F17: ='Solvent Mass Before (docket)'!F17*(1-('Solvent Mass After (docket)'!$C$24)/100) -> 0 | G17: ='Solvent Mass Before (docket)'!G17*(1-('Solvent Mass After (docket)'!$C$24)/100) -> 0 | H17: ='Solvent Mass Before (docket)'!H17*(1-('Solvent Mass After (docket)'!$C$24)/100) -> 0 | I17: ='Solvent Mass Before (docket)'!I17*(1-('Solvent Mass After (docket)'!$C$24)/100) -> 0 | J17: ='Solvent Mass Before (docket)'!J17*(1-('Solvent Mass After (docket)'!$C$24/100)) -> 0 | K17: ='Solvent Mass Before (docket)'!K17*(1-('Solvent Mass After (docket)'!$C$24/100)) -> 0 | L17: ='Solvent Mass Before (docket)'!L17*(1-('Solvent Mass After (docket)'!$C$24/100)) -> 0 | M17: ='Solvent Mass Before (docket)'!M17*(1-('Solvent Mass After (docket)'!$C$24/100)) -> 0 | N17: ='Solvent Mass Before (docket)'!N17*(1-('Solvent Mass After (docket)'!$C$24/100)) -> 0 | O17: =SUM('Solvent Mass Before (docket)'!C17:N17)*$C$24/100 -> 1 | P17: 1
B18: N-BUTYL ALCOHOL | C18: ='Solvent Mass Before (docket)'!C18*(1-('Solvent Mass After (docket)'!$C$24)/100) -> 0 | D18: ='Solvent Mass Before (docket)'!D18*(1-('Solvent Mass After (docket)'!$C$24)/100) -> 0 | E18: ='Solvent Mass Before (docket)'!E18*(1-('Solvent Mass After (docket)'!$C$24)/100) -> 0 | F18: ='Solvent Mass Before (docket)'!F18*(1-('Solvent Mass After (docket)'!$C$24)/100) -> 0 | G18: ='Solvent Mass Before (docket)'!G18*(1-('Solvent Mass After (docket)'!$C$24)/100) -> 0 | H18: ='Solvent Mass Before (docket)'!H18*(1-('Solvent Mass After (docket)'!$C$24)/100) -> 0 | I18: ='Solvent Mass Before (docket)'!I18*(1-('Solvent Mass After (docket)'!$C$24)/100) -> 0 | J18: ='Solvent Mass Before (docket)'!J18*(1-('Solvent Mass After (docket)'!$C$24/100)) -> 0 | K18: ='Solvent Mass Before (docket)'!K18*(1-('Solvent Mass After (docket)'!$C$24/100)) -> 0 | L18: ='Solvent Mass Before (docket)'!L18*(1-('Solvent Mass After (docket)'!$C$24/100)) -> 0 | M18: ='Solvent Mass Before (docket)'!M18*(1-('Solvent Mass After (docket)'!$C$24/100)) -> 0 | N18: ='Solvent Mass Before (docket)'!N18*(1-('Solvent Mass After (docket)'!$C$24/100)) -> 0 | O18: =SUM('Solvent Mass Before (docket)'!C18:N18)*$C$24/100 -> 1 | P18: 1
B19: N-HEXANE | C19: ='Solvent Mass Before (docket)'!C19*(1-('Solvent Mass After (docket)'!$C$24)/100) -> 0 | D19: ='Solvent Mass Before (docket)'!D19*(1-('Solvent Mass After (docket)'!$C$24)/100) -> 0 | E19: ='Solvent Mass Before (docket)'!E19*(1-('Solvent Mass After (docket)'!$C$24)/100) -> 0 | F19: ='Solvent Mass Before (docket)'!F19*(1-('Solvent Mass After (docket)'!$C$24)/100) -> 0 | G19: ='Solvent Mass Before (docket)'!G19*(1-('Solvent Mass After (docket)'!$C$24)/100) -> 0 | H19: ='Solvent Mass Before (docket)'!H19*(1-('Solvent Mass After (docket)'!$C$24)/100) -> 0 | I19: ='Solvent Mass Before (docket)'!I19*(1-('Solvent Mass After (docket)'!$C$24)/100) -> 0 | J19: ='Solvent Mass Before (docket)'!J19*(1-('Solvent Mass After (docket)'!$C$24/100)) -> 0 | K19: ='Solvent Mass Before (docket)'!K19*(1-('Solvent Mass After (docket)'!$C$24/100)) -> 0 | L19: ='Solvent Mass Before (docket)'!L19*(1-('Solvent Mass After (docket)'!$C$24/100)) -> 0 | M19: ='Solvent Mass Before (docket)'!M19*(1-('Solvent Mass After (docket)'!$C$24/100)) -> 0 | N19: ='Solvent Mass Before (docket)'!N19*(1-('Solvent Mass After (docket)'!$C$24/100)) -> 0 | O19: =SUM('Solvent Mass Before (docket)'!C19:N19)*$C$24/100 -> 1 | P19: 1
B20: TETRAHYDROFURAN | C20: ='Solvent Mass Before (docket)'!C20*(1-('Solvent Mass After (docket)'!$C$24)/100) -> 0 | D20: ='Solvent Mass Before (docket)'!D20*(1-('Solvent Mass After (docket)'!$C$24)/100) -> 0 | E20: ='Solvent Mass Before (docket)'!E20*(1-('Solvent Mass After (docket)'!$C$24)/100) -> 0 | F20: ='Solvent Mass Before (docket)'!F20*(1-('Solvent Mass After (docket)'!$C$24)/100) -> 0 | G20: ='Solvent Mass Before (docket)'!G20*(1-('Solvent Mass After (docket)'!$C$24)/100) -> 0 | H20: ='Solvent Mass Before (docket)'!H20*(1-('Solvent Mass After (docket)'!$C$24)/100) -> 0 | I20: ='Solvent Mass Before (docket)'!I20*(1-('Solvent Mass After (docket)'!$C$24)/100) -> 0 | J20: ='Solvent Mass Before (docket)'!J20*(1-('Solvent Mass After (docket)'!$C$24/100)) -> 0 | K20: ='Solvent Mass Before (docket)'!K20*(1-('Solvent Mass After (docket)'!$C$24/100)) -> 0 | L20: ='Solvent Mass Before (docket)'!L20*(1-('Solvent Mass After (docket)'!$C$24/100)) -> 0 | M20: ='Solvent Mass Before (docket)'!M20*(1-('Solvent Mass After (docket)'!$C$24/100)) -> 0 | N20: ='Solvent Mass Before (docket)'!N20*(1-('Solvent Mass After (docket)'!$C$24/100)) -> 0 | O20: =SUM('Solvent Mass Before (docket)'!C20:N20)*$C$24/100 -> 1 | P20: =SUM(C20:O20) -> 1
B21: TOLUENE | C21: ='Solvent Mass Before (docket)'!C21*(1-('Solvent Mass After (docket)'!$C$24)/100) -> 0 | D21: ='Solvent Mass Before (docket)'!D21*(1-('Solvent Mass After (docket)'!$C$24)/100) -> 0 | E21: ='Solvent Mass Before (docket)'!E21*(1-('Solvent Mass After (docket)'!$C$24)/100) -> 0 | F21: ='Solvent Mass Before (docket)'!F21*(1-('Solvent Mass After (docket)'!$C$24)/100) -> 0 | G21: ='Solvent Mass Before (docket)'!G21*(1-('Solvent Mass After (docket)'!$C$24)/100) -> 0 | H21: ='Solvent Mass Before (docket)'!H21*(1-('Solvent Mass After (docket)'!$C$24)/100) -> 0 | I21: ='Solvent Mass Before (docket)'!I21*(1-('Solvent Mass After (docket)'!$C$24)/100) -> 0 | J21: ='Solvent Mass Before (docket)'!J21*(1-('Solvent Mass After (docket)'!$C$24/100)) -> 0 | K21: ='Solvent Mass Before (docket)'!K21*(1-('Solvent Mass After (docket)'!$C$24/100)) -> 0 | L21: ='Solvent Mass Before (docket)'!L21*(1-('Solvent Mass After (docket)'!$C$24/100)) -> 0 | M21: ='Solvent Mass Before (docket)'!M21*(1-('Solvent Mass After (docket)'!$C$24/100)) -> 0 | N21: ='Solvent Mass Before (docket)'!N21*(1-('Solvent Mass After (docket)'!$C$24/100)) -> 0 | O21: =SUM('Solvent Mass Before (docket)'!C21:N21)*$C$24/100 -> 1 | P21: 1
B22: XYLENE (MIXED ISOMERS) | C22: ='Solvent Mass Before (docket)'!C22*(1-('Solvent Mass After (docket)'!$C$24)/100) -> 0 | D22: ='Solvent Mass Before (docket)'!D22*(1-('Solvent Mass After (docket)'!$C$24)/100) -> 0 | E22: ='Solvent Mass Before (docket)'!E22*(1-('Solvent Mass After (docket)'!$C$24)/100) -> 0 | F22: ='Solvent Mass Before (docket)'!F22*(1-('Solvent Mass After (docket)'!$C$24)/100) -> 0 | G22: ='Solvent Mass Before (docket)'!G22*(1-('Solvent Mass After (docket)'!$C$24)/100) -> 0 | H22: ='Solvent Mass Before (docket)'!H22*(1-('Solvent Mass After (docket)'!$C$24)/100) -> 0 | I22: ='Solvent Mass Before (docket)'!I22*(1-('Solvent Mass After (docket)'!$C$24)/100) -> 0 | J22: ='Solvent Mass Before (docket)'!J22*(1-('Solvent Mass After (docket)'!$C$24/100)) -> 0 | K22: ='Solvent Mass Before (docket)'!K22*(1-('Solvent Mass After (docket)'!$C$24/100)) -> 0 | L22: ='Solvent Mass Before (docket)'!L22*(1-('Solvent Mass After (docket)'!$C$24/100)) -> 0 | M22: ='Solvent Mass Before (docket)'!M22*(1-('Solvent Mass After (docket)'!$C$24/100)) -> 0 | N22: ='Solvent Mass Before (docket)'!N22*(1-('Solvent Mass After (docket)'!$C$24/100)) -> 0 | O22: =SUM('Solvent Mass Before (docket)'!C22:N22)*$C$24/100 -> 1 | P22: =SUM(C22:O22) -> 1
B24: Reduction in Possible Waste (%) | C24: 100 | O24: * Treatment includes a number of activities,
O25: but any of these activities can
O26: be mitigated and materials available for
O27: recycling. So onsite treatment will be
O28: included with appropriate narrative.

Sheet GEMM (2011) Models
A1: **This sheet was modified from GEMM (2011)**
B2: Remanufacturing Exclusion - Benefits Summary
B3: All 4 Sectors, 16 of the 18 Chemicals k (2008 TRI) | H3: NAICS 325412; 325510; 325199; 325211
A4: Column: | C4: c | D4: d | E4: e | F4: f | G4: g | H4: h | I4: I | J4: j | K4: k | L4: l | M4: m | N4: n | P4: p | Q4: q | R4: r | S4: s | T4: t | U4: u | V4: v | W4: w | X4: x | Y4: y | Z4: z | AA4: aa
E5: BASELINE: 2008 TRI Reported OFFSITE Energy Recovery (ER) and Incineration (I) and Offsite Remanufacturing (ME) | P5: Process Change: New Remanufacturing (Assumes all other reported waste offsite and onsite are Recycled. Add THF
A6: Row | E6: End of Life (EOL) Energy Recovery | H6: End of Life (EOL) Incineration | L6: ER&I | M6: Beginning of Life (BOL) ME | P6: (Other reported waste: U, L, Offsite ER&I, Remanufacturing, & Total Other Management & Disposal; Onsite: ER & Treatment Go To Zero)
B7: Emission Type a, b | C7: 2008 Land | E7: Offsite Reported Mass to Energy Recovery (EOL/ER) Cement Kiln | G7: ER EOL | H7: Offsite Reported Mass to Thermal Treatment (EOL/I) Incineration (GSK Model) | K7: I EOL | L7: Baseline EOL ER&I | M7: Distillation @ 75% recovery (25% mass to EOL (ER&I) | P7: Distillation @ 92% recovery (worst case scenario, 8% mass to EOL (ER&I) and double steam required for primary / secondary distillation: 75%*75%=92%) | X7: NEW ER&I | Y7: NEW BOL | AA7: New EOL/BOL - Baseline EOL/BOL
G8: Cement kiln | K8: Incinerator | M8: STEAM Offsite Primary Distillation Steamf | N8: Baseline Beginning of Life (BOL) Manufacturing Emissions (ME) | P8: STEAM New Solvent Mass going to Steamf | Q8: 75% x 8% Mass to Energy Recovery (ER) Cement Kiln | S8: NEW ER EOL | T8: 25% x 8% Mass to Thermal Treatment (I) Incineration | W8: NEW Incin EOL | X8: New EOL ER&I | Y8: Recovered Solvent (92% j of Distilled Mass) | Z8: New Beginning of Life (BOL) Mnfctring Emissions (ME)
C9: Under ground Injection | D9: Land -fill | E9: Solvent used as Fuel e | F9: Manufacturing Emissions of Solvents | G9: Offsite ER EOL (end of life) | H9: Solvents Combusted c | I9: Manufacturing Emissions of Solvents | J9: Natural Gas Fuel d | K9: Offsite I EOL (end of life) | Q9: Solvent used as Fuel e | R9: Mnfcting Emissions of Solvents | S9: Cement kiln | T9: Solvents Combusted c | U9: Mnfcting Emissions of Solvents | V9: Natural Gas Fuel d | W9: Incinerator | AA9: Process Change Benefits
B10: 2008 Solvent Mass (tonne)
A11: 11 | B11: Mass | C11: =SUM(C56,C83,C110,C137,C164,C191,C218,C245,C272,C299,C326,C353,C380,C407,C434,C461,C488,C515) -> 0 | D11: =SUM(D56,D83,D110,D137,D164,D191,D218,D245,D272,D299,D326,D353,D380,D407,D434,D461,D488,D515) -> 0 | E11: =SUM(E56,E83,E110,E137,E164,E191,E218,E245,E272,E299,E326,E353,E380,E407,E434,E461,E488,E515) -> 0.005304352753 | F11: =SUM(F56,F83,F110,F137,F164,F191,F218,F245,F272,F299,F326,F353,F380,F407,F434,F461,F488,F515) -> 0.005304352753 | G11: 0.005304352753 | H11: 0.002405397814 | I11: 0.002405397814 | J11: 0.001189303674 | K11: 0.002405397814 | L11: 0.007709750567 | M11: 0 | N11: 0 | P11: =SUM(P56,P83,P110,P137,P164,P191,P218,P245,P272,P299,P326,P353,P380,P407,P434,P461,P488,P515) -> 0.007709750567 | Q11: 0.000462585034 | R11: 0.000462585034 | S11: 0.000462585034 | T11: 0.0001541950113 | U11: 0.0001541950113 | V11: 8.849143798e-05 | W11: 0.0001541950113 | X11: 0.0006167800454 | Y11: 0.007092970522 | Z11: =SUM(Z56,Z83,Z110,Z137,Z164,Z191,Z218,Z245,Z272,Z299,Z326,Z353,Z380,Z407,Z434,Z461,Z488,Z515) -> 0.007092970522 | AA11: 0
B13: Air emission (tonne)
A14: 14 | B14: CO2 | C14: -- | D14: -- | E14: =SUM(E58,E85,E112,E139,E166,E193,E220,E247,E274,E301,E328,E355,E382,E409,E436,E463,E490,E517) -> 0.01355684134 | F14: 0.02195476663 | G14: 0.03551160797 | H14: 0.004983574803 | I14: 0.01270810201 | J14: 0.004037754132 | K14: 0.02172943095 | L14: 0.05724103892 | M14: 0 | N14: 0 | P14: =SUM(P58,P85,P112,P139,P166,P193,P220,P247,P274,P301,P328,P355,P382,P409,P436,P463,P490,P517) -> 0.0006991029909 | Q14: =SUM(Q58,Q85,Q112,Q139,Q166,Q193,Q220,Q247,Q274,Q301,Q328,Q355,Q382,Q409,Q436,Q463,Q490,Q517) -> 0.001112424968 | R14: =SUM(R58,R85,R112,R139,R166,R193,R220,R247,R274,R301,R328,R355,R382,R409,R436,R463,R490,R517) -> 0.002079772119 | S14: =SUM(S58,S85,S112,S139,S166,S193,S220,S247,S274,S301,S328,S355,S382,S409,S436,S463,S490,S517) -> 0.003192197087 | T14: =SUM(T58,T85,T112,T139,T166,T193,T220,T247,T274,T301,T328,T355,T382,T409,T436,T463,T490,T517) -> 0.0003708083228 | U14: =SUM(U58,U85,U112,U139,U166,U193,U220,U247,U274,U301,U328,U355,U382,U409,U436,U463,U490,U517) -> 0.0006932573729 | V14: =SUM(V58,V85,V112,V139,V166,V193,V220,V247,V274,V301,V328,V355,V382,V409,V436,V463,V490,V517) -> 0.0003004335034 | W14: 0.001364499199 | X14: 0.004556696286 | Y14: --
A15: 15 | B15: CH4 | C15: -- | D15: -- | E15: =SUM(E59,E86,E113,E140,E167,E194,E221,E248,E275,E302,E329,E356,E383,E410,E437,E464,E491,E518) -> 0 | F15: 9.963250196e-05 | G15: 9.963250196e-05 | H15: 0 | I15: 4.495513159e-05 | J15: 1.990952667e-05 | K15: 6.486465826e-05 | L15: 0.0001644971602 | M15: 0 | N15: 0 | P15: 1.278302077e-06 | Q15: 0 | R15: 8.675258013e-06 | S15: 8.675258013e-06 | T15: 0 | U15: 2.891752671e-06 | V15: 1.481390063e-06 | W15: 4.373142734e-06 | X15: 1.304840075e-05 | Y15: --
A16: 16 | B16: N2O | C16: -- | D16: -- | E16: 0 | F16: 2.889785221e-07 | G16: 2.889785221e-07 | H16: 0 | I16: 1.174434843e-07 | J16: 7.269573878e-08 | K16: 1.901392231e-07 | L16: 4.791177452e-07 | M16: 0 | N16: 0 | P16: 0 | Q16: 0 | R16: 2.438532038e-08 | S16: 2.438532038e-08 | T16: 0 | U16: 8.128440128e-09 | V16: 5.409005791e-09 | W16: 1.353744592e-08 | X16: 3.79227663e-08 | Y16: --
A17: 17 | B17: CO | C17: -- | D17: -- | E17: 5.975467256e-06 | F17: 8.45486776e-05 | G17: 9.052414485e-05 | H17: 2.196616993e-06 | I17: 0.0001424086516 | J17: 2.535938193e-06 | K17: 0.0001471412067 | L17: 0.0002376653516 | M17: 0 | N17: 0 | P17: 4.890873267e-07 | Q17: 4.903250549e-07 | R17: 1.361743975e-05 | S17: 1.41077648e-05 | T17: 1.63441685e-07 | U17: 4.539146583e-06 | V17: 1.886892492e-07 | W17: 4.891277517e-06 | X17: 1.899904232e-05 | Y17: --
A18: 18 | B18: NMVOC | C18: -- | D18: -- | E18: 5.975467256e-07 | F18: 3.476435179e-05 | G18: 3.536189852e-05 | H18: 2.196616993e-07 | I18: 2.575506974e-05 | J18: 1.243108174e-09 | K18: 2.597597455e-05 | L18: 6.133787307e-05 | M18: 0 | N18: 0 | P18: 3.553099693e-06 | Q18: 4.903250549e-08 | R18: 3.631165292e-06 | S18: 3.680197797e-06 | T18: 1.63441685e-08 | U18: 1.210388431e-06 | V18: 9.249482051e-11 | W18: 1.226825094e-06 | X18: 4.907022891e-06 | Y18: --
A19: 19 | B19: NOx | C19: -- | D19: -- | E19: 0 | F19: 3.588184679e-05 | G19: 3.588184679e-05 | H19: 0 | I19: 2.980637106e-05 | J19: 2.655232723e-06 | K19: 3.246160378e-05 | L19: 6.834345057e-05 | M19: 0 | N19: 0 | P19: 2.301228252e-06 | Q19: 0 | R19: 3.941293071e-06 | S19: 3.941293071e-06 | T19: 0 | U19: 1.313764357e-06 | V19: 1.97565489e-07 | W19: 1.511329846e-06 | X19: 5.452622917e-06 | Y19: --
A20: 20 | B20: SOx | C20: -- | D20: -- | E20: 0 | F20: 0.0001609390797 | G20: 0.0001609390797 | H20: 0 | I20: 8.244469287e-05 | J20: 3.423236074e-05 | K20: 0.0001166770536 | L20: 0.0002776161333 | M20: 0 | N20: 0 | P20: 3.060908862e-06 | Q20: 0 | R20: 1.460302635e-05 | S20: 1.460302635e-05 | T20: 0 | U20: 4.867675451e-06 | V20: 2.547096166e-06 | W20: 7.414771617e-06 | X20: 2.201779797e-05 | Y20: --
B21: Water emission (tonne)
A22: 22 | B22: TOC | C22: -- | D22: -- | E22: =SUM(E66,E93,E120,E147,E174,E201,E228,E255,E282,E309,E336,E363,E390,E417,E444,E471,E498,E525) -> 0 | F22: 2.779800134e-05 | G22: 2.779800134e-05 | H22: 0 | I22: 1.526119547e-05 | J22: 6.243224863e-07 | K22: 1.588551795e-05 | L22: 4.368351929e-05 | M22: 0 | N22: 0 | P22: 1.922096013e-08 | Q22: 0 | R22: 2.583551808e-06 | S22: 2.583551808e-06 | T22: 0 | U22: 8.611839362e-07 | V22: 4.645339604e-08 | W22: 9.076373322e-07 | X22: 3.491189141e-06 | Y22: --
A23: 23 | B23: BOD | C23: -- | D23: -- | E23: =SUM(E67,E94,E121,E148,E175,E202,E229,E256,E283,E310,E337,E364,E391,E418,E445,E472,E499,E526) -> 0 | F23: 4.847654153e-06 | G23: 4.847654153e-06 | H23: 0 | I23: 2.179971853e-06 | J23: 1.079250364e-06 | K23: 3.259222217e-06 | L23: 8.10687637e-06 | M23: 0 | N23: 0 | P23: 1.710110415e-07 | Q23: 0 | R23: 4.216575604e-07 | S23: 4.216575604e-07 | T23: 0 | U23: 1.405525201e-07 | V23: 8.030280134e-08 | W23: 2.208553215e-07 | X23: 6.425128818e-07 | Y23: --
A24: 24 | B24: COD | C24: -- | D24: -- | E24: =SUM(E68,E95,E122,E149,E176,E203,E230,E257,E284,E311,E338,E365,E392,E419,E446,E473,E500,E527) -> 0 | F24: 0.0001082973543 | G24: 0.0001082973543 | H24: 0 | I24: 5.921312774e-05 | J24: 1.785562311e-06 | K24: 6.099869005e-05 | L24: 0.0001692960443 | M24: 0 | N24: 0 | P24: 5.497194598e-08 | Q24: 0 | R24: 1.005062892e-05 | S24: 1.005062892e-05 | T24: 0 | U24: 3.35020964e-06 | V24: 1.328567127e-07 | W24: 3.483066353e-06 | X24: 1.353369527e-05 | Y24: --
A25: 25 | B25: TDS | C25: -- | D25: -- | E25: =SUM(E69,E96,E123,E150,E177,E204,E231,E258,E285,E312,E339,E366,E393,E420,E447,E474,E501,E528) -> 0 | F25: 0.001115752232 | G25: 0.001115752232 | H25: 0 | I25: 0.0004660979931 | J25: 0.0002761050738 | K25: 0.0007422030669 | L25: 0.001857955299 | M25: 0 | N25: 0 | P25: 3.17980146e-06 | Q25: 0 | R25: 9.491101352e-05 | S25: 9.491101352e-05 | T25: 0 | U25: 3.163700451e-05 | V25: 2.054389939e-05 | W25: 5.21809039e-05 | X25: 0.0001470919174 | Y25: --
B26: Solid waste (tonne)
A27: 27 | B27: Solid waste | C27: -- | D27: -- | E27: =SUM(E71,E98,E125,E152,E179,E206,E233,E260,E287,E314,E341,E368,E395,E422,E449,E476,E503,E530) -> 0 | F27: 0.0002765490687 | G27: 0.0002765490687 | H27: 0 | I27: 0.00012879581 | J27: 4.653847268e-05 | K27: 0.0001753342827 | L27: 0.0004518833513 | M27: 0 | N27: 0 | P27: 1.500601288e-06 | Q27: 0 | R27: 2.432069272e-05 | S27: 2.432069272e-05 | T27: 0 | U27: 8.106897573e-06 | V27: 3.462745857e-06 | W27: 1.156964343e-05 | X27: 3.589033615e-05 | Y27: --
B28: Energy / Carbon
A29: 29 | B29: MMBTU | C29: -- | D29: -- | E29: =SUM(E73,E100,E127,E154,E181,E208,E235,E262,E289,E316,E343,E370,E397,E424,E451,E478,E505,E532) -> 0.1486425501 | F29: 0.2838593229 | G29: 0.432501873 | H29: -- | I29: =SUM(I73,I100,I127,I154,I181,I208,I235,I262,I289,I316,I343,I370,I397,I424,I451,I478,I505,I532) -> 0.15278301 | J29: 0.05639892209 | K29: 0.2091819321 | L29: 0.6416838051 | M29: 0 | N29: 0 | P29: 0.0083808879 | Q29: 0.01212510992 | R29: 0.02619853997 | S29: 0.03832364989 | T29: -- | U29: 0.008732846658 | V29: 0.004196423357 | W29: 0.01292927002 | X29: 0.05125291991 | Y29: -- | Z29: =SUM(Z73,Z100,Z127,Z154,Z181,Z208,Z235,Z262,Z289,Z316,Z343,Z370,Z397,Z424,Z451,Z478,Z505,Z532) ->  | AA29: =SUM(AA73,AA100,AA127,AA154,AA181,AA208,AA235,AA262,AA289,AA316,AA343,AA370,AA397,AA424,AA451,AA478,AA505,AA532) -> 
A30: 30 | B30: MTCO2e | C30: =IF(C14="--","--",(1*C14)+(21*C15)+(310*C16)) -> -- | D30: =IF(D14="--","--",(1*D14)+(21*D15)+(310*D16)) -> -- | E30: =IF(E14="--","--",(1*E14)+(21*E15)+(310*E16)) -> 0.01355684134 | F30: =IF(F14="--","--",(1*F14)+(21*F15)+(310*F16)) -> 0.02413663252 | G30: 0.03769347385 | H30: 0.004983574803 | I30: 0.01368856726 | J30: 0.004478389871 | K30: 0.02315053193 | L30: 0.06084400578 | M30: 0 | N30: 0 | P30: =IF(P14="--","--",(1*P14)+(21*P15)+(310*P16)) -> 0.0007259473345 | Q30: 0.001112424968 | R30: 0.002269511986 | S30: 0.003381936955 | T30: 0.0003708083228 | U30: 0.0007565039955 | V30: 0.0003332194865 | W30: 0.001460531805 | X30: 0.00484246876 | Y30: --
W32: Total: | Y32: Price Range per Pound | AA32: Cost Savings
U33: Solent Recovered (tonne): | W33: 451470 | X33: X | Y33: $0.13 - $1.55 | Z33: Total Costs: | AA33: =SUM(AA76,AA103,AA130,AA157,AA184,AA211,AA238,AA265,AA292,AA319,AA346,AA373,AA400,AA427,AA454,AA481,AA508,AA535) -> 337261493.7
A34: a | B34: CO2 equivalents are made up of CO2, CH4, and N2O air emissions in this formula: (1 x CO2) + (21 x CH4) + (310 x N2O).
A35: b | B35: "N2O emissions" data are limited to those from natural gas fuel.
A36: c | B36: "Combustion of solvents" -- emissions from combusting / burning solvents (not cradle-to-gate emissions of solvents).
A37: d | B37: "Natural gas fuel" -- cradle-to-gate emissions of natural gas burned as incinerator fuel. Source - ERG inhouse LCI analysis (please expand)
A38: e | B38: "Solvent fuel" -- emissions from burning a solvent as cement kiln fuel (calculations use the lower heating value of a solvent) plus the solvent manufacturing emissions.
A39: f | B39: "Steam" -- cradle-to-gate emissions of average fuel mix used in steam production for evaporation and recondensation activities. (worst case assumption - 1/2 distillation). | S39: Remanufacturing Parameters
A40: g | B40: "Bottoms incinerated" -- emissions from incinerating the least-volatile residue (mass not recovered as condensed vapor), plus cradle-to-gate emissions of natural gas (incinerator fuel). | S40: On-site Remanufacturing Recovery (fraction) | V40: ='GEMM Parameters'!B3 -> 0.92
A41: h | B41: "Bottoms recovered for energy"-- emissions from burning distillation bottoms as cement kiln fuel plus the solvent manufacturing emissions. | S41: Off-site Remanufacturing Recovery (fraction) | V41: ='GEMM Parameters'!B2 -> 0.75
A42: I | B42: "Avoided manufacturing" -- avoided emissions from producing an amount of virgin solvent equal to that recovered from distillation. | S42: On-site Remanufacturing Steam Multiplier | V42: =1+(1-'GEMM Parameters'!B2) -> 1.25
A43: j | B43: A 92% recovery rate is achieved by distilling twice (1st yields 75%; 2nd yields 75% of first residue bottoms). Due to lower payback, methanol/ethanol are usually distilled once (75%). No avoided manufacturing emissions for commodity chemicals are incl | S43: Off-site Remanufacturing Steam Multiplier | V43: 1
A44: k | B44: Tetrahydrofuran and ethanol are not on TRI. Other sources and assumptions were used to obtain THF flows. Ethanol was not included in modeling. Retain ethanol due to miscibility. | S44: On-site Remanufacturing Bottoms Split to ER | V44: ='GEMM Parameters'!B4 -> 0.75
A45: l | B45: chloromethane was not modeled. Though on TRI, (expand - not a liquid solvent, not used as others. Recommend removing from chemical list. | S45: Off-site Remanufacturing Bottoms Split to ER | V45: ='GEMM Parameters'!B4 -> 0.75
A46: m | B46: does not include releases and exposures from processing activities, such as distillation or fuel blending. These are incorporated in the transportation / mixing / storage (local impacts) of sector analysis.
B48: Individual Chemicals
B50: Acetonitrile
B52: Emission Type a, b | C52: 2008 Land | E52: Offsite Reported Energy Recovery (ER) Cement Kiln (Adapted GSK Model) | G52: ER EOL | H52: Offsite Reported Thermal Treatment (I) Incineration (GSK Model) | K52: I EOL | L52: Baseline EOL ER&I | M52: GSK Solvent Recovery (Distillation) Model & Adapted Zurich | P52: 92% recovery, 8% of Mass (worst case scenario of steam required for primary / secondary distillation) (75% recovery rate*2=92%, doubled steam) | X52: New EOL ER&I | Y52: Recovered Solvent (92% j of Distilled Mass) | Z52: New Beginning of Life (BOL) Mnfctring Emissions (ME) | AA52: New EOL/BOL - Baseline EOL/BOL
G53: Cement kiln | K53: Incinerator | M53: Offsite Reported Remanufacturing Mass to steamf | N53: Baseline Beginning of Life (BOL) Mnfctring Emissions (ME) | P53: STEAM New Solvent Mass going to Steamf | Q53: Energy Recovery (ER) Cement Kiln | S53: NEW ER EOL | T53: Thermal Treatment (I) Incineration | W53: INEW EOL
C54: Underground Injection | D54: Landfill | E54: Solvent used as Fuel e | F54: Manufacturing Emissions of Solvents | G54: Offsite ER EOL (end of life) | H54: Combustion of Solvents c | I54: Manufacturing Emissions of Solvents | J54: Natural Gas Fuel d | K54: Offsite I EOL (end of life) | Q54: Solvent used as Fuel e | R54: Mnfcting Emissions of Solvents | S54: Cement kiln | T54: Solvents Combusted c | U54: Mnfcting Emissions of Solvents | V54: Natural Gas Fuel d | W54: Incinerator | AA54: Process Change Benefits
B55: Solvent Mass (tonne)
B56: Solvent Mass | C56: =SUM('Solvent Mass Before (docket)'!C6,'Solvent Mass Before (docket)'!J6)/2.205/1000 -> 0 | D56: =SUM('Solvent Mass Before (docket)'!D6,'Solvent Mass Before (docket)'!K6)/2.205/1000 -> 0 | E56: =(SUM('Solvent Mass Before (docket)'!G6)/2.205/1000)+(M56*(1-$V$41)*$V$45) -> 0.0002570169232 | F56: =E56 -> 0.0002570169232 | G56: =E56 -> 0.0002570169232 | H56: =SUM('Solvent Mass Before (docket)'!H6)/2.205/1000+(M56*(1-$V$41)*(1-$V$45)) -> 0.0001964978161 | I56: =H56 -> 0.0001964978161 | J56: =J73*1055/'GEMM (2011) LCA Data'!$I$22/1000 -> 9.9642248e-05 | K56: =H56 -> 0.0001964978161 | L56: =G56+K56 -> 0.0004535147392 | M56: =SUM('Solvent Mass Before (docket)'!F6)/2.205/1000 -> 0 | N56: =M56*$V$41 -> 0 | P56: ='Solvent Mass After (docket)'!$O6/2.205/1000 -> 0.0004535147392 | Q56: =(1-$V$40)*P56*$V$44 -> 2.721088435e-05 | R56: =Q56 -> 2.721088435e-05 | S56: =Q56 -> 2.721088435e-05 | T56: =(1-$V$40)*P56*(1-$V$44) -> 9.070294785e-06 | U56: =T56 -> 9.070294785e-06 | V56: =V73*1055/'GEMM (2011) LCA Data'!$I$22/1000 -> 4.59946365e-06 | W56: =T56 -> 9.070294785e-06 | X56: =S56+W56 -> 3.628117914e-05 | Y56: =P56*$V$40 -> 0.0004172335601 | Z56: =Y56 -> 0.0004172335601
B57: Air emission (tonne)
B58: CO2 | C58: -- | D58: -- | E58: =3.63*(E56*2*12/41) -> 0.0005461296182 | F58: =F73*1055*'GEMM (2011) LCA Data'!$P$7/1000/1000 -> 0.001543553183 | G58: =E58+F58 -> 0.002089682802 | H58: =3.63*(H56*2*12/41) -> 0.000417533896 | I58: =I73*1055*'GEMM (2011) LCA Data'!$P$7/1000/1000 -> 0.001180096726 | J58: =J73*1055*'GEMM (2011) LCA Data'!$P$7/1000000 -> 0.0003382911425 | K58: =SUM(H58:J58) -> 0.001935921764 | L58: =G58+K58 -> 0.004025604566 | M58: =M73*79.0676204311955*1055/1000000 -> 0 | N58: =N73*1055*'GEMM (2011) LCA Data'!$P$7/1000/1000 -> 0 | P58: =P73*79.0676204311955*1055/1000000 -> 4.428503911e-05 | Q58: =3.63*(Q56*2*12/41) -> 5.781981085e-05 | R58: =R73*1055*'GEMM (2011) LCA Data'!$P$7/1000/1000 -> 0.0001634189946 | S58: =Q58+R58 -> 0.0002212388054 | T58: =3.63*(T56*2*12/41) -> 1.927327028e-05 | U58: =U73*1055*'GEMM (2011) LCA Data'!$P$7/1000/1000 -> 5.447299819e-05 | V58: =V73*1055*'GEMM (2011) LCA Data'!$P$7/1000000 -> 1.561544269e-05 | W58: =SUM(T58:V58) -> 8.936171116e-05 | X58: =S58+W58 -> 0.0003106005166 | Y58: -- | Z58: =Z73*1055*'GEMM (2011) LCA Data'!$P$7/1000/1000 -> 0.002505757917 | AA58: =(Q58+T58+W58+P58-Z58)-(E58+H58+J58) -> -0.003596972742
B59: CH4 | C59: -- | D59: -- | E59: 0 | F59: =F73*1055*'GEMM (2011) LCA Data'!$P$5/1000/1000 -> 7.611016489e-06 | G59: 7.611016489e-06 | H59: 0 | I59: =I73*1055*'GEMM (2011) LCA Data'!$P$5/1000/1000 -> 5.818870212e-06 | J59: =J73*1055*'GEMM (2011) LCA Data'!$P$5/1000000 -> 1.668060091e-06 | K59: =SUM(H59:J59) -> 7.486930303e-06 | L59: =G59+K59 -> 1.509794679e-05 | M59: =M73*0.144574268396226*1055/1000000 -> 0 | N59: =N73*1055*'GEMM (2011) LCA Data'!$P$5/1000/1000 -> 0 | P59: =P73*0.144574268396226*1055/1000000 -> 8.097470361e-08 | Q59: 0 | R59: =R73*1055*'GEMM (2011) LCA Data'!$P$5/1000/1000 -> 8.057932021e-07 | S59: =Q59+R59 -> 8.057932021e-07 | T59: 0 | U59: =U73*1055*'GEMM (2011) LCA Data'!$P$5/1000/1000 -> 2.68597734e-07 | V59: =V73*1055*'GEMM (2011) LCA Data'!$P$5/1000000 -> 7.699727684e-08 | W59: =SUM(T59:V59) -> 3.455950109e-07 | X59: =S59+W59 -> 1.151388213e-06 | Y59: -- | Z59: =Z73*1055*'GEMM (2011) LCA Data'!$P$5/1000/1000 -> 1.235549577e-05 | AA59: =(Q59+T59+W59+P59-Z59)-(E59+H59+J59) -> -1.359698614e-05
B60: N2O | C60: -- | D60: -- | E60: 0 | F60: =F73*1055*'GEMM (2011) LCA Data'!$P$11/1000/1000 -> 2.779013663e-08 | G60: 2.779013663e-08 | H60: 0 | I60: =I73*1055*'GEMM (2011) LCA Data'!$P$11/1000/1000 -> 2.124646537e-08 | J60: =J73*1055*'GEMM (2011) LCA Data'!$P$11/1000000 -> 6.090594851e-09 | K60: =SUM(H60:J60) -> 2.733706022e-08 | L60: 5.512719685e-08 | M60: 0 | N60: =N73*1055*'GEMM (2011) LCA Data'!$P$11/1000/1000 -> 0 | P60: 0 | Q60: 0 | R60: =R73*1055*'GEMM (2011) LCA Data'!$P$11/1000/1000 -> 2.94219612e-09 | S60: 2.94219612e-09 | T60: 0 | U60: =U73*1055*'GEMM (2011) LCA Data'!$P$11/1000/1000 -> 9.8073204e-10 | V60: =V73*1055*'GEMM (2011) LCA Data'!$P$11/1000000 -> 2.811404819e-10 | W60: 1.261872522e-09 | X60: 4.204068642e-09 | Y60: -- | Z60: =Z73*1055*'GEMM (2011) LCA Data'!$P$11/1000/1000 -> 4.511367384e-08 | AA60: -4.994239617e-08
B61: CO | C61: -- | D61: -- | E61: =0.0016*(E56*2*12/41) -> 2.40718289e-07 | F61: =F73*1055*'GEMM (2011) LCA Data'!$P$6/1000/1000 -> 9.694387879e-07 | G61: 1.210157077e-06 | H61: =0.0016*(H56*2*12/41) -> 1.84036979e-07 | I61: =I73*1055*'GEMM (2011) LCA Data'!$P$6/1000/1000 -> 7.411675554e-07 | J61: =J73*1055*'GEMM (2011) LCA Data'!$P$6/1000000 -> 2.124659899e-07 | K61: 1.137670524e-06 | L61: 2.347827601e-06 | M61: =M73*0.0553151275443457*1055/1000000 -> 0 | N61: =N73*1055*'GEMM (2011) LCA Data'!$P$6/1000/1000 -> 0 | P61: =P73*0.0553151275443457*1055/1000000 -> 3.098148867e-08 | Q61: =0.0016*(Q56*2*12/41) -> 2.548531608e-08 | R61: =R73*1055*'GEMM (2011) LCA Data'!$P$6/1000/1000 -> 1.026363806e-07 | S61: 1.281216967e-07 | T61: =0.0016*(T56*2*12/41) -> 8.495105359e-09 | U61: =U73*1055*'GEMM (2011) LCA Data'!$P$6/1000/1000 -> 3.421212686e-08 | V61: =V73*1055*'GEMM (2011) LCA Data'!$P$6/1000000 -> 9.807382081e-09 | W61: =SUM(T61:V61) -> 5.25146143e-08 | X61: 1.80636311e-07 | Y61: -- | Z61: =Z73*1055*'GEMM (2011) LCA Data'!$P$6/1000/1000 -> 1.573757836e-06 | AA61: -2.093502569e-06
B62: NMVOC | C62: -- | D62: -- | E62: =0.00016*(E56*2*12/41) -> 2.40718289e-08 | F62: =F73*1055*'GEMM (2011) LCA Data'!$P$8/1000/1000 -> 4.75215557e-10 | G62: 2.454704446e-08 | H62: =0.00016*(H56*2*12/41) -> 1.84036979e-08 | I62: =I73*1055*'GEMM (2011) LCA Data'!$P$8/1000/1000 -> 3.633177845e-10 | J62: =J73*1055*'GEMM (2011) LCA Data'!$P$8/1000000 -> 1.041500969e-10 | K62: =SUM(H62:J62) -> 1.887116578e-08 | L62: 4.341821023e-08 | M62: =M73*0.401850859732704*1055/1000000 -> 0 | N62: =N73*1055*'GEMM (2011) LCA Data'!$P$8/1000/1000 -> 0 | P62: =P73*0.401850859732704*1055/1000000 -> 2.250729305e-07 | Q62: =0.00016*(Q56*2*12/41) -> 2.548531608e-09 | R62: =R73*1055*'GEMM (2011) LCA Data'!$P$8/1000/1000 -> 5.031200049e-11 | S62: =Q62+R62 -> 2.598843608e-09 | T62: =0.00016*(T56*2*12/41) -> 8.495105359e-10 | U62: =U73*1055*'GEMM (2011) LCA Data'!$P$8/1000/1000 -> 1.677066683e-11 | V62: =V73*1055*'GEMM (2011) LCA Data'!$P$8/1000000 -> 4.807544939e-12 | W62: 8.710887477e-10 | X62: =S62+W62 -> 3.469932356e-09 | Y62: -- | Z62: =Z73*1055*'GEMM (2011) LCA Data'!$P$8/1000/1000 -> 7.714506742e-10 | AA62: 1.859909338e-07
B63: NOx | C63: -- | D63: -- | E63: 0 | F63: =F73*1055*'GEMM (2011) LCA Data'!$P$9/1000/1000 -> 1.015042717e-06 | G63: 1.015042717e-06 | H63: 0 | I63: =I73*1055*'GEMM (2011) LCA Data'!$P$9/1000/1000 -> 7.760332455e-07 | J63: =J73*1055*'GEMM (2011) LCA Data'!$P$9/1000000 -> 2.22460725e-07 | K63: 9.984939705e-07 | L63: 2.013536687e-06 | M63: =M73*0.260265861210973*1055/1000000 -> 0 | N63: =N73*1055*'GEMM (2011) LCA Data'!$P$9/1000/1000 -> 0 | P63: =P73*0.260265861210973*1055/1000000 -> 1.457724892e-07 | Q63: 0 | R63: =R73*1055*'GEMM (2011) LCA Data'!$P$9/1000/1000 -> 1.074645577e-07 | S63: 1.074645577e-07 | T63: 0 | U63: =U73*1055*'GEMM (2011) LCA Data'!$P$9/1000/1000 -> 3.582151924e-08 | V63: =V73*1055*'GEMM (2011) LCA Data'!$P$9/1000000 -> 1.026873679e-08 | W63: =SUM(T63:V63) -> 4.609025604e-08 | X63: 1.535548138e-07 | Y63: -- | Z63: =Z73*1055*'GEMM (2011) LCA Data'!$P$9/1000/1000 -> 1.647789885e-06 | AA63: -1.678387865e-06
B64: SOx | C64: -- | D64: -- | E64: 0 | F64: =F73*1055*'GEMM (2011) LCA Data'!$P$10/1000/1000 -> 1.308635139e-05 | G64: 1.308635139e-05 | H64: 0 | I64: =I73*1055*'GEMM (2011) LCA Data'!$P$10/1000/1000 -> 1.000494223e-05 | J64: =J73*1055*'GEMM (2011) LCA Data'!$P$10/1000000 -> 2.868055866e-06 | K64: =SUM(H64:J64) -> 1.28729981e-05 | L64: 2.595934949e-05 | M64: =M73*0.346184729976483*1055/1000000 -> 0 | N64: =N73*1055*'GEMM (2011) LCA Data'!$P$10/1000/1000 -> 0 | P64: =P73*0.346184729976483*1055/1000000 -> 1.938948488e-07 | Q64: 0 | R64: =R73*1055*'GEMM (2011) LCA Data'!$P$10/1000/1000 -> 1.385477617e-06 | S64: 1.385477617e-06 | T64: 0 | U64: =U73*1055*'GEMM (2011) LCA Data'!$P$10/1000/1000 -> 4.618258724e-07 | V64: =V73*1055*'GEMM (2011) LCA Data'!$P$10/1000000 -> 1.323888107e-07 | W64: 5.942146831e-07 | X64: 1.9796923e-06 | Y64: -- | Z64: =Z73*1055*'GEMM (2011) LCA Data'!$P$10/1000/1000 -> 2.124399013e-05 | AA64: -2.332393647e-05
B65: Water emission (tonne)
B66: TOC | C66: -- | D66: -- | E66: 0 | F66: =F68/2.86 -> 2.386660826e-07 | G66: =E66+F66 -> 2.386660826e-07 | H66: 0 | I66: =I68/2.86 -> 1.824680003e-07 | J66: =J68/2.86 -> 5.230699053e-08 | K66: 2.347749908e-07 | L66: =G66+K66 -> 4.734410734e-07 | M66: =M68/2.86 -> 0 | N66: =N68/2.86 -> 0 | P66: =P68/2.86 -> 1.217561622e-09 | Q66: 0 | R66: =R68/2.86 -> 2.526804497e-08 | S66: =Q66+R66 -> 2.526804497e-08 | T66: 0 | U66: =U68/2.86 -> 8.422681658e-09 | V66: =V68/2.86 -> 2.414478863e-09 | W66: 1.083716052e-08 | X66: =S66+W66 -> 3.610520549e-08 | Y66: -- | Z66: =Z68/2.86 -> 3.874433563e-07 | AA66: -4.276956246e-07
B67: BOD | C67: -- | D67: -- | E67: 0 | F67: =F73*1055*'GEMM (2011) LCA Data'!$P$13/1000/1000 -> 4.125759719e-07 | G67: =E67+F67 -> 4.125759719e-07 | H67: 0 | I67: =I73*1055*'GEMM (2011) LCA Data'!$P$13/1000/1000 -> 3.154277798e-07 | J67: =J73*1055*'GEMM (2011) LCA Data'!$P$13/1000000 -> 9.04217609e-08 | K67: 4.058495407e-07 | L67: =G67+K67 -> 8.184255126e-07 | M67: =M73*0.0193411218363402*1055/1000000 -> 0 | N67: =N73*1055*'GEMM (2011) LCA Data'!$P$13/1000/1000 -> 0 | P67: =P73*0.0193411218363402*1055/1000000 -> 1.083278253e-08 | Q67: 0 | R67: =R73*1055*'GEMM (2011) LCA Data'!$P$13/1000/1000 -> 4.36802251e-08 | S67: =Q67+R67 -> 4.36802251e-08 | T67: 0 | U67: =U73*1055*'GEMM (2011) LCA Data'!$P$13/1000/1000 -> 1.456007503e-08 | V67: =V73*1055*'GEMM (2011) LCA Data'!$P$13/1000000 -> 4.173848049e-09 | W67: 1.873392308e-08 | X67: =S67+W67 -> 6.241414818e-08 | Y67: -- | Z67: =Z73*1055*'GEMM (2011) LCA Data'!$P$13/1000/1000 -> 6.697634515e-07 | AA67: -7.306185068e-07
B68: COD | C68: -- | D68: -- | E68: 0 | F68: =F73*1055*'GEMM (2011) LCA Data'!$P$14/1000/1000 -> 6.825849963e-07 | G68: =E68+F68 -> 6.825849963e-07 | H68: 0 | I68: =I73*1055*'GEMM (2011) LCA Data'!$P$14/1000/1000 -> 5.218584808e-07 | J68: =J73*1055*'GEMM (2011) LCA Data'!$P$14/1000000 -> 1.495979929e-07 | K68: 6.714564737e-07 | L68: =G68+K68 -> 1.35404147e-06 | M68: =M73*0.00621725413258714*1055/1000000 -> 0 | N68: =N73*1055*'GEMM (2011) LCA Data'!$P$14/1000/1000 -> 0 | P68: =P73*0.00621725413258714*1055/1000000 -> 3.482226238e-09 | Q68: 0 | R68: =R73*1055*'GEMM (2011) LCA Data'!$P$14/1000/1000 -> 7.226660862e-08 | S68: =Q68+R68 -> 7.226660862e-08 | T68: 0 | U68: =U73*1055*'GEMM (2011) LCA Data'!$P$14/1000/1000 -> 2.408886954e-08 | V68: =V73*1055*'GEMM (2011) LCA Data'!$P$14/1000000 -> 6.905409547e-09 | W68: 3.099427909e-08 | X68: =S68+W68 -> 1.032608877e-07 | Y68: -- | Z68: =Z73*1055*'GEMM (2011) LCA Data'!$P$14/1000/1000 -> 1.108087999e-06 | AA68: -1.223209486e-06
B69: TDS | C69: -- | D69: -- | E69: 0 | F69: =F73*1055*'GEMM (2011) LCA Data'!$P$15/1000/1000 -> 0.0001055494841 | G69: =E69+F69 -> 0.0001055494841 | H69: 0 | I69: =I73*1055*'GEMM (2011) LCA Data'!$P$15/1000/1000 -> 8.069602136e-05 | J69: =J73*1055*'GEMM (2011) LCA Data'!$P$15/1000000 -> 2.313263706e-05 | K69: 0.0001038286584 | L69: =G69+K69 -> 0.0002093781426 | M69: =M73*0.359631325*1055/1000000 -> 0 | N69: =N73*1055*'GEMM (2011) LCA Data'!$P$15/1000/1000 -> 0 | P69: =P73*0.359631325*1055/1000000 -> 2.014261616e-07 | Q69: 0 | R69: =R73*1055*'GEMM (2011) LCA Data'!$P$15/1000/1000 -> 1.117473033e-05 | S69: =Q69+R69 -> 1.117473033e-05 | T69: 0 | U69: =U73*1055*'GEMM (2011) LCA Data'!$P$15/1000/1000 -> 3.72491011e-06 | V69: =V73*1055*'GEMM (2011) LCA Data'!$P$15/1000000 -> 1.067797299e-06 | W69: 4.792707409e-06 | X69: =S69+W69 -> 1.596743774e-05 | Y69: -- | Z69: =Z73*1055*'GEMM (2011) LCA Data'!$P$15/1000/1000 -> 0.0001713458651 | AA69: -0.0001894843685
B70: Solid waste (tonne)
B71: Solid waste | C71: -- | D71: -- | E71: 0 | F71: =F73*1055*'GEMM (2011) LCA Data'!$P$17/1000/1000 -> 1.779073349e-05 | G71: =E71+F71 -> 1.779073349e-05 | H71: 0 | I71: =I73*1055*'GEMM (2011) LCA Data'!$P$17/1000/1000 -> 1.36015957e-05 | J71: =J73*1055*'GEMM (2011) LCA Data'!$P$17/1000000 -> 3.899086615e-06 | K71: =SUM(H71:J71) -> 1.750068232e-05 | L71: =G71+K71 -> 3.529141581e-05 | M71: =M73*0.169716014150943*1055/1000000 -> 0 | N71: =N73*1055*'GEMM (2011) LCA Data'!$P$17/1000/1000 -> 0 | P71: =P73*0.169716014150943*1055/1000000 -> 9.505636167e-08 | Q71: 0 | R71: =R73*1055*'GEMM (2011) LCA Data'!$P$17/1000/1000 -> 1.883539751e-06 | S71: =Q71+R71 -> 1.883539751e-06 | T71: 0 | U71: =U73*1055*'GEMM (2011) LCA Data'!$P$17/1000/1000 -> 6.278465838e-07 | V71: =V73*1055*'GEMM (2011) LCA Data'!$P$17/1000000 -> 1.79980957e-07 | W71: =SUM(T71:V71) -> 8.078275409e-07 | X71: =S71+W71 -> 2.691367292e-06 | Y71: -- | Z71: =Z73*1055*'GEMM (2011) LCA Data'!$P$17/1000/1000 -> 2.888094286e-05
B72: Energy / Carbon
B73: MMBTU | C73: -- | D73: -- | E73: =ABS('GEMM (2011) LCA Data'!$D$4*'GEMM (2011) Models'!E56*1000) -> 0.006263147295 | F73: =88.5*1000/1055*F56 -> 0.02156018739 | G73: =E73+F73 -> 0.02782333469 | H73: -- | I73: =88.5*1000/1055*I56 -> 0.01648346609 | J73: =43.34*(H56*1000*2*12/41)/1055 -> 0.004725214851 | K73: =SUM(H73:J73) -> 0.02120868094 | L73: =G73+K73 -> 0.04903201563 | M73: =(($V$43*VLOOKUP($B50,'GEMM (2011) LCA Data'!$B$50:$G$67,4,FALSE))-(VLOOKUP('GEMM (2011) Models'!$B50,'GEMM (2011) LCA Data'!$B$50:$G$67,5,FALSE)*VLOOKUP('GEMM (2011) Models'!$B50,'GEMM (2011) LCA Data'!$B$50:$G$67,6,FALSE)))*M56*1000/1055 -> 0 | N73: =88.5*1000/1055*N56 -> 0 | P73: =(($V$42*VLOOKUP($B50,'GEMM (2011) LCA Data'!$B$50:$G$67,4,FALSE))-(VLOOKUP('GEMM (2011) Models'!$B50,'GEMM (2011) LCA Data'!$B$50:$G$67,5,FALSE)*VLOOKUP('GEMM (2011) Models'!$B50,'GEMM (2011) LCA Data'!$B$50:$G$67,6,FALSE)))*P56*1000/1055 -> 0.0005308916616 | Q73: =ABS('GEMM (2011) LCA Data'!$D$4*'GEMM (2011) Models'!Q56*1000) -> 0.0006630916542 | R73: =88.5*1000/1055*R56 -> 0.002282619209 | S73: =Q73+R73 -> 0.002945710863 | T73: -- | U73: =88.5*1000/1055*U56 -> 0.0007608730696 | V73: =43.34*(T56*1000*2*12/41)/1055 -> 0.0002181148497 | W73: =SUM(T73:V73) -> 0.0009789879193 | X73: =S73+W73 -> 0.003924698782 | Y73: -- | Z73: =88.5*1000/1055*Z56 -> 0.0350001612
B74: MTCO2e | C74: =IF(C58="--","--",(1*C58)+(21*C59)+(310*C60)) -> -- | D74: -- | E74: =IF(E58="--","--",(1*E58)+(21*E59)+(310*E60)) -> 0.0005461296182 | F74: =IF(F58="--","--",(1*F58)+(21*F59)+(310*F60)) -> 0.001711999472 | G74: =IF(G58="--","--",(1*G58)+(21*G59)+(310*G60)) -> 0.00225812909 | H74: =IF(H58="--","--",(1*H58)+(21*H59)+(310*H60)) -> 0.000417533896 | I74: 0.001308879405 | J74: =IF(J58="--","--",(1*J58)+(21*J59)+(310*J60)) -> 0.0003752084888 | K74: 0.002101621789 | L74: 0.00435975088 | M74: 0 | N74: 0 | P74: 4.598550788e-05 | Q74: =IF(Q58="--","--",(1*Q58)+(21*Q59)+(310*Q60)) -> 5.781981085e-05 | R74: 0.0001812527326 | S74: 0.0002390725435 | T74: 1.927327028e-05 | U74: 6.041757753e-05 | V74: 1.731953905e-05 | W74: 9.701038687e-05 | X74: 0.0003360829303 | Y74: -- | Z74: 0.002779208567 | AA74: =(Q74+T74+W74+P74-Z74)-(E74+H74+J74) -> -0.003897991594
Y75: Cost per Pound | AA75: Cost Savings
U76: Solent Recovered (tonne): | W76: 16295 | X76: X | Y76: 0.65 | AA76: =W76*2204.6*Y76 -> 23350572.05
B77: n-Butanol
B79: Emission Type a, b | C79: 2008 Land | E79: Offsite Reported Energy Recovery (ER) Cement Kiln (Adapted GSK Model) | G79: ER EOL | H79: Offsite Reported Thermal Treatment (I) Incineration (GSK Model) | K79: I EOL | L79: Baseline EOL ER&I | M79: GSK Solvent Recovery (Distillation) Model & Adapted Zurich | P79: 92% recovery, 8% of Mass (worst case scenario of steam required for primary / secondary distillation) (75% recovery rate*2=92%, doubled steam) | X79: New EOL ER&I | Y79: Recovered Solvent (92% j of Distilled Mass) | Z79: New Beginning of Life (BOL) Mnfctring Emissions (ME) | AA79: New EOL/BOL - Baseline EOL/BOL
G80: Cement kiln | K80: Incinerator | M80: Offsite Reported Remanufacturing Mass to steamf | N80: Baseline Beginning of Life (BOL) Mnfctring Emissions (ME) | P80: STEAM New Solvent Mass going to Steamf | Q80: Energy Recovery (ER) Cement Kiln | S80: NEW ER EOL | T80: Thermal Treatment (I) Incineration | W80: INEW EOL
C81: Underground Injection | D81: Landfill | E81: Solvent used as Fuel e | F81: Manufacturing Emissions of Solvents | G81: Offsite ER EOL (end of life) | H81: Combustion of Solvents c | I81: Manufacturing Emissions of Solvents | J81: Natural Gas Fuel d | K81: Offsite I EOL (end of life) | Q81: Solvent used as Fuel e | R81: Mnfcting Emissions of Solvents | S81: Cement kiln | T81: Solvents Combusted c | U81: Mnfcting Emissions of Solvents | V81: Natural Gas Fuel d | W81: Incinerator | AA81: Process Change Benefits
B82: Solvent Mass (tonne)
B83: Solvent Mass | C83: =SUM('Solvent Mass Before (docket)'!C18,'Solvent Mass Before (docket)'!J18)/2.205/1000 -> 0 | D83: =SUM('Solvent Mass Before (docket)'!D18,'Solvent Mass Before (docket)'!K18)/2.205/1000 -> 0 | E83: =SUM('Solvent Mass Before (docket)'!G18)/2.205/1000+(M83*(1-$V$41)*$V$45) -> 0.0004151730967 | F83: =E83 -> 0.0004151730967 | G83: =E83 -> 0.0004151730967 | H83: =SUM('Solvent Mass Before (docket)'!H18)/2.205/1000+(M83*(1-$V$41)*(1-$V$45)) -> 3.834164249e-05 | I83: =H83 -> 3.834164249e-05 | J83: =J100*1055/'GEMM (2011) LCA Data'!$I$22/1000 -> 2.150972927e-05 | K83: =H83 -> 3.834164249e-05 | L83: =G83+K83 -> 0.0004535147392 | M83: =SUM('Solvent Mass Before (docket)'!F18)/2.205/1000 -> 0 | N83: =M83*$V$41 -> 0 | P83: ='Solvent Mass After (docket)'!$O18/2.205/1000 -> 0.0004535147392 | Q83: =(1-$V$40)*P83*$V$44 -> 2.721088435e-05 | R83: =Q83 -> 2.721088435e-05 | S83: =Q83 -> 2.721088435e-05 | T83: =(1-$V$40)*P83*(1-$V$44) -> 9.070294785e-06 | U83: =T83 -> 9.070294785e-06 | V83: =V100*1055/'GEMM (2011) LCA Data'!$I$22/1000 -> 5.088451421e-06 | W83: =T83 -> 9.070294785e-06 | X83: =S83+W83 -> 3.628117914e-05 | Y83: =P83*$V$40 -> 0.0004172335601 | Z83: =Y83 -> 0.0004172335601
B84: Air emission (tonne)
B85: CO2 | C85: -- | D85: -- | E85: =3.63*(E83*4*12/74.12) -> 0.0009759816564 | F85: =F100*1055*'GEMM (2011) LCA Data'!$P$7/1000/1000 -> 0.002741313158 | G85: =E85+F85 -> 0.003717294814 | H85: =3.63*(H83*4*12/74.12) -> 9.013286276e-05 | I85: =I100*1055*'GEMM (2011) LCA Data'!$P$7/1000/1000 -> 0.0002531629575 | J85: =J100*1055*'GEMM (2011) LCA Data'!$P$7/1000000 -> 7.30267636e-05 | K85: =SUM(H85:J85) -> 0.0004163225839 | L85: =G85+K85 -> 0.004133617398 | M85: =M100*79.0676204311955*1055/1000000 -> 0 | N85: =N100*1055*'GEMM (2011) LCA Data'!$P$7/1000/1000 -> 0 | P85: =P100*79.0676204311955*1055/1000000 -> 6.230385057e-05 | Q85: =3.63*(Q83*4*12/74.12) -> 6.396687115e-05 | R85: =R100*1055*'GEMM (2011) LCA Data'!$P$7/1000/1000 -> 0.0001796685669 | S85: =Q85+R85 -> 0.0002436354381 | T85: =3.63*(T83*4*12/74.12) -> 2.132229038e-05 | U85: =U100*1055*'GEMM (2011) LCA Data'!$P$7/1000/1000 -> 5.98895223e-05 | V85: =V100*1055*'GEMM (2011) LCA Data'!$P$7/1000000 -> 1.727558419e-05 | W85: =SUM(T85:V85) -> 9.848739688e-05 | X85: =S85+W85 -> 0.0003421228349 | Y85: -- | Z85: =Z100*1055*'GEMM (2011) LCA Data'!$P$7/1000/1000 -> 0.002754918026 | AA85: =(Q85+T85+W85+P85)-(E85+H85+J85) -> -0.0008930608738
B86: CH4 | C86: -- | D86: -- | E86: 0 | F86: =F100*1055*'GEMM (2011) LCA Data'!$P$5/1000/1000 -> 1.351698138e-05 | G86: 1.351698138e-05 | H86: 0 | I86: =I100*1055*'GEMM (2011) LCA Data'!$P$5/1000/1000 -> 1.248306482e-06 | J86: =J100*1055*'GEMM (2011) LCA Data'!$P$5/1000000 -> 3.600834152e-07 | K86: =SUM(H86:J86) -> 1.608389897e-06 | L86: 1.512537128e-05 | M86: =M100*0.144574268396226*1055/1000000 -> 0 | N86: =N100*1055*'GEMM (2011) LCA Data'!$P$5/1000/1000 -> 0 | P86: =P100*0.144574268396226*1055/1000000 -> 1.139219008e-07 | Q86: 0 | R86: =R100*1055*'GEMM (2011) LCA Data'!$P$5/1000/1000 -> 8.859172719e-07 | S86: 8.859172719e-07 | T86: 0 | U86: =U100*1055*'GEMM (2011) LCA Data'!$P$5/1000/1000 -> 2.953057573e-07 | V86: =V100*1055*'GEMM (2011) LCA Data'!$P$5/1000000 -> 8.51831719e-08 | W86: 3.804889292e-07 | X86: 1.266406201e-06 | Y86: -- | Z86: =Z100*1055*'GEMM (2011) LCA Data'!$P$5/1000/1000 -> 1.358406484e-05 | AA86: 1.343274148e-07
B87: N2O | C87: -- | D87: -- | E87: 0 | F87: =F100*1055*'GEMM (2011) LCA Data'!$P$11/1000/1000 -> 4.935461118e-08 | G87: 4.935461118e-08 | H87: 0 | I87: =I100*1055*'GEMM (2011) LCA Data'!$P$11/1000/1000 -> 4.557946726e-09 | J87: =J100*1055*'GEMM (2011) LCA Data'!$P$11/1000000 -> 1.314774094e-09 | K87: 5.87272082e-09 | L87: 5.5227332e-08 | M87: 0 | N87: =N100*1055*'GEMM (2011) LCA Data'!$P$11/1000/1000 -> 0 | P87: 0 | Q87: 0 | R87: =R100*1055*'GEMM (2011) LCA Data'!$P$11/1000/1000 -> 3.234753474e-09 | S87: 3.234753474e-09 | T87: 0 | U87: =U100*1055*'GEMM (2011) LCA Data'!$P$11/1000/1000 -> 1.078251158e-09 | V87: =V100*1055*'GEMM (2011) LCA Data'!$P$11/1000000 -> 3.110296751e-10 | W87: 1.389280833e-09 | X87: 4.624034307e-09 | Y87: -- | Z87: =Z100*1055*'GEMM (2011) LCA Data'!$P$11/1000/1000 -> 4.959955327e-08 | AA87: 7.450673923e-11
B88: CO | C88: -- | D88: -- | E88: =0.0016*(E83*4*12/74.12) -> 4.301847522e-07 | F88: =F100*1055*'GEMM (2011) LCA Data'!$P$6/1000/1000 -> 1.721699863e-06 | G88: 2.151884615e-06 | H88: =0.0016*(H83*4*12/74.12) -> 3.972798359e-08 | I88: =I100*1055*'GEMM (2011) LCA Data'!$P$6/1000/1000 -> 1.590006702e-07 | J88: =J100*1055*'GEMM (2011) LCA Data'!$P$6/1000000 -> 4.586494197e-08 | K88: =SUM(H88:J88) -> 2.445935958e-07 | L88: 2.396478211e-06 | M88: =M100*0.0553151275443457*1055/1000000 -> 0 | N88: =N100*1055*'GEMM (2011) LCA Data'!$P$6/1000/1000 -> 0 | P88: =P100*0.0553151275443457*1055/1000000 -> 4.358731706e-08 | Q88: =0.0016*(Q83*4*12/74.12) -> 2.819476414e-08 | R88: =R100*1055*'GEMM (2011) LCA Data'!$P$6/1000/1000 -> 1.12842032e-07 | S88: 1.410367961e-07 | T88: =0.0016*(T83*4*12/74.12) -> 9.398254715e-09 | U88: =U100*1055*'GEMM (2011) LCA Data'!$P$6/1000/1000 -> 3.761401067e-08 | V88: =V100*1055*'GEMM (2011) LCA Data'!$P$6/1000000 -> 1.085004494e-08 | W88: 5.786231032e-08 | X88: 1.988991065e-07 | Y88: -- | Z88: =Z100*1055*'GEMM (2011) LCA Data'!$P$6/1000/1000 -> 1.730244491e-06 | AA88: -3.767350315e-07
B89: NMVOC | C89: -- | D89: -- | E89: =0.00016*(E83*4*12/74.12) -> 4.301847522e-08 | F89: =F100*1055*'GEMM (2011) LCA Data'!$P$8/1000/1000 -> 8.439713468e-10 | G89: 4.386244656e-08 | H89: =0.00016*(H83*4*12/74.12) -> 3.972798359e-09 | I89: =I100*1055*'GEMM (2011) LCA Data'!$P$8/1000/1000 -> 7.794158125e-11 | J89: =J100*1055*'GEMM (2011) LCA Data'!$P$8/1000000 -> 2.248283669e-11 | K89: 4.073222777e-09 | L89: 4.793566934e-08 | M89: =M100*0.401850859732704*1055/1000000 -> 0 | N89: =N100*1055*'GEMM (2011) LCA Data'!$P$8/1000/1000 -> 0 | P89: =P100*0.401850859732704*1055/1000000 -> 3.166511877e-07 | Q89: =0.00016*(Q83*4*12/74.12) -> 2.819476414e-09 | R89: =R100*1055*'GEMM (2011) LCA Data'!$P$8/1000/1000 -> 5.531477568e-11 | S89: 2.87479119e-09 | T89: =0.00016*(T83*4*12/74.12) -> 9.398254715e-10 | U89: =U100*1055*'GEMM (2011) LCA Data'!$P$8/1000/1000 -> 1.843825856e-11 | V89: =V100*1055*'GEMM (2011) LCA Data'!$P$8/1000000 -> 5.318654682e-12 | W89: 9.635823847e-10 | X89: 3.838373575e-09 | Y89: -- | Z89: =Z100*1055*'GEMM (2011) LCA Data'!$P$8/1000/1000 -> 8.481598938e-10 | AA89: 2.743603155e-07
B90: NOx | C90: -- | D90: -- | E90: 0 | F90: =F100*1055*'GEMM (2011) LCA Data'!$P$9/1000/1000 -> 1.802691339e-06 | G90: 1.802691339e-06 | H90: 0 | I90: =I100*1055*'GEMM (2011) LCA Data'!$P$9/1000/1000 -> 1.664803124e-07 | J90: =J100*1055*'GEMM (2011) LCA Data'!$P$9/1000000 -> 4.802250114e-08 | K90: 2.145028135e-07 | L90: 2.017194152e-06 | M90: =M100*0.260265861210973*1055/1000000 -> 0 | N90: =N100*1055*'GEMM (2011) LCA Data'!$P$9/1000/1000 -> 0 | P90: =P100*0.260265861210973*1055/1000000 -> 2.050847773e-07 | Q90: 0 | R90: =R100*1055*'GEMM (2011) LCA Data'!$P$9/1000/1000 -> 1.181502991e-07 | S90: 1.181502991e-07 | T90: 0 | U90: =U100*1055*'GEMM (2011) LCA Data'!$P$9/1000/1000 -> 3.938343302e-08 | V90: =V100*1055*'GEMM (2011) LCA Data'!$P$9/1000000 -> 1.136044815e-08 | W90: 5.074388117e-08 | X90: 1.688941802e-07 | Y90: -- | Z90: =Z100*1055*'GEMM (2011) LCA Data'!$P$9/1000/1000 -> 1.811637919e-06 | AA90: 2.078061573e-07
B91: SOx | C91: -- | D91: -- | E91: 0 | F91: =F100*1055*'GEMM (2011) LCA Data'!$P$10/1000/1000 -> 2.324104387e-05 | G91: 2.324104387e-05 | H91: 0 | I91: =I100*1055*'GEMM (2011) LCA Data'!$P$10/1000/1000 -> 2.146333185e-06 | J91: =J100*1055*'GEMM (2011) LCA Data'!$P$10/1000000 -> 6.191259878e-07 | K91: 2.765459173e-06 | L91: 2.600650304e-05 | M91: =M100*0.346184729976483*1055/1000000 -> 0 | N91: =N100*1055*'GEMM (2011) LCA Data'!$P$10/1000/1000 -> 0 | P91: =P100*0.346184729976483*1055/1000000 -> 2.727872872e-07 | Q91: 0 | R91: =R100*1055*'GEMM (2011) LCA Data'!$P$10/1000/1000 -> 1.523242623e-06 | S91: 1.523242623e-06 | T91: 0 | U91: =U100*1055*'GEMM (2011) LCA Data'!$P$10/1000/1000 -> 5.077475411e-07 | V91: =V100*1055*'GEMM (2011) LCA Data'!$P$10/1000000 -> 1.46463606e-07 | W91: 6.542111471e-07 | X91: 2.17745377e-06 | Y91: -- | Z91: =Z100*1055*'GEMM (2011) LCA Data'!$P$10/1000/1000 -> 2.335638689e-05 | AA91: 3.078724465e-07
B92: Water emission (tonne)
B93: TOC | C93: -- | D93: -- | E93: 0 | F93: =F95/2.86 -> 4.238651959e-07 | G93: =E93+F93 -> 4.238651959e-07 | H93: 0 | I93: =I95/2.86 -> 3.914436637e-08 | J93: =J95/2.86 -> 1.129148758e-08 | K93: 5.043585395e-08 | L93: =G93+K93 -> 4.743010499e-07 | M93: =M95/2.86 -> 0 | N93: =N95/2.86 -> 0 | P93: =P95/2.86 -> 1.712966249e-09 | Q93: 0 | R93: =R95/2.86 -> 2.778057374e-08 | S93: =Q93+R93 -> 2.778057374e-08 | T93: 0 | U93: =U95/2.86 -> 9.260191246e-09 | V93: =V95/2.86 -> 2.671171974e-09 | W93: =SUM(T93:V93) -> 1.193136322e-08 | X93: =S93+W93 -> 3.971193696e-08 | Y93: -- | Z93: =Z95/2.86 -> 4.259687973e-07 | AA93: =(Q93+T93+W93+P93)-(E93+H93+J93) -> 2.352841893e-09
B94: BOD | C94: -- | D94: -- | E94: 0 | F94: =F100*1055*'GEMM (2011) LCA Data'!$P$13/1000/1000 -> 7.327249572e-07 | G94: =E94+F94 -> 7.327249572e-07 | H94: 0 | I94: =I100*1055*'GEMM (2011) LCA Data'!$P$13/1000/1000 -> 6.766786811e-08 | J94: =J100*1055*'GEMM (2011) LCA Data'!$P$13/1000000 -> 1.951930668e-08 | K94: 8.718717479e-08 | L94: =G94+K94 -> 8.19912132e-07 | M94: =M100*0.0193411218363402*1055/1000000 -> 0 | N94: =N100*1055*'GEMM (2011) LCA Data'!$P$13/1000/1000 -> 0 | P94: =P100*0.0193411218363402*1055/1000000 -> 1.524045315e-08 | Q94: 0 | R94: =R100*1055*'GEMM (2011) LCA Data'!$P$13/1000/1000 -> 4.802356952e-08 | S94: =Q94+R94 -> 4.802356952e-08 | T94: 0 | U94: =U100*1055*'GEMM (2011) LCA Data'!$P$13/1000/1000 -> 1.600785651e-08 | V94: =V100*1055*'GEMM (2011) LCA Data'!$P$13/1000000 -> 4.617586887e-09 | W94: =SUM(T94:V94) -> 2.062544339e-08 | X94: =S94+W94 -> 6.864901291e-08 | Y94: -- | Z94: =Z100*1055*'GEMM (2011) LCA Data'!$P$13/1000/1000 -> 7.363613993e-07 | AA94: =(Q94+T94+W94+P94)-(E94+H94+J94) -> 1.634658986e-08
B95: COD | C95: -- | D95: -- | E95: 0 | F95: =F100*1055*'GEMM (2011) LCA Data'!$P$14/1000/1000 -> 1.21225446e-06 | G95: =E95+F95 -> 1.21225446e-06 | H95: 0 | I95: =I100*1055*'GEMM (2011) LCA Data'!$P$14/1000/1000 -> 1.119528878e-07 | J95: =J100*1055*'GEMM (2011) LCA Data'!$P$14/1000000 -> 3.229365447e-08 | K95: 1.442465423e-07 | L95: =G95+K95 -> 1.356501003e-06 | M95: =M100*0.00621725413258714*1055/1000000 -> 0 | N95: =N100*1055*'GEMM (2011) LCA Data'!$P$14/1000/1000 -> 0 | P95: =P100*0.00621725413258714*1055/1000000 -> 4.899083472e-09 | Q95: 0 | R95: =R100*1055*'GEMM (2011) LCA Data'!$P$14/1000/1000 -> 7.945244089e-08 | S95: =Q95+R95 -> 7.945244089e-08 | T95: 0 | U95: =U100*1055*'GEMM (2011) LCA Data'!$P$14/1000/1000 -> 2.648414696e-08 | V95: =V100*1055*'GEMM (2011) LCA Data'!$P$14/1000000 -> 7.639551846e-09 | W95: =SUM(T95:V95) -> 3.412369881e-08 | X95: =S95+W95 -> 1.135761397e-07 | Y95: -- | Z95: =Z100*1055*'GEMM (2011) LCA Data'!$P$14/1000/1000 -> 1.21827076e-06 | AA95: =(Q95+T95+W95+P95)-(E95+H95+J95) -> 6.729127814e-09
B96: TDS | C96: -- | D96: -- | E96: 0 | F96: =F100*1055*'GEMM (2011) LCA Data'!$P$15/1000/1000 -> 0.0001874533335 | G96: =E96+F96 -> 0.0001874533335 | H96: 0 | I96: =I100*1055*'GEMM (2011) LCA Data'!$P$15/1000/1000 -> 1.731149911e-05 | J96: =J100*1055*'GEMM (2011) LCA Data'!$P$15/1000000 -> 4.993632425e-06 | K96: 2.230513154e-05 | L96: =G96+K96 -> 0.000209758465 | M96: =M100*0.359631325*1055/1000000 -> 0 | N96: =N100*1055*'GEMM (2011) LCA Data'!$P$15/1000/1000 -> 0 | P96: =P100*0.359631325*1055/1000000 -> 2.833829602e-07 | Q96: 0 | R96: =R100*1055*'GEMM (2011) LCA Data'!$P$15/1000/1000 -> 1.228588996e-05 | S96: =Q96+R96 -> 1.228588996e-05 | T96: 0 | U96: =U100*1055*'GEMM (2011) LCA Data'!$P$15/1000/1000 -> 4.095296652e-06 | V96: =V100*1055*'GEMM (2011) LCA Data'!$P$15/1000000 -> 1.181319192e-06 | W96: =SUM(T96:V96) -> 5.276615844e-06 | X96: =S96+W96 -> 1.75625058e-05 | Y96: -- | Z96: =Z100*1055*'GEMM (2011) LCA Data'!$P$15/1000/1000 -> 0.000188383646 | AA96: =(Q96+T96+W96+P96)-(E96+H96+J96) -> 5.663663796e-07
B97: Solid waste (tonne)
B98: Solid waste | C98: -- | D98: -- | E98: 0 | F98: =F100*1055*'GEMM (2011) LCA Data'!$P$17/1000/1000 -> 3.159591281e-05 | G98: =E98+F98 -> 3.159591281e-05 | H98: 0 | I98: =I100*1055*'GEMM (2011) LCA Data'!$P$17/1000/1000 -> 2.917913522e-06 | J98: =J100*1055*'GEMM (2011) LCA Data'!$P$17/1000000 -> 8.416941527e-07 | K98: 3.759607675e-06 | L98: =G98+K98 -> 3.535552048e-05 | M98: =M100*0.169716014150943*1055/1000000 -> 0 | N98: =N100*1055*'GEMM (2011) LCA Data'!$P$17/1000/1000 -> 0 | P98: =P100*0.169716014150943*1055/1000000 -> 1.337331404e-07 | Q98: 0 | R98: =R100*1055*'GEMM (2011) LCA Data'!$P$17/1000/1000 -> 2.07082958e-06 | S98: =Q98+R98 -> 2.07082958e-06 | T98: 0 | U98: =U100*1055*'GEMM (2011) LCA Data'!$P$17/1000/1000 -> 6.902765266e-07 | V98: =V100*1055*'GEMM (2011) LCA Data'!$P$17/1000000 -> 1.991154679e-07 | W98: =SUM(T98:V98) -> 8.893919945e-07 | X98: =S98+W98 -> 2.960221574e-06 | Y98: -- | Z98: =Z100*1055*'GEMM (2011) LCA Data'!$P$17/1000/1000 -> 3.175272022e-05
B99: Energy / Carbon
B100: MMBTU | C100: -- | D100: -- | E100: =ABS('GEMM (2011) LCA Data'!$D$5*'GEMM (2011) Models'!E83*1000) -> 0.01121170225 | F100: =97.3*1000/1055*F83 -> 0.03829037186 | G100: =E100+F100 -> 0.04950207411 | H100: -- | I100: =97.3*1000/1055*I83 -> 0.003536153379 | J100: =43.34*(H83*1000*4*12/74.12)/1055 -> 0.0010200301 | K100: =SUM(H100:J100) -> 0.004556183479 | L100: =G100+K100 -> 0.05405825759 | M100: =(($V$43*VLOOKUP($B77,'GEMM (2011) LCA Data'!$B$50:$G$67,4,FALSE))-(VLOOKUP('GEMM (2011) Models'!$B77,'GEMM (2011) LCA Data'!$B$50:$G$67,5,FALSE)*VLOOKUP('GEMM (2011) Models'!$B77,'GEMM (2011) LCA Data'!$B$50:$G$67,6,FALSE)))*M83*1000/1055 -> 0 | N100: =97.3*1000/1055*N83 -> 0 | P100: =(($V$42*VLOOKUP($B77,'GEMM (2011) LCA Data'!$B$50:$G$67,4,FALSE))-(VLOOKUP('GEMM (2011) Models'!$B77,'GEMM (2011) LCA Data'!$B$50:$G$67,5,FALSE)*VLOOKUP('GEMM (2011) Models'!$B77,'GEMM (2011) LCA Data'!$B$50:$G$67,6,FALSE)))*P83*1000/1055 -> 0.0007469022364 | Q100: =ABS('GEMM (2011) LCA Data'!$D$5*'GEMM (2011) Models'!Q83*1000) -> 0.0007348268367 | R100: =97.3*1000/1055*R83 -> 0.002509591514 | S100: =Q100+R100 -> 0.003244418351 | T100: -- | U100: =97.3*1000/1055*U83 -> 0.0008365305048 | V100: =43.34*(T83*1000*4*12/74.12)/1055 -> 0.0002413035304 | W100: =SUM(T100:V100) -> 0.001077834035 | X100: =S100+W100 -> 0.004322252386 | Y100: -- | Z100: =97.3*1000/1055*Z83 -> 0.03848040322
B101: MTCO2e | C101: =IF(C85="--","--",(1*C85)+(21*C86)+(310*C87)) -> -- | D101: -- | E101: =IF(E85="--","--",(1*E85)+(21*E86)+(310*E87)) -> 0.0009759816564 | F101: =IF(F85="--","--",(1*F85)+(21*F86)+(310*F87)) -> 0.003040469696 | G101: =IF(G85="--","--",(1*G85)+(21*G86)+(310*G87)) -> 0.004016451353 | H101: =IF(H85="--","--",(1*H85)+(21*H86)+(310*H87)) -> 9.013286276e-05 | I101: 0.0002807903571 | J101: 8.099609529e-05 | K101: =IF(K85="--","--",(1*K85)+(21*K86)+(310*K87)) -> 0.0004519193152 | L101: 0.004468370668 | M101: =IF(M85="--","--",(1*M85)+(21*M86)+(310*M87)) -> 0 | N101: =IF(N85="--","--",(1*N85)+(21*N86)+(310*N87)) -> 0 | P101: =IF(P85="--","--",(1*P85)+(21*P86)+(310*P87)) -> 6.469621048e-05 | Q101: =IF(Q85="--","--",(1*Q85)+(21*Q86)+(310*Q87)) -> 6.396687115e-05 | R101: 0.0001992756032 | S101: 0.0002632424743 | T101: 2.132229038e-05 | U101: 6.642520106e-05 | V101: 1.916085e-05 | W101: 0.0001069083415 | X101: 0.0003701508158 | Y101: -- | Z101: =IF(Z85="--","--",(1*Z85)+(21*Z86)+(310*Z87)) -> 0.003055559249 | AA101: =(Q101+T101+W101+P101)-(E101+H101+J101) -> -0.000890216901
Y102: Cost per Pound | AA102: Cost Savings
U103: Solent Recovered (tonne): | W103: 13028 | X103: X | Y103: 0.54 | AA103: =W103*2204.6*Y103 -> 15509625.55
B104: Chlorobenzene
B106: Emission Type a, b | C106: 2008 Land | E106: Offsite Reported Energy Recovery (ER) Cement Kiln (Adapted GSK Model) | G106: ER EOL | H106: Offsite Reported Thermal Treatment (I) Incineration (GSK Model) | K106: I EOL | L106: Baseline EOL ER&I | M106: GSK Solvent Recovery (Distillation) Model & Adapted Zurich | P106: 92% recovery, 8% of Mass (worst case scenario of steam required for primary / secondary distillation) (75% recovery rate*2=92%, doubled steam) | X106: New EOL ER&I | Y106: Recovered Solvent (92% j of Distilled Mass) | Z106: New Beginning of Life (BOL) Mnfctring Emissions (ME) | AA106: New EOL/BOL - Baseline EOL/BOL
G107: Cement kiln | K107: Incinerator | M107: Offsite Reported Remanufacturing Mass to steamf | N107: Baseline Beginning of Life (BOL) Mnfctring Emissions (ME) | P107: STEAM New Solvent Mass going to Steamf | Q107: Energy Recovery (ER) Cement Kiln | S107: NEW ER EOL | T107: Thermal Treatment (I) Incineration | W107: INEW EOL
C108: Underground Injection | D108: Landfill | E108: Solvent used as Fuel e | F108: Manufacturing Emissions of Solvents | G108: Offsite ER EOL (end of life) | H108: Combustion of Solvents c | I108: Manufacturing Emissions of Solvents | J108: Natural Gas Fuel d | K108: Offsite I EOL (end of life) | Q108: Solvent used as Fuel e | R108: Mnfcting Emissions of Solvents | S108: Cement kiln | T108: Solvents Combusted c | U108: Mnfcting Emissions of Solvents | V108: Natural Gas Fuel d | W108: Incinerator | AA108: Process Change Benefits
B109: Solvent Mass (tonne)
B110: Solvent Mass | C110: =SUM('Solvent Mass Before (docket)'!C7,'Solvent Mass Before (docket)'!J7)/2.205/1000 -> 0 | D110: =SUM('Solvent Mass Before (docket)'!D7,'Solvent Mass Before (docket)'!K7)/2.205/1000 -> 0 | E110: =SUM('Solvent Mass Before (docket)'!G7)/2.205/1000+(M110*(1-$V$41)*$V$45) -> 2.833912067e-05 | F110: =E110 -> 2.833912067e-05 | G110: =E110 -> 2.833912067e-05 | H110: =SUM('Solvent Mass Before (docket)'!H7)/2.205/1000+(M110*(1-$V$41)*(1-$V$45)) -> 0.0004251756186 | I110: =H110 -> 0.0004251756186 | J110: =J127*1055/'GEMM (2011) LCA Data'!$I$22/1000 -> 0.0002355999361 | K110: =H110 -> 0.0004251756186 | L110: =G110+K110 -> 0.0004535147392 | M110: =SUM('Solvent Mass Before (docket)'!F7)/2.205/1000 -> 0 | N110: =M110*$V$41 -> 0 | P110: ='Solvent Mass After (docket)'!$O7/2.205/1000 -> 0.0004535147392 | Q110: =(1-$V$40)*P110*$V$44 -> 2.721088435e-05 | R110: =Q110 -> 2.721088435e-05 | S110: =Q110 -> 2.721088435e-05 | T110: =(1-$V$40)*P110*(1-$V$44) -> 9.070294785e-06 | U110: =T110 -> 9.070294785e-06 | V110: =V127*1055/'GEMM (2011) LCA Data'!$I$22/1000 -> 5.026066355e-06 | W110: =T110 -> 9.070294785e-06 | X110: =S110+W110 -> 3.628117914e-05 | Y110: =P110*$V$40 -> 0.0004172335601 | Z110: =Y110 -> 0.0004172335601
B111: Air emission (tonne)
B112: CO2 | C112: -- | D112: -- | E112: =3.63*(E110*6*12/112.56) -> 6.580235056e-05 | F112: =F127*1055*'GEMM (2011) LCA Data'!$P$7/1000/1000 -> 0.0001636562281 | G112: =E112+F112 -> 0.0002294585787 | H112: =3.63*(H110*6*12/112.56) -> 0.0009872414682 | I112: =I127*1055*'GEMM (2011) LCA Data'!$P$7/1000/1000 -> 0.002455356284 | J112: =J127*1055*'GEMM (2011) LCA Data'!$P$7/1000000 -> 0.0007998752853 | K112: =SUM(H112:J112) -> 0.004242473037 | L112: =G112+K112 -> 0.004471931616 | M112: =M127*79.0676204311955*1055/1000000 -> 0 | N112: =N127*1055*'GEMM (2011) LCA Data'!$P$7/1000/1000 -> 0 | P112: =P127*79.0676204311955*1055/1000000 -> 3.760642491e-05 | Q112: =3.63*(Q110*6*12/112.56) -> 6.318262913e-05 | R112: =R127*1055*'GEMM (2011) LCA Data'!$P$7/1000/1000 -> 0.0001571407507 | S112: =Q112+R112 -> 0.0002203233798 | T112: =3.63*(T110*6*12/112.56) -> 2.106087638e-05 | U112: =U127*1055*'GEMM (2011) LCA Data'!$P$7/1000/1000 -> 5.238025023e-05 | V112: =V127*1055*'GEMM (2011) LCA Data'!$P$7/1000000 -> 1.706378332e-05 | W112: =SUM(T112:V112) -> 9.050490993e-05 | X112: =S112+W112 -> 0.0003108282898 | Y112: -- | Z112: =Z127*1055*'GEMM (2011) LCA Data'!$P$7/1000/1000 -> 0.002409491511 | AA112: =(Q112+T112+W112+P112)-(E112+H112+J112) -> -0.001640564264
B113: CH4 | C113: -- | D113: -- | E113: 0 | F113: =F127*1055*'GEMM (2011) LCA Data'!$P$5/1000/1000 -> 8.069629632e-07 | G113: 8.069629632e-07 | H113: 0 | I113: =I127*1055*'GEMM (2011) LCA Data'!$P$5/1000/1000 -> 1.210697329e-05 | J113: =J127*1055*'GEMM (2011) LCA Data'!$P$5/1000000 -> 3.944058456e-06 | K113: 1.605103175e-05 | L113: 1.685799471e-05 | M113: =M127*0.144574268396226*1055/1000000 -> 0 | N113: =N127*1055*'GEMM (2011) LCA Data'!$P$5/1000/1000 -> 0 | P113: =P127*0.144574268396226*1055/1000000 -> 6.876293151e-08 | Q113: 0 | R113: =R127*1055*'GEMM (2011) LCA Data'!$P$5/1000/1000 -> 7.748361751e-07 | S113: 7.748361751e-07 | T113: 0 | U113: =U127*1055*'GEMM (2011) LCA Data'!$P$5/1000/1000 -> 2.58278725e-07 | V113: =V127*1055*'GEMM (2011) LCA Data'!$P$5/1000000 -> 8.413881531e-08 | W113: =SUM(T113:V113) -> 3.424175404e-07 | X113: 1.117253715e-06 | Y113: -- | Z113: =Z127*1055*'GEMM (2011) LCA Data'!$P$5/1000/1000 -> 1.188082135e-05 | AA113: -3.532877984e-06
B114: N2O | C114: -- | D114: -- | E114: 0 | F114: =F127*1055*'GEMM (2011) LCA Data'!$P$11/1000/1000 -> 2.946467274e-09 | G114: 2.946467274e-09 | H114: 0 | I114: =I127*1055*'GEMM (2011) LCA Data'!$P$11/1000/1000 -> 4.420624267e-08 | J114: =J127*1055*'GEMM (2011) LCA Data'!$P$11/1000000 -> 1.440095729e-08 | K114: 5.860719996e-08 | L114: 6.155366723e-08 | M114: 0 | N114: =N127*1055*'GEMM (2011) LCA Data'!$P$11/1000/1000 -> 0 | P114: 0 | Q114: 0 | R114: =R127*1055*'GEMM (2011) LCA Data'!$P$11/1000/1000 -> 2.829162597e-09 | S114: 2.829162597e-09 | T114: 0 | U114: =U127*1055*'GEMM (2011) LCA Data'!$P$11/1000/1000 -> 9.430541989e-10 | V114: =V127*1055*'GEMM (2011) LCA Data'!$P$11/1000000 -> 3.072164115e-10 | W114: 1.25027061e-09 | X114: 4.079433207e-09 | Y114: -- | Z114: =Z127*1055*'GEMM (2011) LCA Data'!$P$11/1000/1000 -> 4.338049315e-08 | AA114: -1.315068668e-08
B115: CO | C115: -- | D115: -- | E115: =0.0016*(E110*6*12/112.56) -> 2.900379088e-08 | F115: =F127*1055*'GEMM (2011) LCA Data'!$P$6/1000/1000 -> 1.027853767e-07 | G115: 1.317891676e-07 | H115: =0.0016*(H110*6*12/112.56) -> 4.351477546e-07 | I115: =I127*1055*'GEMM (2011) LCA Data'!$P$6/1000/1000 -> 1.542102757e-06 | J115: =J127*1055*'GEMM (2011) LCA Data'!$P$6/1000000 -> 5.023669643e-07 | K115: 2.479617476e-06 | L115: 2.611406643e-06 | M115: =M127*0.0553151275443457*1055/1000000 -> 0 | N115: =N127*1055*'GEMM (2011) LCA Data'!$P$6/1000/1000 -> 0 | P115: =P127*0.0553151275443457*1055/1000000 -> 2.630917914e-08 | Q115: =0.0016*(Q110*6*12/112.56) -> 2.784909273e-08 | R115: =R127*1055*'GEMM (2011) LCA Data'!$P$6/1000/1000 -> 9.869328801e-08 | S115: 1.265423807e-07 | T115: =0.0016*(T110*6*12/112.56) -> 9.28303091e-09 | U115: =U127*1055*'GEMM (2011) LCA Data'!$P$6/1000/1000 -> 3.289776267e-08 | V115: =V127*1055*'GEMM (2011) LCA Data'!$P$6/1000000 -> 1.0717022e-08 | W115: 5.289781557e-08 | X115: 1.794401963e-07 | Y115: -- | Z115: =Z127*1055*'GEMM (2011) LCA Data'!$P$6/1000/1000 -> 1.513297083e-06 | AA115: -8.501793914e-07
B116: NMVOC | C116: -- | D116: -- | E116: =0.00016*(E110*6*12/112.56) -> 2.900379088e-09 | F116: =F127*1055*'GEMM (2011) LCA Data'!$P$8/1000/1000 -> 5.038503787e-11 | G116: 2.950764126e-09 | H116: =0.00016*(H110*6*12/112.56) -> 4.351477546e-08 | I116: =I127*1055*'GEMM (2011) LCA Data'!$P$8/1000/1000 -> 7.559334634e-10 | J116: =J127*1055*'GEMM (2011) LCA Data'!$P$8/1000000 -> 2.462585568e-10 | K116: 4.451696748e-08 | L116: 4.746773161e-08 | M116: =M127*0.401850859732704*1055/1000000 -> 0 | N116: =N127*1055*'GEMM (2011) LCA Data'!$P$8/1000/1000 -> 0 | P116: =P127*0.401850859732704*1055/1000000 -> 1.911297456e-07 | Q116: =0.00016*(Q110*6*12/112.56) -> 2.784909273e-09 | R116: =R127*1055*'GEMM (2011) LCA Data'!$P$8/1000/1000 -> 4.837911008e-11 | S116: 2.833288383e-09 | T116: =0.00016*(T110*6*12/112.56) -> 9.28303091e-10 | U116: =U127*1055*'GEMM (2011) LCA Data'!$P$8/1000/1000 -> 1.612637003e-11 | V116: =V127*1055*'GEMM (2011) LCA Data'!$P$8/1000000 -> 5.253447295e-12 | W116: =SUM(T116:V116) -> 9.496829083e-10 | X116: 3.782971291e-09 | Y116: -- | Z116: =Z127*1055*'GEMM (2011) LCA Data'!$P$8/1000/1000 -> 7.418130212e-10 | AA116: 1.491312278e-07
B117: NOx | C117: -- | D117: -- | E117: 0 | F117: =F127*1055*'GEMM (2011) LCA Data'!$P$9/1000/1000 -> 1.076205628e-07 | G117: 1.076205628e-07 | H117: 0 | I117: =I127*1055*'GEMM (2011) LCA Data'!$P$9/1000/1000 -> 1.614645701e-06 | J117: =J127*1055*'GEMM (2011) LCA Data'!$P$9/1000000 -> 5.259990982e-07 | K117: 2.1406448e-06 | L117: 2.248265362e-06 | M117: =M127*0.260265861210973*1055/1000000 -> 0 | N117: =N127*1055*'GEMM (2011) LCA Data'!$P$9/1000/1000 -> 0 | P117: =P127*0.260265861210973*1055/1000000 -> 1.237885814e-07 | Q117: 0 | R117: =R127*1055*'GEMM (2011) LCA Data'!$P$9/1000/1000 -> 1.033359758e-07 | S117: 1.033359758e-07 | T117: 0 | U117: =U127*1055*'GEMM (2011) LCA Data'!$P$9/1000/1000 -> 3.444532528e-08 | V117: =V127*1055*'GEMM (2011) LCA Data'!$P$9/1000000 -> 1.12211676e-08 | W117: 4.566649289e-08 | X117: 1.490024687e-07 | Y117: -- | Z117: =Z127*1055*'GEMM (2011) LCA Data'!$P$9/1000/1000 -> 1.584484963e-06 | AA117: -3.56544024e-07
B118: SOx | C118: -- | D118: -- | E118: 0 | F118: =F127*1055*'GEMM (2011) LCA Data'!$P$10/1000/1000 -> 1.3874889e-06 | G118: 1.3874889e-06 | H118: 0 | I118: =I127*1055*'GEMM (2011) LCA Data'!$P$10/1000/1000 -> 2.081668158e-05 | J118: =J127*1055*'GEMM (2011) LCA Data'!$P$10/1000000 -> 6.781398377e-06 | K118: 2.759807995e-05 | L118: 2.898556885e-05 | M118: =M127*0.346184729976483*1055/1000000 -> 0 | N118: =N127*1055*'GEMM (2011) LCA Data'!$P$10/1000/1000 -> 0 | P118: =P127*0.346184729976483*1055/1000000 -> 1.646536216e-07 | Q118: 0 | R118: =R127*1055*'GEMM (2011) LCA Data'!$P$10/1000/1000 -> 1.332250229e-06 | S118: 1.332250229e-06 | T118: 0 | U118: =U127*1055*'GEMM (2011) LCA Data'!$P$10/1000/1000 -> 4.440834096e-07 | V118: =V127*1055*'GEMM (2011) LCA Data'!$P$10/1000000 -> 1.446679434e-07 | W118: 5.88751353e-07 | X118: 1.921001582e-06 | Y118: -- | Z118: =Z127*1055*'GEMM (2011) LCA Data'!$P$10/1000/1000 -> 2.042783684e-05 | AA118: -6.027993402e-06
B119: Water emission (tonne)
B120: TOC | C120: -- | D120: -- | E120: 0 | F120: =F122/2.86 -> 2.530472632e-08 | G120: =E120+F120 -> 2.530472632e-08 | H120: 0 | I120: =I122/2.86 -> 3.796501941e-07 | J120: =J122/2.86 -> 1.236776957e-07 | K120: =SUM(H120:J120) -> 5.033278898e-07 | L120: =G120+K120 -> 5.286326161e-07 | M120: =M122/2.86 -> 0 | N120: =N122/2.86 -> 0 | P120: =P122/2.86 -> 1.033941498e-09 | Q120: 0 | R120: =R122/2.86 -> 2.429729522e-08 | S120: =Q120+R120 -> 2.429729522e-08 | T120: 0 | U120: =U122/2.86 -> 8.099098407e-09 | V120: =V122/2.86 -> 2.638423064e-09 | W120: =SUM(T120:V120) -> 1.073752147e-08 | X120: =S120+W120 -> 3.503481669e-08 | Y120: -- | Z120: =Z122/2.86 -> 3.725585267e-07 | AA120: =(Q120+T120+W120+P120)-(E120+H120+J120) -> -1.119062327e-07
B121: BOD | C121: -- | D121: -- | E121: 0 | F121: =F127*1055*'GEMM (2011) LCA Data'!$P$13/1000/1000 -> 4.37436352e-08 | G121: =E121+F121 -> 4.37436352e-08 | H121: 0 | I121: =I127*1055*'GEMM (2011) LCA Data'!$P$13/1000/1000 -> 6.562916108e-07 | J121: =J127*1055*'GEMM (2011) LCA Data'!$P$13/1000000 -> 2.137984792e-07 | K121: =SUM(H121:J121) -> 8.7009009e-07 | L121: =G121+K121 -> 9.138337252e-07 | M121: =M127*0.0193411218363402*1055/1000000 -> 0 | N121: =N127*1055*'GEMM (2011) LCA Data'!$P$13/1000/1000 -> 0 | P121: =P127*0.0193411218363402*1055/1000000 -> 9.199093663e-09 | Q121: 0 | R121: =R127*1055*'GEMM (2011) LCA Data'!$P$13/1000/1000 -> 4.200211476e-08 | S121: =Q121+R121 -> 4.200211476e-08 | T121: 0 | U121: =U127*1055*'GEMM (2011) LCA Data'!$P$13/1000/1000 -> 1.400070492e-08 | V121: =V127*1055*'GEMM (2011) LCA Data'!$P$13/1000000 -> 4.560974681e-09 | W121: =SUM(T121:V121) -> 1.85616796e-08 | X121: =S121+W121 -> 6.056379436e-08 | Y121: -- | Z121: =Z127*1055*'GEMM (2011) LCA Data'!$P$13/1000/1000 -> 6.440324263e-07 | AA121: =(Q121+T121+W121+P121)-(E121+H121+J121) -> -1.86037706e-07
B122: COD | C122: -- | D122: -- | E122: 0 | F122: =F127*1055*'GEMM (2011) LCA Data'!$P$14/1000/1000 -> 7.237151726e-08 | G122: =E122+F122 -> 7.237151726e-08 | H122: 0 | I122: =I127*1055*'GEMM (2011) LCA Data'!$P$14/1000/1000 -> 1.085799555e-06 | J122: =J127*1055*'GEMM (2011) LCA Data'!$P$14/1000000 -> 3.537182097e-07 | K122: =SUM(H122:J122) -> 1.439517765e-06 | L122: =G122+K122 -> 1.511889282e-06 | M122: =M127*0.00621725413258714*1055/1000000 -> 0 | N122: =N127*1055*'GEMM (2011) LCA Data'!$P$14/1000/1000 -> 0 | P122: =P127*0.00621725413258714*1055/1000000 -> 2.957072686e-09 | Q122: 0 | R122: =R127*1055*'GEMM (2011) LCA Data'!$P$14/1000/1000 -> 6.949026434e-08 | S122: =Q122+R122 -> 6.949026434e-08 | T122: 0 | U122: =U127*1055*'GEMM (2011) LCA Data'!$P$14/1000/1000 -> 2.316342145e-08 | V122: =V127*1055*'GEMM (2011) LCA Data'!$P$14/1000000 -> 7.545889963e-09 | W122: =SUM(T122:V122) -> 3.070931141e-08 | X122: =S122+W122 -> 1.001995757e-07 | Y122: -- | Z122: =Z127*1055*'GEMM (2011) LCA Data'!$P$14/1000/1000 -> 1.065517386e-06 | AA122: =(Q122+T122+W122+P122)-(E122+H122+J122) -> -3.200518256e-07
B123: TDS | C123: -- | D123: -- | E123: 0 | F123: =F127*1055*'GEMM (2011) LCA Data'!$P$15/1000/1000 -> 1.119095256e-05 | G123: =E123+F123 -> 1.119095256e-05 | H123: 0 | I123: =I127*1055*'GEMM (2011) LCA Data'!$P$15/1000/1000 -> 0.0001678993584 | J123: =J127*1055*'GEMM (2011) LCA Data'!$P$15/1000000 -> 5.469615472e-05 | K123: =SUM(H123:J123) -> 0.0002225955131 | L123: =G123+K123 -> 0.0002337864657 | M123: =M127*0.359631325*1055/1000000 -> 0 | N123: =N127*1055*'GEMM (2011) LCA Data'!$P$15/1000/1000 -> 0 | P123: =P127*0.359631325*1055/1000000 -> 1.710491393e-07 | Q123: 0 | R123: =R127*1055*'GEMM (2011) LCA Data'!$P$15/1000/1000 -> 1.074541866e-05 | S123: =Q123+R123 -> 1.074541866e-05 | T123: 0 | U123: =U127*1055*'GEMM (2011) LCA Data'!$P$15/1000/1000 -> 3.581806219e-06 | V123: =V127*1055*'GEMM (2011) LCA Data'!$P$15/1000000 -> 1.166836068e-06 | W123: =SUM(T123:V123) -> 4.748642286e-06 | X123: =S123+W123 -> 1.549406094e-05 | Y123: -- | Z123: =Z127*1055*'GEMM (2011) LCA Data'!$P$15/1000/1000 -> 0.0001647630861 | AA123: =(Q123+T123+W123+P123)-(E123+H123+J123) -> -4.977646329e-05
B124: Solid waste (tonne)
B125: Solid waste | C125: -- | D125: -- | E125: 0 | F125: =F127*1055*'GEMM (2011) LCA Data'!$P$17/1000/1000 -> 1.886274065e-06 | G125: =E125+F125 -> 1.886274065e-06 | H125: 0 | I125: =I127*1055*'GEMM (2011) LCA Data'!$P$17/1000/1000 -> 2.830002214e-05 | J125: =J127*1055*'GEMM (2011) LCA Data'!$P$17/1000000 -> 9.219227545e-06 | K125: =SUM(H125:J125) -> 3.751924968e-05 | L125: =G125+K125 -> 3.940552375e-05 | M125: =M127*0.169716014150943*1055/1000000 -> 0 | N125: =N127*1055*'GEMM (2011) LCA Data'!$P$17/1000/1000 -> 0 | P125: =P127*0.169716014150943*1055/1000000 -> 8.07209387e-08 | Q125: 0 | R125: =R127*1055*'GEMM (2011) LCA Data'!$P$17/1000/1000 -> 1.811177772e-06 | S125: =Q125+R125 -> 1.811177772e-06 | T125: 0 | U125: =U127*1055*'GEMM (2011) LCA Data'!$P$17/1000/1000 -> 6.037259241e-07 | V125: =V127*1055*'GEMM (2011) LCA Data'!$P$17/1000000 -> 1.966742867e-07 | W125: =SUM(T125:V125) -> 8.004002108e-07 | X125: =S125+W125 -> 2.611577983e-06 | Y125: -- | Z125: =Z127*1055*'GEMM (2011) LCA Data'!$P$17/1000/1000 -> 2.777139251e-05
B126: Energy / Carbon
B127: MMBTU | C127: -- | D127: -- | E127: =ABS('GEMM (2011) LCA Data'!$D$6*'GEMM (2011) Models'!E110*1000) -> 0.000634716289 | F127: =85.1*1000/1055*F110 -> 0.002285932862 | G127: =E127+F127 -> 0.002920649151 | H127: -- | I127: =85.1*1000/1055*I110 -> 0.03429615653 | J127: =43.34*(H110*1000*6*12/112.56)/1055 -> 0.01117257327 | K127: =SUM(H127:J127) -> 0.0454687298 | L127: =G127+K127 -> 0.04838937895 | M127: =(($V$43*VLOOKUP($B104,'GEMM (2011) LCA Data'!$B$50:$G$67,4,FALSE))-(VLOOKUP('GEMM (2011) Models'!$B104,'GEMM (2011) LCA Data'!$B$50:$G$67,5,FALSE)*VLOOKUP('GEMM (2011) Models'!$B104,'GEMM (2011) LCA Data'!$B$50:$G$67,6,FALSE)))*M110*1000/1055 -> 0 | N127: =85.1*1000/1055*N110 -> 0 | P127: =(($V$42*VLOOKUP($B104,'GEMM (2011) LCA Data'!$B$50:$G$67,4,FALSE))-(VLOOKUP('GEMM (2011) Models'!$B104,'GEMM (2011) LCA Data'!$B$50:$G$67,5,FALSE)*VLOOKUP('GEMM (2011) Models'!$B104,'GEMM (2011) LCA Data'!$B$50:$G$67,6,FALSE)))*P110*1000/1055 -> 0.0004508280405 | Q127: =ABS('GEMM (2011) LCA Data'!$D$6*'GEMM (2011) Models'!Q110*1000) -> 0.0006094469809 | R127: =85.1*1000/1055*R110 -> 0.002194925364 | S127: =Q127+R127 -> 0.002804372344 | T127: -- | U127: =85.1*1000/1055*U110 -> 0.0007316417878 | V127: =43.34*(T110*1000*6*12/112.56)/1055 -> 0.0002383451183 | W127: =SUM(T127:V127) -> 0.0009699869061 | X127: =S127+W127 -> 0.003774359251 | Y127: -- | Z127: =85.1*1000/1055*Z110 -> 0.03365552224
B128: MTCO2e | C128: =IF(C112="--","--",(1*C112)+(21*C113)+(310*C114)) -> -- | D128: -- | E128: =IF(E112="--","--",(1*E112)+(21*E113)+(310*E114)) -> 6.580235056e-05 | F128: =IF(F112="--","--",(1*F112)+(21*F113)+(310*F114)) -> 0.0001815158552 | G128: =IF(G112="--","--",(1*G112)+(21*G113)+(310*G114)) -> 0.0002473182058 | H128: =IF(H112="--","--",(1*H112)+(21*H113)+(310*H114)) -> 0.0009872414682 | I128: 0.002723306658 | J128: 0.0008871648096 | K128: =IF(K112="--","--",(1*K112)+(21*K113)+(310*K114)) -> 0.004597712936 | L128: 0.004845031142 | M128: =IF(M112="--","--",(1*M112)+(21*M113)+(310*M114)) -> 0 | N128: =IF(N112="--","--",(1*N112)+(21*N113)+(310*N114)) -> 0 | P128: =IF(P112="--","--",(1*P112)+(21*P113)+(310*P114)) -> 3.905044647e-05 | Q128: 6.318262913e-05 | R128: 0.0001742893508 | S128: 0.0002374719799 | T128: 2.106087638e-05 | U128: 5.809645026e-05 | V128: 1.892593553e-05 | W128: 9.808326217e-05 | X128: =IF(X112="--","--",(1*X112)+(21*X113)+(310*X114)) -> 0.0003355552421 | Y128: -- | Z128: 0.002672436712 | AA128: =(Q128+T128+W128+P128)-(E128+H128+J128) -> -0.001718831414
Y129: Cost per Pound | AA129: Cost Savings
U130: Solent Recovered (tonne): | W130: 5702 | X130: X | Y130: 0.67 | AA130: =W130*2204.6*Y130 -> 8422321.564
B131: Chloroform
B133: Emission Type a, b | C133: 2008 Land | E133: Offsite Reported Energy Recovery (ER) Cement Kiln (Adapted GSK Model) | G133: ER EOL | H133: Offsite Reported Thermal Treatment (I) Incineration (GSK Model) | K133: I EOL | L133: Baseline EOL ER&I | M133: GSK Solvent Recovery (Distillation) Model & Adapted Zurich | P133: 92% recovery, 8% of Mass (worst case scenario of steam required for primary / secondary distillation) (75% recovery rate*2=92%, doubled steam) | X133: New EOL ER&I | Y133: Recovered Solvent (92% j of Distilled Mass) | Z133: New Beginning of Life (BOL) Mnfctring Emissions (ME) | AA133: New EOL/BOL - Baseline EOL/BOL
G134: Cement kiln | K134: Incinerator | M134: Offsite Reported Remanufacturing Mass to steamf | N134: Baseline Beginning of Life (BOL) Mnfctring Emissions (ME) | P134: STEAM New Solvent Mass going to Steamf | Q134: Energy Recovery (ER) Cement Kiln | S134: NEW ER EOL | T134: Thermal Treatment (I) Incineration | W134: INEW EOL
C135: Underground Injection | D135: Landfill | E135: Solvent used as Fuel e | F135: Manufacturing Emissions of Solvents | G135: Offsite ER EOL (end of life) | H135: Combustion of Solvents c | I135: Manufacturing Emissions of Solvents | J135: Natural Gas Fuel d | K135: Offsite I EOL (end of life) | Q135: Solvent used as Fuel e | R135: Mnfcting Emissions of Solvents | S135: Cement kiln | T135: Solvents Combusted c | U135: Mnfcting Emissions of Solvents | V135: Natural Gas Fuel d | W135: Incinerator | AA135: Process Change Benefits
B136: Solvent Mass (tonne)
B137: Solvent Mass | C137: =SUM('Solvent Mass Before (docket)'!C8,'Solvent Mass Before (docket)'!J8)/2.205/1000 -> 0 | D137: =SUM('Solvent Mass Before (docket)'!D8,'Solvent Mass Before (docket)'!K8)/2.205/1000 -> 0 | E137: =SUM('Solvent Mass Before (docket)'!G8)/2.205/1000+(M137*(1-$V$41)*$V$45) -> 0.0002103594201 | F137: =E137 -> 0.0002103594201 | G137: =E137 -> 0.0002103594201 | H137: =SUM('Solvent Mass Before (docket)'!H8)/2.205/1000+(M137*(1-$V$41)*(1-$V$45)) -> 0.0002431553191 | I137: =H137 -> 0.0002431553191 | J137: =J154*1055/'GEMM (2011) LCA Data'!$I$22/1000 -> 2.117346084e-05 | K137: =H137 -> 0.0002431553191 | L137: =G137+K137 -> 0.0004535147392 | M137: =SUM('Solvent Mass Before (docket)'!F8)/2.205/1000 -> 0 | N137: =M137*$V$41 -> 0 | P137: ='Solvent Mass After (docket)'!$O$8/2.205/1000 -> 0.0004535147392 | Q137: =(1-$V$40)*P137*$V$44 -> 2.721088435e-05 | R137: =Q137 -> 2.721088435e-05 | S137: =Q137 -> 2.721088435e-05 | T137: =(1-$V$40)*P137*(1-$V$44) -> 9.070294785e-06 | U137: =T137 -> 9.070294785e-06 | V137: =V154*1055/'GEMM (2011) LCA Data'!$I$22/1000 -> 7.898224563e-07 | W137: =T137 -> 9.070294785e-06 | X137: =S137+W137 -> 3.628117914e-05 | Y137: =P137*$V$40 -> 0.0004172335601 | Z137: =Y137 -> 0.0004172335601
B138: Air emission (tonne)
B139: CO2 | C139: -- | D139: -- | E139: =3.63*(E137*1*12/119.38) -> 7.675704758e-05 | F139: ='GEMM (2011) LCA Data'!$G32*F$137 -> 0.0004543763474 | G139: =E139+F139 -> 0.000531133395 | H139: =3.63*(H137*1*12/119.38) -> 8.872378707e-05 | I139: ='GEMM (2011) LCA Data'!$G32*I$137 -> 0.0005252154893 | J139: =J154*1055*'GEMM (2011) LCA Data'!$P$7/1000000 -> 7.1885113e-05 | K139: =SUM(H139:J139) -> 0.0006858243894 | L139: =G139+K139 -> 0.001216957784 | M139: =M154*79.0676204311955*1055/1000000 -> 0 | N139: ='GEMM (2011) LCA Data'!$G32*N$137 -> 0 | P139: =P154*79.0676204311955*1055/1000000 -> 2.205287373e-05 | Q139: =3.63*(Q137*1*12/119.38) -> 9.928850079e-06 | R139: ='GEMM (2011) LCA Data'!$G32*R$137 -> 5.87755102e-05 | S139: =Q139+R139 -> 6.870436028e-05 | T139: =3.63*(T137*1*12/119.38) -> 3.309616693e-06 | U139: ='GEMM (2011) LCA Data'!$G32*U$137 -> 1.959183673e-05 | V139: =V154*1055*'GEMM (2011) LCA Data'!$P$7/1000000 -> 2.681492504e-06 | W139: =SUM(T139:V139) -> 2.558294593e-05 | X139: =S139+W139 -> 9.428730621e-05 | Y139: -- | Z139: ='GEMM (2011) LCA Data'!$G32*Z$137 -> 0.0009012244898 | AA139: =(Q139+T139+W139+P139)-(E139+H139+J139) -> -0.0001764916612
B140: CH4 | C140: -- | D140: -- | E140: 0 | F140: ='GEMM (2011) LCA Data'!$G33*F$137 -> 1.438858434e-06 | G140: 1.438858434e-06 | H140: 0 | I140: ='GEMM (2011) LCA Data'!$G33*I$137 -> 1.663182383e-06 | J140: =J154*1055*'GEMM (2011) LCA Data'!$P$5/1000000 -> 3.544541168e-07 | K140: 2.0176365e-06 | L140: 3.456494933e-06 | M140: =M154*0.144574268396226*1055/1000000 -> 0 | N140: ='GEMM (2011) LCA Data'!$G33*N$137 -> 0 | P140: =P154*0.144574268396226*1055/1000000 -> 4.03234354e-08 | Q140: 0 | R140: ='GEMM (2011) LCA Data'!$G33*R$137 -> 1.86122449e-07 | S140: 1.86122449e-07 | T140: 0 | U140: ='GEMM (2011) LCA Data'!$G33*U$137 -> 6.204081633e-08 | V140: =V154*1055*'GEMM (2011) LCA Data'!$P$5/1000000 -> 1.322201521e-08 | W140: =SUM(T140:V140) -> 7.526283153e-08 | X140: =S140+W140 -> 2.613852805e-07 | Y140: -- | Z140: ='GEMM (2011) LCA Data'!$G33*Z$137 -> 2.853877551e-06 | AA140: -2.388678498e-07
B141: N2O | C141: -- | D141: -- | E141: 0 | F141: ='GEMM (2011) LCA Data'!$G34*F$137 -> 0 | G141: 0 | H141: 0 | I141: ='GEMM (2011) LCA Data'!$G34*I$137 -> 0 | J141: =J154*1055*'GEMM (2011) LCA Data'!$P$11/1000000 -> 1.294219813e-09 | K141: 1.294219813e-09 | L141: 1.294219813e-09 | M141: 0 | N141: ='GEMM (2011) LCA Data'!$G34*N$137 -> 0 | P141: 0 | Q141: 0 | R141: ='GEMM (2011) LCA Data'!$G34*R$137 -> 0 | S141: =Q141+R141 -> 0 | T141: 0 | U141: ='GEMM (2011) LCA Data'!$G34*U$137 -> 0 | V141: =V154*1055*'GEMM (2011) LCA Data'!$P$11/1000000 -> 4.827759993e-11 | W141: =SUM(T141:V141) -> 4.827759993e-11 | X141: =S141+W141 -> 4.827759993e-11 | Y141: -- | Z141: ='GEMM (2011) LCA Data'!$G34*Z$137 -> 0 | AA141: -1.245942213e-09
B142: CO | C142: -- | D142: -- | E142: =0.0016*(E137*1*12/119.38) -> 3.383230747e-08 | F142: ='GEMM (2011) LCA Data'!$G35*F$137 -> 8.414376804e-07 | G142: 8.752699879e-07 | H142: =0.0016*(H137*1*12/119.38) -> 3.910690339e-08 | I142: ='GEMM (2011) LCA Data'!$G35*I$137 -> 9.726212765e-07 | J142: =J154*1055*'GEMM (2011) LCA Data'!$P$6/1000000 -> 4.514792076e-08 | K142: 1.056876101e-06 | L142: 1.932146089e-06 | M142: =M154*0.0553151275443457*1055/1000000 -> 0 | N142: ='GEMM (2011) LCA Data'!$G35*N$137 -> 0 | P142: =P154*0.0553151275443457*1055/1000000 -> 1.542802877e-08 | Q142: =0.0016*(Q137*1*12/119.38) -> 4.376352652e-09 | R142: ='GEMM (2011) LCA Data'!$G35*R$137 -> 1.088435374e-07 | S142: =Q142+R142 -> 1.132198901e-07 | T142: =0.0016*(T137*1*12/119.38) -> 1.458784217e-09 | U142: ='GEMM (2011) LCA Data'!$G35*U$137 -> 3.628117914e-08 | V142: =V154*1055*'GEMM (2011) LCA Data'!$P$6/1000000 -> 1.684129106e-09 | W142: 3.942409246e-08 | X142: 1.526439825e-07 | Y142: -- | Z142: ='GEMM (2011) LCA Data'!$G35*Z$137 -> 1.66893424e-06 | AA142: -5.739987352e-08
B143: NMVOC | C143: -- | D143: -- | E143: =0.00016*(E137*1*12/119.38) -> 3.383230747e-09 | F143: ='GEMM (2011) LCA Data'!$G36*F$137 -> 2.271881737e-06 | G143: =E143+F143 -> 2.275264968e-06 | H143: =0.00016*(H137*1*12/119.38) -> 3.910690339e-09 | I143: ='GEMM (2011) LCA Data'!$G36*I$137 -> 2.626077446e-06 | J143: =J154*1055*'GEMM (2011) LCA Data'!$P$8/1000000 -> 2.213135536e-11 | K143: 2.630010268e-06 | L143: 4.905275236e-06 | M143: =M154*0.401850859732704*1055/1000000 -> 0 | N143: ='GEMM (2011) LCA Data'!$G36*N$137 -> 0 | P143: =P154*0.401850859732704*1055/1000000 -> 1.12080852e-07 | Q143: =0.00016*(Q137*1*12/119.38) -> 4.376352652e-10 | R143: ='GEMM (2011) LCA Data'!$G36*R$137 -> 2.93877551e-07 | S143: 2.943151863e-07 | T143: =0.00016*(T137*1*12/119.38) -> 1.458784217e-10 | U143: ='GEMM (2011) LCA Data'!$G36*U$137 -> 9.795918367e-08 | V143: =V154*1055*'GEMM (2011) LCA Data'!$P$8/1000000 -> 8.255542909e-13 | W143: 9.810588765e-08 | X143: 3.924210739e-07 | Y143: -- | Z143: ='GEMM (2011) LCA Data'!$G36*Z$137 -> 4.506122449e-06 | AA143: 2.034542009e-07
B144: NOx | C144: -- | D144: -- | E144: 0 | F144: ='GEMM (2011) LCA Data'!$G37*F$137 -> 1.716532868e-06 | G144: 1.716532868e-06 | H144: 0 | I144: ='GEMM (2011) LCA Data'!$G37*I$137 -> 1.984147404e-06 | J144: =J154*1055*'GEMM (2011) LCA Data'!$P$9/1000000 -> 4.727175012e-08 | K144: 2.031419154e-06 | L144: 3.747952022e-06 | M144: =M154*0.260265861210973*1055/1000000 -> 0 | N144: ='GEMM (2011) LCA Data'!$G37*N$137 -> 0 | P144: =P154*0.260265861210973*1055/1000000 -> 7.259115857e-08 | Q144: 0 | R144: ='GEMM (2011) LCA Data'!$G37*R$137 -> 2.220408163e-07 | S144: 2.220408163e-07 | T144: 0 | U144: ='GEMM (2011) LCA Data'!$G37*U$137 -> 7.401360544e-08 | V144: =V154*1055*'GEMM (2011) LCA Data'!$P$9/1000000 -> 1.763353194e-09 | W144: 7.577695864e-08 | X144: 2.97817775e-07 | Y144: -- | Z144: ='GEMM (2011) LCA Data'!$G37*Z$137 -> 3.40462585e-06 | AA144: 1.010963671e-07
B145: SOx | C145: -- | D145: -- | E145: 0 | F145: ='GEMM (2011) LCA Data'!$G38*F$137 -> 1.720740056e-06 | G145: 1.720740056e-06 | H145: 0 | I145: ='GEMM (2011) LCA Data'!$G38*I$137 -> 1.98901051e-06 | J145: =J154*1055*'GEMM (2011) LCA Data'!$P$10/1000000 -> 6.094469945e-07 | K145: 2.598457505e-06 | L145: 4.319197561e-06 | M145: =M154*0.346184729976483*1055/1000000 -> 0 | N145: ='GEMM (2011) LCA Data'!$G38*N$137 -> 0 | P145: =P154*0.346184729976483*1055/1000000 -> 9.655492469e-08 | Q145: 0 | R145: ='GEMM (2011) LCA Data'!$G38*R$137 -> 2.22585034e-07 | S145: 2.22585034e-07 | T145: 0 | U145: ='GEMM (2011) LCA Data'!$G38*U$137 -> 7.419501134e-08 | V145: =V154*1055*'GEMM (2011) LCA Data'!$P$10/1000000 -> 2.27338802e-08 | W145: 9.692889154e-08 | X145: 3.195139256e-07 | Y145: -- | Z145: ='GEMM (2011) LCA Data'!$G38*Z$137 -> 3.412970522e-06 | AA145: -4.159631782e-07
B146: Water emission (tonne)
B147: TOC | C147: -- | D147: -- | E147: 0 | F147: ='GEMM (2011) LCA Data'!$G40*F$137 -> 3.87061333e-06 | G147: =E147+F147 -> 3.87061333e-06 | H147: 0 | I147: ='GEMM (2011) LCA Data'!$G40*I$137 -> 4.474057872e-06 | J147: =J149/2.86 -> 1.111496416e-08 | K147: =SUM(H147:J147) -> 4.485172836e-06 | L147: =G147+K147 -> 8.355786166e-06 | M147: =M149/2.86 -> 0 | N147: ='GEMM (2011) LCA Data'!$G40*N$137 -> 0 | P147: =P149/2.86 -> 6.063161111e-10 | Q147: 0 | R147: ='GEMM (2011) LCA Data'!$G40*R$137 -> 5.006802721e-07 | S147: =Q147+R147 -> 5.006802721e-07 | T147: 0 | U147: ='GEMM (2011) LCA Data'!$G40*U$137 -> 1.66893424e-07 | V147: =V149/2.86 -> 4.146156532e-10 | W147: =SUM(T147:V147) -> 1.673080397e-07 | X147: =S147+W147 -> 6.679883118e-07 | Y147: -- | Z147: ='GEMM (2011) LCA Data'!$G40*Z$137 -> 7.677097506e-06 | AA147: =(Q147+T147+W147+P147)-(E147+H147+J147) -> 1.567993916e-07
B148: BOD | C148: -- | D148: -- | E148: 0 | F148: ='GEMM (2011) LCA Data'!$G41*F$137 -> 3.807505504e-08 | G148: =E148+F148 -> 3.807505504e-08 | H148: 0 | I148: ='GEMM (2011) LCA Data'!$G41*I$137 -> 4.401111276e-08 | J148: =J154*1055*'GEMM (2011) LCA Data'!$P$13/1000000 -> 1.921415516e-08 | K148: =SUM(H148:J148) -> 6.322526792e-08 | L148: =G148+K148 -> 1.01300323e-07 | M148: =M154*0.0193411218363402*1055/1000000 -> 0 | N148: ='GEMM (2011) LCA Data'!$G41*N$137 -> 0 | P148: =P154*0.0193411218363402*1055/1000000 -> 5.394462553e-09 | Q148: 0 | R148: ='GEMM (2011) LCA Data'!$G41*R$137 -> 4.925170068e-09 | S148: =Q148+R148 -> 4.925170068e-09 | T148: 0 | U148: ='GEMM (2011) LCA Data'!$G41*U$137 -> 1.641723356e-09 | V148: =V154*1055*'GEMM (2011) LCA Data'!$P$13/1000000 -> 7.167355086e-10 | W148: =SUM(T148:V148) -> 2.358458865e-09 | X148: =S148+W148 -> 7.283628933e-09 | Y148: -- | Z148: ='GEMM (2011) LCA Data'!$G41*Z$137 -> 7.551927438e-08 | AA148: =(Q148+T148+W148+P148)-(E148+H148+J148) -> -1.146123374e-08
B149: COD | C149: -- | D149: -- | E149: 0 | F149: ='GEMM (2011) LCA Data'!$G42*F$137 -> 1.588213622e-05 | G149: =E149+F149 -> 1.588213622e-05 | H149: 0 | I149: ='GEMM (2011) LCA Data'!$G42*I$137 -> 1.835822659e-05 | J149: =J154*1055*'GEMM (2011) LCA Data'!$P$14/1000000 -> 3.178879751e-08 | K149: =SUM(H149:J149) -> 1.839001539e-05 | L149: =G149+K149 -> 3.427215161e-05 | M149: =M154*0.00621725413258714*1055/1000000 -> 0 | N149: ='GEMM (2011) LCA Data'!$G42*N$137 -> 0 | P149: =P154*0.00621725413258714*1055/1000000 -> 1.734064078e-09 | Q149: 0 | R149: ='GEMM (2011) LCA Data'!$G42*R$137 -> 2.054421769e-06 | S149: =Q149+R149 -> 2.054421769e-06 | T149: 0 | U149: ='GEMM (2011) LCA Data'!$G42*U$137 -> 6.848072562e-07 | V149: =V154*1055*'GEMM (2011) LCA Data'!$P$14/1000000 -> 1.185800768e-09 | W149: =SUM(T149:V149) -> 6.85993057e-07 | X149: =S149+W149 -> 2.740414826e-06 | Y149: -- | Z149: ='GEMM (2011) LCA Data'!$G42*Z$137 -> 3.150113379e-05 | AA149: =(Q149+T149+W149+P149)-(E149+H149+J149) -> 6.559383236e-07
B150: TDS | C150: -- | D150: -- | E150: 0 | F150: ='GEMM (2011) LCA Data'!$G43*F$137 -> 1.647114259e-06 | G150: =E150+F150 -> 1.647114259e-06 | H150: 0 | I150: ='GEMM (2011) LCA Data'!$G43*I$137 -> 1.903906149e-06 | J150: =J154*1055*'GEMM (2011) LCA Data'!$P$15/1000000 -> 4.915565382e-06 | K150: =SUM(H150:J150) -> 6.819471531e-06 | L150: =G150+K150 -> 8.46658579e-06 | M150: =M154*0.359631325*1055/1000000 -> 0 | N150: ='GEMM (2011) LCA Data'!$G43*N$137 -> 0 | P150: =P154*0.359631325*1055/1000000 -> 1.003053355e-07 | Q150: 0 | R150: ='GEMM (2011) LCA Data'!$G43*R$137 -> 2.130612245e-07 | S150: =Q150+R150 -> 2.130612245e-07 | T150: 0 | U150: ='GEMM (2011) LCA Data'!$G43*U$137 -> 7.102040816e-08 | V150: =V154*1055*'GEMM (2011) LCA Data'!$P$15/1000000 -> 1.833627461e-07 | W150: =SUM(T150:V150) -> 2.543831543e-07 | X150: =S150+W150 -> 4.674443788e-07 | Y150: -- | Z150: ='GEMM (2011) LCA Data'!$G43*Z$137 -> 3.266938776e-06 | AA150: =(Q150+T150+W150+P150)-(E150+H150+J150) -> -4.560876892e-06
B151: Solid waste (tonne)
B152: Solid waste | C152: -- | D152: -- | E152: 0 | F152: ='GEMM (2011) LCA Data'!$G45*F$137 -> 7.783298544e-06 | G152: =E152+F152 -> 7.783298544e-06 | H152: 0 | I152: ='GEMM (2011) LCA Data'!$G45*I$137 -> 8.996746807e-06 | J152: =J154*1055*'GEMM (2011) LCA Data'!$P$17/1000000 -> 8.285356805e-07 | K152: =SUM(H152:J152) -> 9.825282488e-06 | L152: =G152+K152 -> 1.760858103e-05 | M152: =M154*0.169716014150943*1055/1000000 -> 0 | N152: ='GEMM (2011) LCA Data'!$G45*N$137 -> 0 | P152: =P154*0.169716014150943*1055/1000000 -> 4.733575905e-08 | Q152: 0 | R152: ='GEMM (2011) LCA Data'!$G45*R$137 -> 1.006802721e-06 | S152: =Q152+R152 -> 1.006802721e-06 | T152: 0 | U152: ='GEMM (2011) LCA Data'!$G45*U$137 -> 3.35600907e-07 | V152: =V154*1055*'GEMM (2011) LCA Data'!$P$17/1000000 -> 3.090643005e-08 | W152: =SUM(T152:V152) -> 3.665073371e-07 | X152: =S152+W152 -> 1.373310058e-06 | Y152: -- | Z152: ='GEMM (2011) LCA Data'!$G45*Z$137 -> 1.543764172e-05
B153: Energy / Carbon
B154: MMBTU | C154: -- | D154: -- | E154: =ABS('GEMM (2011) LCA Data'!$D$7*'GEMM (2011) Models'!E137*1000) -> 0.0006535629021 | F154: ='GEMM (2011) LCA Data'!$G47*1000/1055*F137 -> 0.004632188605 | G154: =E154+F154 -> 0.005285751507 | H154: -- | I154: ='GEMM (2011) LCA Data'!$G47*1000/1055*I137 -> 0.005354365865 | J154: =43.34*(H137*1000*1*12/119.38)/1055 -> 0.001004083645 | K154: =SUM(H154:J154) -> 0.00635844951 | L154: =G154+K154 -> 0.01164420102 | M154: =(($V$43*VLOOKUP($B131,'GEMM (2011) LCA Data'!$B$50:$G$67,4,FALSE))-(VLOOKUP('GEMM (2011) Models'!$B131,'GEMM (2011) LCA Data'!$B$50:$G$67,5,FALSE)*VLOOKUP('GEMM (2011) Models'!$B131,'GEMM (2011) LCA Data'!$B$50:$G$67,6,FALSE)))*M137*1000/1055 -> 0 | N154: ='GEMM (2011) LCA Data'!$G47*1000/1055*N137 -> 0 | P154: =(($V$42*VLOOKUP($B131,'GEMM (2011) LCA Data'!$B$50:$G$67,4,FALSE))-(VLOOKUP('GEMM (2011) Models'!$B131,'GEMM (2011) LCA Data'!$B$50:$G$67,5,FALSE)*VLOOKUP('GEMM (2011) Models'!$B131,'GEMM (2011) LCA Data'!$B$50:$G$67,6,FALSE)))*P137*1000/1055 -> 0.0002643711513 | Q154: =ABS('GEMM (2011) LCA Data'!$D$7*'GEMM (2011) Models'!Q137*1000) -> 8.454113697e-05 | R154: ='GEMM (2011) LCA Data'!$G47*1000/1055*R137 -> 0.0005991932682 | S154: =Q154+R154 -> 0.0006837344052 | T154: -- | U154: ='GEMM (2011) LCA Data'!$G47*1000/1055*U137 -> 0.0001997310894 | V154: =43.34*(T137*1000*1*12/119.38)/1055 -> 3.74548033e-05 | W154: =SUM(T154:V154) -> 0.0002371858927 | X154: =S154+W154 -> 0.0009209202979 | Y154: -- | Z154: ='GEMM (2011) LCA Data'!$G47*1000/1055*Z137 -> 0.009187630113
B155: MTCO2e | C155: =IF(C139="--","--",(1*C139)+(21*C140)+(310*C141)) -> -- | D155: =IF(D139="--","--",(1*D139)+(21*D140)+(310*D141)) -> -- | E155: =IF(E139="--","--",(1*E139)+(21*E140)+(310*E141)) -> 7.675704758e-05 | F155: =IF(F139="--","--",(1*F139)+(21*F140)+(310*F141)) -> 0.0004845923745 | G155: 0.0005613494221 | H155: 8.872378707e-05 | I155: 0.0005601423193 | J155: 7.972985759e-05 | K155: 0.000728595964 | L155: 0.001289945386 | M155: 0 | N155: 0 | P155: 2.289966587e-05 | Q155: 9.928850079e-06 | R155: 6.268408163e-05 | S155: 7.261293171e-05 | T155: =IF(T139="--","--",(1*T139)+(21*T140)+(310*T141)) -> 3.309616693e-06 | U155: 2.089469388e-05 | V155: 2.974120879e-06 | W155: 2.717843145e-05 | X155: 9.979136316e-05 | Y155: -- | Z155: 0.0009611559184 | AA155: =(Q155+T155+W155+P155)-(E155+H155+J155) -> -0.0001818941282
Y156: Cost per Pound | AA156: Cost Savings
U157: Solent Recovered (tonne): | W157: 6043 | X157: X | Y157: 0.34 | AA157: =W157*2204.6*Y157 -> 4529615.252
B158: Chloromethane
B160: Emission Type a, b | C160: 2008 Land | E160: Offsite Reported Energy Recovery (ER) Cement Kiln (Adapted GSK Model) | G160: ER EOL | H160: Offsite Reported Thermal Treatment (I) Incineration (GSK Model) | K160: I EOL | L160: Baseline EOL ER&I | M160: GSK Solvent Recovery (Distillation) Model & Adapted Zurich | P160: 92% recovery, 8% of Mass (worst case scenario of steam required for primary / secondary distillation) (75% recovery rate*2=92%, doubled steam) | X160: New EOL ER&I | Y160: Recovered Solvent (92% j of Distilled Mass) | Z160: New Beginning of Life (BOL) Mnfctring Emissions (ME) | AA160: New EOL/BOL - Baseline EOL/BOL
G161: Cement kiln | K161: Incinerator | M161: Offsite Reported Remanufacturing Mass to steamf | N161: Baseline Beginning of Life (BOL) Mnfctring Emissions (ME) | P161: STEAM New Solvent Mass going to Steamf | Q161: Energy Recovery (ER) Cement Kiln | S161: NEW ER EOL | T161: Thermal Treatment (I) Incineration | W161: INEW EOL
C162: Underground Injection | D162: Landfill | E162: Solvent used as Fuel e | F162: Manufacturing Emissions of Solvents | G162: Offsite ER EOL (end of life) | H162: Combustion of Solvents c | I162: Manufacturing Emissions of Solvents | J162: Natural Gas Fuel d | K162: Offsite I EOL (end of life) | Q162: Solvent used as Fuel e | R162: Mnfcting Emissions of Solvents | S162: Cement kiln | T162: Solvents Combusted c | U162: Mnfcting Emissions of Solvents | V162: Natural Gas Fuel d | W162: Incinerator | AA162: Process Change Benefits
B163: Solvent Mass (tonne)
B164: Solvent Mass | C164: 0 | D164: 0 | E164: 0 | F164: =D164+E164 -> 0 | G164: =E164+F164 -> 0 | H164: 0 | I164: 0 | J164: =J181*1055/'GEMM (2011) LCA Data'!$I$22/1000 -> 0 | K164: =H164+I164 -> 0 | L164: =G164+K164 -> 0 | M164: 0 | N164: 0 | P164: =Y164*0.92 -> 0 | Q164: ='Solvent Mass After (docket)'!H113/2.205/1000 -> 0 | R164: =Q164 -> 0 | S164: =Q164+R164 -> 0 | T164: ='Solvent Mass After (docket)'!I113/2.205/1000 -> 0 | U164: =T164 -> 0 | V164: =V181*1055/'GEMM (2011) LCA Data'!$I$22/1000 -> 0 | W164: =T164+U164 -> 0 | X164: =S164+W164 -> 0 | Y164: 0 | Z164: 0 | AA164: =SUM(X164,Z164)-SUM(L164,N164,C164,D164) -> 0
B165: Air emission (tonne)
B166: CO2 | C166: -- | D166: -- | E166: 0 | F166: 0 | G166: =E166+F166 -> 0 | H166: 0 | I166: 0 | J166: 0 | K166: =SUM(H166:J166) -> 0 | L166: =G166+K166 -> 0 | M166: 0 | N166: 0 | P166: 0 | Q166: =E166*(Q$56/E$56) -> 0 | R166: =F166*(R$56/F$56) -> 0 | S166: =Q166+R166 -> 0 | T166: =H166*(T$56/H$56) -> 0 | U166: =I166*(U$56/I$56) -> 0 | V166: =J166*(V$56/J$56) -> 0 | W166: =SUM(T166:V166) -> 0 | X166: =S166+W166 -> 0 | Y166: -- | Z166: =N166*(Z$56/N$56) ->  | AA166: =(X166+P166+Z166-Z166)-(L166+M166+N166-N166) -> 
B167: CH4 | C167: -- | D167: -- | E167: 0 | F167: 0 | G167: 0 | H167: 0 | I167: 0 | J167: 0 | K167: =SUM(H167:J167) -> 0 | L167: 0 | M167: 0 | N167: 0 | P167: 0 | Q167: =E167*(Q$56/E$56) -> 0 | R167: =F167*(R$56/F$56) -> 0 | S167: 0 | T167: =H167*(T$56/H$56) -> 0 | U167: =I167*(U$56/I$56) -> 0 | V167: =J167*(V$56/J$56) -> 0 | W167: =SUM(T167:V167) -> 0 | X167: 0 | Y167: -- | Z167: =N167*(Z$56/N$56) ->  | AA167: =(X167+P167+Z167-Z167)-(L167+M167+N167-N167) -> 
B168: N2O | C168: -- | D168: -- | E168: 0 | F168: 0 | G168: 0 | H168: 0 | I168: 0 | J168: 0 | K168: 0 | L168: 0 | M168: 0 | N168: 0 | P168: 0 | Q168: 0 | R168: 0 | S168: 0 | T168: 0 | U168: 0 | V168: 0 | W168: 0 | X168: 0 | Y168: --
B169: CO | C169: -- | D169: -- | E169: 0 | F169: 0 | G169: 0 | H169: 0 | I169: 0 | J169: 0 | K169: 0 | L169: 0 | M169: 0 | N169: 0 | P169: 0 | Q169: 0 | R169: 0 | S169: 0 | T169: 0 | U169: 0 | V169: 0 | W169: 0 | X169: 0 | Y169: -- | AA169: =(X169+P169+Z169-Z169)-(L169+M169+N169-N169) -> 
B170: NMVOC | C170: -- | D170: -- | E170: 0 | F170: 0 | G170: 0 | H170: 0 | I170: 0 | J170: 0 | K170: 0 | L170: 0 | M170: 0 | N170: 0 | P170: 0 | Q170: 0 | R170: 0 | S170: 0 | T170: 0 | U170: 0 | V170: 0 | W170: 0 | X170: 0 | Y170: --
B171: NOx | C171: -- | D171: -- | E171: 0 | F171: 0 | G171: 0 | H171: 0 | I171: 0 | J171: 0 | K171: 0 | L171: 0 | M171: 0 | N171: 0 | P171: 0 | Q171: 0 | R171: 0 | S171: 0 | T171: 0 | U171: 0 | V171: 0 | W171: 0 | X171: 0 | Y171: --
B172: SOx | C172: -- | D172: -- | E172: 0 | F172: 0 | G172: 0 | H172: 0 | I172: 0 | J172: 0 | K172: 0 | L172: 0 | M172: 0 | N172: 0 | P172: 0 | Q172: 0 | R172: 0 | S172: 0 | T172: 0 | U172: 0 | V172: 0 | W172: 0 | X172: 0 | Y172: --
B173: Water emission (tonne)
B174: TOC | C174: -- | D174: -- | E174: 0 | F174: 0 | G174: =E174+F174 -> 0 | H174: 0 | I174: 0 | J174: 0 | K174: =SUM(H174:J174) -> 0 | L174: =G174+K174 -> 0 | M174: 0 | N174: 0 | P174: 0 | Q174: =E174*(Q$56/E$56) -> 0 | R174: 0 | S174: =Q174+R174 -> 0 | T174: =H174*(T$56/H$56) -> 0 | U174: 0 | V174: 0 | W174: =SUM(T174:V174) -> 0 | X174: =S174+W174 -> 0 | Y174: -- | Z174: =N174*(Z$56/N$56) -> 
B175: BOD | C175: -- | D175: -- | E175: 0 | F175: 0 | G175: =E175+F175 -> 0 | H175: 0 | I175: 0 | J175: 0 | K175: =SUM(H175:J175) -> 0 | L175: =G175+K175 -> 0 | M175: 0 | N175: 0 | P175: 0 | Q175: 0 | R175: 0 | S175: =Q175+R175 -> 0 | T175: 0 | U175: 0 | V175: 0 | W175: =SUM(T175:V175) -> 0 | X175: =S175+W175 -> 0 | Y175: -- | Z175: =N175*(Z$56/N$56) ->  | AA175: =(X175+P175+Z175-Z175)-(L175+M175+N175-N175) -> 
B176: COD | C176: -- | D176: -- | E176: 0 | F176: 0 | G176: =E176+F176 -> 0 | H176: 0 | I176: 0 | J176: 0 | K176: =SUM(H176:J176) -> 0 | L176: =G176+K176 -> 0 | M176: 0 | N176: 0 | P176: 0 | Q176: 0 | R176: 0 | S176: =Q176+R176 -> 0 | T176: 0 | U176: 0 | V176: 0 | W176: =SUM(T176:V176) -> 0 | X176: =S176+W176 -> 0 | Y176: -- | Z176: =N176*(Z$56/N$56) -> 
B177: TDS | C177: -- | D177: -- | E177: 0 | F177: 0 | G177: =E177+F177 -> 0 | H177: 0 | I177: 0 | J177: 0 | K177: =SUM(H177:J177) -> 0 | L177: =G177+K177 -> 0 | M177: 0 | N177: 0 | P177: 0 | Q177: 0 | R177: 0 | S177: =Q177+R177 -> 0 | T177: 0 | U177: 0 | V177: 0 | W177: =SUM(T177:V177) -> 0 | X177: =S177+W177 -> 0 | Y177: -- | Z177: =N177*(Z$56/N$56) -> 
B178: Solid waste (tonne)
B179: Solid waste | C179: -- | D179: -- | E179: 0 | F179: 0 | G179: =E179+F179 -> 0 | H179: 0 | I179: 0 | J179: 0 | K179: =SUM(H179:J179) -> 0 | L179: =G179+K179 -> 0 | M179: 0 | N179: 0 | P179: 0 | Q179: =E179*(Q$56/E$56) -> 0 | R179: =F179*(R$56/F$56) -> 0 | S179: =Q179+R179 -> 0 | T179: =H179*(T$56/H$56) -> 0 | U179: =I179*(U$56/I$56) -> 0 | V179: =J179*(V$56/J$56) -> 0 | W179: =SUM(T179:V179) -> 0 | X179: =S179+W179 -> 0 | Y179: -- | Z179: =N179*(Z$56/N$56) -> 
B180: Energy / Carbon
B181: MMBTU | C181: -- | D181: -- | E181: 0 | F181: 0 | G181: =E181+F181 -> 0 | H181: -- | I181: 0 | J181: 0 | K181: =SUM(H181:J181) -> 0 | L181: =G181+K181 -> 0 | M181: 0 | N181: 0 | P181: 0 | Q181: =E181*(Q$56/E$56) -> 0 | R181: =F181*(R$56/F$56) -> 0 | S181: =Q181+R181 -> 0 | T181: -- | U181: =I181*(U$56/I$56) -> 0 | V181: =J181*(V$56/J$56) -> 0 | W181: =SUM(T181:V181) -> 0 | X181: =S181+W181 -> 0 | Y181: -- | Z181: =N181*(Z$56/N$56) ->  | AA181: =(X181+P181+Z181-Z181)-(L181+M181+N181-N181) -> 
B182: MTCO2e | C182: =IF(C166="--","--",(1*C166)+(21*C167)+(310*C168)) -> -- | D182: -- | E182: =IF(E166="--","--",(1*E166)+(21*E167)+(310*E168)) -> 0 | F182: 0 | G182: =IF(G166="--","--",(1*G166)+(21*G167)+(310*G168)) -> 0 | H182: 0 | I182: 0 | J182: 0 | K182: 0 | L182: 0 | M182: 0 | N182: 0 | P182: 0 | Q182: 0 | R182: 0 | S182: 0 | T182: =IF(T166="--","--",(1*T166)+(21*T167)+(310*T168)) -> 0 | U182: 0 | V182: 0 | W182: 0 | X182: 0 | Y182: -- | Z182: =IF(Z166="--","--",(1*Z166)+(21*Z167)+(310*Z168)) -> 
Y183: Cost per Pound | AA183: Cost Savings
U184: Solent Recovered (tonne): | W184: 0 | X184: X | Y184: 0.42 | AA184: =W184*2204.6*Y184 -> 0
B185: Cyclohexane
B187: Emission Type a, b | C187: 2008 Land | E187: Offsite Reported Energy Recovery (ER) Cement Kiln (Adapted GSK Model) | G187: ER EOL | H187: Offsite Reported Thermal Treatment (I) Incineration (GSK Model) | K187: I EOL | L187: Baseline EOL ER&I | M187: GSK Solvent Recovery (Distillation) Model & Adapted Zurich | P187: 92% recovery, 8% of Mass (worst case scenario of steam required for primary / secondary distillation) (75% recovery rate*2=92%, doubled steam) | X187: New EOL ER&I | Y187: Recovered Solvent (92% j of Distilled Mass) | Z187: New Beginning of Life (BOL) Mnfctring Emissions (ME) | AA187: New EOL/BOL - Baseline EOL/BOL
G188: Cement kiln | K188: Incinerator | M188: Offsite Reported Remanufacturing Mass to steamf | N188: Baseline Beginning of Life (BOL) Mnfctring Emissions (ME) | P188: STEAM New Solvent Mass going to Steamf | Q188: Energy Recovery (ER) Cement Kiln | S188: NEW ER EOL | T188: Thermal Treatment (I) Incineration | W188: INEW EOL
C189: Underground Injection | D189: Landfill | E189: Solvent used as Fuel e | F189: Manufacturing Emissions of Solvents | G189: Offsite ER EOL (end of life) | H189: Combustion of Solvents c | I189: Manufacturing Emissions of Solvents | J189: Natural Gas Fuel d | K189: Offsite I EOL (end of life) | Q189: Solvent used as Fuel e | R189: Mnfcting Emissions of Solvents | S189: Cement kiln | T189: Solvents Combusted c | U189: Mnfcting Emissions of Solvents | V189: Natural Gas Fuel d | W189: Incinerator | AA189: Process Change Benefits
B190: Solvent Mass (tonne)
B191: Solvent Mass | C191: =SUM('Solvent Mass Before (docket)'!C10,'Solvent Mass Before (docket)'!J10)/2.205/1000 -> 0 | D191: =SUM('Solvent Mass Before (docket)'!D10,'Solvent Mass Before (docket)'!K10)/2.205/1000 -> 0 | E191: =SUM('Solvent Mass Before (docket)'!G10)/2.205/1000+(M191*(1-$V$41)*$V$45) -> 0.0003173807306 | F191: =E191 -> 0.0003173807306 | G191: =E191 -> 0.0003173807306 | H191: =SUM('Solvent Mass Before (docket)'!H10)/2.205/1000+(M191*(1-$V$41)*(1-$V$45)) -> 0.0001361340086 | I191: =H191 -> 0.0001361340086 | J191: =J208*1055/'GEMM (2011) LCA Data'!$I$22/1000 -> 0.000100890856 | K191: =H191 -> 0.0001361340086 | L191: =G191+K191 -> 0.0004535147392 | M191: ='Solvent Mass Before (docket)'!F10/2.205/1000 -> 0 | N191: =M191*$V$41 -> 0 | P191: ='Solvent Mass After (docket)'!$O10/2.205/1000 -> 0.0004535147392 | Q191: =(1-$V$40)*P191*$V$44 -> 2.721088435e-05 | R191: =Q191 -> 2.721088435e-05 | S191: =Q191 -> 2.721088435e-05 | T191: =(1-$V$40)*P191*(1-$V$44) -> 9.070294785e-06 | U191: =T191 -> 9.070294785e-06 | V191: =V208*1055/'GEMM (2011) LCA Data'!$I$22/1000 -> 6.722124869e-06 | W191: =T191 -> 9.070294785e-06 | X191: =S191+W191 -> 3.628117914e-05 | Y191: =P191*$V$40 -> 0.0004172335601 | Z191: =Y191 -> 0.0004172335601
B192: Air emission (tonne)
B193: CO2 | C193: -- | D193: -- | E193: =3.63*(E191*6*12/84.16) -> 0.0009856300825 | F193: =F208*1055*'GEMM (2011) LCA Data'!$P$7/1000/1000 -> 0.001791927724 | G193: =E193+F193 -> 0.002777557806 | H193: =3.63*(H191*6*12/84.16) -> 0.0004227659755 | I193: =I208*1055*'GEMM (2011) LCA Data'!$P$7/1000/1000 -> 0.0007686109481 | J193: =J208*1055*'GEMM (2011) LCA Data'!$P$7/1000000 -> 0.0003425302382 | K193: =SUM(H193:J193) -> 0.001533907162 | L193: =G193+K193 -> 0.004311464968 | M193: =M208*79.0676204311955*1055/1000000 -> 0 | N193: =N208*1055*'GEMM (2011) LCA Data'!$P$7/1000/1000 -> 0 | P193: =P208*79.0676204311955*1055/1000000 -> 3.240696688e-05 | Q193: =3.63*(Q191*6*12/84.16) -> 8.450376348e-05 | R193: =R208*1055*'GEMM (2011) LCA Data'!$P$7/1000/1000 -> 0.0001536323203 | S193: =Q193+R193 -> 0.0002381360838 | T193: =3.63*(T191*6*12/84.16) -> 2.816792116e-05 | U193: =U208*1055*'GEMM (2011) LCA Data'!$P$7/1000/1000 -> 5.121077344e-05 | V193: =V208*1055*'GEMM (2011) LCA Data'!$P$7/1000000 -> 2.282199918e-05 | W193: =SUM(T193:V193) -> 0.0001022006938 | X193: =S193+W193 -> 0.0003403367776 | Y193: -- | Z193: =Z208*1055*'GEMM (2011) LCA Data'!$P$7/1000/1000 -> 0.002355695578 | AA193: =(Q193+T193+W193+P193)-(E193+H193+J193) -> -0.001503646951
B194: CH4 | C194: -- | D194: -- | E194: 0 | F194: =F208*1055*'GEMM (2011) LCA Data'!$P$5/1000/1000 -> 8.835712044e-06 | G194: 8.835712044e-06 | H194: 0 | I194: =I208*1055*'GEMM (2011) LCA Data'!$P$5/1000/1000 -> 3.789898957e-06 | J194: =J208*1055*'GEMM (2011) LCA Data'!$P$5/1000000 -> 1.688962401e-06 | K194: =SUM(H194:J194) -> 5.478861358e-06 | L194: 1.43145734e-05 | M194: =M208*0.144574268396226*1055/1000000 -> 0 | N194: =N208*1055*'GEMM (2011) LCA Data'!$P$5/1000/1000 -> 0 | P194: =P208*0.144574268396226*1055/1000000 -> 5.925578007e-08 | Q194: 0 | R194: =R208*1055*'GEMM (2011) LCA Data'!$P$5/1000/1000 -> 7.5753666e-07 | S194: 7.5753666e-07 | T194: 0 | U194: =U208*1055*'GEMM (2011) LCA Data'!$P$5/1000/1000 -> 2.5251222e-07 | V194: =V208*1055*'GEMM (2011) LCA Data'!$P$5/1000000 -> 1.125316665e-07 | W194: =SUM(T194:V194) -> 3.650438865e-07 | X194: =S194+W194 -> 1.122580547e-06 | Y194: -- | Z194: =Z208*1055*'GEMM (2011) LCA Data'!$P$5/1000/1000 -> 1.161556212e-05 | AA194: -1.264662735e-06
B195: N2O | C195: -- | D195: -- | E195: 0 | F195: =F208*1055*'GEMM (2011) LCA Data'!$P$11/1000/1000 -> 3.226187268e-08 | G195: 3.226187268e-08 | H195: 0 | I195: =I208*1055*'GEMM (2011) LCA Data'!$P$11/1000/1000 -> 1.383807406e-08 | J195: =J208*1055*'GEMM (2011) LCA Data'!$P$11/1000000 -> 6.166915544e-09 | K195: 2.00049896e-08 | L195: 5.226686228e-08 | M195: 0 | N195: =N208*1055*'GEMM (2011) LCA Data'!$P$11/1000/1000 -> 0 | P195: 0 | Q195: 0 | R195: =R208*1055*'GEMM (2011) LCA Data'!$P$11/1000/1000 -> 2.765996804e-09 | S195: 2.765996804e-09 | T195: 0 | U195: =U208*1055*'GEMM (2011) LCA Data'!$P$11/1000/1000 -> 9.219989348e-10 | V195: =V208*1055*'GEMM (2011) LCA Data'!$P$11/1000000 -> 4.108873488e-10 | W195: 1.332886284e-09 | X195: 4.098883088e-09 | Y195: -- | Z195: =Z208*1055*'GEMM (2011) LCA Data'!$P$11/1000/1000 -> 4.2411951e-08 | AA195: -4.834029261e-09
B196: CO | C196: -- | D196: -- | E196: =0.0016*(E191*6*12/84.16) -> 4.344375019e-07 | F196: =F208*1055*'GEMM (2011) LCA Data'!$P$6/1000/1000 -> 1.125432061e-06 | G196: 1.559869563e-06 | H196: =0.0016*(H191*6*12/84.16) -> 1.863431297e-07 | I196: =I208*1055*'GEMM (2011) LCA Data'!$P$6/1000/1000 -> 4.827311905e-07 | J196: =J208*1055*'GEMM (2011) LCA Data'!$P$6/1000000 -> 2.15128382e-07 | K196: 8.842027022e-07 | L196: 2.444072265e-06 | M196: =M208*0.0553151275443457*1055/1000000 -> 0 | N196: =N208*1055*'GEMM (2011) LCA Data'!$P$6/1000/1000 -> 0 | P196: =P208*0.0553151275443457*1055/1000000 -> 2.267167643e-08 | Q196: =0.0016*(Q191*6*12/84.16) -> 3.72468379e-08 | R196: =R208*1055*'GEMM (2011) LCA Data'!$P$6/1000/1000 -> 9.648979509e-08 | S196: 1.33736633e-07 | T196: =0.0016*(T191*6*12/84.16) -> 1.241561263e-08 | U196: =U208*1055*'GEMM (2011) LCA Data'!$P$6/1000/1000 -> 3.216326503e-08 | V196: =V208*1055*'GEMM (2011) LCA Data'!$P$6/1000000 -> 1.433350756e-08 | W196: 5.891238522e-08 | X196: =S196+W196 -> 1.926490182e-07 | Y196: -- | Z196: =Z208*1055*'GEMM (2011) LCA Data'!$P$6/1000/1000 -> 1.479510191e-06 | AA196: -7.046625015e-07
B197: NMVOC | C197: -- | D197: -- | E197: =0.00016*(E191*6*12/84.16) -> 4.344375019e-08 | F197: =F208*1055*'GEMM (2011) LCA Data'!$P$8/1000/1000 -> 5.516829226e-10 | G197: 4.399543312e-08 | H197: =0.00016*(H191*6*12/84.16) -> 1.863431297e-08 | I197: =I208*1055*'GEMM (2011) LCA Data'!$P$8/1000/1000 -> 2.36633168e-10 | J197: =J208*1055*'GEMM (2011) LCA Data'!$P$8/1000000 -> 1.054551924e-10 | K197: 1.897640133e-08 | L197: 6.297183445e-08 | M197: =M208*0.401850859732704*1055/1000000 -> 0 | N197: =N208*1055*'GEMM (2011) LCA Data'!$P$8/1000/1000 -> 0 | P197: =P208*0.401850859732704*1055/1000000 -> 1.647041789e-07 | Q197: =0.00016*(Q191*6*12/84.16) -> 3.72468379e-09 | R197: =R208*1055*'GEMM (2011) LCA Data'!$P$8/1000/1000 -> 4.729896544e-11 | S197: 3.771982755e-09 | T197: =0.00016*(T191*6*12/84.16) -> 1.241561263e-09 | U197: =U208*1055*'GEMM (2011) LCA Data'!$P$8/1000/1000 -> 1.576632181e-11 | V197: =V208*1055*'GEMM (2011) LCA Data'!$P$8/1000000 -> 7.026236068e-12 | W197: 1.264353821e-09 | X197: 5.036336576e-09 | Y197: -- | Z197: =Z208*1055*'GEMM (2011) LCA Data'!$P$8/1000/1000 -> 7.252508033e-10 | AA197: 1.087512594e-07
B198: NOx | C198: -- | D198: -- | E198: 0 | F198: =F208*1055*'GEMM (2011) LCA Data'!$P$9/1000/1000 -> 1.178374159e-06 | G198: 1.178374159e-06 | H198: 0 | I198: =I208*1055*'GEMM (2011) LCA Data'!$P$9/1000/1000 -> 5.054396267e-07 | J198: =J208*1055*'GEMM (2011) LCA Data'!$P$9/1000000 -> 2.252483602e-07 | K198: =SUM(H198:J198) -> 7.306879869e-07 | L198: 1.909062146e-06 | M198: =M208*0.260265861210973*1055/1000000 -> 0 | N198: =N208*1055*'GEMM (2011) LCA Data'!$P$9/1000/1000 -> 0 | P198: =P208*0.260265861210973*1055/1000000 -> 1.066735928e-07 | Q198: 0 | R198: =R208*1055*'GEMM (2011) LCA Data'!$P$9/1000/1000 -> 1.010288272e-07 | S198: 1.010288272e-07 | T198: 0 | U198: =U208*1055*'GEMM (2011) LCA Data'!$P$9/1000/1000 -> 3.367627572e-08 | V198: =V208*1055*'GEMM (2011) LCA Data'!$P$9/1000000 -> 1.500777835e-08 | W198: 4.868405406e-08 | X198: 1.497128812e-07 | Y198: -- | Z198: =Z208*1055*'GEMM (2011) LCA Data'!$P$9/1000/1000 -> 1.549108683e-06 | AA198: -6.98907134e-08
B199: SOx | C199: -- | D199: -- | E199: 0 | F199: =F208*1055*'GEMM (2011) LCA Data'!$P$10/1000/1000 -> 1.519208804e-05 | G199: 1.519208804e-05 | H199: 0 | I199: =I208*1055*'GEMM (2011) LCA Data'!$P$10/1000/1000 -> 6.516337148e-06 | J199: =J208*1055*'GEMM (2011) LCA Data'!$P$10/1000000 -> 2.903995215e-06 | K199: 9.420332364e-06 | L199: 2.461242041e-05 | M199: =M208*0.346184729976483*1055/1000000 -> 0 | N199: =N208*1055*'GEMM (2011) LCA Data'!$P$10/1000/1000 -> 0 | P199: =P208*0.346184729976483*1055/1000000 -> 1.418886393e-07 | Q199: 0 | R199: =R208*1055*'GEMM (2011) LCA Data'!$P$10/1000/1000 -> 1.302505511e-06 | S199: 1.302505511e-06 | T199: 0 | U199: =U208*1055*'GEMM (2011) LCA Data'!$P$10/1000/1000 -> 4.341685038e-07 | V199: =V208*1055*'GEMM (2011) LCA Data'!$P$10/1000000 -> 1.934864985e-07 | W199: 6.276550023e-07 | X199: 1.930160514e-06 | Y199: -- | Z199: =Z208*1055*'GEMM (2011) LCA Data'!$P$10/1000/1000 -> 1.997175118e-05 | AA199: -2.134451574e-06
B200: Water emission (tonne)
B201: TOC | C201: -- | D201: -- | E201: 0 | F201: =F203/2.86 -> 2.770700581e-07 | G201: =E201+F201 -> 2.770700581e-07 | H201: 0 | I201: =I203/2.86 -> 1.188435656e-07 | J201: =J203/2.86 -> 5.296244471e-08 | K201: =SUM(H201:J201) -> 1.718060103e-07 | L201: =G201+K201 -> 4.488760684e-07 | M201: =M203/2.86 -> 0 | N201: =N203/2.86 -> 0 | P201: =P203/2.86 -> 8.909889194e-10 | Q201: 0 | R201: =R203/2.86 -> 2.375481742e-08 | S201: =Q201+R201 -> 2.375481742e-08 | T201: 0 | U201: =U203/2.86 -> 7.918272474e-09 | V201: =V203/2.86 -> 3.528765448e-09 | W201: =SUM(T201:V201) -> 1.144703792e-08 | X201: =S201+W201 -> 3.520185534e-08 | Y201: -- | Z201: =Z203/2.86 -> 3.642405338e-07 | AA201: =(Q201+T201+W201+P201)-(E201+H201+J201) -> -4.062441787e-08
B202: BOD | C202: -- | D202: -- | E202: 0 | F202: =F208*1055*'GEMM (2011) LCA Data'!$P$13/1000/1000 -> 4.789639451e-07 | G202: =E202+F202 -> 4.789639451e-07 | H202: 0 | I202: =I208*1055*'GEMM (2011) LCA Data'!$P$13/1000/1000 -> 2.054418418e-07 | J202: =J208*1055*'GEMM (2011) LCA Data'!$P$13/1000000 -> 9.155482781e-08 | K202: =SUM(H202:J202) -> 2.969966696e-07 | L202: =G202+K202 -> 7.759606147e-07 | M202: =M208*0.0193411218363402*1055/1000000 -> 0 | N202: =N208*1055*'GEMM (2011) LCA Data'!$P$13/1000/1000 -> 0 | P202: =P208*0.0193411218363402*1055/1000000 -> 7.927228508e-09 | Q202: 0 | R202: =R208*1055*'GEMM (2011) LCA Data'!$P$13/1000/1000 -> 4.106434721e-08 | S202: =Q202+R202 -> 4.106434721e-08 | T202: 0 | U202: =U208*1055*'GEMM (2011) LCA Data'!$P$13/1000/1000 -> 1.368811574e-08 | V202: =V208*1055*'GEMM (2011) LCA Data'!$P$13/1000000 -> 6.100086859e-09 | W202: =SUM(T202:V202) -> 1.97882026e-08 | X202: =S202+W202 -> 6.085254981e-08 | Y202: -- | Z202: =Z208*1055*'GEMM (2011) LCA Data'!$P$13/1000/1000 -> 6.296533239e-07 | AA202: =(Q202+T202+W202+P202)-(E202+H202+J202) -> -6.383939671e-08
B203: COD | C203: -- | D203: -- | E203: 0 | F203: =F208*1055*'GEMM (2011) LCA Data'!$P$14/1000/1000 -> 7.924203661e-07 | G203: =E203+F203 -> 7.924203661e-07 | H203: 0 | I203: =I208*1055*'GEMM (2011) LCA Data'!$P$14/1000/1000 -> 3.398925977e-07 | J203: =J208*1055*'GEMM (2011) LCA Data'!$P$14/1000000 -> 1.514725919e-07 | K203: =SUM(H203:J203) -> 4.913651895e-07 | L203: =G203+K203 -> 1.283785556e-06 | M203: =M208*0.00621725413258714*1055/1000000 -> 0 | N203: =N208*1055*'GEMM (2011) LCA Data'!$P$14/1000/1000 -> 0 | P203: =P208*0.00621725413258714*1055/1000000 -> 2.548228309e-09 | Q203: 0 | R203: =R208*1055*'GEMM (2011) LCA Data'!$P$14/1000/1000 -> 6.793877782e-08 | S203: =Q203+R203 -> 6.793877782e-08 | T203: 0 | U203: =U208*1055*'GEMM (2011) LCA Data'!$P$14/1000/1000 -> 2.264625927e-08 | V203: =V208*1055*'GEMM (2011) LCA Data'!$P$14/1000000 -> 1.009226918e-08 | W203: =SUM(T203:V203) -> 3.273852846e-08 | X203: =S203+W203 -> 1.006773063e-07 | Y203: -- | Z203: =Z208*1055*'GEMM (2011) LCA Data'!$P$14/1000/1000 -> 1.041727927e-06 | AA203: =(Q203+T203+W203+P203)-(E203+H203+J203) -> -1.161858351e-07
B204: TDS | C204: -- | D204: -- | E204: 0 | F204: =F208*1055*'GEMM (2011) LCA Data'!$P$15/1000/1000 -> 0.0001225335472 | G204: =E204+F204 -> 0.0001225335472 | H204: 0 | I204: =I208*1055*'GEMM (2011) LCA Data'!$P$15/1000/1000 -> 5.255827266e-05 | J204: =J208*1055*'GEMM (2011) LCA Data'!$P$15/1000000 -> 2.342251005e-05 | K204: =SUM(H204:J204) -> 7.59807827e-05 | L204: =G204+K204 -> 0.0001985143299 | M204: =M208*0.359631325*1055/1000000 -> 0 | N204: =N208*1055*'GEMM (2011) LCA Data'!$P$15/1000/1000 -> 0 | P204: =P208*0.359631325*1055/1000000 -> 1.473999138e-07 | Q204: 0 | R204: =R208*1055*'GEMM (2011) LCA Data'!$P$15/1000/1000 -> 1.050550919e-05 | S204: =Q204+R204 -> 1.050550919e-05 | T204: 0 | U204: =U208*1055*'GEMM (2011) LCA Data'!$P$15/1000/1000 -> 3.501836397e-06 | V204: =V208*1055*'GEMM (2011) LCA Data'!$P$15/1000000 -> 1.560587783e-06 | W204: =SUM(T204:V204) -> 5.06242418e-06 | X204: =S204+W204 -> 1.556793337e-05 | Y204: -- | Z204: =Z208*1055*'GEMM (2011) LCA Data'!$P$15/1000/1000 -> 0.0001610844743 | AA204: =(Q204+T204+W204+P204)-(E204+H204+J204) -> -1.821268595e-05
B205: Solid waste (tonne)
B206: Solid waste | C206: -- | D206: -- | E206: 0 | F206: =F208*1055*'GEMM (2011) LCA Data'!$P$17/1000/1000 -> 2.065345652e-05 | G206: =E206+F206 -> 2.065345652e-05 | H206: 0 | I206: =I208*1055*'GEMM (2011) LCA Data'!$P$17/1000/1000 -> 8.858880071e-06 | J206: =J208*1055*'GEMM (2011) LCA Data'!$P$17/1000000 -> 3.947945717e-06 | K206: =SUM(H206:J206) -> 1.280682579e-05 | L206: =G206+K206 -> 3.346028231e-05 | M206: =M208*0.169716014150943*1055/1000000 -> 0 | N206: =N208*1055*'GEMM (2011) LCA Data'!$P$17/1000/1000 -> 0 | P206: =P208*0.169716014150943*1055/1000000 -> 6.956047519e-08 | Q206: 0 | R206: =R208*1055*'GEMM (2011) LCA Data'!$P$17/1000/1000 -> 1.770740196e-06 | S206: =Q206+R206 -> 1.770740196e-06 | T206: 0 | U206: =U208*1055*'GEMM (2011) LCA Data'!$P$17/1000/1000 -> 5.902467319e-07 | V206: =V208*1055*'GEMM (2011) LCA Data'!$P$17/1000000 -> 2.630425109e-07 | W206: =SUM(T206:V206) -> 8.532892428e-07 | X206: =S206+W206 -> 2.624029439e-06 | Y206: -- | Z206: =Z208*1055*'GEMM (2011) LCA Data'!$P$17/1000/1000 -> 2.715134967e-05
B207: Energy / Carbon
B208: MMBTU | C208: -- | D208: -- | E208: =ABS('GEMM (2011) LCA Data'!$D$9*'GEMM (2011) Models'!E191*1000) -> 0.01146671646 | F208: =83.2*1000/1055*F191 -> 0.02502945667 | G208: =E208+F208 -> 0.03649617313 | H208: -- | I208: =83.2*1000/1055*I191 -> 0.01073587632 | J208: =43.34*(H191*1000*6*12/84.16)/1055 -> 0.004784426091 | K208: =SUM(H208:J208) -> 0.01552030241 | L208: =G208+K208 -> 0.05201647554 | M208: =(($V$43*VLOOKUP($B185,'GEMM (2011) LCA Data'!$B$50:$G$67,4,FALSE))-(VLOOKUP('GEMM (2011) Models'!$B185,'GEMM (2011) LCA Data'!$B$50:$G$67,5,FALSE)*VLOOKUP('GEMM (2011) Models'!$B185,'GEMM (2011) LCA Data'!$B$50:$G$67,6,FALSE)))*M191*1000/1055 -> 0 | N208: =83.2*1000/1055*N191 -> 0 | P208: =(($V$42*VLOOKUP($B185,'GEMM (2011) LCA Data'!$B$50:$G$67,4,FALSE))-(VLOOKUP('GEMM (2011) Models'!$B185,'GEMM (2011) LCA Data'!$B$50:$G$67,5,FALSE)*VLOOKUP('GEMM (2011) Models'!$B185,'GEMM (2011) LCA Data'!$B$50:$G$67,6,FALSE)))*P191*1000/1055 -> 0.0003884966309 | Q208: =ABS('GEMM (2011) LCA Data'!$D$9*'GEMM (2011) Models'!Q191*1000) -> 0.0009831078751 | R208: =83.2*1000/1055*R191 -> 0.002145919979 | S208: =Q208+R208 -> 0.003129027854 | T208: -- | U208: =83.2*1000/1055*U191 -> 0.0007153066598 | V208: =43.34*(T191*1000*6*12/84.16)/1055 -> 0.0003187752675 | W208: =SUM(T208:V208) -> 0.001034081927 | X208: =S208+W208 -> 0.004163109782 | Y208: -- | Z208: =83.2*1000/1055*Z191 -> 0.03290410635
B209: MTCO2e | C209: =IF(C193="--","--",(1*C193)+(21*C194)+(310*C195)) -> -- | D209: -- | E209: 0.0009856300825 | F209: 0.001987478857 | G209: 0.00297310894 | H209: 0.0004227659755 | I209: 0.0008524886291 | J209: 0.0003799101925 | K209: 0.001655164797 | L209: 0.004628273737 | M209: 0 | N209: 0 | P209: =IF(P193="--","--",(1*P193)+(21*P194)+(310*P195)) -> 3.365133826e-05 | Q209: =IF(Q193="--","--",(1*Q193)+(21*Q194)+(310*Q195)) -> 8.450376348e-05 | R209: 0.0001703980492 | S209: 0.0002549018127 | T209: =IF(T193="--","--",(1*T193)+(21*T194)+(310*T195)) -> 2.816792116e-05 | U209: 5.679934973e-05 | V209: 2.531253925e-05 | W209: 0.0001102798101 | X209: 0.0003651816228 | Y209: -- | Z209: =IF(Z193="--","--",(1*Z193)+(21*Z194)+(310*Z195)) -> 0.002612770087 | AA209: =(Q209+T209+W209+P209)-(E209+H209+J209) -> -0.001531703417
Y210: Cost per Pound | AA210: Cost Savings
... 314 more rows

Sheet GEMM (2013) Models
A1: **This sheet was modified from GEMM (2013)**
B2: Acetonitrile | D2: C2H3N | E2: Destruct Mass for Energy Recovery | F2: Destruct Mass in Incinerator (I) | H2: No Destruction | I2: TOTAL Reductions
B3: Mass (tonne) | D3: Create C | E3: Destruct ER | F3: NG | G3: Destruct I | H3: Steam
B4: Mass | D4: ='GEMM Parameters'!$B$22 -> 0.92 | E4: ='GEMM Parameters'!$C$22 -> 0.69 | G4: ='GEMM Parameters'!$D$22 -> 0.23 | H4: ='GEMM Parameters'!$E$16 -> -1.25
B5: Feedstock Uses (tonne)
B6: Water | D6: 0.205712
B7: Natural Gas | D7: 0.0821468 | F7: =F28*1055/'GEMM (2013) LCA Data'!$C$43/1000 -> 0.1166308995
B8: Air | D8: 1.8706912
B9: Crude Oil | D9: 1.0346596
B10: Salt | D10: 0.0125028
B11: Sulfur | D11: 0
B12: Air emission (tonne)
B13: CO2 | D13: =HLOOKUP(B2,'GEMM (2013) LCA Data'!$C$2:$AB$23,7,FALSE)*D4 -> 6.437685656 | E13: =E4*HLOOKUP(B2,'GEMM (2013) LCA Data'!$C$2:$AB$23,3,FALSE)/HLOOKUP(B2,'GEMM (2013) LCA Data'!$C$2:$AB$23,2,FALSE)*12*'GEMM (2013) LCA Data'!$C$49 -> 1.466165854 | F13: =F28*1055*'GEMM (2013) LCA Data'!$C$29/1000/1000 -> 0.395968588 | G13: =G4*HLOOKUP(B2,'GEMM (2013) LCA Data'!$C$2:$AB$23,3,FALSE)/HLOOKUP(B2,'GEMM (2013) LCA Data'!$C$2:$AB$23,2,FALSE)*12*'GEMM (2013) LCA Data'!$C$49 -> 0.4887219512 | H13: =H28*1055*'GEMM (2013) LCA Data'!$D$29/1000/1000 -> -0.09764851123 | I13: =SUM(D13:H13) -> 8.690893537
B14: CH4 | D14: =HLOOKUP(B2,'GEMM (2013) LCA Data'!$C$2:$AB$23,8,FALSE)*D4 -> 0.01177123693 | E14: =E4*HLOOKUP(B2,'GEMM (2013) LCA Data'!$C$2:$AB$23,3,FALSE)/HLOOKUP(B2,'GEMM (2013) LCA Data'!$C$2:$AB$23,2,FALSE)*12*'GEMM (2013) LCA Data'!$C$50 -> 0 | F14: =F28*1055*'GEMM (2013) LCA Data'!$C$30/1000/1000 -> 0.001952458448 | G14: =G4*HLOOKUP(B2,'GEMM (2013) LCA Data'!$C$2:$AB$23,3,FALSE)/HLOOKUP(B2,'GEMM (2013) LCA Data'!$C$2:$AB$23,2,FALSE)*12*'GEMM (2013) LCA Data'!$C$50 -> 0 | H14: =H28*1055*'GEMM (2013) LCA Data'!$D$30/1000/1000 -> -0.0001785492215 | I14: 0.01354514616
B15: N2O | D15: =HLOOKUP(B2,'GEMM (2013) LCA Data'!$C$2:$AB$23,9,FALSE)*D4 -> 0 | E15: =E4*HLOOKUP(B2,'GEMM (2013) LCA Data'!$C$2:$AB$23,3,FALSE)/HLOOKUP(B2,'GEMM (2013) LCA Data'!$C$2:$AB$23,2,FALSE)*12*'GEMM (2013) LCA Data'!$C$51 -> 0 | F15: =F28*1055*'GEMM (2013) LCA Data'!$C$31/1000/1000 -> 7.129019771e-06 | G15: =G4*HLOOKUP(B2,'GEMM (2013) LCA Data'!$C$2:$AB$23,3,FALSE)/HLOOKUP(B2,'GEMM (2013) LCA Data'!$C$2:$AB$23,2,FALSE)*12*'GEMM (2013) LCA Data'!$C$51 -> 0 | H15: =H28*1055*'GEMM (2013) LCA Data'!$D$31/1000/1000 -> 0 | I15: 7.129019771e-06
B16: CO | D16: =HLOOKUP(B2,'GEMM (2013) LCA Data'!$C$2:$AB$23,10,FALSE)*D4 -> 0.004503757685 | E16: =E4*HLOOKUP(B2,'GEMM (2013) LCA Data'!$C$2:$AB$23,3,FALSE)/HLOOKUP(B2,'GEMM (2013) LCA Data'!$C$2:$AB$23,2,FALSE)*12*'GEMM (2013) LCA Data'!$C$52 -> 0.0006462439024 | F16: =F28*1055*'GEMM (2013) LCA Data'!$C$32/1000/1000 -> 0.0002486906911 | G16: =G4*HLOOKUP(B2,'GEMM (2013) LCA Data'!$C$2:$AB$23,3,FALSE)/HLOOKUP(B2,'GEMM (2013) LCA Data'!$C$2:$AB$23,2,FALSE)*12*'GEMM (2013) LCA Data'!$C$52 -> 0.0002154146341 | H16: =H28*1055*'GEMM (2013) LCA Data'!$D$32/1000/1000 -> -6.831418252e-05 | I16: 0.00554579273
B17: NMVOC | D17: =HLOOKUP(B2,'GEMM (2013) LCA Data'!$C$2:$AB$23,11,FALSE)*D4 -> 0.032718697 | E17: =E4*HLOOKUP(B2,'GEMM (2013) LCA Data'!$C$2:$AB$23,3,FALSE)/HLOOKUP(B2,'GEMM (2013) LCA Data'!$C$2:$AB$23,2,FALSE)*12*'GEMM (2013) LCA Data'!$C$53 -> 6.462439024e-05 | F17: =F28*1055*'GEMM (2013) LCA Data'!$C$33/1000/1000 -> 1.219073208e-07 | G17: =G4*HLOOKUP(B2,'GEMM (2013) LCA Data'!$C$2:$AB$23,3,FALSE)/HLOOKUP(B2,'GEMM (2013) LCA Data'!$C$2:$AB$23,2,FALSE)*12*'GEMM (2013) LCA Data'!$C$53 -> 2.154146341e-05 | H17: =H28*1055*'GEMM (2013) LCA Data'!$D$33/1000/1000 -> -0.0004962858118 | I17: 0.03230869895
B18: NOx | D18: =HLOOKUP(B2,'GEMM (2013) LCA Data'!$C$2:$AB$23,12,FALSE)*D4 -> 0.02119084642 | E18: =E4*HLOOKUP(B2,'GEMM (2013) LCA Data'!$C$2:$AB$23,3,FALSE)/HLOOKUP(B2,'GEMM (2013) LCA Data'!$C$2:$AB$23,2,FALSE)*12*'GEMM (2013) LCA Data'!$C$54 -> 0 | F18: =F28*1055*'GEMM (2013) LCA Data'!$C$34/1000/1000 -> 0.0002603894932 | G18: =G4*HLOOKUP(B2,'GEMM (2013) LCA Data'!$C$2:$AB$23,3,FALSE)/HLOOKUP(B2,'GEMM (2013) LCA Data'!$C$2:$AB$23,2,FALSE)*12*'GEMM (2013) LCA Data'!$C$54 -> 0 | H18: =H28*1055*'GEMM (2013) LCA Data'!$D$34/1000/1000 -> -0.0003214283386 | I18: 0.02112980757
B19: SOx | D19: =HLOOKUP(B2,'GEMM (2013) LCA Data'!$C$2:$AB$23,13,FALSE)*D4 -> 0.02818636071 | E19: =E4*HLOOKUP(B2,'GEMM (2013) LCA Data'!$C$2:$AB$23,3,FALSE)/HLOOKUP(B2,'GEMM (2013) LCA Data'!$C$2:$AB$23,2,FALSE)*12*'GEMM (2013) LCA Data'!$C$55 -> 0 | F19: =F28*1055*'GEMM (2013) LCA Data'!$C$35/1000/1000 -> 0.003357049266 | G19: =G4*HLOOKUP(B2,'GEMM (2013) LCA Data'!$C$2:$AB$23,3,FALSE)/HLOOKUP(B2,'GEMM (2013) LCA Data'!$C$2:$AB$23,2,FALSE)*12*'GEMM (2013) LCA Data'!$C$55 -> 0 | H19: =H28*1055*'GEMM (2013) LCA Data'!$D$35/1000/1000 -> -0.0004275381415 | I19: 0.03111587184
B20: Water emission (tonne)
B21: TOC | D21: =HLOOKUP(B2,'GEMM (2013) LCA Data'!$C$2:$AB$23,15,FALSE)*D4 -> 0.0001769960949 | E21: =E4*HLOOKUP(B2,'GEMM (2013) LCA Data'!$C$2:$AB$23,3,FALSE)/HLOOKUP(B2,'GEMM (2013) LCA Data'!$C$2:$AB$23,2,FALSE)*12*'GEMM (2013) LCA Data'!$C$57 -> 0 | F21: =F28*1055*'GEMM (2013) LCA Data'!$C$37/1000/1000 -> 6.122514776e-05 | G21: =G4*HLOOKUP(B2,'GEMM (2013) LCA Data'!$C$2:$AB$23,3,FALSE)/HLOOKUP(B2,'GEMM (2013) LCA Data'!$C$2:$AB$23,2,FALSE)*12*'GEMM (2013) LCA Data'!$C$57 -> 0 | H21: =H28*1055*'GEMM (2013) LCA Data'!$D$37/1000/1000 -> -2.684723375e-06 | I21: =SUM(D21:H21) -> 0.0002355365193
B22: BOD | D22: =HLOOKUP(B2,'GEMM (2013) LCA Data'!$C$2:$AB$23,16,FALSE)*D4 -> 0.00157475414 | E22: =E4*HLOOKUP(B2,'GEMM (2013) LCA Data'!$C$2:$AB$23,3,FALSE)/HLOOKUP(B2,'GEMM (2013) LCA Data'!$C$2:$AB$23,2,FALSE)*12*'GEMM (2013) LCA Data'!$C$58 -> 0 | F22: =F28*1055*'GEMM (2013) LCA Data'!$C$38/1000/1000 -> 0.0001058383519 | G22: =G4*HLOOKUP(B2,'GEMM (2013) LCA Data'!$C$2:$AB$23,3,FALSE)/HLOOKUP(B2,'GEMM (2013) LCA Data'!$C$2:$AB$23,2,FALSE)*12*'GEMM (2013) LCA Data'!$C$58 -> 0 | H22: =H28*1055*'GEMM (2013) LCA Data'!$D$38/1000/1000 -> -2.388628547e-05 | I22: =SUM(D22:H22) -> 0.001656706206
B23: COD | D23: =HLOOKUP(B2,'GEMM (2013) LCA Data'!$C$2:$AB$23,17,FALSE)*D4 -> 0.0005062088315 | E23: =E4*HLOOKUP(B2,'GEMM (2013) LCA Data'!$C$2:$AB$23,3,FALSE)/HLOOKUP(B2,'GEMM (2013) LCA Data'!$C$2:$AB$23,2,FALSE)*12*'GEMM (2013) LCA Data'!$C$59 -> 0 | F23: =F28*1055*'GEMM (2013) LCA Data'!$C$39/1000/1000 -> 0.0001751039226 | G23: =G4*HLOOKUP(B2,'GEMM (2013) LCA Data'!$C$2:$AB$23,3,FALSE)/HLOOKUP(B2,'GEMM (2013) LCA Data'!$C$2:$AB$23,2,FALSE)*12*'GEMM (2013) LCA Data'!$C$59 -> 0 | H23: =H28*1055*'GEMM (2013) LCA Data'!$D$39/1000/1000 -> -7.678308854e-06 | I23: =SUM(D23:H23) -> 0.0006736344452
B24: TDS | D24: =HLOOKUP(B2,'GEMM (2013) LCA Data'!$C$2:$AB$23,18,FALSE)*D4 -> 0.02928118248 | E24: =E4*HLOOKUP(B2,'GEMM (2013) LCA Data'!$C$2:$AB$23,3,FALSE)/HLOOKUP(B2,'GEMM (2013) LCA Data'!$C$2:$AB$23,2,FALSE)*12*'GEMM (2013) LCA Data'!$C$60 -> 0 | F24: =F28*1055*'GEMM (2013) LCA Data'!$C$40/1000/1000 -> 0.02707667001 | G24: =G4*HLOOKUP(B2,'GEMM (2013) LCA Data'!$C$2:$AB$23,3,FALSE)/HLOOKUP(B2,'GEMM (2013) LCA Data'!$C$2:$AB$23,2,FALSE)*12*'GEMM (2013) LCA Data'!$C$60 -> 0 | H24: =H28*1055*'GEMM (2013) LCA Data'!$D$40/1000/1000 -> -0.0004441446864 | I24: =SUM(D24:H24) -> 0.05591370781
B25: Solid waste (tonne)
B26: Solid waste | D26: =HLOOKUP(B2,'GEMM (2013) LCA Data'!$C$2:$AB$23,20,FALSE)*D4 -> 0.01381827787 | E26: =E4*HLOOKUP(B2,'GEMM (2013) LCA Data'!$C$2:$AB$23,3,FALSE)/HLOOKUP(B2,'GEMM (2013) LCA Data'!$C$2:$AB$23,2,FALSE)*12*'GEMM (2013) LCA Data'!$C$62 -> 0 | F26: =F28*1055*'GEMM (2013) LCA Data'!$C$42/1000/1000 -> 0.004563867118 | G26: =G4*HLOOKUP(B2,'GEMM (2013) LCA Data'!$C$2:$AB$23,3,FALSE)/HLOOKUP(B2,'GEMM (2013) LCA Data'!$C$2:$AB$23,2,FALSE)*12*'GEMM (2013) LCA Data'!$C$62 -> 0 | H26: =H28*1055*'GEMM (2013) LCA Data'!$D$42/1000/1000 -> -0.0002095992775 | I26: =SUM(D26:H26) -> 0.01817254571
B27: Energy / Carbon
B28: MMBTU | D28: =HLOOKUP(B2,'GEMM (2013) LCA Data'!$C$2:$AB$23,22,FALSE)/1055*1000*D4 -> 77.17535545 | E28: =HLOOKUP(B2,'GEMM (2013) LCA Data'!$C$2:$AB$23,4,FALSE)*1000/1055*E4 -> 16.81434662 | F28: =G4*HLOOKUP(B2,'GEMM (2013) LCA Data'!$C$2:$AB$23,3,FALSE)/HLOOKUP(B2,'GEMM (2013) LCA Data'!$C$2:$AB$23,2,FALSE)*12*'GEMM (2013) LCA Data'!$C$64*1000/1055 -> 5.530847301 | G28: =HLOOKUP(B2,'GEMM (2013) LCA Data'!$C$2:$AB$23,4,FALSE)*1000/1055*G4 -> 5.604782207 | H28: =VLOOKUP(B2,'GEMM (2013) LCA Data'!$B$69:$D$90,3,FALSE)/1055*1000*H4 -> -1.170616114 | I28: =SUM(D28:H28) -> 103.9547155
B29: MTCO2e | D29: =IF(D13="--","--",(1*D13)+(21*D14)+(310*D15)) -> 6.684881631 | E29: =IF(E13="--","--",(1*E13)+(21*E14)+(310*E15)) -> 1.466165854 | F29: =IF(F13="--","--",(1*F13)+(21*F14)+(310*F15)) -> 0.4391802115 | G29: =IF(G13="--","--",(1*G13)+(21*G14)+(310*G15)) -> 0.4887219512 | H29: =IF(H13="--","--",(1*H13)+(21*H14)+(310*H15)) -> -0.1013980449 | I29: =SUM(D29:H29) -> 8.977551603
B32: Dichloromethane | E32: Destruct Mass for Energy Recovery | F32: Destruct Mass in Incinerator | H32: No Destruction | I32: Total Reductions
B33: Mass (tonne) | D33: Create C | E33: Destruct ER | F33: NG | G33: Destruct I | H33: Steam
B34: Mass | D34: ='GEMM Parameters'!$B$22 -> 0.92 | E34: ='GEMM Parameters'!$C$22 -> 0.69 | G34: ='GEMM Parameters'!$D$22 -> 0.23 | H34: ='GEMM Parameters'!$E$16 -> -1.25
B35: Feedstock Uses (tonne)
B36: Water | D36: 2.0203752
B37: Natural Gas | D37: 0.2027404 | F37: =F58*1055/'GEMM (2013) LCA Data'!$C$43/1000 -> 0.02816176019
B38: Air | D38: 0
B39: Crude Oil | D39: 0.0417956
B40: Salt | D40: 0.176364
B41: Sulfur | D41: 0
B42: Air emission (tonne)
B43: CO2 | D43: =HLOOKUP(B32,'GEMM (2013) LCA Data'!$C$2:$AB$23,7,FALSE)*D34 -> 1.9872 | E43: =E34*HLOOKUP(B32,'GEMM (2013) LCA Data'!$C$2:$AB$23,3,FALSE)/HLOOKUP(B32,'GEMM (2013) LCA Data'!$C$2:$AB$23,2,FALSE)*12*'GEMM (2013) LCA Data'!$C$49 -> 0.3540212014 | F43: =F58*1055*'GEMM (2013) LCA Data'!$C$29/1000/1000 -> 0.09561078979 | G43: =G34*HLOOKUP(B32,'GEMM (2013) LCA Data'!$C$2:$AB$23,3,FALSE)/HLOOKUP(B32,'GEMM (2013) LCA Data'!$C$2:$AB$23,2,FALSE)*12*'GEMM (2013) LCA Data'!$C$49 -> 0.1180070671 | H43: =H58*1055*'GEMM (2013) LCA Data'!$D$29/1000/1000 -> -0.04862658657 | I43: =SUM(D43:H43) -> 2.506212472
B44: CH4 | D44: =HLOOKUP(B32,'GEMM (2013) LCA Data'!$C$2:$AB$23,8,FALSE)*D34 -> 0.0062928 | E44: =E34*HLOOKUP(B32,'GEMM (2013) LCA Data'!$C$2:$AB$23,3,FALSE)/HLOOKUP(B32,'GEMM (2013) LCA Data'!$C$2:$AB$23,2,FALSE)*12*'GEMM (2013) LCA Data'!$C$50 -> 0 | F44: =F58*1055*'GEMM (2013) LCA Data'!$C$30/1000/1000 -> 0.0004714416746 | G44: =G34*HLOOKUP(B32,'GEMM (2013) LCA Data'!$C$2:$AB$23,3,FALSE)/HLOOKUP(B32,'GEMM (2013) LCA Data'!$C$2:$AB$23,2,FALSE)*12*'GEMM (2013) LCA Data'!$C$50 -> 0 | H44: =H58*1055*'GEMM (2013) LCA Data'!$D$30/1000/1000 -> -8.891317506e-05 | I44: 0.0066753285
B45: N2O | D45: =HLOOKUP(B32,'GEMM (2013) LCA Data'!$C$2:$AB$23,9,FALSE)*D34 -> 0 | E45: =E34*HLOOKUP(B32,'GEMM (2013) LCA Data'!$C$2:$AB$23,3,FALSE)/HLOOKUP(B32,'GEMM (2013) LCA Data'!$C$2:$AB$23,2,FALSE)*12*'GEMM (2013) LCA Data'!$C$51 -> 0 | F45: =F58*1055*'GEMM (2013) LCA Data'!$C$31/1000/1000 -> 1.721376976e-06 | G45: =G34*HLOOKUP(B32,'GEMM (2013) LCA Data'!$C$2:$AB$23,3,FALSE)/HLOOKUP(B32,'GEMM (2013) LCA Data'!$C$2:$AB$23,2,FALSE)*12*'GEMM (2013) LCA Data'!$C$51 -> 0 | H45: =H58*1055*'GEMM (2013) LCA Data'!$D$31/1000/1000 -> 0 | I45: 1.721376976e-06
B46: CO | D46: =HLOOKUP(B32,'GEMM (2013) LCA Data'!$C$2:$AB$23,10,FALSE)*D34 -> 0.00368 | E46: =E34*HLOOKUP(B32,'GEMM (2013) LCA Data'!$C$2:$AB$23,3,FALSE)/HLOOKUP(B32,'GEMM (2013) LCA Data'!$C$2:$AB$23,2,FALSE)*12*'GEMM (2013) LCA Data'!$C$52 -> 0.0001560424028 | F46: =F58*1055*'GEMM (2013) LCA Data'!$C$32/1000/1000 -> 6.004898902e-05 | G46: =G34*HLOOKUP(B32,'GEMM (2013) LCA Data'!$C$2:$AB$23,3,FALSE)/HLOOKUP(B32,'GEMM (2013) LCA Data'!$C$2:$AB$23,2,FALSE)*12*'GEMM (2013) LCA Data'!$C$52 -> 5.201413428e-05 | H46: =H58*1055*'GEMM (2013) LCA Data'!$D$32/1000/1000 -> -3.401880344e-05 | I46: 0.003914086723
B47: NMVOC | D47: =HLOOKUP(B32,'GEMM (2013) LCA Data'!$C$2:$AB$23,11,FALSE)*D34 -> 0.009936 | E47: =E34*HLOOKUP(B32,'GEMM (2013) LCA Data'!$C$2:$AB$23,3,FALSE)/HLOOKUP(B32,'GEMM (2013) LCA Data'!$C$2:$AB$23,2,FALSE)*12*'GEMM (2013) LCA Data'!$C$53 -> 1.560424028e-05 | F47: =F58*1055*'GEMM (2013) LCA Data'!$C$33/1000/1000 -> 2.943580773e-08 | G47: =G34*HLOOKUP(B32,'GEMM (2013) LCA Data'!$C$2:$AB$23,3,FALSE)/HLOOKUP(B32,'GEMM (2013) LCA Data'!$C$2:$AB$23,2,FALSE)*12*'GEMM (2013) LCA Data'!$C$53 -> 5.201413428e-06 | H47: =H58*1055*'GEMM (2013) LCA Data'!$D$33/1000/1000 -> -0.0002471382787 | I47: 0.009709696811
B48: NOx | D48: =HLOOKUP(B32,'GEMM (2013) LCA Data'!$C$2:$AB$23,12,FALSE)*D34 -> 0.0075072 | E48: =E34*HLOOKUP(B32,'GEMM (2013) LCA Data'!$C$2:$AB$23,3,FALSE)/HLOOKUP(B32,'GEMM (2013) LCA Data'!$C$2:$AB$23,2,FALSE)*12*'GEMM (2013) LCA Data'!$C$54 -> 0 | F48: =F58*1055*'GEMM (2013) LCA Data'!$C$34/1000/1000 -> 6.287378812e-05 | G48: =G34*HLOOKUP(B32,'GEMM (2013) LCA Data'!$C$2:$AB$23,3,FALSE)/HLOOKUP(B32,'GEMM (2013) LCA Data'!$C$2:$AB$23,2,FALSE)*12*'GEMM (2013) LCA Data'!$C$54 -> 0 | H48: =H58*1055*'GEMM (2013) LCA Data'!$D$34/1000/1000 -> -0.0001600635046 | I48: 0.007410010283
B49: SOx | D49: =HLOOKUP(B32,'GEMM (2013) LCA Data'!$C$2:$AB$23,13,FALSE)*D34 -> 0.0075256 | E49: =E34*HLOOKUP(B32,'GEMM (2013) LCA Data'!$C$2:$AB$23,3,FALSE)/HLOOKUP(B32,'GEMM (2013) LCA Data'!$C$2:$AB$23,2,FALSE)*12*'GEMM (2013) LCA Data'!$C$55 -> 0 | F49: =F58*1055*'GEMM (2013) LCA Data'!$C$35/1000/1000 -> 0.0008105949347 | G49: =G34*HLOOKUP(B32,'GEMM (2013) LCA Data'!$C$2:$AB$23,3,FALSE)/HLOOKUP(B32,'GEMM (2013) LCA Data'!$C$2:$AB$23,2,FALSE)*12*'GEMM (2013) LCA Data'!$C$55 -> 0 | H49: =H58*1055*'GEMM (2013) LCA Data'!$D$35/1000/1000 -> -0.0002129036089 | I49: 0.008123291326
B50: Water emission (tonne)
B51: TOC | D51: =HLOOKUP(B32,'GEMM (2013) LCA Data'!$C$2:$AB$23,15,FALSE)*D34 -> 0.016928 | E51: =E34*HLOOKUP(B32,'GEMM (2013) LCA Data'!$C$2:$AB$23,3,FALSE)/HLOOKUP(B32,'GEMM (2013) LCA Data'!$C$2:$AB$23,2,FALSE)*12*'GEMM (2013) LCA Data'!$C$57 -> 0 | F51: =F58*1055*'GEMM (2013) LCA Data'!$C$37/1000/1000 -> 1.478345735e-05 | G51: =G34*HLOOKUP(B32,'GEMM (2013) LCA Data'!$C$2:$AB$23,3,FALSE)/HLOOKUP(B32,'GEMM (2013) LCA Data'!$C$2:$AB$23,2,FALSE)*12*'GEMM (2013) LCA Data'!$C$57 -> 0 | H51: =H58*1055*'GEMM (2013) LCA Data'!$D$37/1000/1000 -> -1.336927025e-06 | I51: =SUM(D51:H51) -> 0.01694144653
B52: BOD | D52: =HLOOKUP(B32,'GEMM (2013) LCA Data'!$C$2:$AB$23,16,FALSE)*D34 -> 0.00016652 | E52: =E34*HLOOKUP(B32,'GEMM (2013) LCA Data'!$C$2:$AB$23,3,FALSE)/HLOOKUP(B32,'GEMM (2013) LCA Data'!$C$2:$AB$23,2,FALSE)*12*'GEMM (2013) LCA Data'!$C$58 -> 0 | F52: =F58*1055*'GEMM (2013) LCA Data'!$C$38/1000/1000 -> 2.55557858e-05 | G52: =G34*HLOOKUP(B32,'GEMM (2013) LCA Data'!$C$2:$AB$23,3,FALSE)/HLOOKUP(B32,'GEMM (2013) LCA Data'!$C$2:$AB$23,2,FALSE)*12*'GEMM (2013) LCA Data'!$C$58 -> 0 | H52: =H58*1055*'GEMM (2013) LCA Data'!$D$38/1000/1000 -> -1.189478993e-05 | I52: =SUM(D52:H52) -> 0.0001801809959
B53: COD | D53: =HLOOKUP(B32,'GEMM (2013) LCA Data'!$C$2:$AB$23,17,FALSE)*D34 -> 0.06946 | E53: =E34*HLOOKUP(B32,'GEMM (2013) LCA Data'!$C$2:$AB$23,3,FALSE)/HLOOKUP(B32,'GEMM (2013) LCA Data'!$C$2:$AB$23,2,FALSE)*12*'GEMM (2013) LCA Data'!$C$59 -> 0 | F53: =F58*1055*'GEMM (2013) LCA Data'!$C$39/1000/1000 -> 4.228068802e-05 | G53: =G34*HLOOKUP(B32,'GEMM (2013) LCA Data'!$C$2:$AB$23,3,FALSE)/HLOOKUP(B32,'GEMM (2013) LCA Data'!$C$2:$AB$23,2,FALSE)*12*'GEMM (2013) LCA Data'!$C$59 -> 0 | H53: =H58*1055*'GEMM (2013) LCA Data'!$D$39/1000/1000 -> -3.823611292e-06 | I53: =SUM(D53:H53) -> 0.06949845708
B54: TDS | D54: =HLOOKUP(B32,'GEMM (2013) LCA Data'!$C$2:$AB$23,18,FALSE)*D34 -> 0.0072036 | E54: =E34*HLOOKUP(B32,'GEMM (2013) LCA Data'!$C$2:$AB$23,3,FALSE)/HLOOKUP(B32,'GEMM (2013) LCA Data'!$C$2:$AB$23,2,FALSE)*12*'GEMM (2013) LCA Data'!$C$60 -> 0 | F54: =F58*1055*'GEMM (2013) LCA Data'!$C$40/1000/1000 -> 0.006537947412 | G54: =G34*HLOOKUP(B32,'GEMM (2013) LCA Data'!$C$2:$AB$23,3,FALSE)/HLOOKUP(B32,'GEMM (2013) LCA Data'!$C$2:$AB$23,2,FALSE)*12*'GEMM (2013) LCA Data'!$C$60 -> 0 | H54: =H58*1055*'GEMM (2013) LCA Data'!$D$40/1000/1000 -> -0.0002211732649 | I54: =SUM(D54:H54) -> 0.01352037415
B55: Solid waste (tonne)
B56: Solid waste | D56: =HLOOKUP(B32,'GEMM (2013) LCA Data'!$C$2:$AB$23,20,FALSE)*D34 -> 0.03404 | E56: =E34*HLOOKUP(B32,'GEMM (2013) LCA Data'!$C$2:$AB$23,3,FALSE)/HLOOKUP(B32,'GEMM (2013) LCA Data'!$C$2:$AB$23,2,FALSE)*12*'GEMM (2013) LCA Data'!$C$62 -> 0 | F56: =F58*1055*'GEMM (2013) LCA Data'!$C$42/1000/1000 -> 0.001101993827 | G56: =G34*HLOOKUP(B32,'GEMM (2013) LCA Data'!$C$2:$AB$23,3,FALSE)/HLOOKUP(B32,'GEMM (2013) LCA Data'!$C$2:$AB$23,2,FALSE)*12*'GEMM (2013) LCA Data'!$C$62 -> 0 | H56: =H58*1055*'GEMM (2013) LCA Data'!$D$42/1000/1000 -> -0.0001043753487 | I56: =SUM(D56:H56) -> 0.03503761848
B57: Energy / Carbon
B58: MMBTU | D58: =HLOOKUP(B32,'GEMM (2013) LCA Data'!$C$2:$AB$23,22,FALSE)/1055*1000*D34 -> 20.2587244 | E58: =HLOOKUP(B32,'GEMM (2013) LCA Data'!$C$2:$AB$23,4,FALSE)*1000/1055*E34 -> 3.714210787 | F58: =G34*HLOOKUP(B32,'GEMM (2013) LCA Data'!$C$2:$AB$23,3,FALSE)/HLOOKUP(B32,'GEMM (2013) LCA Data'!$C$2:$AB$23,2,FALSE)*12*'GEMM (2013) LCA Data'!$C$64*1000/1055 -> 1.335481386 | G58: =HLOOKUP(B32,'GEMM (2013) LCA Data'!$C$2:$AB$23,4,FALSE)*1000/1055*G34 -> 1.238070262 | H58: =VLOOKUP(B32,'GEMM (2013) LCA Data'!$B$69:$D$90,3,FALSE)/1055*1000*H34 -> -0.5829383886 | I58: =SUM(D58:H58) -> 25.96354845
B59: MTCO2e | D59: =IF(D43="--","--",(1*D43)+(21*D44)+(310*D45)) -> 2.1193488 | E59: =IF(E43="--","--",(1*E43)+(21*E44)+(310*E45)) -> 0.3540212014 | F59: =IF(F43="--","--",(1*F43)+(21*F44)+(310*F45)) -> 0.1060446918 | G59: =IF(G43="--","--",(1*G43)+(21*G44)+(310*G45)) -> 0.1180070671 | H59: =IF(H43="--","--",(1*H43)+(21*H44)+(310*H45)) -> -0.05049376324 | I59: =SUM(D59:H59) -> 2.646927997
B62: Methanol | E62: Destruct Mass for Energy Recovery | F62: Destruct Mass in Incinerator | H62: Process | I62: Total Reductions
B63: Mass (tonne) | D63: Create C | E63: Destruct ER | F63: NG | G63: Destruct I | H63: Steam
B64: Mass | D64: ='GEMM Parameters'!$B$16 -> 0 | E64: ='GEMM Parameters'!$C$16 -> 0.69 | G64: ='GEMM Parameters'!$D$16 -> 0.23 | H64: ='GEMM Parameters'!$E$16 -> -1.25
B65: Feedstock Uses (tonne)
B66: Water | D66: 0
B67: Natural Gas | D67: 0 | F67: =F88*1055/'GEMM (2013) LCA Data'!$C$43/1000 -> 0.07471667
B68: Air | D68: 0
B69: Crude Oil | D69: 0
B70: Salt | D70: 0
B71: Sulfur | D71: 0
B72: Air emission (tonne)
B73: CO2 | D73: =HLOOKUP(B62,'GEMM (2013) LCA Data'!$C$2:$AB$23,7,FALSE)*D64 -> 0 | E73: =E64*HLOOKUP(B62,'GEMM (2013) LCA Data'!$C$2:$AB$23,3,FALSE)/HLOOKUP(B62,'GEMM (2013) LCA Data'!$C$2:$AB$23,2,FALSE)*12*'GEMM (2013) LCA Data'!$C$49 -> 0.9392625 | F73: =F88*1055*'GEMM (2013) LCA Data'!$C$29/1000/1000 -> 0.2536673767 | G73: =G64*HLOOKUP(B62,'GEMM (2013) LCA Data'!$C$2:$AB$23,3,FALSE)/HLOOKUP(B62,'GEMM (2013) LCA Data'!$C$2:$AB$23,2,FALSE)*12*'GEMM (2013) LCA Data'!$C$49 -> 0.3130875 | H73: =H88*1055*'GEMM (2013) LCA Data'!$D$29/1000/1000 -> -0.2054769786 | I73: =SUM(D73:H73) -> 1.300540398
B74: CH4 | D74: =HLOOKUP(B62,'GEMM (2013) LCA Data'!$C$2:$AB$23,8,FALSE)*D64 -> 0 | E74: =E64*HLOOKUP(B62,'GEMM (2013) LCA Data'!$C$2:$AB$23,3,FALSE)/HLOOKUP(B62,'GEMM (2013) LCA Data'!$C$2:$AB$23,2,FALSE)*12*'GEMM (2013) LCA Data'!$C$50 -> 0 | F74: =F88*1055*'GEMM (2013) LCA Data'!$C$30/1000/1000 -> 0.001250793693 | G74: =G64*HLOOKUP(B62,'GEMM (2013) LCA Data'!$C$2:$AB$23,3,FALSE)/HLOOKUP(B62,'GEMM (2013) LCA Data'!$C$2:$AB$23,2,FALSE)*12*'GEMM (2013) LCA Data'!$C$50 -> 0 | H74: =H88*1055*'GEMM (2013) LCA Data'!$D$30/1000/1000 -> -0.00037571238 | I74: 0.000875081313
B75: N2O | D75: =HLOOKUP(B62,'GEMM (2013) LCA Data'!$C$2:$AB$23,9,FALSE)*D64 -> 0 | E75: =E64*HLOOKUP(B62,'GEMM (2013) LCA Data'!$C$2:$AB$23,3,FALSE)/HLOOKUP(B62,'GEMM (2013) LCA Data'!$C$2:$AB$23,2,FALSE)*12*'GEMM (2013) LCA Data'!$C$51 -> 0 | F75: =F88*1055*'GEMM (2013) LCA Data'!$C$31/1000/1000 -> 4.567028291e-06 | G75: =G64*HLOOKUP(B62,'GEMM (2013) LCA Data'!$C$2:$AB$23,3,FALSE)/HLOOKUP(B62,'GEMM (2013) LCA Data'!$C$2:$AB$23,2,FALSE)*12*'GEMM (2013) LCA Data'!$C$51 -> 0 | H75: =H88*1055*'GEMM (2013) LCA Data'!$D$31/1000/1000 -> 0 | I75: 4.567028291e-06
B76: CO | D76: =HLOOKUP(B62,'GEMM (2013) LCA Data'!$C$2:$AB$23,10,FALSE)*D64 -> 0 | E76: =E64*HLOOKUP(B62,'GEMM (2013) LCA Data'!$C$2:$AB$23,3,FALSE)/HLOOKUP(B62,'GEMM (2013) LCA Data'!$C$2:$AB$23,2,FALSE)*12*'GEMM (2013) LCA Data'!$C$52 -> 0.000414 | F76: =F88*1055*'GEMM (2013) LCA Data'!$C$32/1000/1000 -> 0.000159317474 | G76: =G64*HLOOKUP(B62,'GEMM (2013) LCA Data'!$C$2:$AB$23,3,FALSE)/HLOOKUP(B62,'GEMM (2013) LCA Data'!$C$2:$AB$23,2,FALSE)*12*'GEMM (2013) LCA Data'!$C$52 -> 0.000138 | H76: =H88*1055*'GEMM (2013) LCA Data'!$D$32/1000/1000 -> -0.0001437501877 | I76: 0.0005675672863
B77: NMVOC | D77: =HLOOKUP(B62,'GEMM (2013) LCA Data'!$C$2:$AB$23,11,FALSE)*D64 -> 0 | E77: =E64*HLOOKUP(B62,'GEMM (2013) LCA Data'!$C$2:$AB$23,3,FALSE)/HLOOKUP(B62,'GEMM (2013) LCA Data'!$C$2:$AB$23,2,FALSE)*12*'GEMM (2013) LCA Data'!$C$53 -> 4.14e-05 | F77: =F88*1055*'GEMM (2013) LCA Data'!$C$33/1000/1000 -> 7.809687738e-08 | G77: =G64*HLOOKUP(B62,'GEMM (2013) LCA Data'!$C$2:$AB$23,3,FALSE)/HLOOKUP(B62,'GEMM (2013) LCA Data'!$C$2:$AB$23,2,FALSE)*12*'GEMM (2013) LCA Data'!$C$53 -> 1.38e-05 | H77: =H88*1055*'GEMM (2013) LCA Data'!$D$33/1000/1000 -> -0.001044309922 | I77: -0.0009890318249
B78: NOx | D78: =HLOOKUP(B62,'GEMM (2013) LCA Data'!$C$2:$AB$23,12,FALSE)*D64 -> 0 | E78: =E64*HLOOKUP(B62,'GEMM (2013) LCA Data'!$C$2:$AB$23,3,FALSE)/HLOOKUP(B62,'GEMM (2013) LCA Data'!$C$2:$AB$23,2,FALSE)*12*'GEMM (2013) LCA Data'!$C$54 -> 0 | F78: =F88*1055*'GEMM (2013) LCA Data'!$C$34/1000/1000 -> 0.0001668120191 | G78: =G64*HLOOKUP(B62,'GEMM (2013) LCA Data'!$C$2:$AB$23,3,FALSE)/HLOOKUP(B62,'GEMM (2013) LCA Data'!$C$2:$AB$23,2,FALSE)*12*'GEMM (2013) LCA Data'!$C$54 -> 0 | H78: =H88*1055*'GEMM (2013) LCA Data'!$D$34/1000/1000 -> -0.0006763659068 | I78: -0.0005095538877
B79: SOx | D79: =HLOOKUP(B62,'GEMM (2013) LCA Data'!$C$2:$AB$23,13,FALSE)*D64 -> 0 | E79: =E64*HLOOKUP(B62,'GEMM (2013) LCA Data'!$C$2:$AB$23,3,FALSE)/HLOOKUP(B62,'GEMM (2013) LCA Data'!$C$2:$AB$23,2,FALSE)*12*'GEMM (2013) LCA Data'!$C$55 -> 0 | F79: =F88*1055*'GEMM (2013) LCA Data'!$C$35/1000/1000 -> 0.002150609686 | G79: =G64*HLOOKUP(B62,'GEMM (2013) LCA Data'!$C$2:$AB$23,3,FALSE)/HLOOKUP(B62,'GEMM (2013) LCA Data'!$C$2:$AB$23,2,FALSE)*12*'GEMM (2013) LCA Data'!$C$55 -> 0 | H79: =H88*1055*'GEMM (2013) LCA Data'!$D$35/1000/1000 -> -0.000899647567 | I79: 0.001250962119
B80: Water emission (tonne)
B81: TOC | D81: =HLOOKUP(B62,'GEMM (2013) LCA Data'!$C$2:$AB$23,15,FALSE)*D64 -> 0 | E81: =E64*HLOOKUP(B62,'GEMM (2013) LCA Data'!$C$2:$AB$23,3,FALSE)/HLOOKUP(B62,'GEMM (2013) LCA Data'!$C$2:$AB$23,2,FALSE)*12*'GEMM (2013) LCA Data'!$C$57 -> 0 | F81: =F88*1055*'GEMM (2013) LCA Data'!$C$37/1000/1000 -> 3.922236028e-05 | G81: =G64*HLOOKUP(B62,'GEMM (2013) LCA Data'!$C$2:$AB$23,3,FALSE)/HLOOKUP(B62,'GEMM (2013) LCA Data'!$C$2:$AB$23,2,FALSE)*12*'GEMM (2013) LCA Data'!$C$57 -> 0 | H81: =H88*1055*'GEMM (2013) LCA Data'!$D$37/1000/1000 -> -5.64933188e-06 | I81: =SUM(D81:H81) -> 3.35730284e-05
B82: BOD | D82: =HLOOKUP(B62,'GEMM (2013) LCA Data'!$C$2:$AB$23,16,FALSE)*D64 -> 0 | E82: =E64*HLOOKUP(B62,'GEMM (2013) LCA Data'!$C$2:$AB$23,3,FALSE)/HLOOKUP(B62,'GEMM (2013) LCA Data'!$C$2:$AB$23,2,FALSE)*12*'GEMM (2013) LCA Data'!$C$58 -> 0 | F82: =F88*1055*'GEMM (2013) LCA Data'!$C$38/1000/1000 -> 6.780269419e-05 | G82: =G64*HLOOKUP(B62,'GEMM (2013) LCA Data'!$C$2:$AB$23,3,FALSE)/HLOOKUP(B62,'GEMM (2013) LCA Data'!$C$2:$AB$23,2,FALSE)*12*'GEMM (2013) LCA Data'!$C$58 -> 0 | H82: =H88*1055*'GEMM (2013) LCA Data'!$D$38/1000/1000 -> -5.026274037e-05 | I82: =SUM(D82:H82) -> 1.753995382e-05
B83: COD | D83: =HLOOKUP(B62,'GEMM (2013) LCA Data'!$C$2:$AB$23,17,FALSE)*D64 -> 0 | E83: =E64*HLOOKUP(B62,'GEMM (2013) LCA Data'!$C$2:$AB$23,3,FALSE)/HLOOKUP(B62,'GEMM (2013) LCA Data'!$C$2:$AB$23,2,FALSE)*12*'GEMM (2013) LCA Data'!$C$59 -> 0 | F83: =F88*1055*'GEMM (2013) LCA Data'!$C$39/1000/1000 -> 0.0001121759504 | G83: =G64*HLOOKUP(B62,'GEMM (2013) LCA Data'!$C$2:$AB$23,3,FALSE)/HLOOKUP(B62,'GEMM (2013) LCA Data'!$C$2:$AB$23,2,FALSE)*12*'GEMM (2013) LCA Data'!$C$59 -> 0 | H83: =H88*1055*'GEMM (2013) LCA Data'!$D$39/1000/1000 -> -1.615708918e-05 | I83: =SUM(D83:H83) -> 9.601886123e-05
B84: TDS | D84: =HLOOKUP(B62,'GEMM (2013) LCA Data'!$C$2:$AB$23,18,FALSE)*D64 -> 0 | E84: =E64*HLOOKUP(B62,'GEMM (2013) LCA Data'!$C$2:$AB$23,3,FALSE)/HLOOKUP(B62,'GEMM (2013) LCA Data'!$C$2:$AB$23,2,FALSE)*12*'GEMM (2013) LCA Data'!$C$60 -> 0 | F84: =F88*1055*'GEMM (2013) LCA Data'!$C$40/1000/1000 -> 0.01734599173 | G84: =G64*HLOOKUP(B62,'GEMM (2013) LCA Data'!$C$2:$AB$23,3,FALSE)/HLOOKUP(B62,'GEMM (2013) LCA Data'!$C$2:$AB$23,2,FALSE)*12*'GEMM (2013) LCA Data'!$C$60 -> 0 | H84: =H88*1055*'GEMM (2013) LCA Data'!$D$40/1000/1000 -> -0.0009345919058 | I84: =SUM(D84:H84) -> 0.01641139982
B85: Solid waste (tonne)
B86: Solid waste | D86: =HLOOKUP(B62,'GEMM (2013) LCA Data'!$C$2:$AB$23,20,FALSE)*D64 -> 0 | E86: =E64*HLOOKUP(B62,'GEMM (2013) LCA Data'!$C$2:$AB$23,3,FALSE)/HLOOKUP(B62,'GEMM (2013) LCA Data'!$C$2:$AB$23,2,FALSE)*12*'GEMM (2013) LCA Data'!$C$62 -> 0 | F86: =F88*1055*'GEMM (2013) LCA Data'!$C$42/1000/1000 -> 0.002923727373 | G86: =G64*HLOOKUP(B62,'GEMM (2013) LCA Data'!$C$2:$AB$23,3,FALSE)/HLOOKUP(B62,'GEMM (2013) LCA Data'!$C$2:$AB$23,2,FALSE)*12*'GEMM (2013) LCA Data'!$C$62 -> 0 | H86: =H88*1055*'GEMM (2013) LCA Data'!$D$42/1000/1000 -> -0.0004410494918 | I86: =SUM(D86:H86) -> 0.002482677881
B87: Energy / Carbon
B88: MMBTU | D88: =HLOOKUP(B62,'GEMM (2013) LCA Data'!$C$2:$AB$23,22,FALSE)/1055*1000*D64 -> 0 | E88: =HLOOKUP(B62,'GEMM (2013) LCA Data'!$C$2:$AB$23,4,FALSE)*1000/1055*E64 -> 10.80077871 | F88: =G64*HLOOKUP(B62,'GEMM (2013) LCA Data'!$C$2:$AB$23,3,FALSE)/HLOOKUP(B62,'GEMM (2013) LCA Data'!$C$2:$AB$23,2,FALSE)*12*'GEMM (2013) LCA Data'!$C$64*1000/1055 -> 3.543199052 | G88: =HLOOKUP(B62,'GEMM (2013) LCA Data'!$C$2:$AB$23,4,FALSE)*1000/1055*G64 -> 3.600259571 | H88: =VLOOKUP(B62,'GEMM (2013) LCA Data'!$B$69:$D$90,3,FALSE)/1055*1000*H64 -> -2.463270142 | I88: =SUM(D88:H88) -> 15.4809672
B89: MTCO2e | D89: =IF(D73="--","--",(1*D73)+(21*D74)+(310*D75)) -> 0 | E89: =IF(E73="--","--",(1*E73)+(21*E74)+(310*E75)) -> 0.9392625 | F89: =IF(F73="--","--",(1*F73)+(21*F74)+(310*F75)) -> 0.281349823 | G89: =IF(G73="--","--",(1*G73)+(21*G74)+(310*G75)) -> 0.3130875 | H89: =IF(H73="--","--",(1*H73)+(21*H74)+(310*H75)) -> -0.2133669386 | I89: =SUM(D89:H89) -> 1.320332884
B92: Toluene | E92: Destruct Mass for Energy Recovery | F92: Destruct Mass in Incinerator | H92: Process | I92: TOTAL Reductions
B93: Mass (tonne) | D93: Create C | E93: Destruct ER | F93: NG | G93: Destruct I | H93: Steam
B94: Mass | D94: ='GEMM Parameters'!$B$16 -> 0 | E94: ='GEMM Parameters'!$C$16 -> 0.69 | G94: ='GEMM Parameters'!$D$16 -> 0.23 | H94: ='GEMM Parameters'!$E$16 -> -1.25
B95: Feedstock Uses (tonne)
B96: Water | D96: 0
B97: Natural Gas | D97: 0 | F97: =F118*1055/'GEMM (2013) LCA Data'!$C$43/1000 -> 0.1816424363
B98: Air | D98: 0
B99: Crude Oil | D99: 0
B100: Salt | D100: 0
B101: Sulfur | D101: 0
B102: Air emission (tonne)
B103: CO2 | D103: =HLOOKUP(B92,'GEMM (2013) LCA Data'!$C$2:$AB$23,7,FALSE)*D94 -> 0 | E103: =E94*HLOOKUP(B92,'GEMM (2013) LCA Data'!$C$2:$AB$23,3,FALSE)/HLOOKUP(B92,'GEMM (2013) LCA Data'!$C$2:$AB$23,2,FALSE)*12*'GEMM (2013) LCA Data'!$C$49 -> 2.283425222 | F103: =F118*1055*'GEMM (2013) LCA Data'!$C$29/1000/1000 -> 0.6166864812 | G103: =G94*HLOOKUP(B92,'GEMM (2013) LCA Data'!$C$2:$AB$23,3,FALSE)/HLOOKUP(B92,'GEMM (2013) LCA Data'!$C$2:$AB$23,2,FALSE)*12*'GEMM (2013) LCA Data'!$C$49 -> 0.7611417408 | H103: =H118*1055*'GEMM (2013) LCA Data'!$D$29/1000/1000 -> -0.06631796664 | I103: =SUM(D103:H103) -> 3.594935478
B104: CH4 | D104: =HLOOKUP(B92,'GEMM (2013) LCA Data'!$C$2:$AB$23,8,FALSE)*D94 -> 0 | E104: =E94*HLOOKUP(B92,'GEMM (2013) LCA Data'!$C$2:$AB$23,3,FALSE)/HLOOKUP(B92,'GEMM (2013) LCA Data'!$C$2:$AB$23,2,FALSE)*12*'GEMM (2013) LCA Data'!$C$50 -> 0 | F104: =F118*1055*'GEMM (2013) LCA Data'!$C$30/1000/1000 -> 0.003040783452 | G104: =G94*HLOOKUP(B92,'GEMM (2013) LCA Data'!$C$2:$AB$23,3,FALSE)/HLOOKUP(B92,'GEMM (2013) LCA Data'!$C$2:$AB$23,2,FALSE)*12*'GEMM (2013) LCA Data'!$C$50 -> 0 | H104: =H118*1055*'GEMM (2013) LCA Data'!$D$30/1000/1000 -> -0.0001212616676 | I104: 0.002919521784
B105: N2O | D105: =HLOOKUP(B92,'GEMM (2013) LCA Data'!$C$2:$AB$23,9,FALSE)*D94 -> 0 | E105: =E94*HLOOKUP(B92,'GEMM (2013) LCA Data'!$C$2:$AB$23,3,FALSE)/HLOOKUP(B92,'GEMM (2013) LCA Data'!$C$2:$AB$23,2,FALSE)*12*'GEMM (2013) LCA Data'!$C$51 -> 0 | F105: =F118*1055*'GEMM (2013) LCA Data'!$C$31/1000/1000 -> 1.110282545e-05 | G105: =G94*HLOOKUP(B92,'GEMM (2013) LCA Data'!$C$2:$AB$23,3,FALSE)/HLOOKUP(B92,'GEMM (2013) LCA Data'!$C$2:$AB$23,2,FALSE)*12*'GEMM (2013) LCA Data'!$C$51 -> 0 | H105: =H118*1055*'GEMM (2013) LCA Data'!$D$31/1000/1000 -> 0 | I105: 1.110282545e-05
B106: CO | D106: =HLOOKUP(B92,'GEMM (2013) LCA Data'!$C$2:$AB$23,10,FALSE)*D94 -> 0 | E106: =E94*HLOOKUP(B92,'GEMM (2013) LCA Data'!$C$2:$AB$23,3,FALSE)/HLOOKUP(B92,'GEMM (2013) LCA Data'!$C$2:$AB$23,2,FALSE)*12*'GEMM (2013) LCA Data'!$C$52 -> 0.001006468418 | F106: =F118*1055*'GEMM (2013) LCA Data'!$C$32/1000/1000 -> 0.000387314024 | G106: =G94*HLOOKUP(B92,'GEMM (2013) LCA Data'!$C$2:$AB$23,3,FALSE)/HLOOKUP(B92,'GEMM (2013) LCA Data'!$C$2:$AB$23,2,FALSE)*12*'GEMM (2013) LCA Data'!$C$52 -> 0.0003354894725 | H106: =H118*1055*'GEMM (2013) LCA Data'!$D$32/1000/1000 -> -4.639556323e-05 | I106: 0.001682876351
B107: NMVOC | D107: =HLOOKUP(B92,'GEMM (2013) LCA Data'!$C$2:$AB$23,11,FALSE)*D94 -> 0 | E107: =E94*HLOOKUP(B92,'GEMM (2013) LCA Data'!$C$2:$AB$23,3,FALSE)/HLOOKUP(B92,'GEMM (2013) LCA Data'!$C$2:$AB$23,2,FALSE)*12*'GEMM (2013) LCA Data'!$C$53 -> 0.0001006468418 | F107: =F118*1055*'GEMM (2013) LCA Data'!$C$33/1000/1000 -> 1.898600014e-07 | G107: =G94*HLOOKUP(B92,'GEMM (2013) LCA Data'!$C$2:$AB$23,3,FALSE)/HLOOKUP(B92,'GEMM (2013) LCA Data'!$C$2:$AB$23,2,FALSE)*12*'GEMM (2013) LCA Data'!$C$53 -> 3.354894725e-05 | H107: =H118*1055*'GEMM (2013) LCA Data'!$D$33/1000/1000 -> -0.0003370524086 | I107: -0.0002026667596
B108: NOx | D108: =HLOOKUP(B92,'GEMM (2013) LCA Data'!$C$2:$AB$23,12,FALSE)*D94 -> 0 | E108: =E94*HLOOKUP(B92,'GEMM (2013) LCA Data'!$C$2:$AB$23,3,FALSE)/HLOOKUP(B92,'GEMM (2013) LCA Data'!$C$2:$AB$23,2,FALSE)*12*'GEMM (2013) LCA Data'!$C$54 -> 0 | F108: =F118*1055*'GEMM (2013) LCA Data'!$C$34/1000/1000 -> 0.0004055338863 | G108: =G94*HLOOKUP(B92,'GEMM (2013) LCA Data'!$C$2:$AB$23,3,FALSE)/HLOOKUP(B92,'GEMM (2013) LCA Data'!$C$2:$AB$23,2,FALSE)*12*'GEMM (2013) LCA Data'!$C$54 -> 0 | H108: =H118*1055*'GEMM (2013) LCA Data'!$D$34/1000/1000 -> -0.0002182979911 | I108: 0.0001872358952
B109: SOx | D109: =HLOOKUP(B92,'GEMM (2013) LCA Data'!$C$2:$AB$23,13,FALSE)*D94 -> 0 | E109: =E94*HLOOKUP(B92,'GEMM (2013) LCA Data'!$C$2:$AB$23,3,FALSE)/HLOOKUP(B92,'GEMM (2013) LCA Data'!$C$2:$AB$23,2,FALSE)*12*'GEMM (2013) LCA Data'!$C$55 -> 0 | F109: =F118*1055*'GEMM (2013) LCA Data'!$C$35/1000/1000 -> 0.005228310937 | G109: =G94*HLOOKUP(B92,'GEMM (2013) LCA Data'!$C$2:$AB$23,3,FALSE)/HLOOKUP(B92,'GEMM (2013) LCA Data'!$C$2:$AB$23,2,FALSE)*12*'GEMM (2013) LCA Data'!$C$55 -> 0 | H109: =H118*1055*'GEMM (2013) LCA Data'!$D$35/1000/1000 -> -0.0002903624423 | I109: 0.004937948495
B110: Water emission (tonne)
B111: TOC | D111: =HLOOKUP(B92,'GEMM (2013) LCA Data'!$C$2:$AB$23,15,FALSE)*D94 -> 0 | E111: =E94*HLOOKUP(B92,'GEMM (2013) LCA Data'!$C$2:$AB$23,3,FALSE)/HLOOKUP(B92,'GEMM (2013) LCA Data'!$C$2:$AB$23,2,FALSE)*12*'GEMM (2013) LCA Data'!$C$57 -> 0 | F111: =F118*1055*'GEMM (2013) LCA Data'!$C$37/1000/1000 -> 9.535281857e-05 | G111: =G94*HLOOKUP(B92,'GEMM (2013) LCA Data'!$C$2:$AB$23,3,FALSE)/HLOOKUP(B92,'GEMM (2013) LCA Data'!$C$2:$AB$23,2,FALSE)*12*'GEMM (2013) LCA Data'!$C$57 -> 0 | H111: =H118*1055*'GEMM (2013) LCA Data'!$D$37/1000/1000 -> -1.823329337e-06 | I111: =SUM(D111:H111) -> 9.352948924e-05
B112: BOD | D112: =HLOOKUP(B92,'GEMM (2013) LCA Data'!$C$2:$AB$23,16,FALSE)*D94 -> 0 | E112: =E94*HLOOKUP(B92,'GEMM (2013) LCA Data'!$C$2:$AB$23,3,FALSE)/HLOOKUP(B92,'GEMM (2013) LCA Data'!$C$2:$AB$23,2,FALSE)*12*'GEMM (2013) LCA Data'!$C$58 -> 0 | F112: =F118*1055*'GEMM (2013) LCA Data'!$C$38/1000/1000 -> 0.0001648339863 | G112: =G94*HLOOKUP(B92,'GEMM (2013) LCA Data'!$C$2:$AB$23,3,FALSE)/HLOOKUP(B92,'GEMM (2013) LCA Data'!$C$2:$AB$23,2,FALSE)*12*'GEMM (2013) LCA Data'!$C$58 -> 0 | H112: =H118*1055*'GEMM (2013) LCA Data'!$D$38/1000/1000 -> -1.622236594e-05 | I112: =SUM(D112:H112) -> 0.0001486116204
B113: COD | D113: =HLOOKUP(B92,'GEMM (2013) LCA Data'!$C$2:$AB$23,17,FALSE)*D94 -> 0 | E113: =E94*HLOOKUP(B92,'GEMM (2013) LCA Data'!$C$2:$AB$23,3,FALSE)/HLOOKUP(B92,'GEMM (2013) LCA Data'!$C$2:$AB$23,2,FALSE)*12*'GEMM (2013) LCA Data'!$C$59 -> 0 | F113: =F118*1055*'GEMM (2013) LCA Data'!$C$39/1000/1000 -> 0.0002727090611 | G113: =G94*HLOOKUP(B92,'GEMM (2013) LCA Data'!$C$2:$AB$23,3,FALSE)/HLOOKUP(B92,'GEMM (2013) LCA Data'!$C$2:$AB$23,2,FALSE)*12*'GEMM (2013) LCA Data'!$C$59 -> 0 | H113: =H118*1055*'GEMM (2013) LCA Data'!$D$39/1000/1000 -> -5.214721904e-06 | I113: =SUM(D113:H113) -> 0.0002674943392
B114: TDS | D114: =HLOOKUP(B92,'GEMM (2013) LCA Data'!$C$2:$AB$23,18,FALSE)*D94 -> 0 | E114: =E94*HLOOKUP(B92,'GEMM (2013) LCA Data'!$C$2:$AB$23,3,FALSE)/HLOOKUP(B92,'GEMM (2013) LCA Data'!$C$2:$AB$23,2,FALSE)*12*'GEMM (2013) LCA Data'!$C$60 -> 0 | F114: =F118*1055*'GEMM (2013) LCA Data'!$C$40/1000/1000 -> 0.04216954794 | G114: =G94*HLOOKUP(B92,'GEMM (2013) LCA Data'!$C$2:$AB$23,3,FALSE)/HLOOKUP(B92,'GEMM (2013) LCA Data'!$C$2:$AB$23,2,FALSE)*12*'GEMM (2013) LCA Data'!$C$60 -> 0 | H114: =H118*1055*'GEMM (2013) LCA Data'!$D$40/1000/1000 -> -0.0003016407738 | I114: =SUM(D114:H114) -> 0.04186790716
B115: Solid waste (tonne)
B116: Solid waste | D116: =HLOOKUP(B92,'GEMM (2013) LCA Data'!$C$2:$AB$23,20,FALSE)*D94 -> 0 | E116: =E94*HLOOKUP(B92,'GEMM (2013) LCA Data'!$C$2:$AB$23,3,FALSE)/HLOOKUP(B92,'GEMM (2013) LCA Data'!$C$2:$AB$23,2,FALSE)*12*'GEMM (2013) LCA Data'!$C$62 -> 0 | F116: =F118*1055*'GEMM (2013) LCA Data'!$C$42/1000/1000 -> 0.007107824305 | G116: =G94*HLOOKUP(B92,'GEMM (2013) LCA Data'!$C$2:$AB$23,3,FALSE)/HLOOKUP(B92,'GEMM (2013) LCA Data'!$C$2:$AB$23,2,FALSE)*12*'GEMM (2013) LCA Data'!$C$62 -> 0 | H116: =H118*1055*'GEMM (2013) LCA Data'!$D$42/1000/1000 -> -0.0001423493069 | I116: =SUM(D116:H116) -> 0.006965474998
B117: Energy / Carbon
B118: MMBTU | D118: =HLOOKUP(B92,'GEMM (2013) LCA Data'!$C$2:$AB$23,22,FALSE)/1055*1000*D94 -> 0 | E118: =HLOOKUP(B92,'GEMM (2013) LCA Data'!$C$2:$AB$23,4,FALSE)*1000/1055*E94 -> 23.48215381 | F118: =G94*HLOOKUP(B92,'GEMM (2013) LCA Data'!$C$2:$AB$23,3,FALSE)/HLOOKUP(B92,'GEMM (2013) LCA Data'!$C$2:$AB$23,2,FALSE)*12*'GEMM (2013) LCA Data'!$C$64*1000/1055 -> 8.613811457 | G118: =HLOOKUP(B92,'GEMM (2013) LCA Data'!$C$2:$AB$23,4,FALSE)*1000/1055*G94 -> 7.827384604 | H118: =VLOOKUP(B92,'GEMM (2013) LCA Data'!$B$69:$D$90,3,FALSE)/1055*1000*H94 -> -0.7950236967 | I118: =SUM(D118:H118) -> 39.12832618
B119: MTCO2e | D119: =IF(D103="--","--",(1*D103)+(21*D104)+(310*D105)) -> 0 | E119: =IF(E103="--","--",(1*E103)+(21*E104)+(310*E105)) -> 2.283425222 | F119: =IF(F103="--","--",(1*F103)+(21*F104)+(310*F105)) -> 0.6839848095 | G119: =IF(G103="--","--",(1*G103)+(21*G104)+(310*G105)) -> 0.7611417408 | H119: =IF(H103="--","--",(1*H103)+(21*H104)+(310*H105)) -> -0.06886446166 | I119: =SUM(D119:H119) -> 3.659687311
B122: Cyclohexane | E122: Destruct Mass for Energy Recovery | F122: Destruct Mass in Incinerator | H122: No Destruction | I122: TOTAL Reductions
B123: Mass (tonne) | D123: Create C | E123: Destruct ER | F123: NG | G123: Destruct I | H123: Steam
B124: Mass | D124: ='GEMM Parameters'!$B$16 -> 0 | E124: ='GEMM Parameters'!$C$16 -> 0.69 | G124: ='GEMM Parameters'!$D$16 -> 0.23 | H124: ='GEMM Parameters'!$E$16 -> -1.25
B125: Feedstock Uses (tonne)
B126: Water | D126: 0
B127: Natural Gas | D127: 0 | F127: =F148*1055/'GEMM (2013) LCA Data'!$C$43/1000 -> 0.1704562814
B128: Air | D128: 0
B129: Crude Oil | D129: 0
B130: Salt | D130: 0
B131: Sulfur | D131: 0
B132: Air emission (tonne)
B133: CO2 | D133: =HLOOKUP(B122,'GEMM (2013) LCA Data'!$C$2:$AB$23,7,FALSE)*D124 -> 0 | E133: =E124*HLOOKUP(B122,'GEMM (2013) LCA Data'!$C$2:$AB$23,3,FALSE)/HLOOKUP(B122,'GEMM (2013) LCA Data'!$C$2:$AB$23,2,FALSE)*12*'GEMM (2013) LCA Data'!$C$49 -> 2.142804183 | F133: =F148*1055*'GEMM (2013) LCA Data'!$C$29/1000/1000 -> 0.5787088441 | G133: =G124*HLOOKUP(B122,'GEMM (2013) LCA Data'!$C$2:$AB$23,3,FALSE)/HLOOKUP(B122,'GEMM (2013) LCA Data'!$C$2:$AB$23,2,FALSE)*12*'GEMM (2013) LCA Data'!$C$49 -> 0.7142680608 | H133: =H148*1055*'GEMM (2013) LCA Data'!$D$29/1000/1000 -> -0.07145736196 | I133: =SUM(D133:H133) -> 3.364323725
B134: CH4 | D134: =HLOOKUP(B122,'GEMM (2013) LCA Data'!$C$2:$AB$23,8,FALSE)*D124 -> 0 | E134: =E124*HLOOKUP(B122,'GEMM (2013) LCA Data'!$C$2:$AB$23,3,FALSE)/HLOOKUP(B122,'GEMM (2013) LCA Data'!$C$2:$AB$23,2,FALSE)*12*'GEMM (2013) LCA Data'!$C$50 -> 0 | F134: =F148*1055*'GEMM (2013) LCA Data'!$C$30/1000/1000 -> 0.002853521733 | G134: =G124*HLOOKUP(B122,'GEMM (2013) LCA Data'!$C$2:$AB$23,3,FALSE)/HLOOKUP(B122,'GEMM (2013) LCA Data'!$C$2:$AB$23,2,FALSE)*12*'GEMM (2013) LCA Data'!$C$50 -> 0 | H134: =H148*1055*'GEMM (2013) LCA Data'!$D$30/1000/1000 -> -0.0001306589951 | I134: 0.002722862738
B135: N2O | D135: =HLOOKUP(B122,'GEMM (2013) LCA Data'!$C$2:$AB$23,9,FALSE)*D124 -> 0 | E135: =E124*HLOOKUP(B122,'GEMM (2013) LCA Data'!$C$2:$AB$23,3,FALSE)/HLOOKUP(B122,'GEMM (2013) LCA Data'!$C$2:$AB$23,2,FALSE)*12*'GEMM (2013) LCA Data'!$C$51 -> 0 | F135: =F148*1055*'GEMM (2013) LCA Data'!$C$31/1000/1000 -> 1.041907595e-05 | G135: =G124*HLOOKUP(B122,'GEMM (2013) LCA Data'!$C$2:$AB$23,3,FALSE)/HLOOKUP(B122,'GEMM (2013) LCA Data'!$C$2:$AB$23,2,FALSE)*12*'GEMM (2013) LCA Data'!$C$51 -> 0 | H135: =H148*1055*'GEMM (2013) LCA Data'!$D$31/1000/1000 -> 0 | I135: 1.041907595e-05
B136: CO | D136: =HLOOKUP(B122,'GEMM (2013) LCA Data'!$C$2:$AB$23,10,FALSE)*D124 -> 0 | E136: =E124*HLOOKUP(B122,'GEMM (2013) LCA Data'!$C$2:$AB$23,3,FALSE)/HLOOKUP(B122,'GEMM (2013) LCA Data'!$C$2:$AB$23,2,FALSE)*12*'GEMM (2013) LCA Data'!$C$52 -> 0.000944486692 | F136: =F148*1055*'GEMM (2013) LCA Data'!$C$32/1000/1000 -> 0.0003634619179 | G136: =G124*HLOOKUP(B122,'GEMM (2013) LCA Data'!$C$2:$AB$23,3,FALSE)/HLOOKUP(B122,'GEMM (2013) LCA Data'!$C$2:$AB$23,2,FALSE)*12*'GEMM (2013) LCA Data'!$C$52 -> 0.0003148288973 | H136: =H148*1055*'GEMM (2013) LCA Data'!$D$32/1000/1000 -> -4.999104652e-05 | I136: 0.001572786461
B137: NMVOC | D137: =HLOOKUP(B122,'GEMM (2013) LCA Data'!$C$2:$AB$23,11,FALSE)*D124 -> 0 | E137: =E124*HLOOKUP(B122,'GEMM (2013) LCA Data'!$C$2:$AB$23,3,FALSE)/HLOOKUP(B122,'GEMM (2013) LCA Data'!$C$2:$AB$23,2,FALSE)*12*'GEMM (2013) LCA Data'!$C$53 -> 9.44486692e-05 | F137: =F148*1055*'GEMM (2013) LCA Data'!$C$33/1000/1000 -> 1.781677811e-07 | G137: =G124*HLOOKUP(B122,'GEMM (2013) LCA Data'!$C$2:$AB$23,3,FALSE)/HLOOKUP(B122,'GEMM (2013) LCA Data'!$C$2:$AB$23,2,FALSE)*12*'GEMM (2013) LCA Data'!$C$53 -> 3.148288973e-05 | H137: =H148*1055*'GEMM (2013) LCA Data'!$D$33/1000/1000 -> -0.0003631727145 | I137: -0.0002370629878
B138: NOx | D138: =HLOOKUP(B122,'GEMM (2013) LCA Data'!$C$2:$AB$23,12,FALSE)*D124 -> 0 | E138: =E124*HLOOKUP(B122,'GEMM (2013) LCA Data'!$C$2:$AB$23,3,FALSE)/HLOOKUP(B122,'GEMM (2013) LCA Data'!$C$2:$AB$23,2,FALSE)*12*'GEMM (2013) LCA Data'!$C$54 -> 0 | F138: =F148*1055*'GEMM (2013) LCA Data'!$C$34/1000/1000 -> 0.0003805597394 | G138: =G124*HLOOKUP(B122,'GEMM (2013) LCA Data'!$C$2:$AB$23,3,FALSE)/HLOOKUP(B122,'GEMM (2013) LCA Data'!$C$2:$AB$23,2,FALSE)*12*'GEMM (2013) LCA Data'!$C$54 -> 0 | H138: =H148*1055*'GEMM (2013) LCA Data'!$D$34/1000/1000 -> -0.0002352152721 | I138: 0.0001453444673
B139: SOx | D139: =HLOOKUP(B122,'GEMM (2013) LCA Data'!$C$2:$AB$23,13,FALSE)*D124 -> 0 | E139: =E124*HLOOKUP(B122,'GEMM (2013) LCA Data'!$C$2:$AB$23,3,FALSE)/HLOOKUP(B122,'GEMM (2013) LCA Data'!$C$2:$AB$23,2,FALSE)*12*'GEMM (2013) LCA Data'!$C$55 -> 0 | F139: =F148*1055*'GEMM (2013) LCA Data'!$C$35/1000/1000 -> 0.004906333885 | G139: =G124*HLOOKUP(B122,'GEMM (2013) LCA Data'!$C$2:$AB$23,3,FALSE)/HLOOKUP(B122,'GEMM (2013) LCA Data'!$C$2:$AB$23,2,FALSE)*12*'GEMM (2013) LCA Data'!$C$55 -> 0 | H139: =H148*1055*'GEMM (2013) LCA Data'!$D$35/1000/1000 -> -0.0003128644497 | I139: 0.004593469435
B140: Water emission (tonne)
B141: TOC | D141: =HLOOKUP(B122,'GEMM (2013) LCA Data'!$C$2:$AB$23,15,FALSE)*D124 -> 0 | E141: =E124*HLOOKUP(B122,'GEMM (2013) LCA Data'!$C$2:$AB$23,3,FALSE)/HLOOKUP(B122,'GEMM (2013) LCA Data'!$C$2:$AB$23,2,FALSE)*12*'GEMM (2013) LCA Data'!$C$57 -> 0 | F141: =F148*1055*'GEMM (2013) LCA Data'!$C$37/1000/1000 -> 8.948066985e-05 | G141: =G124*HLOOKUP(B122,'GEMM (2013) LCA Data'!$C$2:$AB$23,3,FALSE)/HLOOKUP(B122,'GEMM (2013) LCA Data'!$C$2:$AB$23,2,FALSE)*12*'GEMM (2013) LCA Data'!$C$57 -> 0 | H141: =H148*1055*'GEMM (2013) LCA Data'!$D$37/1000/1000 -> -1.964630567e-06 | I141: =SUM(D141:H141) -> 8.751603928e-05
B142: BOD | D142: =HLOOKUP(B122,'GEMM (2013) LCA Data'!$C$2:$AB$23,16,FALSE)*D124 -> 0 | E142: =E124*HLOOKUP(B122,'GEMM (2013) LCA Data'!$C$2:$AB$23,3,FALSE)/HLOOKUP(B122,'GEMM (2013) LCA Data'!$C$2:$AB$23,2,FALSE)*12*'GEMM (2013) LCA Data'!$C$58 -> 0 | F142: =F148*1055*'GEMM (2013) LCA Data'!$C$38/1000/1000 -> 0.0001546829525 | G142: =G124*HLOOKUP(B122,'GEMM (2013) LCA Data'!$C$2:$AB$23,3,FALSE)/HLOOKUP(B122,'GEMM (2013) LCA Data'!$C$2:$AB$23,2,FALSE)*12*'GEMM (2013) LCA Data'!$C$58 -> 0 | H142: =H148*1055*'GEMM (2013) LCA Data'!$D$38/1000/1000 -> -1.747953886e-05 | I142: =SUM(D142:H142) -> 0.0001372034137
B143: COD | D143: =HLOOKUP(B122,'GEMM (2013) LCA Data'!$C$2:$AB$23,17,FALSE)*D124 -> 0 | E143: =E124*HLOOKUP(B122,'GEMM (2013) LCA Data'!$C$2:$AB$23,3,FALSE)/HLOOKUP(B122,'GEMM (2013) LCA Data'!$C$2:$AB$23,2,FALSE)*12*'GEMM (2013) LCA Data'!$C$59 -> 0 | F143: =F148*1055*'GEMM (2013) LCA Data'!$C$39/1000/1000 -> 0.0002559147158 | G143: =G124*HLOOKUP(B122,'GEMM (2013) LCA Data'!$C$2:$AB$23,3,FALSE)/HLOOKUP(B122,'GEMM (2013) LCA Data'!$C$2:$AB$23,2,FALSE)*12*'GEMM (2013) LCA Data'!$C$59 -> 0 | H143: =H148*1055*'GEMM (2013) LCA Data'!$D$39/1000/1000 -> -5.618843422e-06 | I143: =SUM(D143:H143) -> 0.0002502958723
B144: TDS | D144: =HLOOKUP(B122,'GEMM (2013) LCA Data'!$C$2:$AB$23,18,FALSE)*D124 -> 0 | E144: =E124*HLOOKUP(B122,'GEMM (2013) LCA Data'!$C$2:$AB$23,3,FALSE)/HLOOKUP(B122,'GEMM (2013) LCA Data'!$C$2:$AB$23,2,FALSE)*12*'GEMM (2013) LCA Data'!$C$60 -> 0 | F144: =F148*1055*'GEMM (2013) LCA Data'!$C$40/1000/1000 -> 0.0395726047 | G144: =G124*HLOOKUP(B122,'GEMM (2013) LCA Data'!$C$2:$AB$23,3,FALSE)/HLOOKUP(B122,'GEMM (2013) LCA Data'!$C$2:$AB$23,2,FALSE)*12*'GEMM (2013) LCA Data'!$C$60 -> 0 | H144: =H148*1055*'GEMM (2013) LCA Data'!$D$40/1000/1000 -> -0.00032501681 | I144: =SUM(D144:H144) -> 0.03924758789
B145: Solid waste (tonne)
B146: Solid waste | D146: =HLOOKUP(B122,'GEMM (2013) LCA Data'!$C$2:$AB$23,20,FALSE)*D124 -> 0 | E146: =E124*HLOOKUP(B122,'GEMM (2013) LCA Data'!$C$2:$AB$23,3,FALSE)/HLOOKUP(B122,'GEMM (2013) LCA Data'!$C$2:$AB$23,2,FALSE)*12*'GEMM (2013) LCA Data'!$C$62 -> 0 | F146: =F148*1055*'GEMM (2013) LCA Data'!$C$42/1000/1000 -> 0.00667010047 | G146: =G124*HLOOKUP(B122,'GEMM (2013) LCA Data'!$C$2:$AB$23,3,FALSE)/HLOOKUP(B122,'GEMM (2013) LCA Data'!$C$2:$AB$23,2,FALSE)*12*'GEMM (2013) LCA Data'!$C$62 -> 0 | H146: =H148*1055*'GEMM (2013) LCA Data'!$D$42/1000/1000 -> -0.0001533808478 | I146: =SUM(D146:H146) -> 0.006516719622
B147: Energy / Carbon
B148: MMBTU | D148: =HLOOKUP(B122,'GEMM (2013) LCA Data'!$C$2:$AB$23,22,FALSE)/1055*1000*D124 -> 0 | E148: =HLOOKUP(B122,'GEMM (2013) LCA Data'!$C$2:$AB$23,4,FALSE)*1000/1055*E124 -> 24.92915794 | F148: =G124*HLOOKUP(B122,'GEMM (2013) LCA Data'!$C$2:$AB$23,3,FALSE)/HLOOKUP(B122,'GEMM (2013) LCA Data'!$C$2:$AB$23,2,FALSE)*12*'GEMM (2013) LCA Data'!$C$64*1000/1055 -> 8.083343845 | G148: =HLOOKUP(B122,'GEMM (2013) LCA Data'!$C$2:$AB$23,4,FALSE)*1000/1055*G124 -> 8.309719314 | H148: =VLOOKUP(B122,'GEMM (2013) LCA Data'!$B$69:$D$90,3,FALSE)/1055*1000*H124 -> -0.8566350711 | I148: =SUM(D148:H148) -> 40.46558603
B149: MTCO2e | D149: =IF(D133="--","--",(1*D133)+(21*D134)+(310*D135)) -> 0 | E149: =IF(E133="--","--",(1*E133)+(21*E134)+(310*E135)) -> 2.142804183 | F149: =IF(F133="--","--",(1*F133)+(21*F134)+(310*F135)) -> 0.6418627141 | G149: =IF(G133="--","--",(1*G133)+(21*G134)+(310*G135)) -> 0.7142680608 | H149: =IF(H133="--","--",(1*H133)+(21*H134)+(310*H135)) -> -0.07420120086 | I149: =SUM(D149:H149) -> 3.424733757
B152: Ethylbenzene | E152: Destruct Mass for Energy Recovery | F152: Destruct Mass in Incinerator | H152: No Destruction | I152: TOTAL Reductions
B153: Mass (tonne) | D153: Create C | E153: Destruct ER | F153: NG | G153: Destruct I | H153: Steam
B154: Mass | D154: ='GEMM Parameters'!$B$16 -> 0 | E154: ='GEMM Parameters'!$C$16 -> 0.69 | G154: ='GEMM Parameters'!$D$16 -> 0.23 | H154: ='GEMM Parameters'!$E$16 -> -1.25
B155: Feedstock Uses (tonne)
B156: Water | D156: 0
B157: Natural Gas | D157: 0 | F157: =F178*1055/'GEMM (2013) LCA Data'!$C$43/1000 -> 0.1801758433
B158: Air | D158: 0
B159: Crude Oil | D159: 0
B160: Salt | D160: 0
B161: Sulfur | D161: 0
B162: Air emission (tonne)
B163: CO2 | D163: =HLOOKUP(B152,'GEMM (2013) LCA Data'!$C$2:$AB$23,7,FALSE)*D154 -> 0 | E163: =E154*HLOOKUP(B152,'GEMM (2013) LCA Data'!$C$2:$AB$23,3,FALSE)/HLOOKUP(B152,'GEMM (2013) LCA Data'!$C$2:$AB$23,2,FALSE)*12*'GEMM (2013) LCA Data'!$C$49 -> 2.264988696 | F163: =F178*1055*'GEMM (2013) LCA Data'!$C$29/1000/1000 -> 0.6117073137 | G163: =G154*HLOOKUP(B152,'GEMM (2013) LCA Data'!$C$2:$AB$23,3,FALSE)/HLOOKUP(B152,'GEMM (2013) LCA Data'!$C$2:$AB$23,2,FALSE)*12*'GEMM (2013) LCA Data'!$C$49 -> 0.7549962321 | H163: =H178*1055*'GEMM (2013) LCA Data'!$D$29/1000/1000 -> -0.06631796664 | I163: =SUM(D163:H163) -> 3.565374276
B164: CH4 | D164: =HLOOKUP(B152,'GEMM (2013) LCA Data'!$C$2:$AB$23,8,FALSE)*D154 -> 0 | E164: =E154*HLOOKUP(B152,'GEMM (2013) LCA Data'!$C$2:$AB$23,3,FALSE)/HLOOKUP(B152,'GEMM (2013) LCA Data'!$C$2:$AB$23,2,FALSE)*12*'GEMM (2013) LCA Data'!$C$50 -> 0 | F164: =F178*1055*'GEMM (2013) LCA Data'!$C$30/1000/1000 -> 0.003016231965 | G164: =G154*HLOOKUP(B152,'GEMM (2013) LCA Data'!$C$2:$AB$23,3,FALSE)/HLOOKUP(B152,'GEMM (2013) LCA Data'!$C$2:$AB$23,2,FALSE)*12*'GEMM (2013) LCA Data'!$C$50 -> 0 | H164: =H178*1055*'GEMM (2013) LCA Data'!$D$30/1000/1000 -> -0.0001212616676 | I164: 0.002894970297
B165: N2O | D165: =HLOOKUP(B152,'GEMM (2013) LCA Data'!$C$2:$AB$23,9,FALSE)*D154 -> 0 | E165: =E154*HLOOKUP(B152,'GEMM (2013) LCA Data'!$C$2:$AB$23,3,FALSE)/HLOOKUP(B152,'GEMM (2013) LCA Data'!$C$2:$AB$23,2,FALSE)*12*'GEMM (2013) LCA Data'!$C$51 -> 0 | F165: =F178*1055*'GEMM (2013) LCA Data'!$C$31/1000/1000 -> 1.10131805e-05 | G165: =G154*HLOOKUP(B152,'GEMM (2013) LCA Data'!$C$2:$AB$23,3,FALSE)/HLOOKUP(B152,'GEMM (2013) LCA Data'!$C$2:$AB$23,2,FALSE)*12*'GEMM (2013) LCA Data'!$C$51 -> 0 | H165: =H178*1055*'GEMM (2013) LCA Data'!$D$31/1000/1000 -> 0 | I165: 1.10131805e-05
B166: CO | D166: =HLOOKUP(B152,'GEMM (2013) LCA Data'!$C$2:$AB$23,10,FALSE)*D154 -> 0 | E166: =E154*HLOOKUP(B152,'GEMM (2013) LCA Data'!$C$2:$AB$23,3,FALSE)/HLOOKUP(B152,'GEMM (2013) LCA Data'!$C$2:$AB$23,2,FALSE)*12*'GEMM (2013) LCA Data'!$C$52 -> 0.0009983421251 | F166: =F178*1055*'GEMM (2013) LCA Data'!$C$32/1000/1000 -> 0.000384186825 | G166: =G154*HLOOKUP(B152,'GEMM (2013) LCA Data'!$C$2:$AB$23,3,FALSE)/HLOOKUP(B152,'GEMM (2013) LCA Data'!$C$2:$AB$23,2,FALSE)*12*'GEMM (2013) LCA Data'!$C$52 -> 0.0003327807084 | H166: =H178*1055*'GEMM (2013) LCA Data'!$D$32/1000/1000 -> -4.639556323e-05 | I166: 0.001668914095
B167: NMVOC | D167: =HLOOKUP(B152,'GEMM (2013) LCA Data'!$C$2:$AB$23,11,FALSE)*D154 -> 0 | E167: =E154*HLOOKUP(B152,'GEMM (2013) LCA Data'!$C$2:$AB$23,3,FALSE)/HLOOKUP(B152,'GEMM (2013) LCA Data'!$C$2:$AB$23,2,FALSE)*12*'GEMM (2013) LCA Data'!$C$53 -> 9.983421251e-05 | F167: =F178*1055*'GEMM (2013) LCA Data'!$C$33/1000/1000 -> 1.883270592e-07 | G167: =G154*HLOOKUP(B152,'GEMM (2013) LCA Data'!$C$2:$AB$23,3,FALSE)/HLOOKUP(B152,'GEMM (2013) LCA Data'!$C$2:$AB$23,2,FALSE)*12*'GEMM (2013) LCA Data'!$C$53 -> 3.327807084e-05 | H167: =H178*1055*'GEMM (2013) LCA Data'!$D$33/1000/1000 -> -0.0003370524086 | I167: -0.0002037517982
B168: NOx | D168: =HLOOKUP(B152,'GEMM (2013) LCA Data'!$C$2:$AB$23,12,FALSE)*D154 -> 0 | E168: =E154*HLOOKUP(B152,'GEMM (2013) LCA Data'!$C$2:$AB$23,3,FALSE)/HLOOKUP(B152,'GEMM (2013) LCA Data'!$C$2:$AB$23,2,FALSE)*12*'GEMM (2013) LCA Data'!$C$54 -> 0 | F168: =F178*1055*'GEMM (2013) LCA Data'!$C$34/1000/1000 -> 0.0004022595789 | G168: =G154*HLOOKUP(B152,'GEMM (2013) LCA Data'!$C$2:$AB$23,3,FALSE)/HLOOKUP(B152,'GEMM (2013) LCA Data'!$C$2:$AB$23,2,FALSE)*12*'GEMM (2013) LCA Data'!$C$54 -> 0 | H168: =H178*1055*'GEMM (2013) LCA Data'!$D$34/1000/1000 -> -0.0002182979911 | I168: 0.0001839615878
B169: SOx | D169: =HLOOKUP(B152,'GEMM (2013) LCA Data'!$C$2:$AB$23,13,FALSE)*D154 -> 0 | E169: =E154*HLOOKUP(B152,'GEMM (2013) LCA Data'!$C$2:$AB$23,3,FALSE)/HLOOKUP(B152,'GEMM (2013) LCA Data'!$C$2:$AB$23,2,FALSE)*12*'GEMM (2013) LCA Data'!$C$55 -> 0 | F169: =F178*1055*'GEMM (2013) LCA Data'!$C$35/1000/1000 -> 0.005186097209 | G169: =G154*HLOOKUP(B152,'GEMM (2013) LCA Data'!$C$2:$AB$23,3,FALSE)/HLOOKUP(B152,'GEMM (2013) LCA Data'!$C$2:$AB$23,2,FALSE)*12*'GEMM (2013) LCA Data'!$C$55 -> 0 | H169: =H178*1055*'GEMM (2013) LCA Data'!$D$35/1000/1000 -> -0.0002903624423 | I169: 0.004895734766
B170: Water emission (tonne)
B171: TOC | D171: =HLOOKUP(B152,'GEMM (2013) LCA Data'!$C$2:$AB$23,15,FALSE)*D154 -> 0 | E171: =E154*HLOOKUP(B152,'GEMM (2013) LCA Data'!$C$2:$AB$23,3,FALSE)/HLOOKUP(B152,'GEMM (2013) LCA Data'!$C$2:$AB$23,2,FALSE)*12*'GEMM (2013) LCA Data'!$C$57 -> 0 | F171: =F178*1055*'GEMM (2013) LCA Data'!$C$37/1000/1000 -> 9.458293361e-05 | G171: =G154*HLOOKUP(B152,'GEMM (2013) LCA Data'!$C$2:$AB$23,3,FALSE)/HLOOKUP(B152,'GEMM (2013) LCA Data'!$C$2:$AB$23,2,FALSE)*12*'GEMM (2013) LCA Data'!$C$57 -> 0 | H171: =H178*1055*'GEMM (2013) LCA Data'!$D$37/1000/1000 -> -1.823329337e-06 | I171: =SUM(D171:H171) -> 9.275960428e-05
B172: BOD | D172: =HLOOKUP(B152,'GEMM (2013) LCA Data'!$C$2:$AB$23,16,FALSE)*D154 -> 0 | E172: =E154*HLOOKUP(B152,'GEMM (2013) LCA Data'!$C$2:$AB$23,3,FALSE)/HLOOKUP(B152,'GEMM (2013) LCA Data'!$C$2:$AB$23,2,FALSE)*12*'GEMM (2013) LCA Data'!$C$58 -> 0 | F172: =F178*1055*'GEMM (2013) LCA Data'!$C$38/1000/1000 -> 0.0001635031058 | G172: =G154*HLOOKUP(B152,'GEMM (2013) LCA Data'!$C$2:$AB$23,3,FALSE)/HLOOKUP(B152,'GEMM (2013) LCA Data'!$C$2:$AB$23,2,FALSE)*12*'GEMM (2013) LCA Data'!$C$58 -> 0 | H172: =H178*1055*'GEMM (2013) LCA Data'!$D$38/1000/1000 -> -1.622236594e-05 | I172: =SUM(D172:H172) -> 0.0001472807399
B173: COD | D173: =HLOOKUP(B152,'GEMM (2013) LCA Data'!$C$2:$AB$23,17,FALSE)*D154 -> 0 | E173: =E154*HLOOKUP(B152,'GEMM (2013) LCA Data'!$C$2:$AB$23,3,FALSE)/HLOOKUP(B152,'GEMM (2013) LCA Data'!$C$2:$AB$23,2,FALSE)*12*'GEMM (2013) LCA Data'!$C$59 -> 0 | F173: =F178*1055*'GEMM (2013) LCA Data'!$C$39/1000/1000 -> 0.0002705071901 | G173: =G154*HLOOKUP(B152,'GEMM (2013) LCA Data'!$C$2:$AB$23,3,FALSE)/HLOOKUP(B152,'GEMM (2013) LCA Data'!$C$2:$AB$23,2,FALSE)*12*'GEMM (2013) LCA Data'!$C$59 -> 0 | H173: =H178*1055*'GEMM (2013) LCA Data'!$D$39/1000/1000 -> -5.214721904e-06 | I173: =SUM(D173:H173) -> 0.0002652924682
B174: TDS | D174: =HLOOKUP(B152,'GEMM (2013) LCA Data'!$C$2:$AB$23,18,FALSE)*D154 -> 0 | E174: =E154*HLOOKUP(B152,'GEMM (2013) LCA Data'!$C$2:$AB$23,3,FALSE)/HLOOKUP(B152,'GEMM (2013) LCA Data'!$C$2:$AB$23,2,FALSE)*12*'GEMM (2013) LCA Data'!$C$60 -> 0 | F174: =F178*1055*'GEMM (2013) LCA Data'!$C$40/1000/1000 -> 0.04182906822 | G174: =G154*HLOOKUP(B152,'GEMM (2013) LCA Data'!$C$2:$AB$23,3,FALSE)/HLOOKUP(B152,'GEMM (2013) LCA Data'!$C$2:$AB$23,2,FALSE)*12*'GEMM (2013) LCA Data'!$C$60 -> 0 | H174: =H178*1055*'GEMM (2013) LCA Data'!$D$40/1000/1000 -> -0.0003016407738 | I174: =SUM(D174:H174) -> 0.04152742744
B175: Solid waste (tonne)
B176: Solid waste | D176: =HLOOKUP(B152,'GEMM (2013) LCA Data'!$C$2:$AB$23,20,FALSE)*D154 -> 0 | E176: =E154*HLOOKUP(B152,'GEMM (2013) LCA Data'!$C$2:$AB$23,3,FALSE)/HLOOKUP(B152,'GEMM (2013) LCA Data'!$C$2:$AB$23,2,FALSE)*12*'GEMM (2013) LCA Data'!$C$62 -> 0 | F176: =F178*1055*'GEMM (2013) LCA Data'!$C$42/1000/1000 -> 0.007050435262 | G176: =G154*HLOOKUP(B152,'GEMM (2013) LCA Data'!$C$2:$AB$23,3,FALSE)/HLOOKUP(B152,'GEMM (2013) LCA Data'!$C$2:$AB$23,2,FALSE)*12*'GEMM (2013) LCA Data'!$C$62 -> 0 | H176: =H178*1055*'GEMM (2013) LCA Data'!$D$42/1000/1000 -> -0.0001423493069 | I176: =SUM(D176:H176) -> 0.006908085955
B177: Energy / Carbon
B178: MMBTU | D178: =HLOOKUP(B152,'GEMM (2013) LCA Data'!$C$2:$AB$23,22,FALSE)/1055*1000*D154 -> 0 | E178: =HLOOKUP(B152,'GEMM (2013) LCA Data'!$C$2:$AB$23,4,FALSE)*1000/1055*E154 -> 23.6255314 | F178: =G154*HLOOKUP(B152,'GEMM (2013) LCA Data'!$C$2:$AB$23,3,FALSE)/HLOOKUP(B152,'GEMM (2013) LCA Data'!$C$2:$AB$23,2,FALSE)*12*'GEMM (2013) LCA Data'!$C$64*1000/1055 -> 8.544262974 | G178: =HLOOKUP(B152,'GEMM (2013) LCA Data'!$C$2:$AB$23,4,FALSE)*1000/1055*G154 -> 7.875177133 | H178: =VLOOKUP(B152,'GEMM (2013) LCA Data'!$B$69:$D$90,3,FALSE)/1055*1000*H154 -> -0.7950236967 | I178: =SUM(D178:H178) -> 39.24994781
B179: MTCO2e | D179: =IF(D163="--","--",(1*D163)+(21*D164)+(310*D165)) -> 0 | E179: =IF(E163="--","--",(1*E163)+(21*E164)+(310*E165)) -> 2.264988696 | F179: =IF(F163="--","--",(1*F163)+(21*F164)+(310*F165)) -> 0.678462271 | G179: =IF(G163="--","--",(1*G163)+(21*G164)+(310*G165)) -> 0.7549962321 | H179: =IF(H163="--","--",(1*H163)+(21*H164)+(310*H165)) -> -0.06886446166 | I179: =SUM(D179:H179) -> 3.629582738
B182: n-Hexane | E182: Destruct Mass for Energy Recovery | F182: Destruct Mass in Incinerator | H182: No Destruction | I182: TOTAL Reductions
B183: Mass (tonne) | D183: Create C | E183: Destruct ER | F183: NG | G183: Destruct I | H183: Steam
B184: Mass | D184: ='GEMM Parameters'!$B$16 -> 0 | E184: ='GEMM Parameters'!$C$16 -> 0.69 | G184: ='GEMM Parameters'!$D$16 -> 0.23 | H184: ='GEMM Parameters'!$E$16 -> -1.25
B185: Feedstock Uses (tonne)
B186: Water | D186: 0
B187: Natural Gas | D187: 0 | F187: =F208*1055/'GEMM (2013) LCA Data'!$C$43/1000 -> 0.166480221
B188: Air | D188: 0
B189: Crude Oil | D189: 0
B190: Salt | D190: 0
B191: Sulfur | D191: 0
B192: Air emission (tonne)
B193: CO2 | D193: =HLOOKUP(B182,'GEMM (2013) LCA Data'!$C$2:$AB$23,7,FALSE)*D184 -> 0 | E193: =E184*HLOOKUP(B182,'GEMM (2013) LCA Data'!$C$2:$AB$23,3,FALSE)/HLOOKUP(B182,'GEMM (2013) LCA Data'!$C$2:$AB$23,2,FALSE)*12*'GEMM (2013) LCA Data'!$C$49 -> 2.092821167 | F193: =F208*1055*'GEMM (2013) LCA Data'!$C$29/1000/1000 -> 0.5652098912 | G193: =G184*HLOOKUP(B182,'GEMM (2013) LCA Data'!$C$2:$AB$23,3,FALSE)/HLOOKUP(B182,'GEMM (2013) LCA Data'!$C$2:$AB$23,2,FALSE)*12*'GEMM (2013) LCA Data'!$C$49 -> 0.6976070558 | H193: =H208*1055*'GEMM (2013) LCA Data'!$D$29/1000/1000 -> -0.07145736196 | I193: =SUM(D193:H193) -> 3.284180752
B194: CH4 | D194: =HLOOKUP(B182,'GEMM (2013) LCA Data'!$C$2:$AB$23,8,FALSE)*D184 -> 0 | E194: =E184*HLOOKUP(B182,'GEMM (2013) LCA Data'!$C$2:$AB$23,3,FALSE)/HLOOKUP(B182,'GEMM (2013) LCA Data'!$C$2:$AB$23,2,FALSE)*12*'GEMM (2013) LCA Data'!$C$50 -> 0 | F194: =F208*1055*'GEMM (2013) LCA Data'!$C$30/1000/1000 -> 0.002786960532 | G194: =G184*HLOOKUP(B182,'GEMM (2013) LCA Data'!$C$2:$AB$23,3,FALSE)/HLOOKUP(B182,'GEMM (2013) LCA Data'!$C$2:$AB$23,2,FALSE)*12*'GEMM (2013) LCA Data'!$C$50 -> 0 | H194: =H208*1055*'GEMM (2013) LCA Data'!$D$30/1000/1000 -> -0.0001306589951 | I194: 0.002656301537
B195: N2O | D195: =HLOOKUP(B182,'GEMM (2013) LCA Data'!$C$2:$AB$23,9,FALSE)*D184 -> 0 | E195: =E184*HLOOKUP(B182,'GEMM (2013) LCA Data'!$C$2:$AB$23,3,FALSE)/HLOOKUP(B182,'GEMM (2013) LCA Data'!$C$2:$AB$23,2,FALSE)*12*'GEMM (2013) LCA Data'!$C$51 -> 0 | F195: =F208*1055*'GEMM (2013) LCA Data'!$C$31/1000/1000 -> 1.017604075e-05 | G195: =G184*HLOOKUP(B182,'GEMM (2013) LCA Data'!$C$2:$AB$23,3,FALSE)/HLOOKUP(B182,'GEMM (2013) LCA Data'!$C$2:$AB$23,2,FALSE)*12*'GEMM (2013) LCA Data'!$C$51 -> 0 | H195: =H208*1055*'GEMM (2013) LCA Data'!$D$31/1000/1000 -> 0 | I195: 1.017604075e-05
B196: CO | D196: =HLOOKUP(B182,'GEMM (2013) LCA Data'!$C$2:$AB$23,10,FALSE)*D184 -> 0 | E196: =E184*HLOOKUP(B182,'GEMM (2013) LCA Data'!$C$2:$AB$23,3,FALSE)/HLOOKUP(B182,'GEMM (2013) LCA Data'!$C$2:$AB$23,2,FALSE)*12*'GEMM (2013) LCA Data'!$C$52 -> 0.000922455611 | F196: =F208*1055*'GEMM (2013) LCA Data'!$C$32/1000/1000 -> 0.0003549838111 | G196: =G184*HLOOKUP(B182,'GEMM (2013) LCA Data'!$C$2:$AB$23,3,FALSE)/HLOOKUP(B182,'GEMM (2013) LCA Data'!$C$2:$AB$23,2,FALSE)*12*'GEMM (2013) LCA Data'!$C$52 -> 0.0003074852037 | H196: =H208*1055*'GEMM (2013) LCA Data'!$D$32/1000/1000 -> -4.999104652e-05 | I196: 0.001534933579
B197: NMVOC | D197: =HLOOKUP(B182,'GEMM (2013) LCA Data'!$C$2:$AB$23,11,FALSE)*D184 -> 0 | E197: =E184*HLOOKUP(B182,'GEMM (2013) LCA Data'!$C$2:$AB$23,3,FALSE)/HLOOKUP(B182,'GEMM (2013) LCA Data'!$C$2:$AB$23,2,FALSE)*12*'GEMM (2013) LCA Data'!$C$53 -> 9.22455611e-05 | F197: =F208*1055*'GEMM (2013) LCA Data'!$C$33/1000/1000 -> 1.740118424e-07 | G197: =G184*HLOOKUP(B182,'GEMM (2013) LCA Data'!$C$2:$AB$23,3,FALSE)/HLOOKUP(B182,'GEMM (2013) LCA Data'!$C$2:$AB$23,2,FALSE)*12*'GEMM (2013) LCA Data'!$C$53 -> 3.074852037e-05 | H197: =H208*1055*'GEMM (2013) LCA Data'!$D$33/1000/1000 -> -0.0003631727145 | I197: -0.0002400046212
B198: NOx | D198: =HLOOKUP(B182,'GEMM (2013) LCA Data'!$C$2:$AB$23,12,FALSE)*D184 -> 0 | E198: =E184*HLOOKUP(B182,'GEMM (2013) LCA Data'!$C$2:$AB$23,3,FALSE)/HLOOKUP(B182,'GEMM (2013) LCA Data'!$C$2:$AB$23,2,FALSE)*12*'GEMM (2013) LCA Data'!$C$54 -> 0 | F198: =F208*1055*'GEMM (2013) LCA Data'!$C$34/1000/1000 -> 0.0003716828092 | G198: =G184*HLOOKUP(B182,'GEMM (2013) LCA Data'!$C$2:$AB$23,3,FALSE)/HLOOKUP(B182,'GEMM (2013) LCA Data'!$C$2:$AB$23,2,FALSE)*12*'GEMM (2013) LCA Data'!$C$54 -> 0 | H198: =H208*1055*'GEMM (2013) LCA Data'!$D$34/1000/1000 -> -0.0002352152721 | I198: 0.0001364675371
B199: SOx | D199: =HLOOKUP(B182,'GEMM (2013) LCA Data'!$C$2:$AB$23,13,FALSE)*D184 -> 0 | E199: =E184*HLOOKUP(B182,'GEMM (2013) LCA Data'!$C$2:$AB$23,3,FALSE)/HLOOKUP(B182,'GEMM (2013) LCA Data'!$C$2:$AB$23,2,FALSE)*12*'GEMM (2013) LCA Data'!$C$55 -> 0 | F199: =F208*1055*'GEMM (2013) LCA Data'!$C$35/1000/1000 -> 0.004791888822 | G199: =G184*HLOOKUP(B182,'GEMM (2013) LCA Data'!$C$2:$AB$23,3,FALSE)/HLOOKUP(B182,'GEMM (2013) LCA Data'!$C$2:$AB$23,2,FALSE)*12*'GEMM (2013) LCA Data'!$C$55 -> 0 | H199: =H208*1055*'GEMM (2013) LCA Data'!$D$35/1000/1000 -> -0.0003128644497 | I199: 0.004479024372
B200: Water emission (tonne)
B201: TOC | D201: =HLOOKUP(B182,'GEMM (2013) LCA Data'!$C$2:$AB$23,15,FALSE)*D184 -> 0 | E201: =E184*HLOOKUP(B182,'GEMM (2013) LCA Data'!$C$2:$AB$23,3,FALSE)/HLOOKUP(B182,'GEMM (2013) LCA Data'!$C$2:$AB$23,2,FALSE)*12*'GEMM (2013) LCA Data'!$C$57 -> 0 | F201: =F208*1055*'GEMM (2013) LCA Data'!$C$37/1000/1000 -> 8.739344522e-05 | G201: =G184*HLOOKUP(B182,'GEMM (2013) LCA Data'!$C$2:$AB$23,3,FALSE)/HLOOKUP(B182,'GEMM (2013) LCA Data'!$C$2:$AB$23,2,FALSE)*12*'GEMM (2013) LCA Data'!$C$57 -> 0 | H201: =H208*1055*'GEMM (2013) LCA Data'!$D$37/1000/1000 -> -1.964630567e-06 | I201: =SUM(D201:H201) -> 8.542881465e-05
B202: BOD | D202: =HLOOKUP(B182,'GEMM (2013) LCA Data'!$C$2:$AB$23,16,FALSE)*D184 -> 0 | E202: =E184*HLOOKUP(B182,'GEMM (2013) LCA Data'!$C$2:$AB$23,3,FALSE)/HLOOKUP(B182,'GEMM (2013) LCA Data'!$C$2:$AB$23,2,FALSE)*12*'GEMM (2013) LCA Data'!$C$58 -> 0 | F202: =F208*1055*'GEMM (2013) LCA Data'!$C$38/1000/1000 -> 0.0001510748205 | G202: =G184*HLOOKUP(B182,'GEMM (2013) LCA Data'!$C$2:$AB$23,3,FALSE)/HLOOKUP(B182,'GEMM (2013) LCA Data'!$C$2:$AB$23,2,FALSE)*12*'GEMM (2013) LCA Data'!$C$58 -> 0 | H202: =H208*1055*'GEMM (2013) LCA Data'!$D$38/1000/1000 -> -1.747953886e-05 | I202: =SUM(D202:H202) -> 0.0001335952817
B203: COD | D203: =HLOOKUP(B182,'GEMM (2013) LCA Data'!$C$2:$AB$23,17,FALSE)*D184 -> 0 | E203: =E184*HLOOKUP(B182,'GEMM (2013) LCA Data'!$C$2:$AB$23,3,FALSE)/HLOOKUP(B182,'GEMM (2013) LCA Data'!$C$2:$AB$23,2,FALSE)*12*'GEMM (2013) LCA Data'!$C$59 -> 0 | F203: =F208*1055*'GEMM (2013) LCA Data'!$C$39/1000/1000 -> 0.0002499452533 | G203: =G184*HLOOKUP(B182,'GEMM (2013) LCA Data'!$C$2:$AB$23,3,FALSE)/HLOOKUP(B182,'GEMM (2013) LCA Data'!$C$2:$AB$23,2,FALSE)*12*'GEMM (2013) LCA Data'!$C$59 -> 0 | H203: =H208*1055*'GEMM (2013) LCA Data'!$D$39/1000/1000 -> -5.618843422e-06 | I203: =SUM(D203:H203) -> 0.0002443264099
B204: TDS | D204: =HLOOKUP(B182,'GEMM (2013) LCA Data'!$C$2:$AB$23,18,FALSE)*D184 -> 0 | E204: =E184*HLOOKUP(B182,'GEMM (2013) LCA Data'!$C$2:$AB$23,3,FALSE)/HLOOKUP(B182,'GEMM (2013) LCA Data'!$C$2:$AB$23,2,FALSE)*12*'GEMM (2013) LCA Data'!$C$60 -> 0 | F204: =F208*1055*'GEMM (2013) LCA Data'!$C$40/1000/1000 -> 0.03864953478 | G204: =G184*HLOOKUP(B182,'GEMM (2013) LCA Data'!$C$2:$AB$23,3,FALSE)/HLOOKUP(B182,'GEMM (2013) LCA Data'!$C$2:$AB$23,2,FALSE)*12*'GEMM (2013) LCA Data'!$C$60 -> 0 | H204: =H208*1055*'GEMM (2013) LCA Data'!$D$40/1000/1000 -> -0.00032501681 | I204: =SUM(D204:H204) -> 0.03832451797
B205: Solid waste (tonne)
B206: Solid waste | D206: =HLOOKUP(B182,'GEMM (2013) LCA Data'!$C$2:$AB$23,20,FALSE)*D184 -> 0 | E206: =E184*HLOOKUP(B182,'GEMM (2013) LCA Data'!$C$2:$AB$23,3,FALSE)/HLOOKUP(B182,'GEMM (2013) LCA Data'!$C$2:$AB$23,2,FALSE)*12*'GEMM (2013) LCA Data'!$C$62 -> 0 | F206: =F208*1055*'GEMM (2013) LCA Data'!$C$42/1000/1000 -> 0.006514513816 | G206: =G184*HLOOKUP(B182,'GEMM (2013) LCA Data'!$C$2:$AB$23,3,FALSE)/HLOOKUP(B182,'GEMM (2013) LCA Data'!$C$2:$AB$23,2,FALSE)*12*'GEMM (2013) LCA Data'!$C$62 -> 0 | H206: =H208*1055*'GEMM (2013) LCA Data'!$D$42/1000/1000 -> -0.0001533808478 | I206: =SUM(D206:H206) -> 0.006361132968
B207: Energy / Carbon
B208: MMBTU | D208: =HLOOKUP(B182,'GEMM (2013) LCA Data'!$C$2:$AB$23,22,FALSE)/1055*1000*D184 -> 0 | E208: =HLOOKUP(B182,'GEMM (2013) LCA Data'!$C$2:$AB$23,4,FALSE)*1000/1055*E184 -> 25.53253659 | F208: =G184*HLOOKUP(B182,'GEMM (2013) LCA Data'!$C$2:$AB$23,3,FALSE)/HLOOKUP(B182,'GEMM (2013) LCA Data'!$C$2:$AB$23,2,FALSE)*12*'GEMM (2013) LCA Data'!$C$64*1000/1055 -> 7.8947919 | G208: =HLOOKUP(B182,'GEMM (2013) LCA Data'!$C$2:$AB$23,4,FALSE)*1000/1055*G184 -> 8.510845529 | H208: =VLOOKUP(B182,'GEMM (2013) LCA Data'!$B$69:$D$90,3,FALSE)/1055*1000*H184 -> -0.8566350711 | I208: =SUM(D208:H208) -> 41.08153894
B209: MTCO2e | D209: =IF(D193="--","--",(1*D193)+(21*D194)+(310*D195)) -> 0 | E209: =IF(E193="--","--",(1*E193)+(21*E194)+(310*E195)) -> 2.092821167 | F209: =IF(F193="--","--",(1*F193)+(21*F194)+(310*F195)) -> 0.626890635 | G209: =IF(G193="--","--",(1*G193)+(21*G194)+(310*G195)) -> 0.6976070558 | H209: =IF(H193="--","--",(1*H193)+(21*H194)+(310*H195)) -> -0.07420120086 | I209: =SUM(D209:H209) -> 3.343117657
B212: Tetrahydrofuran | E212: Destruct Mass for Energy Recovery | F212: Destruct Mass in Incinerator | H212: Process | I212: TOTAL Reductions
B213: Mass (tonne) | D213: Create C | E213: Destruct ER | F213: NG | G213: Destruct I | H213: Steam
B214: Mass | D214: ='GEMM Parameters'!$B$22 -> 0.92 | E214: ='GEMM Parameters'!$C$22 -> 0.69 | G214: ='GEMM Parameters'!$D$22 -> 0.23 | H214: ='GEMM Parameters'!$E$16 -> -1.25
... 25 more rows

Sheet GEMM (2011) LCA Data (hidden)
A1: **This sheet was copied from GEMM (2011) with no modifications** | M1: Comparison of Natural Gas LCI Data
H2: Table for Presentation of Data | O2: Old Data | P2: New Data
B3: Chemical | C3: LHV (kJ/kg-solvent) | D3: LHV (MMBTU/kg-solvent) | E3: LHV (MJ/kg-C) | H3: Chemical | I3: LHV (MJ/kg-solvent) | J3: LHV (BTU/lb-solvent) | O3: Heating by Natural gas combustion [1MJ heat potential] | P3: Natural Gas (Franklin Associates Data) (cradle-to-gate, including combustion of the natural gas) (basis is 1 MJ of LHV)
B4: Acetonitrile | C4: 25708.8923 | D4: 0.02436861829 | E4: 43.91935768 | H4: Acetonitrile | I4: =C4/1000 -> 25.7088923 | J4: =D4*(10^6)/2.2 -> 11076.64468 | M4: Air emission
B5: n-Butyl alcohol | C5: 28490.15499 | D5: 0.02700488625 | E5: 43.99354767 | H5: n-Butyl alcohol | I5: =C5/1000 -> 28.49015499 | J5: =D5*(10^6)/2.2 -> 12274.94829 | M5: CH4 | N5: g | O5: 0.160001163 | P5: =0.000334609041546688*1000 -> 0.3346090415
B6: Chlorobenzene | C6: 23629.02126 | D6: 0.02239717655 | E6: 36.94003657 | H6: Chlorobenzene | I6: 23.62902126 | J6: 10180.5348 | M6: CO | N6: g | O6: 0.01662950535 | P6: =0.0000426201919417583*1000 -> 0.04262019194
B7: Chloroform | C7: 3277.765557 | D7: 0.003106886784 | E7: 32.60830435 | H7: Chloroform | I7: 3.277765557 | J7: 1412.221265 | M7: CO2 | N7: g | O7: 70.37018384 | P7: =0.0678604299457232*1000 -> 67.86042995
B8: chloromethane | C8: -- | D8: -- | E8: -- | H8: Chloromethane | I8: -- | J8: -- | M8: NMVOC | N8: g | O8: 0.3918069992 | P8: =(2.08922713914238E-08)*1000 -> 2.089227139e-05
B9: cyclohexane | C9: 38116.3212 | D9: 0.03612921441 | E9: 44.55374434 | H9: Cyclohexane | I9: 38.1163212 | J9: 16422.37019 | M9: NOx | N9: g | O9: 0.2231718032 | P9: =0.0000446251129551422*1000 -> 0.04462511296
B10: dichloromethane | C10: 5678.974465 | D10: 0.005382914185 | E10: 40.17874434 | H10: Dichloromethane | I10: 5.678974465 | J10: 2446.779175 | M10: SOx | N10: g | O10: 0.02673205778 | P10: =0.000575325451270198*1000 -> 0.5753254513
B11: N,N-dimethylformamide | C11: 21124.52159 | D11: 0.02002324321 | E11: 42.83583545 | H11: N,N-Dimethylformamide | I11: 21.12452159 | J11: 9101.474188 | M11: N2O | N11: g | P11: =(1.22175940572805E-06)*1000 -> 0.001221759406
B12: ethanol | C12: 22776.58186 | D12: 0.02158917712 | E12: 43.75001766 | H12: Ethanol | I12: 22.77658186 | J12: 9813.262328 | M12: Water emission
B13: ethylbenzene | C13: 36123.09511 | D13: 0.03423990058 | E13: 39.94612268 | H13: Ethylbenzene | I13: 36.12309511 | J13: 15563.59117 | M13: BOD5 | N13: g | O13: 4.149031425e-06 | P13: =0.0000181383985587927*1000 -> 0.01813839856
B14: n-hexane | C14: 39038.87841 | D14: 0.03700367621 | E14: 46.72194656 | H14: n-Hexane | I14: 39.03887841 | J14: 16819.85282 | M14: COD | N14: g | O14: 6.841265979e-05 | P14: =0.0000300090154448794*1000 -> 0.03000901544
B15: methanol | C15: 16514.23412 | D15: 0.01565330248 | E15: 44.03795766 | H15: Methanol | I15: 16.51423412 | J15: 7115.137493 | M15: TDS | N15: g | O15: 0.002721 | P15: =0.00464035411995377*1000 -> 4.64035412
B16: methyl tert-butyl ether | C16: 30523.09077 | D16: 0.02893183959 | E16: 44.83842034 | H16: Methyl tert-butyl ether | I16: 30.52309077 | J16: 13150.83618
B17: methyl isobutyl ketone | C17: 29677.21238 | D17: 0.02813005913 | E17: 41.28429989 | H17: Methyl isobutyl ketone | I17: 29.67721238 | J17: 12786.39051 | M17: Solid waste | N17: g | O17: 0.08774767925 | P17: =0.000782147862893361*1000 -> 0.7821478629
B18: tetrahydrofuran | C18: 28077.38874 | D18: 0.02661363862 | E18: 42.17457767 | H18: Tetrahydrofuran | I18: 28.07738874 | J18: 12097.10846
B19: Toluene | C19: 35903.87286 | D19: 0.03403210697 | E19: 39.38312911 | H19: Toluene | I19: 35.90387286 | J19: 15469.13953 | P19: 1 | Q19: MMBTU
B20: 1,2,4-trimethylbenzene | C20: 36128.40261 | D20: 0.03424493138 | E20: 40.20622879 | H20: 1,2,4-Trimethylbenzene | I20: 36.12840261 | J20: 15565.8779 | P20: =P19*1055 -> 1055 | Q20: MJ
B21: Xylenes (mixed isomers) | C21: 35970.74646 | D21: 0.03409549427 | E21: 39.77765046 | H21: Xylenes (mixed isomers) | I21: 35.97074646 | J21: 15497.95194 | P21: =((P7/1000)+(21*P5/1000)+(310*P11/1000))/1000*P20 -> 0.07940559332 | Q21: metric tonne GHG
H22: Natural Gas | I22: 50.03 | J22: =I22*(10^6)/1055/2.2 -> 21555.36407
B25: Water | C25: J/mol | D25: MMBTU/kg
B26: Heat liquid from 25 to 100 oC | C26: 5681.288236 | D26: =C26/18.0153/1055/(10^6) -> 2.989185488e-07
B27: Evaporate Water | C27: 40660.5321 | D27: =C27/18.0153/1055/(10^6) -> 2.139336493e-06
C30: Acetone | D30: Acetonitrile | E30: n-Butanol | F30: Chlorobenzene | G30: Chloroform | H30: Chloromethane | I30: Cyclohexane | J30: Dichloromethane | K30: Dimethylformamide (DMF) | L30: Ethanol | M30: Ethyl acetate | N30: Ethylbenzene | O30: Ethyl ether | P30: Hexane | Q30: Isopropyl alcohol | R30: Methanol | S30: Methyl tert-butyl ether | T30: Methyl isobutyl ketone | U30: Tetrahydrofuran (THF) | V30: Toluene | W30: 1,2,4-Trimethylbenzene | X30: Xylenes | Y30: Average
B31: Air emission [kg/kg of solvent]
B32: CO2 | C32: =4600/1000 -> 4.6 | D32: 0 | E32: 0 | F32: 0 | G32: =J32 -> 2.16 | H32: 0 | I32: 0 | J32: =2.16 -> 2.16 | K32: =1.99 -> 1.99 | L32: =2.06 -> 2.06 | M32: 2.84 | N32: 0 | O32: =5.18 -> 5.18 | P32: =619/1000 -> 0.619 | Q32: =3.5 -> 3.5 | R32: =1.05 -> 1.05 | S32: =O32 -> 5.18 | T32: 0 | U32: 12.8 | V32: =697/1000 -> 0.697 | W32: 0 | X32: 0 | Y32: =AVERAGE(C32:X32) -> 2.038
B33: CH4 | C33: =12.4/1000 -> 0.0124 | D33: 0 | E33: 0 | F33: 0 | G33: =J33 -> 0.00684 | H33: 0 | I33: 0 | J33: =6.84/1000 -> 0.00684 | K33: =12.4/1000 -> 0.0124 | L33: =2.83/1000 -> 0.00283 | M33: =14.7/1000 -> 0.0147 | N33: 0 | O33: =11.4/1000 -> 0.0114 | P33: =3.77/1000 -> 0.00377 | Q33: =9.73/1000 -> 0.00973 | R33: =8.31/1000 -> 0.00831 | S33: =O33 -> 0.0114 | T33: 0 | U33: =19.5/1000 -> 0.0195 | V33: =4.32/1000 -> 0.00432 | W33: 0 | X33: 0 | Y33: =AVERAGE(C33:X33) -> 0.005656363636
B34: N2O | C34: 0 | D34: 0 | E34: 0 | F34: 0 | G34: 0 | H34: 0 | I34: 0 | J34: 0 | K34: 0 | L34: 0 | M34: 0 | N34: 0 | O34: 0 | P34: 0 | Q34: 0 | R34: 0 | S34: 0 | T34: 0 | U34: 0 | V34: 0 | W34: 0 | X34: 0 | Y34: 0
B35: CO | C35: =3.69/1000 -> 0.00369 | D35: 0 | E35: 0 | F35: 0 | G35: =J35 -> 0.004 | H35: 0 | I35: 0 | J35: =4/1000 -> 0.004 | K35: =51.1/1000 -> 0.0511 | L35: =2.85/1000 -> 0.00285 | M35: =10.3/1000 -> 0.0103 | N35: 0 | O35: =5.69/1000 -> 0.00569 | P35: =0.635/1000 -> 0.000635 | Q35: =2.72/1000 -> 0.00272 | R35: =4.21/1000 -> 0.00421 | S35: =O35 -> 0.00569 | T35: 0 | U35: =399/1000 -> 0.399 | V35: =0.544/1000 -> 0.000544 | W35: 0 | X35: 0 | Y35: =AVERAGE(C35:X35) -> 0.02247404545
B36: NMVOC | C36: =25.6/1000 -> 0.0256 | D36: 0 | E36: 0 | F36: 0 | G36: 0.0108 | H36: 0 | I36: 0 | J36: =10.8/1000 -> 0.0108 | K36: =19.2/1000 -> 0.0192 | L36: =7.52/1000 -> 0.00752 | M36: =16.6/1000 -> 0.0166 | N36: 0 | O36: =13.1/1000 -> 0.0131 | P36: =10.4/1000 -> 0.0104 | Q36: =19.9/1000 -> 0.0199 | R36: =13.1/1000 -> 0.0131 | S36: =O36 -> 0.0131 | T36: 0 | U36: =46.7/1000 -> 0.0467 | V36: =9.33/1000 -> 0.00933 | W36: 0 | X36: 0 | Y36: 0.009825
B37: NOx | C37: =19.2/1000 -> 0.0192 | D37: 0 | E37: 0 | F37: 0 | G37: 0.00816 | H37: 0 | I37: 0 | J37: =8.16/1000 -> 0.00816 | K37: =9.44/1000 -> 0.00944 | L37: =7.2/1000 -> 0.0072 | M37: =11.6/1000 -> 0.0116 | N37: 0 | O37: =19.1/1000 -> 0.0191 | P37: =5.07/1000 -> 0.00507 | Q37: =14.5/1000 -> 0.0145 | R37: =3.77/1000 -> 0.00377 | S37: 0.0191 | T37: 0 | U37: =53.5/1000 -> 0.0535 | V37: =4.91/1000 -> 0.00491 | W37: 0 | X37: 0 | Y37: 0.008350454545
B38: SOx | C38: =31.5/1000 -> 0.0315 | D38: 0 | E38: 0 | F38: 0 | G38: 0.00818 | H38: 0 | I38: 0 | J38: =8.18/1000 -> 0.00818 | K38: =6.83/1000 -> 0.00683 | L38: =7.93/1000 -> 0.00793 | M38: =12/1000 -> 0.012 | N38: 0 | O38: =22.9/1000 -> 0.0229 | P38: =3.05/1000 -> 0.00305 | Q38: =24.8/1000 -> 0.0248 | R38: =4.22/1000 -> 0.00422 | S38: 0.0229 | T38: 0 | U38: =58.4/1000 -> 0.0584 | V38: =2.9/1000 -> 0.0029 | W38: 0 | X38: 0 | Y38: 0.009717727273
B39: Water emission [kg/kg of solvent]
B40: TOC | C40: =73.5/1000 -> 0.0735 | D40: 0 | E40: 0 | F40: 0 | G40: 0.0184 | H40: 0 | I40: 0 | J40: =18.4/1000 -> 0.0184 | K40: =23.4/1000 -> 0.0234 | L40: =L42/2.86 -> 0.0001846153846 | M40: =112/1000 -> 0.112 | N40: 0 | O40: =O42/2.86 -> 0.002370629371 | P40: =P42/2.86 -> 0.000177972028 | Q40: =39.2/1000 -> 0.0392 | R40: =17.3/1000 -> 0.0173 | S40: =O40 -> 0.002370629371 | T40: 0 | U40: =6.76/1000 -> 0.00676 | V40: =V42/2.86 -> 0.0004405594406 | W40: 0 | X40: 0 | Y40: 0.0142956548
B41: BOD | C41: =0.558/1000 -> 0.000558 | D41: 0 | E41: 0 | F41: 0 | G41: 0.000181 | H41: 0 | I41: 0 | J41: =0.181/1000 -> 0.000181 | K41: =0.126/1000 -> 0.000126 | L41: =0.119/1000 -> 0.000119 | M41: =0.0000455/1000 -> 4.55e-08 | N41: 0 | O41: =0.426/1000 -> 0.000426 | P41: =0.228/1000 -> 0.000228 | Q41: =0.439/1000 -> 0.000439 | R41: =0.0694/1000 -> 6.94e-05 | S41: 0.000426 | T41: 0 | U41: =0.741/1000 -> 0.000741 | V41: =0.239/1000 -> 0.000239 | W41: 0 | X41: 0 | Y41: 0.0001697020682
B42: COD | C42: =300/1000 -> 0.3 | D42: 0 | E42: 0 | F42: 0 | G42: 0.0755 | H42: 0 | I42: 0 | J42: =75.5/1000 -> 0.0755 | K42: =95.2/1000 -> 0.0952 | L42: =0.528/1000 -> 0.000528 | M42: =438/1000 -> 0.438 | N42: 0 | O42: =6.78/1000 -> 0.00678 | P42: =0.509/1000 -> 0.000509 | Q42: =162/1000 -> 0.162 | R42: =70.1/1000 -> 0.0701 | S42: 0.00678 | T42: 0 | U42: =22.5/1000 -> 0.0225 | V42: =1.26/1000 -> 0.00126 | W42: 0 | X42: 0 | Y42: 0.05702986364
B43: TDS | C43: =17.7/1000 -> 0.0177 | D43: 0 | E43: 0 | F43: 0 | G43: 0.00783 | H43: 0 | I43: 0 | J43: =7.83/1000 -> 0.00783 | K43: =5.03/1000 -> 0.00503 | L43: =7.2/1000 -> 0.0072 | M43: =10/1000 -> 0.01 | N43: 0 | O43: =15.4/1000 -> 0.0154 | P43: =2.22/1000 -> 0.00222 | Q43: =13.4/1000 -> 0.0134 | R43: =3.67/1000 -> 0.00367 | S43: 0.0154 | T43: 0 | U43: =40.5/1000 -> 0.0405 | V43: =1.8/1000 -> 0.0018 | W43: 0 | X43: 0 | Y43: 0.006726363636
B45: Solid waste [kg/kg of solvent] | C45: =47.5/1000 -> 0.0475 | D45: 0 | E45: 0 | F45: 0 | G45: 0.037 | H45: 0 | I45: 0 | J45: =37/1000 -> 0.037 | K45: =23.8/1000 -> 0.0238 | L45: =5.55/1000 -> 0.00555 | M45: =13.2/1000 -> 0.0132 | N45: 0 | O45: =134/1000 -> 0.134 | P45: =5.88/1000 -> 0.00588 | Q45: =37.4/1000 -> 0.0374 | R45: =11/1000 -> 0.011 | S45: 0.134 | T45: 0 | U45: =53.9/1000 -> 0.0539 | V45: =17.5/1000 -> 0.0175 | W45: 0 | X45: 0 | Y45: 0.02535136364
B46: Total mass cradle materials
B47: Net Energy [MJ/kg] | C47: =55431.9/1000 -> 55.4319 | D47: 88.5 | E47: 97.3 | F47: =N47 -> 85.1 | G47: 23.231472 | H47: 0 | I47: 83.2 | J47: =23231.472/1000 -> 23.231472 | K47: =22500.9/1000 -> 22.5009 | L47: =21455.2/1000 -> 21.4552 | M47: =33742.2/1000 -> 33.7422 | N47: 85.1 | O47: =46974.1/1000 -> 46.9741 | P47: =9176.637/1000 -> 9.176637 | Q47: =12470.6/1000 -> 12.4706 | R47: =12470.6/1000 -> 12.4706 | S47: =O47 -> 46.9741 | T47: 64.2 | U47: =126834.3/1000 -> 126.8343 | V47: =8271.2/1000 -> 8.2712 | W47: =X47 -> 72.5 | X47: 72.5 | Y47: 49.59839459
B49: Name of the organic substances to be incinerated | C49: Molecular weight | D49: Number of Carbon atoms in formula | E49: Steam Requirement (MJ/kg) | F49: Heat Recovery Potential (MJ/kg) | G49: Heat Recovery (%)
B50: 1,2,4-Trimethylbenzene | C50: 120.19 | D50: 9 | E50: 0.671 | F50: 0.493 | G50: 0
B51: Acetonitrile | C51: 41 | D51: 2 | E51: 0.988 | F51: 0.843 | G51: 0
B52: Chlorobenzene | C52: 112.56 | D52: 6 | E52: 0.839 | F52: 0.643 | G52: 0
B53: Chloroform | C53: 119.38 | D53: 1 | E53: 0.492 | F53: 0.429 | G53: 0
B54: Chloromethane | C54: 50.49 | D54: 1 | E54: 0 | F54: 0 | G54: 0
B55: Cyclohexane | C55: 84.16 | D55: 6 | E55: 0.723 | F55: 0.588 | G55: 0
B56: Dichloromethane | C56: 84.9 | D56: 1 | E56: 0.492 | F56: 0.429 | G56: 0
B57: Ethanol | C57: 46.1 | D57: 2 | E57: 1.666 | F57: 1.485 | G57: 0
B58: Ethylbenzene | C58: 106.16 | D58: 8 | E58: 0.671 | F58: 0.493 | G58: 0
B59: Methanol | C59: 32 | D59: 1 | E59: 2.079 | F59: 1.926 | G59: 0
B60: Methyl isobutyl ketone | C60: 100.16 | D60: 6 | E60: 0.988 | F60: 0.843 | G60: 0
B61: Methyl tert-butyl ether | C61: 88.14 | D61: 5 | E61: 0.688 | F61: 0.635 | G61: 0
B62: N,N-Dimethylformamide | C62: 73 | D62: 3 | E62: 1.01 | F62: 0.73 | G62: 0
B63: n-Butanol | C63: 74.12 | D63: 4 | E63: 1.39 | F63: 1.193 | G63: 0
B64: n-Hexane | C64: 86.17 | D64: 6 | E64: 0.723 | F64: 0.588 | G64: 0
B65: Tetrahydrofuran | C65: 72.1 | D65: 4 | E65: 0.835 | F65: 0.733 | G65: 0
B66: Toluene | C66: 92.14 | D66: 7 | E66: 0.671 | F66: 0.493 | G66: 0
B67: Xylenes | C67: 106.16 | D67: 8 | E67: 0.671 | F67: 0.493 | G67: 0

Sheet GEMM (2013) LCA Data (hidden)
A1: Chemicals | B1: **This sheet was copied from GEMM (2013) with modifications in B68:D90**
B2: Solvent | C2: 1,2,4-Trimethylbenzene | D2: 1,3-Butadiene | E2: Acetone | F2: Acetonitrile | G2: Chlorobenzene | H2: Chloroform | I2: Chloromethane | J2: Cumene | K2: Cyclohexane | L2: Dichloromethane | M2: Ethanol | N2: Ethyl acetate | O2: Ethyl ether | P2: Ethylbenzene | Q2: Formaldehyde | R2: Isopropyl alcohol | S2: Methanol | T2: Methyl isobutyl ketone | U2: Methyl tert-butyl ether | V2: N,N-Dimethylformamide | W2: n-Butanol | X2: n-Hexane | Y2: tert-Butyl Alcohol | Z2: Tetrahydrofuran | AA2: Toluene | AB2: Xylenes
B3: Molecular Weight | C3: 120.19 | D3: 54.0904 | E3: 58.0791 | F3: 41 | G3: 112.56 | H3: 119.38 | I3: 50.49 | J3: 120.1916 | K3: 84.16 | L3: 84.9 | M3: 46.1 | N3: 88.1051 | O3: 74.1216 | P3: 106.16 | Q3: 30.026 | R3: 60.095 | S3: 32 | T3: 100.16 | U3: 88.14 | V3: 73 | W3: 74.12 | X3: 86.17 | Y3: 74.1216 | Z3: 72.1 | AA3: 92.14 | AB3: 106.16
B4: Number of Carbon Atoms in Formula | C4: 9 | D4: 4 | E4: 3 | F4: 2 | G4: 6 | H4: 1 | I4: 1 | J4: 9 | K4: 6 | L4: 1 | M4: 2 | N4: 4 | O4: 4 | P4: 8 | Q4: 1 | R4: 3 | S4: 1 | T4: 6 | U4: 5 | V4: 3 | W4: 4 | X4: 6 | Y4: 4 | Z4: 4 | AA4: 7 | AB4: 8
B5: LHV (MJ/kg) | C5: 36.12840261 | F5: 25.7088923 | G5: 23.62902126 | H5: 3.277765557 | K5: 38.1163212 | L5: 5.678974465 | M5: 22.77658186 | P5: 36.12309511 | S5: 16.51423412 | T5: 29.67721238 | U5: 30.52309077 | V5: 21.12452159 | W5: 28.49015499 | X5: 39.03887841 | Z5: 28.07738874 | AA5: 35.90387286 | AB5: 35.97074646
B6: Manufacturing Emissions
B7: Air emission [kg/kg of solvent]
B8: CO2 | C8: =C$23*$D29/1000 -> 5.732402481 | E8: =4600/1000 -> 4.6 | F8: =F$23*$D29/1000 -> 6.997484408 | G8: 6.728654499 | H8: =L8 -> 2.16 | I8: 0 | K8: =K$23*$D29/1000 -> 6.57842602 | L8: =2.16 -> 2.16 | M8: =2.06 -> 2.06 | N8: 2.84 | O8: =5.18 -> 5.18 | P8: =P$23*$D29/1000 -> 6.728654499 | R8: =3.5 -> 3.5 | S8: =1.05 -> 1.05 | T8: =T$23*$D29/1000 -> 5.076141232 | U8: =O8 -> 5.18 | V8: =1.99 -> 1.99 | W8: =W$23*$D29/1000 -> 7.693279468 | X8: =619/1000 -> 0.619 | Z8: 12.8 | AA8: =697/1000 -> 0.697 | AB8: =AB$23*$D29/1000 -> 5.732402481
B9: CH4 | C9: 0.01048163446 | E9: =12.4/1000 -> 0.0124 | F9: 0.01279482275 | G9: 0.01230327024 | H9: 0.00684 | I9: 0 | K9: 0.01202857913 | L9: =6.84/1000 -> 0.00684 | M9: =2.83/1000 -> 0.00283 | N9: =14.7/1000 -> 0.0147 | O9: =11.4/1000 -> 0.0114 | P9: 0.01230327024 | R9: =9.73/1000 -> 0.00973 | S9: =8.31/1000 -> 0.00831 | T9: 0.009281668031 | U9: 0.0114 | V9: =12.4/1000 -> 0.0124 | W9: 0.01406707631 | X9: =3.77/1000 -> 0.00377 | Z9: =19.5/1000 -> 0.0195 | AA9: =4.32/1000 -> 0.00432 | AB9: 0.01048163446
B10: N2O | C10: 0 | E10: 0 | F10: 0 | G10: 0 | H10: 0 | I10: 0 | K10: 0 | L10: 0 | M10: 0 | N10: 0 | O10: 0 | P10: 0 | R10: 0 | S10: 0 | T10: 0 | U10: 0 | V10: 0 | W10: 0 | X10: 0 | Z10: 0 | AA10: 0 | AB10: 0
B11: CO | C11: 0.004010346747 | E11: =3.69/1000 -> 0.00369 | F11: 0.004895388788 | G11: 0.004707317354 | H11: 0.004 | I11: 0 | K11: 0.004602218612 | L11: =4/1000 -> 0.004 | M11: =2.85/1000 -> 0.00285 | N11: =10.3/1000 -> 0.0103 | O11: =5.69/1000 -> 0.00569 | P11: 0.004707317354 | R11: =2.72/1000 -> 0.00272 | S11: =4.21/1000 -> 0.00421 | T11: 0.003551231188 | U11: 0.00569 | V11: =51.1/1000 -> 0.0511 | W11: 0.00538216191 | X11: =0.635/1000 -> 0.000635 | Z11: =399/1000 -> 0.399 | AA11: =0.544/1000 -> 0.000544 | AB11: 0.004010346747
B12: NMVOC | C12: 0.02913418733 | E12: =25.6/1000 -> 0.0256 | F12: 0.03556380109 | G12: 0.03419750816 | H12: 0.0108 | I12: 0 | K12: 0.03343399153 | L12: =10.8/1000 -> 0.0108 | M12: =7.52/1000 -> 0.00752 | N12: =16.6/1000 -> 0.0166 | O12: =13.1/1000 -> 0.0131 | P12: 0.03419750816 | R12: =19.9/1000 -> 0.0199 | S12: =13.1/1000 -> 0.0131 | T12: 0.02579882519 | U12: 0.0131 | V12: =19.2/1000 -> 0.0192 | W12: 0.03910008865 | X12: =10.4/1000 -> 0.0104 | Z12: =46.7/1000 -> 0.0467 | AA12: =9.33/1000 -> 0.00933 | AB12: 0.02913418733
B13: NOx | C13: 0.01886927494 | E13: =19.2/1000 -> 0.0192 | F13: 0.02303352872 | G13: 0.02214862479 | H13: 0.00816 | I13: 0 | K13: 0.02165411965 | L13: =8.16/1000 -> 0.00816 | M13: =7.2/1000 -> 0.0072 | N13: =11.6/1000 -> 0.0116 | O13: =19.1/1000 -> 0.0191 | P13: 0.02214862479 | R13: =14.5/1000 -> 0.0145 | S13: =3.77/1000 -> 0.00377 | T13: 0.01670906829 | U13: 0.0191 | V13: =9.44/1000 -> 0.00944 | W13: 0.0253238683 | X13: =5.07/1000 -> 0.00507 | Z13: =53.5/1000 -> 0.0535 | AA13: =4.91/1000 -> 0.00491 | AB13: 0.01886927494
B14: SOx | C14: 0.02509839292 | E14: =31.5/1000 -> 0.0315 | F14: 0.0306373486 | G14: 0.02946032052 | H14: 0.00818 | I14: 0 | K14: 0.02880256953 | L14: =8.18/1000 -> 0.00818 | M14: =7.93/1000 -> 0.00793 | N14: =12/1000 -> 0.012 | O14: =22.9/1000 -> 0.0229 | P14: 0.02946032052 | R14: =24.8/1000 -> 0.0248 | S14: =4.22/1000 -> 0.00422 | T14: 0.02222505966 | U14: 0.0229 | V14: =6.83/1000 -> 0.00683 | W14: 0.03368377423 | X14: =3.05/1000 -> 0.00305 | Z14: =58.4/1000 -> 0.0584 | AA14: =2.9/1000 -> 0.0029 | AB14: 0.02509839292
B15: Water emission [kg/kg of solvent]
B16: TOC | C16: =C$23*$D37/1000 -> 0.0001576052184 | E16: =73.5/1000 -> 0.0735 | F16: =F$23*$D37/1000 -> 0.0001923870597 | G16: 0.0001849959184 | H16: =L16 -> 0.0184 | I16: 0 | K16: =K$23*$D37/1000 -> 0.0001808655748 | L16: =18.4/1000 -> 0.0184 | M16: =M18/2.86 -> 0.0001846153846 | N16: =112/1000 -> 0.112 | O16: =O18/2.86 -> 0.002370629371 | P16: =P$23*$D37/1000 -> 0.0001849959184 | R16: =39.2/1000 -> 0.0392 | S16: =17.3/1000 -> 0.0173 | T16: =T$23*$D37/1000 -> 0.0001395621382 | U16: =O16 -> 0.002370629371 | V16: =23.4/1000 -> 0.0234 | W16: =W$23*$D37/1000 -> 0.0002115170724 | X16: =X18/2.86 -> 0.000177972028 | Z16: =6.76/1000 -> 0.00676 | AA16: =AA18/2.86 -> 0.0004405594406 | AB16: =AB$23*$D37/1000 -> 0.0001576052184
